Workbook

Sheet Notes
A1: HybridSeasonalSystem.xlsm; Traders Tip spreadsheet created for the April 2022 Issue
A2: Coded beginning 2022-Feb-06 by Ronald McAllister (rpmac_xltt@sprynet.com)
A4: This Workbook demonstrates an EXCEL version of the ideas presented
A5: by Markos Katsanos in an article titled "Stock Market Seasonality, which originally appeared in the April 2022 issue of
A6: "Technical Analysis of Stocks and Commodities" magazine.
A10: Charts for Figure 5 of this article may be replicated
A11: by setting cell B26 to 6/7/2007 and cell B27 to 7/14/2009
A12: and then clicking the "I Would Like to Chart These Dates" button in cell B25.
A14: Charts for Figure 7 of this article may be replicated
A15: by setting cell B26 to 6/13/2016 and cell B27 to 8/6/2021
A16: and then clicking the "I Would Like to Chart These Dates" button in cell B25.
A18: * * * * * * * * * * * * * * * *
A20: January 18 2022 - Random "Name of Company" Retrieval Errors
A21: For the last couple of months my data retrievals would randomly get a soft error on the company name.
A22: By soft I mean that the HTML Get request for a summary for the InputPriceData tab target symbol would have a good return code but the company name field would contain garbage.
A23: Simply clicking the get data button on the InputPriceData tab to rerun the data retrieval would fix" it.
A24: Remarkably, the historical pricing data is always retrieved and is correct.
A26: Sunday (Jan 16) while working on this spreadsheet, five out of six tries for the same symbol displayed junk in the company name.
A27: So I set a trap to copy the HTML text to disc for the bad return and the good return so that I could compare them.
A28: (for those with a technical bent Notepad++ has a really nice Compare addin)
A29: As it turns out the correct required data is present in both versions.
A30: But the formatting of the new version does not contain the landmarks I was using to parse out what was needed.
A32: I think Yahoo Finance is experimenting with a new/upgraded HTML generator and perhaps does not have it installed on all of their servers.
A33: So the randomness of the "failure" is probably an artifact of which server answered my HTML request.
A35: The result is that I spent the last day and a half comparing the two formats and have come up with a new set of landmarks
A36: that are common to both formats. It requires a few extra steps to ignore minor internal differences in these landmarks and the result is
A37: code that does not care which HTML format is returned.
A39: The fix - What Changed:
A40: Complete rewrite of:
A41: VBA Procedure: ExtractCompanyIdFromSummaryText as found in VBA Module: InputPriceDataLoader
A43: Retrofiting to older Traders Tips spreadsheets:
A44: For those of you with some familiarity with the EXCEL VBA editor, you can try the following copy and paste steps.
A46: First we need to grab a copy of the corrected ExtractCompanyIdFromSummaryText Sub.
A47: Open the VBA editor in this spreadsheet and navigate to module InputPriceDataLoader and then to procedure ExtractCompanyIdFromSummaryText
A48: Copy all of procedure ExtractCompanyIdFromSummaryText from the beginning Sub statement to and including the closing End Sub statement to a new Notepad or Notepad++ text document.
A49: Close this workbook, but do not close the Notepad or Notepad++ document.
A51: Now for the target of your retrofit attempt.
A52: Make a backup copy of this retrofit target spreadsheet in case you have a problem and need to start over with a fresh copy.
A53: Open the retrofit target.
A54: Open the VBA editor in this target spreadsheet and navigate to module InputPriceDataLoader and then to procedure ExtractCompanyIdFromSummaryText
A56: Delete all of the ExtractCompanyIdFromSummaryText procedure starting with the begining Sub statement to and including the closing End Sub statement.
A58: Do not close the VBA editor or the spread sheet.
A60: Navigate (Alt-Tab) to your Notepad or Notepad++ instance and select all of the text (Ctrl-a). Then Copy the selected text (Ctrl-c).
A61: Navigate (Alt-Tab) back to the VBA editor window. The VBA editor cursor should still be on the line where you just deleted the old version of ExtractCompanyIdFromSummaryText.
A62: This is probably a blank line just above a line that reads "Sub FormatPriceHistory(..."
A63: If there is no blank line above the "Sub FormatPriceHistory(..." line then click on the "S" of Sub and press enter to insert a blank line.
A64: Move your mouse cursor to this blank line and left-click to be sure of the VBA cursor location.
A65: Then (Ctrl-v) to paste the new version of ExtractCompanyIdFromSummaryText that you copied from the Notepad or Notepad++ text document.
A67: You are done with the tricky part. Close the VBA editor and save the now retrofitted spreadsheet.
A69: Go to the inputPriceData tab and retrieve some data to verify that nothing is broken.
A70: Easter egg time: (Curious minds want to know...)
A71: If the data retrieval encounters a new format HTML response, the company name this code will display will have an asterisk(*) as a prefix.
A73: Foot Note: Today (Jan 19 2022) I have not encountered a single instance of the new format HTML while testing this spreadsheet for submission to the editors.
A74: So maybe YahooFinance is not test/using the new version right now?
A76: New for May 2021
A77: Upgraded the data download logic to do a better job of catching the common data download errors and provide a more graceful resolution.
A78: This includes better user notification of the nature of the error and some user control over how the error should be handled.
A79: User notification comes in the form of a MSGbox display that includes the (sometimes cryptic) description of the error and offers the user three options.
A81: Abort - If I could customize the title, I would rename this button to "Debug"
A82: This choice places you in Debug mode at the failing VBA statement.
A83: Unless you are feeling good about your VBA (and Network) debugging skills, this is probably not for you.
A85: Retry
A86: Lets the code retry the failed download request.
A87: This is a reasonable option if the download request timed out (similar to video buffering) or your network connection has dropped out..
A88: Probably a good idea to make sure your internet connection is alive and well before you select Retry.
A90: Ignore
A91: Lets the code fall thru to a (hopefully) graceful error completion with the error indicated at the top of the InputPriceData tab
A93: New for August 2020
A94: Restructured my Symbol-Not-Found detection and now stop further processing in the not found case
A96: New with the May 2020 version of my T-Tips template: VBA to implement a "Perpetual" U.S. Markets Closed Holiday Calendar.
A98: Why we need one: The Yahoo Finance recently has begun having occasional filtration problems where bars for U.S. Market Closed Holidays
A99: make their way onto the Historical Data web page and into the Historical Data download.
A101: While testing this May 2020 spreadsheet with different symbols, I found that I sometimes had bars with the text "null" in the price fields.
A102: My code always translates the "null" text price values to zeros.
A103: The resulting zeros cause real problems with indicator computations and the amount of blank space below price candles on the price chart.
A105: "null" price bars can be valid for very lightly traded penny sheet symbols which may not trade every day the markets are open.
A106: But is definitely not normal for symbols on the big boards.
A108: A closer look determined that these "bars" were for holiday dates when the US markets are normally closed.
A109: I found it interesting that some times the next download for the same symbol would not contain any of these "holiday" bars. Weird!
A111: My approach here was to write code to determine if the DATE on a null price values bar falls on one of the 9 market closed U.S. Holidays.
A112: If the bar date corresponds to one of these market closed holidays, I drop the bar before it reaches the InputPriceData tab.
A113: If the date is not a holiday, I let the bar through with the resulting zero values.
A115: No messy tables to update over the years as there are good solid rules that can be used in VBA or any other programming language to determine
A116: the dates for U.S. Market Closed Holidays for any given calendar year.
A118: This workbook contains and uses VBA macros and may take advantage of user defined VBA Class structures.
A119: Input Data:
A120: The data in this workbook is sorted date-descending (most recent date at the top). All cell formulas and
A121: VBA routines are built assuming this date sequence.
A123: ERROR 9 (already fixed in this spreadsheet)
A124: On or about Jan 29, 2020 Yahoo Finance changed the format of the split factor expression used their historical data downloads.
A125: The Split expression went from using "/" as in "New Share Number/Old Share Number",
A126: to using ":" as in "New Share Number:Old Share Number".
A127: This caused the then current version of my VBA code to fail with a "Runtime Error '9': subscript out of range".
A129: Fix for this ERROR 9
A130: For T-Tip spreadsheets from September 2018 up to present:
A131: Selecting the Debug option takes one into the VBA at the code line which causes the failure:
A132: CellArray(C_A_RowNdx, C_A_ColNdx + 1) = SplitFactors(1)
A133: Two lines above the failing VBA line is a line that reads:
A134: SplitFactors = Split(CsvColumns(CsvColNdx), "/")
A135: Change the / to a :
A136: The corrected line should now read
A137: SplitFactors = Split(CsvColumns(CsvColNdx), ":")
A139: If you are fixing several spreadsheets and do not want to use the failure to find the fix location,
A140: you can use VBA’s FIND dialog (Ctrl F) to look for the substring
A141: SplitFactors =
A142: Do include one space and the equal sign in your FIND string
A143: Select the "Current Project" option
A144: There should only be one instance.
A146: T-Tip spreadsheets prior to the September 2018 spreadsheet do not hard fail.
A148: They just get weird results in the split columns of the Input Price Data tab (soft fail).
A149: These older spreadsheets used different data retrieval and formatting logic.
A151: To fix these older spreadsheets:
A152: In the VBA editor, use find (CTRL-F).
A153: Select the "Current Project" option, and search for the following:
A154: OtherChar:="/"
A155: You are looking for a hit in a line reading:
A156: Other:=True, OtherChar:="/", _
A157: This line is part of a multiline block of code starting with a line that reads:
A158: SplitRange.Offset(0, 1).Resize(SpRows, 1).TextToColumns
A159: Change the / to a : so that the line reads
A160: Other:=True, OtherChar:=":", _
A163: 2019-04-04 Finally came up with a mechanism to align the left location and overall length of the cursor scroll bar so that the left most and right most
A164: scroll bar thumb positions visually align reasonably well with the left and right ends of the price chart horizontal axis.
A165: Makes it a little easier to visually align the Thumb and thus the cursor with points of interest on the charts.
A167: Older:
B168: My sincere apologies to our Macintosh based readers: Neither MSXML nor WinHttpRequest are supported in your environment. So as it stands this version of the spreadsheet will not work for you.
B169: See "Why this approach does not work for Macintosh" below.
B170: I am investigating cURL as a non-Querytable based approach for the Macintosh environment.
A172: The new Yahoo Finance history download interface has changed rather radically. The biggest hurdle being a pseudo-security requirement of adding a
B173: crumb character string to any URL requesting any type of history download. That crumb must match up (by way of some sort of hash algorithm) with
B174: the Yahoo Finance cookie that must also be sent with any request to the new Yahoo History down load interface.
B176: A crumb value is returned, buried in the HTML for any of what I call the "entry level" Yahoo Finance web pages (no crumb security requirement for entry level pages).
B177: A crumb may come with other Yahoo Finance pages. A crumb may even accompany some of the secured pages as well. I have not checked.
B179: Entry level pages are the top level pages of the various Yahoo Finance dialogs and include: Quote Lookup, Stock Summary Quote, and any of the pages
B180: with links in the horizontal row with the "Summary" link on the quote summary page such as Options, Historical Data, and the rest.
B182: To date I have found no way to get at this crumb value using any native EXCEL capabilities.
B184: So this crumb requirement effectively shuts out any solution that attempts to exclusively use built-in facilities of EXCEL, which is to say a purely Querytables solution.
B186: The approach built for this Traders Tip spreadsheet uses WINHTTP calls to Load the InputPriceData worksheet.
B188: First I call to get the HTML text for the Yahoo Summary Quote page using the requested symbol. From this HTML text I extract the full company name,
B189: the market it trades, the market status and time stamp, and finally the associated crumb string. There is a bunch of other useful bits buried in this HTML
B190: text that do not necessarily appear on the web page your browser presents. Perhaps some day I will go after and build a worksheet with these other bits.
B192: Next I add the freshly extracted crumb string to the URLs I use in three separate WINHTTP calls to retrieve Price history, Split history, and Dividend history respectively.
B194: From there VBA code proceeds as in the past to fill in the cell formulas and formatting that make the "prettied up" InputPriceData sheet.
A196: Why this approach works for Windows:
B197: WINHTTP maintains a temporary computer memory cache where cookies are maintained for as long as the WINHTTP object is instantiated.
B198: WINHTTP updates this cache any time a "set cookie" header accompanies a web response.
B199: Subsequent WINHTTP calls automatically search this cache for cookies and add any "appropriate" cookies to the headers
B200: of any web requests that get sent out.
B201: This cookie handling automation means that even if the response to our WINHTTP call for the Summary web page includes a new version of
B202: the Yahoo Finance cookie, the imbedded Crumb value will always match the cookie newly installed in the cache!
A205: Why this approach does not work for Macintosh:
B206: For what it is worth, the Macintosh version of the MS Office suite of products do in fact maintain a special, shared amongst themselves only, cookie cache.
B207: They automate cookie handling into and from this cache JUST for the Office products and any Querytable activity they might originate.
B209: This cache is not tied to, nor shared with, any browser that might be installed on the MAC. And I have not found anything with HTTP capabilities similar to
B210: MSXML that can work with that Office product cookie cache.
B212: When working in the MAC EXCEL environment, I have not yet become conversant with a Mac based WINHTTP like capability.
B213: So l currently have no mechanism to replicate the non-Querytable data retrieval process I am using in Windows environments.
B214: A software product called CURL has been suggested as providing this capability in the MAC environment.
B215: A version of CURL is available for the Windows So some day I may explore its capabilities and how to access those capabilities from VBA.
A217: Calculation and Chart Worksheet Usage Comments:
C218: In General, Items in Bolded BLUE are items you may freely change to play what-if games.
C219: Be sure to have a backup copy of the spreadsheet before you alter anything else.
A221: Features carried forward from the June 2016 version of my T-Tips Template
A222: Added a pair of buttons near cell F12 that will allow the user to step the charting window forward or backward one bar for each click.
A223: I find this to be a good way to test my understanding of the author's ideas as I step through the evolution of the price behavior and the indicators.
B225: First: In the "Help! I would like to plot data" area.
B226: Added button to resolve #NA problems by locating the bar in the input data with a slightly more recent date than what the user actually requested.
B227: I find this particularly useful when I have a general idea of where I want to be date wise. Now I can pick a set of dates "out of the air".
B228: If either (or both) of my date specifications fall between dates that are available in the price history,
B229: this button will resolve them to the dates of the nearest, slightly more recent input bars.
B230: I can then refine my data interval search as necessary from there.
B231: Really great when working with Weekly or Monthly studies!
C232: 2016Jun11 - added logic to the "I would like to chart.." button to detect #N/A values and terminate
C233: gracefully with a message instead of blowing up in the charting logic.
B235: Second: In the "Price Chart Windowing Controls" area. (A11 and A12)
B236: When retrieving data for a new symbol or when changing from daily to weekly or monthly data, there was the possibility that the
B237: residual settings in A11 and A12 would fall outside of the number bars available on the input data tab after the new data retrieval.
B238: In certain combinations, this could create a serious error in the chart sizing logic and crash the spreadsheet.
B239: I have taken this opportunity to update the validity checking logic used in the chart sizing macros
B240: to adjust these values as necessary so that they fall within the boundaries of the newly retrieved input data.
A241: Features carried forward from the October 2015 Traders Tips Template
B242: Improved automation: changes to any of the following will automatically initiate calculations appropriate to reflect a change.
C243: Changing either of cells A11 (pan) or A12 (zoom) will automatically initiate the same chart sizing macros that the manual
C244: "Set Chart" button uses.

Sheet InputPriceData
A1: SPDR S&P 500 ETF Trust (SPY) -NYSEArca (Daily)
M2: To retrieve data for symbols traded on non US Exchanges, | II2: 241.79
A3: Request Online Yahoo History for: | F3: Market State == > | G3: At close: | H3: 16:00:00 | I3: EST | M3: you will need to append the dot-suffix for the exchange to the symbol.
A4: Symbol | B4: SPY | D4: Valid | I4: =OFFSET(I4,-2,0,1,1) -> 0 | M4: The following links provide a description of how to use the exchange suffix
A5: From | B5: 1950-10-01 | D5: Data | M5: along with a list of suffixes for the major world exchanges. | AD5: Trailing 12 Div return (Cur Close)
A6: To | B6: =NOW() -> 2022-02-16T12:44:43.420 | D6: Types | E6: =VLOOKUP(B7,D7:E10,2,FALSE) -> d | M6: https://help.yahoo.com/kb/finance/SLN2310.html
A7: Data Type | B7: Daily | D7: Daily | E7: d | M7: And
A8: Crumb | B8: 5wiS8S1x1r. | D8: Weekly | E8: w | M8: https://www.stockmarketeye.com/users-guide/ticker-symbols-and-data-providers/data-providers.html
A9: Available Data | D9: Monthly | E9: m
A10: Bar Count: | B10: 7316 | M10: You may search on “exchange suffixes” for additional discussions | AD10: =OFFSET(AC15,1,0,1,1)/OFFSET(N15,1,0,1,1) -> 0.01281102892
A11: From: | B11: =IF(B10<=0,"",OFFSET(B15,B10,IF(HistReqDataType="v",1,0),1,1)) -> 1993-01-29 | W11: Trailing 12 Month Dividend Returns
A12: To: | B12: =IF(B10<=0,"",IF(HistReqDataType="v",OFFSET(B15,2,1,1,1),OFFSET(B15,1,0,1,1))) -> 2022-02-15 | W12: Raw Close price on Dividend date | X12: Div Year and Month | Y12: Looking for year ago Div Year and Month | Z12: Year ago Div Date we found | AA12: row offset to year ago div Date | AB12: Same month flag | AC12: Trailing 12 Div Total | AD12: Trailing 12 Div return
Q13: Split History | S13: 0 | T13: Running | U13: Dividend History
B14: Raw Data Values | H14: Adjusted | I14: Price Adjust | J14: Vol Adjust | K14: Adjusted Values | P14: Last | Q14: Effective | R14: Shares | T14: Vol Adjust | V14: 117
A15: RelRow | B15: Date | C15: Open | D15: High | E15: Low | F15: Close | G15: Volume | H15: Close | I15: Factor | J15: Factor | K15: Open | L15: High | M15: Low | N15: Close | O15: Volume | P15: Trade | Q15: 44608 | R15: New | S15: Old | T15: 1 | U15: Date | V15: $ / Share
A16: 1 | B16: 2022-02-15 | C16: 443.730011 | D16: 446.279999 | E16: 443.179993 | F16: 446.100006 | G16: 85650218 | H16: 446.100006 | I16: =IF(F16=0,1,H16/F16) -> 1 | J16: =INDEX(OFFSET($T$15,0,0,$S$13+1,1),MATCH(B16,OFFSET($Q$15,0,0,$S$13+1,1),-1)) -> 1 | K16: =ROUND($I16*C16,2) -> 443.73 | L16: =ROUND($I16*D16,2) -> 446.28 | M16: =ROUND($I16*E16,2) -> 443.18 | N16: =ROUND($I16*F16,2) -> 446.1 | O16: =G16*J16 -> 85650218 | U16: 2021-12-17 | V16: 1.633 | W16: =(INDEX(OFFSET($F$15,1,0,$B$10,1),MATCH(U16,OFFSET($B$15,1,0,$B$10,1),-1))) -> 459.869995 | X16: =YEAR(U16)&RIGHT("0"&MONTH(U16),2) -> 202112 | Y16: =YEAR(U16)-1&RIGHT("0"&MONTH(U16),2) -> 202012 | Z16: =OFFSET(U15,AA16,0,1,1) -> 2020-12-18 | AA16: =MATCH(Y16,OFFSET($X$15,A16,0,$V$14+1-A16,1),-1) -> 5 | AB16: =IF(OR(AND(YEAR(U16)=YEAR(Z16),MONTH(U16)=MONTH(Z16)),MONTH(U16)=MONTH(Z16)),1,0) -> 1 | AC16: =(V16+IF(AA16-AB16=0,0,IFERROR(SUM(OFFSET(V16,1,0,AA16-AB16-1,1)),0))) -> 5.715 | AD16: =AC16/(INDEX(OFFSET($F$15,1,0,$B$10,1),MATCH(U16,OFFSET($B$15,1,0,$B$10,1),-1))) -> 0.01242742528
A17: 2 | B17: 2022-02-14 | C17: 439.920013 | D17: 441.600006 | E17: 435.339996 | F17: 439.019989 | G17: 122062800 | H17: 439.019989 | I17: =IF(F17=0,1,H17/F17) -> 1 | J17: =INDEX(OFFSET($T$15,0,0,$S$13+1,1),MATCH(B17,OFFSET($Q$15,0,0,$S$13+1,1),-1)) -> 1 | K17: =ROUND($I17*C17,2) -> 439.92 | L17: =ROUND($I17*D17,2) -> 441.6 | M17: =ROUND($I17*E17,2) -> 435.34 | N17: =ROUND($I17*F17,2) -> 439.02 | O17: =G17*J17 -> 122062800 | U17: 2021-09-17 | V17: 1.428 | W17: =(INDEX(OFFSET($F$15,1,0,$B$10,1),MATCH(U17,OFFSET($B$15,1,0,$B$10,1),-1))) -> 441.399994 | X17: =YEAR(U17)&RIGHT("0"&MONTH(U17),2) -> 202109 | Y17: =YEAR(U17)-1&RIGHT("0"&MONTH(U17),2) -> 202009 | Z17: =OFFSET(U16,AA17,0,1,1) -> 2020-09-18 | AA17: =MATCH(Y17,OFFSET($X$15,A17,0,$V$14+1-A17,1),-1) -> 5 | AB17: =IF(OR(AND(YEAR(U17)=YEAR(Z17),MONTH(U17)=MONTH(Z17)),MONTH(U17)=MONTH(Z17)),1,0) -> 1 | AC17: =(V17+IF(AA17-AB17=0,0,IFERROR(SUM(OFFSET(V17,1,0,AA17-AB17-1,1)),0))) -> 5.662 | AD17: =AC17/(INDEX(OFFSET($F$15,1,0,$B$10,1),MATCH(U17,OFFSET($B$15,1,0,$B$10,1),-1))) -> 0.01282736764
A18: 3 | B18: 2022-02-11 | C18: 449.410004 | D18: 451.609985 | E18: 438.940002 | F18: 440.459991 | G18: 153064100 | H18: 440.459991 | I18: 1 | J18: 1 | K18: 449.41 | L18: 451.61 | M18: 438.94 | N18: 440.46 | O18: 153064100 | U18: 2021-06-18 | V18: 1.376 | W18: 414.920013 | X18: 202106 | Y18: 202006 | Z18: 2020-06-19 | AA18: 5 | AB18: 1 | AC18: 5.573 | AD18: 0.01343150445
A19: 4 | B19: 2022-02-10 | C19: 451.339996 | D19: 457.709991 | E19: 447.200012 | F19: 449.320007 | G19: 140103700 | H19: 449.320007 | I19: 1 | J19: 1 | K19: 451.34 | L19: 457.71 | M19: 447.2 | N19: 449.32 | O19: 140103700 | U19: 2021-03-19 | V19: 1.278 | W19: 389.480011 | X19: 202103 | Y19: 202003 | Z19: 2020-03-20 | AA19: 5 | AB19: 1 | AC19: 5.563 | AD19: 0.01428314636
A20: 5 | B20: 2022-02-09 | C20: 455.220001 | D20: 457.880005 | E20: 455.01001 | F20: 457.540009 | G20: 92589900 | H20: 457.540009 | I20: 1 | J20: 1 | K20: 455.22 | L20: 457.88 | M20: 455.01 | N20: 457.54 | O20: 92589900 | U20: 2020-12-18 | V20: 1.58 | W20: 369.179993 | X20: 202012 | Y20: 201912 | Z20: 2019-12-20 | AA20: 5 | AB20: 1 | AC20: 5.691 | AD20: 0.01541524489
A21: 6 | B21: 2022-02-08 | C21: 446.730011 | D21: 451.920013 | E21: 445.220001 | F21: 450.940002 | G21: 81012000 | H21: 450.940002 | I21: 1 | J21: 1 | K21: 446.73 | L21: 451.92 | M21: 445.22 | N21: 450.94 | O21: 81012000 | U21: 2020-09-18 | V21: 1.339 | W21: 330.649994 | X21: 202009 | Y21: 201909 | Z21: 2019-09-20 | AA21: 5 | AB21: 1 | AC21: 5.681 | AD21: 0.01718130985
A22: 7 | B22: 2022-02-07 | C22: 449.51001 | D22: 450.98999 | E22: 445.850006 | F22: 447.26001 | G22: 84472900 | H22: 447.26001 | I22: 1 | J22: 1 | K22: 449.51 | L22: 450.99 | M22: 445.85 | N22: 447.26 | O22: 84472900 | U22: 2020-06-19 | V22: 1.366 | W22: 308.640015 | X22: 202006 | Y22: 201906 | Z22: 2019-06-21 | AA22: 5 | AB22: 1 | AC22: 5.726 | AD22: 0.01855235783
A23: 8 | B23: 2022-02-04 | C23: 446.350006 | D23: 452.779999 | E23: 443.829987 | F23: 448.700012 | G23: 118335600 | H23: 448.700012 | I23: 1 | J23: 1 | K23: 446.35 | L23: 452.78 | M23: 443.83 | N23: 448.7 | O23: 118335600 | U23: 2020-03-20 | V23: 1.406 | W23: 228.800003 | X23: 202003 | Y23: 201903 | Z23: 2019-03-15 | AA23: 5 | AB23: 1 | AC23: 5.792 | AD23: 0.02531468498
A24: 9 | B24: 2022-02-03 | C24: 450.950012 | D24: 452.970001 | E24: 445.709991 | F24: 446.600006 | G24: 118024400 | H24: 446.600006 | I24: 1 | J24: 1 | K24: 450.95 | L24: 452.97 | M24: 445.71 | N24: 446.6 | O24: 118024400 | U24: 2019-12-20 | V24: 1.57 | W24: 320.730011 | X24: 201912 | Y24: 201812 | Z24: 2018-12-21 | AA24: 5 | AB24: 1 | AC24: 5.619 | AD24: 0.01751940825
A25: 10 | B25: 2022-02-02 | C25: 455.5 | D25: 458.119995 | E25: 453.049988 | F25: 457.350006 | G25: 117361000 | H25: 457.350006 | I25: 1 | J25: 1 | K25: 455.5 | L25: 458.12 | M25: 453.05 | N25: 457.35 | O25: 117361000 | U25: 2019-09-20 | V25: 1.384 | W25: 298.279999 | X25: 201909 | Y25: 201809 | Z25: 2018-09-21 | AA25: 5 | AB25: 1 | AC25: 5.484 | AD25: 0.01838540974
A26: 11 | B26: 2022-02-01 | C26: 450.679993 | D26: 453.630005 | E26: 446.940002 | F26: 452.950012 | G26: 123155400 | H26: 452.950012 | I26: 1 | J26: 1 | K26: 450.68 | L26: 453.63 | M26: 446.94 | N26: 452.95 | O26: 123155400 | U26: 2019-06-21 | V26: 1.432 | W26: 294 | X26: 201906 | Y26: 201806 | Z26: 2018-06-15 | AA26: 5 | AB26: 1 | AC26: 5.423 | AD26: 0.01844557823
A27: 12 | B27: 2022-01-31 | C27: 441.23999 | D27: 450.279999 | E27: 439.809998 | F27: 449.910004 | G27: 152251400 | H27: 449.910004 | I27: 1 | J27: 1 | K27: 441.24 | L27: 450.28 | M27: 439.81 | N27: 449.91 | O27: 152251400 | U27: 2019-03-15 | V27: 1.233 | W27: 281.309998 | X27: 201903 | Y27: 201803 | Z27: 2018-03-16 | AA27: 5 | AB27: 1 | AC27: 5.237 | AD27: 0.01861647306
A28: 13 | B28: 2022-01-28 | C28: 432.679993 | D28: 442 | E28: 427.820007 | F28: 441.950012 | G28: 164457400 | H28: 441.950012 | I28: 1 | J28: 1 | K28: 432.68 | L28: 442 | M28: 427.82 | N28: 441.95 | O28: 164457400 | U28: 2018-12-21 | V28: 1.435 | W28: 240.699997 | X28: 201812 | Y28: 201712 | Z28: 2017-12-15 | AA28: 5 | AB28: 1 | AC28: 5.101 | AD28: 0.02119235589
A29: 14 | B29: 2022-01-27 | C29: 438.26001 | D29: 441.589996 | E29: 429.450012 | F29: 431.23999 | G29: 149878300 | H29: 431.23999 | I29: 1 | J29: 1 | K29: 438.26 | L29: 441.59 | M29: 429.45 | N29: 431.24 | O29: 149878300 | U29: 2018-09-21 | V29: 1.323 | W29: 291.98999 | X29: 201809 | Y29: 201709 | Z29: 2017-09-15 | AA29: 5 | AB29: 1 | AC29: 5.017 | AD29: 0.01718209587
A30: 15 | B30: 2022-01-26 | C30: 440.720001 | D30: 444.040009 | E30: 428.859985 | F30: 433.380005 | G30: 186391100 | H30: 433.380005 | I30: 1 | J30: 1 | K30: 440.72 | L30: 444.04 | M30: 428.86 | N30: 433.38 | O30: 186391100 | U30: 2018-06-15 | V30: 1.246 | W30: 277.130005 | X30: 201806 | Y30: 201706 | Z30: 2017-06-16 | AA30: 5 | AB30: 1 | AC30: 4.929 | AD30: 0.01778587634
A31: 16 | B31: 2022-01-25 | C31: 433.059998 | D31: 439.720001 | E31: 427.149994 | F31: 434.470001 | G31: 167997300 | H31: 434.470001 | I31: 1 | J31: 1 | K31: 433.06 | L31: 439.72 | M31: 427.15 | N31: 434.47 | O31: 167997300 | U31: 2018-03-16 | V31: 1.097 | W31: 274.200012 | X31: 201803 | Y31: 201703 | Z31: 2017-03-17 | AA31: 5 | AB31: 1 | AC31: 4.866 | AD31: 0.0177461699
A32: 17 | B32: 2022-01-24 | C32: 432.029999 | D32: 440.380005 | E32: 420.76001 | F32: 439.839996 | G32: 251783900 | H32: 439.839996 | I32: 1 | J32: 1 | K32: 432.03 | L32: 440.38 | M32: 420.76 | N32: 439.84 | O32: 251783900 | U32: 2017-12-15 | V32: 1.351 | W32: 266.51001 | X32: 201712 | Y32: 201612 | Z32: 2016-12-16 | AA32: 5 | AB32: 1 | AC32: 4.802 | AD32: 0.01801808495
A33: 18 | B33: 2022-01-21 | C33: 445.559998 | D33: 448.059998 | E33: 437.950012 | F33: 437.980011 | G33: 202271200 | H33: 437.980011 | I33: 1 | J33: 1 | K33: 445.56 | L33: 448.06 | M33: 437.95 | N33: 437.98 | O33: 202271200 | U33: 2017-09-15 | V33: 1.235 | W33: 249.190002 | X33: 201709 | Y33: 201609 | Z33: 2016-09-16 | AA33: 5 | AB33: 1 | AC33: 4.78 | AD33: 0.01918215001
A34: 19 | B34: 2022-01-20 | C34: 453.75 | D34: 458.73999 | E34: 444.5 | F34: 446.75 | G34: 122379700 | H34: 446.75 | I34: 1 | J34: 1 | K34: 453.75 | L34: 458.74 | M34: 444.5 | N34: 446.75 | O34: 122379700 | U34: 2017-06-16 | V34: 1.183 | W34: 242.639999 | X34: 201706 | Y34: 201606 | Z34: 2016-06-17 | AA34: 5 | AB34: 1 | AC34: 4.627 | AD34: 0.01906940331
A35: 20 | B35: 2022-01-19 | C35: 458.130005 | D35: 459.609985 | E35: 451.459991 | F35: 451.75 | G35: 109357600 | H35: 451.75 | I35: 1 | J35: 1 | K35: 458.13 | L35: 459.61 | M35: 451.46 | N35: 451.75 | O35: 109357600 | U35: 2017-03-17 | V35: 1.033 | W35: 237.029999 | X35: 201703 | Y35: 201603 | Z35: 2016-03-18 | AA35: 5 | AB35: 1 | AC35: 4.522 | AD35: 0.01907775395
A36: 21 | B36: 2022-01-18 | C36: 459.73999 | D36: 459.959991 | E36: 455.309998 | F36: 456.48999 | G36: 109709100 | H36: 456.48999 | I36: 1 | J36: 1 | K36: 459.74 | L36: 459.96 | M36: 455.31 | N36: 456.49 | O36: 109709100 | U36: 2016-12-16 | V36: 1.329 | W36: 225.039993 | X36: 201612 | Y36: 201512 | Z36: 2015-12-18 | AA36: 5 | AB36: 1 | AC36: 4.539 | AD36: 0.02016974823
A37: 22 | B37: 2022-01-14 | C37: 461.190002 | D37: 465.089996 | E37: 459.899994 | F37: 464.720001 | G37: 95849600 | H37: 464.720001 | I37: 1 | J37: 1 | K37: 461.19 | L37: 465.09 | M37: 459.9 | N37: 464.72 | O37: 95849600 | U37: 2016-09-16 | V37: 1.082 | W37: 213.369995 | X37: 201609 | Y37: 201509 | Z37: 2015-09-18 | AA37: 5 | AB37: 1 | AC37: 4.422 | AD37: 0.02072456345
A38: 23 | B38: 2022-01-13 | C38: 472.190002 | D38: 472.880005 | E38: 463.440002 | F38: 464.529999 | G38: 91173100 | H38: 464.529999 | I38: 1 | J38: 1 | K38: 472.19 | L38: 472.88 | M38: 463.44 | N38: 464.53 | O38: 91173100 | U38: 2016-06-17 | V38: 1.078 | W38: 206.520004 | X38: 201606 | Y38: 201506 | Z38: 2015-06-19 | AA38: 5 | AB38: 1 | AC38: 4.373 | AD38: 0.02117470422
A39: 24 | B39: 2022-01-12 | C39: 471.589996 | D39: 473.200012 | E39: 468.940002 | F39: 471.019989 | G39: 67605400 | H39: 471.019989 | I39: 1 | J39: 1 | K39: 471.59 | L39: 473.2 | M39: 468.94 | N39: 471.02 | O39: 67605400 | U39: 2016-03-18 | V39: 1.05 | W39: 204.380005 | X39: 201603 | Y39: 201503 | Z39: 2015-03-20 | AA39: 5 | AB39: 1 | AC39: 4.325 | AD39: 0.02116156128
A40: 25 | B40: 2022-01-11 | C40: 465.230011 | D40: 469.850006 | E40: 462.049988 | F40: 469.75 | G40: 74303100 | H40: 469.75 | I40: 1 | J40: 1 | K40: 465.23 | L40: 469.85 | M40: 462.05 | N40: 469.75 | O40: 74303100 | U40: 2015-12-18 | V40: 1.212 | W40: 200.020004 | X40: 201512 | Y40: 201412 | Z40: 2014-12-19 | AA40: 5 | AB40: 1 | AC40: 4.206 | AD40: 0.02102789679
A41: 26 | B41: 2022-01-10 | C41: 462.700012 | D41: 465.73999 | E41: 456.600006 | F41: 465.51001 | G41: 119362000 | H41: 465.51001 | I41: 1 | J41: 1 | K41: 462.7 | L41: 465.74 | M41: 456.6 | N41: 465.51 | O41: 119362000 | U41: 2015-09-18 | V41: 1.033 | W41: 195.449997 | X41: 201509 | Y41: 201409 | Z41: 2014-09-19 | AA41: 5 | AB41: 1 | AC41: 4.129 | AD41: 0.0211256079
A42: 27 | B42: 2022-01-07 | C42: 467.950012 | D42: 469.200012 | E42: 464.649994 | F42: 466.089996 | G42: 85064800 | H42: 466.089996 | I42: 1 | J42: 1 | K42: 467.95 | L42: 469.2 | M42: 464.65 | N42: 466.09 | O42: 85064800 | U42: 2015-06-19 | V42: 1.03 | W42: 210.809998 | X42: 201506 | Y42: 201406 | Z42: 2014-06-20 | AA42: 5 | AB42: 1 | AC42: 4.035 | AD42: 0.01914045841
A43: 28 | B43: 2022-01-06 | C43: 467.890015 | D43: 470.820007 | E43: 465.429993 | F43: 467.940002 | G43: 86858900 | H43: 467.940002 | I43: 1 | J43: 1 | K43: 467.89 | L43: 470.82 | M43: 465.43 | N43: 467.94 | O43: 86858900 | U43: 2015-03-20 | V43: 0.931 | W43: 210.410004 | X43: 201503 | Y43: 201403 | Z43: 2014-03-21 | AA43: 5 | AB43: 1 | AC43: 3.942 | AD43: 0.01873485065
A44: 29 | B44: 2022-01-05 | C44: 477.160004 | D44: 477.980011 | E44: 468.279999 | F44: 468.380005 | G44: 104538900 | H44: 468.380005 | I44: 1 | J44: 1 | K44: 477.16 | L44: 477.98 | M44: 468.28 | N44: 468.38 | O44: 104538900 | U44: 2014-12-19 | V44: 1.135 | W44: 206.520004 | X44: 201412 | Y44: 201312 | Z44: 2013-12-20 | AA44: 5 | AB44: 1 | AC44: 3.836 | AD44: 0.01857447185
A45: 30 | B45: 2022-01-04 | C45: 479.220001 | D45: 479.980011 | E45: 475.579987 | F45: 477.549988 | G45: 71178700 | H45: 477.549988 | I45: 1 | J45: 1 | K45: 479.22 | L45: 479.98 | M45: 475.58 | N45: 477.55 | O45: 71178700 | U45: 2014-09-19 | V45: 0.939 | W45: 200.699997 | X45: 201409 | Y45: 201309 | Z45: 2013-09-20 | AA45: 5 | AB45: 1 | AC45: 3.681 | AD45: 0.01834080745
A46: 31 | B46: 2022-01-03 | C46: 476.299988 | D46: 477.850006 | E46: 473.850006 | F46: 477.709991 | G46: 72668200 | H46: 477.709991 | I46: 1 | J46: 1 | K46: 476.3 | L46: 477.85 | M46: 473.85 | N46: 477.71 | O46: 72668200 | U46: 2014-06-20 | V46: 0.937 | W46: 195.940002 | X46: 201406 | Y46: 201306 | Z46: 2013-06-21 | AA46: 5 | AB46: 1 | AC46: 3.58 | AD46: 0.01827089907
A47: 32 | B47: 2021-12-31 | C47: 475.640015 | D47: 476.859985 | E47: 474.670013 | F47: 474.959991 | G47: 65237400 | H47: 474.959991 | I47: 1 | J47: 1 | K47: 475.64 | L47: 476.86 | M47: 474.67 | N47: 474.96 | O47: 65237400 | U47: 2014-03-21 | V47: 0.825 | W47: 186.199997 | X47: 201403 | Y47: 201303 | Z47: 2013-03-15 | AA47: 5 | AB47: 1 | AC47: 3.482 | AD47: 0.01870032254
A48: 33 | B48: 2021-12-30 | C48: 477.929993 | D48: 479 | E48: 475.670013 | F48: 476.160004 | G48: 55329000 | H48: 476.160004 | I48: 1 | J48: 1 | K48: 477.93 | L48: 479 | M48: 475.67 | N48: 476.16 | O48: 55329000 | U48: 2013-12-20 | V48: 0.98 | W48: 181.559998 | X48: 201312 | Y48: 201212 | Z48: 2012-12-21 | AA48: 5 | AB48: 1 | AC48: 3.351 | AD48: 0.01845670873
A49: 34 | B49: 2021-12-29 | C49: 476.980011 | D49: 478.559998 | E49: 475.920013 | F49: 477.480011 | G49: 54503000 | H49: 477.480011 | I49: 1 | J49: 1 | K49: 476.98 | L49: 478.56 | M49: 475.92 | N49: 477.48 | O49: 54503000 | U49: 2013-09-20 | V49: 0.838 | W49: 170.720001 | X49: 201309 | Y49: 201209 | Z49: 2012-09-21 | AA49: 5 | AB49: 1 | AC49: 3.393 | AD49: 0.01987464843
A50: 35 | B50: 2021-12-28 | C50: 477.720001 | D50: 478.809998 | E50: 476.059998 | F50: 476.869995 | G50: 47274600 | H50: 476.869995 | I50: 1 | J50: 1 | K50: 477.72 | L50: 478.81 | M50: 476.06 | N50: 476.87 | O50: 47274600 | U50: 2013-06-21 | V50: 0.839 | W50: 159.070007 | X50: 201306 | Y50: 201206 | Z50: 2012-06-15 | AA50: 5 | AB50: 1 | AC50: 3.334 | AD50: 0.02095932516
A51: 36 | B51: 2021-12-27 | C51: 472.059998 | D51: 477.309998 | E51: 472.01001 | F51: 477.26001 | G51: 56808600 | H51: 477.26001 | I51: 1 | J51: 1 | K51: 472.06 | L51: 477.31 | M51: 472.01 | N51: 477.26 | O51: 56808600 | U51: 2013-03-15 | V51: 0.694 | W51: 155.830002 | X51: 201303 | Y51: 201203 | Z51: 2012-03-16 | AA51: 5 | AB51: 1 | AC51: 3.183 | AD51: 0.02042610511
A52: 37 | B52: 2021-12-23 | C52: 468.75 | D52: 472.190002 | E52: 468.640015 | F52: 470.600006 | G52: 56439700 | H52: 470.600006 | I52: 1 | J52: 1 | K52: 468.75 | L52: 472.19 | M52: 468.64 | N52: 470.6 | O52: 56439700 | U52: 2012-12-21 | V52: 1.022 | W52: 142.789993 | X52: 201212 | Y52: 201112 | Z52: 2011-12-16 | AA52: 5 | AB52: 1 | AC52: 3.103 | AD52: 0.02173121474
A53: 38 | B53: 2021-12-22 | C53: 462.790009 | D53: 467.809998 | E53: 462.579987 | F53: 467.690002 | G53: 58890200 | H53: 467.690002 | I53: 1 | J53: 1 | K53: 462.79 | L53: 467.81 | M53: 462.58 | N53: 467.69 | O53: 58890200 | U53: 2012-09-21 | V53: 0.779 | W53: 145.869995 | X53: 201209 | Y53: 201109 | Z53: 2011-09-16 | AA53: 5 | AB53: 1 | AC53: 2.851 | AD53: 0.01954480083
A54: 39 | B54: 2021-12-21 | C54: 458.609985 | D54: 463.209991 | E54: 456.309998 | F54: 463.059998 | G54: 69806300 | H54: 463.059998 | I54: 1 | J54: 1 | K54: 458.61 | L54: 463.21 | M54: 456.31 | N54: 463.06 | O54: 69806300 | U54: 2012-06-15 | V54: 0.688 | W54: 134.139999 | X54: 201206 | Y54: 201106 | Z54: 2011-06-17 | AA54: 5 | AB54: 1 | AC54: 2.697 | AD54: 0.0201058597
A55: 40 | B55: 2021-12-20 | C55: 454.480011 | D55: 455.399994 | E55: 451.140015 | F55: 454.980011 | G55: 107134800 | H55: 454.980011 | I55: 1 | J55: 1 | K55: 454.48 | L55: 455.4 | M55: 451.14 | N55: 454.98 | O55: 107134800 | U55: 2012-03-16 | V55: 0.614 | W55: 140.300003 | X55: 201203 | Y55: 201103 | Z55: 2011-03-18 | AA55: 5 | AB55: 1 | AC55: 2.637 | AD55: 0.01879543794
A56: 41 | B56: 2021-12-17 | C56: 461.549988 | D56: 464.73999 | E56: 458.059998 | F56: 459.869995 | G56: 135511600 | H56: 459.869995 | I56: 1 | J56: 1 | K56: 461.55 | L56: 464.74 | M56: 458.06 | N56: 459.87 | O56: 135511600 | U56: 2011-12-16 | V56: 0.77 | W56: 121.589996 | X56: 201112 | Y56: 201012 | Z56: 2010-12-17 | AA56: 5 | AB56: 1 | AC56: 2.576 | AD56: 0.02118595349
A57: 42 | B57: 2021-12-16 | C57: 472.570007 | D57: 472.869995 | E57: 464.799988 | F57: 466.450012 | G57: 116568600 | H57: 464.816986 | I57: 0.9964990332 | J57: 1 | K57: 470.92 | L57: 471.21 | M57: 463.17 | N57: 464.82 | O57: 116568600 | U57: 2011-09-16 | V57: 0.625 | W57: 121.519997 | X57: 201109 | Y57: 201009 | Z57: 2010-09-17 | AA57: 5 | AB57: 1 | AC57: 2.459 | AD57: 0.0202353527
A58: 43 | B58: 2021-12-15 | C58: 463.420013 | D58: 470.859985 | E58: 460.73999 | F58: 470.600006 | G58: 116899300 | H58: 468.952454 | I58: 0.9964990396 | J58: 1 | K58: 461.8 | L58: 469.21 | M58: 459.13 | N58: 468.95 | O58: 116899300 | U58: 2011-06-17 | V58: 0.628 | W58: 127.050003 | X58: 201106 | Y58: 201006 | Z58: 2010-06-18 | AA58: 5 | AB58: 1 | AC58: 2.436 | AD58: 0.01917355327
A59: 44 | B59: 2021-12-14 | C59: 463.089996 | D59: 465.73999 | E59: 460.25 | F59: 463.359985 | G59: 97264100 | H59: 461.737793 | I59: 0.9964990676 | J59: 1 | K59: 461.47 | L59: 464.11 | M59: 458.64 | N59: 461.74 | O59: 97264100 | U59: 2011-03-18 | V59: 0.553 | W59: 127.760002 | X59: 201103 | Y59: 201003 | Z59: 2010-03-19 | AA59: 5 | AB59: 1 | AC59: 2.339 | AD59: 0.01830776427
A60: 45 | B60: 2021-12-13 | C60: 470.190002 | D60: 470.559998 | E60: 466.269989 | F60: 466.570007 | G60: 87724700 | H60: 464.936584 | I60: 0.9964990827 | J60: 1 | K60: 468.54 | L60: 468.91 | M60: 464.64 | N60: 464.94 | O60: 87724700 | U60: 2010-12-17 | V60: 0.653 | W60: 124.300003 | X60: 201012 | Y60: 200912 | Z60: 2009-12-18 | AA60: 5 | AB60: 1 | AC60: 2.266 | AD60: 0.01823008806
A61: 46 | B61: 2021-12-10 | C61: 469.230011 | D61: 470.899994 | E61: 466.51001 | F61: 470.73999 | G61: 76949400 | H61: 469.091949 | I61: 0.9964990419 | J61: 1 | K61: 467.59 | L61: 469.25 | M61: 464.88 | N61: 469.09 | O61: 76949400 | U61: 2010-09-17 | V61: 0.602 | W61: 112.489998 | X61: 201009 | Y61: 200909 | Z61: 2009-09-18 | AA61: 5 | AB61: 1 | AC61: 2.203 | AD61: 0.01958396337
A62: 47 | B62: 2021-12-09 | C62: 468.149994 | D62: 469.630005 | E62: 466.140015 | F62: 466.350006 | G62: 61272600 | H62: 464.717346 | I62: 0.9964990673 | J62: 1 | K62: 466.51 | L62: 467.99 | M62: 464.51 | N62: 464.72 | O62: 61272600 | U62: 2010-06-18 | V62: 0.531 | W62: 111.730003 | X62: 201006 | Y62: 200906 | Z62: 2009-06-19 | AA62: 5 | AB62: 1 | AC62: 2.109 | AD62: 0.01887586094
A63: 48 | B63: 2021-12-08 | C63: 468.700012 | D63: 470 | E63: 466.829987 | F63: 469.519989 | G63: 72238800 | H63: 467.876221 | I63: 0.9964990458 | J63: 1 | K63: 467.06 | L63: 468.35 | M63: 465.2 | N63: 467.88 | O63: 72238800 | U63: 2010-03-19 | V63: 0.48 | W63: 115.970001 | X63: 201003 | Y63: 200903 | Z63: 2009-03-20 | AA63: 5 | AB63: 1 | AC63: 2.096 | AD63: 0.01807363958
A64: 49 | B64: 2021-12-07 | C64: 464.410004 | D64: 468.880005 | E64: 458.649994 | F64: 468.279999 | G64: 95484700 | H64: 466.640594 | I64: 0.9964990924 | J64: 1 | K64: 462.78 | L64: 467.24 | M64: 457.04 | N64: 466.64 | O64: 95484700 | U64: 2009-12-18 | V64: 0.59 | W64: 110.209999 | X64: 200912 | Y64: 200812 | Z64: 2008-12-19 | AA64: 5 | AB64: 1 | AC64: 2.177 | AD64: 0.01975319862
A65: 50 | B65: 2021-12-06 | C65: 456.130005 | D65: 460.790009 | E65: 453.559998 | F65: 458.790009 | G65: 98977500 | H65: 457.183807 | I65: 0.9964990476 | J65: 1 | K65: 454.53 | L65: 459.18 | M65: 451.97 | N65: 457.18 | O65: 98977500 | U65: 2009-09-18 | V65: 0.508 | W65: 106.720001 | X65: 200909 | Y65: 200809 | Z65: 2008-09-19 | AA65: 5 | AB65: 1 | AC65: 2.306 | AD65: 0.02160794582
A66: 51 | B66: 2021-12-03 | C66: 459.170013 | D66: 460.299988 | E66: 448.920013 | F66: 453.420013 | G66: 137167700 | H66: 451.832611 | I66: 0.9964990473 | J66: 1 | K66: 457.56 | L66: 458.69 | M66: 447.35 | N66: 451.83 | O66: 137167700 | U66: 2009-06-19 | V66: 0.518 | W66: 92.040001 | X66: 200906 | Y66: 200806 | Z66: 2008-06-20 | AA66: 5 | AB66: 1 | AC66: 2.489 | AD66: 0.02704258988
A67: 52 | B67: 2021-12-02 | C67: 450.730011 | D67: 459.070007 | E67: 450.309998 | F67: 457.399994 | G67: 127637800 | H67: 455.798676 | I67: 0.9964990861 | J67: 1 | K67: 449.15 | L67: 457.46 | M67: 448.73 | N67: 455.8 | O67: 127637800 | U67: 2009-03-20 | V67: 0.561 | W67: 76.709999 | X67: 200903 | Y67: 200803 | Z67: 2008-03-20 | AA67: 5 | AB67: 1 | AC67: 2.64 | AD67: 0.03441533091
A68: 53 | B68: 2021-12-01 | C68: 461.640015 | D68: 464.670013 | E68: 450.290009 | F68: 450.5 | G68: 131939200 | H68: 448.922821 | I68: 0.9964990477 | J68: 1 | K68: 460.02 | L68: 463.04 | M68: 448.71 | N68: 448.92 | O68: 131939200 | U68: 2008-12-19 | V68: 0.719 | W68: 88.190002 | X68: 200812 | Y68: 200712 | Z68: 2007-12-21 | AA68: 5 | AB68: 1 | AC68: 2.721 | AD68: 0.0308538376
A69: 54 | B69: 2021-11-30 | C69: 462 | D69: 464.029999 | E69: 455.299988 | F69: 455.559998 | G69: 148559600 | H69: 453.965118 | I69: 0.996499078 | J69: 1 | K69: 460.38 | L69: 462.41 | M69: 453.71 | N69: 453.97 | O69: 148559600 | U69: 2008-09-19 | V69: 0.691 | W69: 124.120003 | X69: 200809 | Y69: 200709 | Z69: 2007-09-21 | AA69: 5 | AB69: 1 | AC69: 2.777 | AD69: 0.02237350897
A70: 55 | B70: 2021-11-29 | C70: 464.070007 | D70: 466.559998 | E70: 461.730011 | F70: 464.600006 | G70: 86268800 | H70: 462.97348 | I70: 0.9964990831 | J70: 1 | K70: 462.45 | L70: 464.93 | M70: 460.11 | N70: 462.97 | O70: 86268800 | U70: 2008-06-20 | V70: 0.669 | W70: 131.580002 | X70: 200806 | Y70: 200706 | Z70: 2007-06-15 | AA70: 5 | AB70: 1 | AC70: 2.805 | AD70: 0.02131782913
A71: 56 | B71: 2021-11-26 | C71: 462.339996 | D71: 463.899994 | E71: 457.769989 | F71: 458.970001 | G71: 112669600 | H71: 457.36319 | I71: 0.9964990936 | J71: 1 | K71: 460.72 | L71: 462.28 | M71: 456.17 | N71: 457.36 | O71: 112669600 | U71: 2008-03-20 | V71: 0.642 | W71: 132.080002 | X71: 200803 | Y71: 200703 | Z71: 2007-03-16 | AA71: 5 | AB71: 1 | AC71: 2.792 | AD71: 0.0211387035
A72: 57 | B72: 2021-11-24 | C72: 466.059998 | D72: 469.570007 | E72: 465.190002 | F72: 469.440002 | G72: 61858800 | H72: 467.796509 | I72: 0.996499035 | J72: 1 | K72: 464.43 | L72: 467.93 | M72: 463.56 | N72: 467.8 | O72: 61858800 | U72: 2007-12-21 | V72: 0.775 | W72: 148.130005 | X72: 200712 | Y72: 200612 | Z72: 2006-12-15 | AA72: 5 | AB72: 1 | AC72: 2.701 | AD72: 0.01823398305
A73: 58 | B73: 2021-11-23 | C73: 467.220001 | D73: 469.100006 | E73: 464.450012 | F73: 468.190002 | G73: 73206500 | H73: 466.550903 | I73: 0.996499073 | J73: 1 | K73: 465.58 | L73: 467.46 | M73: 462.82 | N73: 466.55 | O73: 73206500 | U73: 2007-09-21 | V73: 0.719 | W73: 151.970001 | X73: 200709 | Y73: 200609 | Z73: 2006-09-15 | AA73: 5 | AB73: 1 | AC73: 2.719 | AD73: 0.01789168903
A74: 59 | B74: 2021-11-22 | C74: 470.890015 | D74: 473.540009 | E74: 467.350006 | F74: 467.570007 | G74: 72762000 | H74: 465.933075 | I74: 0.9964990654 | J74: 1 | K74: 469.24 | L74: 471.88 | M74: 465.71 | N74: 465.93 | O74: 72762000 | U74: 2007-06-15 | V74: 0.656 | W74: 153.070007 | X74: 200706 | Y74: 200606 | Z74: 2006-06-16 | AA74: 5 | AB74: 1 | AC74: 2.579 | AD74: 0.01684849992
A75: 60 | B75: 2021-11-19 | C75: 469.609985 | D75: 470.940002 | E75: 468.5 | F75: 468.890015 | G75: 57315600 | H75: 467.248474 | I75: 0.9964990916 | J75: 1 | K75: 467.97 | L75: 469.29 | M75: 466.86 | N75: 467.25 | O75: 57315600 | U75: 2007-03-16 | V75: 0.551 | W75: 138.529999 | X75: 200703 | Y75: 200603 | Z75: 2006-03-17 | AA75: 5 | AB75: 1 | AC75: 2.478 | AD75: 0.01788782226
A76: 61 | B76: 2021-11-18 | C76: 469.23999 | D76: 470.01001 | E76: 466.339996 | F76: 469.730011 | G76: 50625600 | H76: 468.08551 | I76: 0.9964990506 | J76: 1 | K76: 467.6 | L76: 468.36 | M76: 464.71 | N76: 468.09 | O76: 50625600 | U76: 2006-12-15 | V76: 0.793 | W76: 142.339996 | X76: 200612 | Y76: 200512 | Z76: 2005-12-16 | AA76: 5 | AB76: 1 | AC76: 2.446 | AD76: 0.01718420731
A77: 62 | B77: 2021-11-17 | C77: 469 | D77: 469.190002 | E77: 467.480011 | F77: 468.140015 | G77: 47858300 | H77: 466.501099 | I77: 0.9964990901 | J77: 1 | K77: 467.36 | L77: 467.55 | M77: 465.84 | N77: 466.5 | O77: 47858300 | U77: 2006-09-15 | V77: 0.579 | W77: 131.960007 | X77: 200609 | Y77: 200509 | Z77: 2005-09-16 | AA77: 5 | AB77: 1 | AC77: 2.325 | AD77: 0.01761897451
A78: 63 | B78: 2021-11-16 | C78: 467.149994 | D78: 470.48999 | E78: 467.070007 | F78: 469.279999 | G78: 48857500 | H78: 467.637085 | I78: 0.9964990752 | J78: 1 | K78: 465.51 | L78: 468.84 | M78: 465.43 | N78: 467.64 | O78: 48857500 | U78: 2006-06-16 | V78: 0.555 | W78: 124.650002 | X78: 200606 | Y78: 200506 | Z78: 2005-06-17 | AA78: 5 | AB78: 1 | AC78: 2.268 | AD78: 0.01819494556
A79: 64 | B79: 2021-11-15 | C79: 468.640015 | D79: 468.809998 | E79: 466.230011 | F79: 467.429993 | G79: 46980500 | H79: 465.793549 | I79: 0.9964990608 | J79: 1 | K79: 467 | L79: 467.17 | M79: 464.6 | N79: 465.79 | O79: 46980500 | U79: 2006-03-17 | V79: 0.519 | W79: 130.619995 | X79: 200603 | Y79: 200503 | Z79: 2005-03-18 | AA79: 5 | AB79: 1 | AC79: 2.201 | AD79: 0.0168504064
A80: 65 | B80: 2021-11-12 | C80: 465.119995 | D80: 467.859985 | E80: 464.109985 | F80: 467.269989 | G80: 53423300 | H80: 465.634094 | I80: 0.9964990369 | J80: 1 | K80: 463.49 | L80: 466.22 | M80: 462.49 | N80: 465.63 | O80: 53423300 | U80: 2005-12-16 | V80: 0.672 | W80: 126.360001 | X80: 200512 | Y80: 200412 | Z80: 2004-12-17 | AA80: 5 | AB80: 1 | AC80: 2.149 | AD80: 0.01700696409
A81: 66 | B81: 2021-11-11 | C81: 465.209991 | D81: 465.290009 | E81: 463.75 | F81: 463.769989 | G81: 34848500 | H81: 462.146362 | I81: =IF(F81=0,1,H81/F81) -> 0.9964990684 | J81: =INDEX(OFFSET($T$15,0,0,$S$13+1,1),MATCH(B81,OFFSET($Q$15,0,0,$S$13+1,1),-1)) -> 1 | K81: =ROUND($I81*C81,2) -> 463.58 | L81: =ROUND($I81*D81,2) -> 463.66 | M81: =ROUND($I81*E81,2) -> 462.13 | N81: =ROUND($I81*F81,2) -> 462.15 | O81: =G81*J81 -> 34848500 | U81: 2005-09-16 | V81: 0.522 | W81: =(INDEX(OFFSET($F$15,1,0,$B$10,1),MATCH(U81,OFFSET($B$15,1,0,$B$10,1),-1))) -> 123.5 | X81: =YEAR(U81)&RIGHT("0"&MONTH(U81),2) -> 200509 | Y81: =YEAR(U81)-1&RIGHT("0"&MONTH(U81),2) -> 200409 | Z81: =OFFSET(U80,AA81,0,1,1) -> 2004-09-17 | AA81: =MATCH(Y81,OFFSET($X$15,A81,0,$V$14+1-A81,1),-1) -> 6 | AB81: =IF(OR(AND(YEAR(U81)=YEAR(Z81),MONTH(U81)=MONTH(Z81)),MONTH(U81)=MONTH(Z81)),1,0) -> 1 | AC81: =(V81+IF(AA81-AB81=0,0,IFERROR(SUM(OFFSET(V81,1,0,AA81-AB81-1,1)),0))) -> 2.396 | AD81: =AC81/(INDEX(OFFSET($F$15,1,0,$B$10,1),MATCH(U81,OFFSET($B$15,1,0,$B$10,1),-1))) -> 0.01940080972
A82: 67 | B82: 2021-11-10 | C82: 465.579987 | D82: 467.380005 | E82: 462.040009 | F82: 463.619995 | G82: 69429700 | H82: 461.996887 | I82: 0.9964990552 | J82: 1 | K82: 463.95 | L82: 465.74 | M82: 460.42 | N82: 462 | O82: 69429700 | U82: 2005-06-17 | V82: 0.488 | W82: 121.360001 | X82: 200506 | Y82: 200406 | Z82: 2004-06-18 | AA82: 6 | AB82: 1 | AC82: 2.343 | AD82: 0.01930619628
A83: 68 | B83: 2021-11-09 | C83: 469.320007 | D83: 469.570007 | E83: 465.880005 | F83: 467.380005 | G83: 51149100 | H83: 465.743744 | I83: 0.9964990779 | J83: 1 | K83: 467.68 | L83: 467.93 | M83: 464.25 | N83: 465.74 | O83: 51149100 | U83: 2005-03-18 | V83: 0.467 | W83: 118.540001 | X83: 200503 | Y83: 200403 | Z83: 2004-03-19 | AA83: 6 | AB83: 1 | AC83: 2.269 | AD83: 0.01914121799
A84: 69 | B84: 2021-11-08 | C84: 469.700012 | D84: 470.230011 | E84: 468.200012 | F84: 468.929993 | G84: 50405200 | H84: 467.2883 | I84: 0.9964990659 | J84: 1 | K84: 468.06 | L84: 468.58 | M84: 466.56 | N84: 467.29 | O84: 50405200 | U84: 2004-12-17 | V84: 0.568 | W84: 119.440002 | X84: 200412 | Y84: 200312 | Z84: 2003-12-19 | AA84: 6 | AB84: 1 | AC84: 2.197 | AD84: 0.0183941725
A85: 70 | B85: 2021-11-05 | C85: 469.279999 | D85: 470.649994 | E85: 466.920013 | F85: 468.529999 | G85: 66332200 | H85: 466.889709 | I85: 0.9964990716 | J85: 1 | K85: 467.64 | L85: 469 | M85: 465.29 | N85: 466.89 | O85: 66332200 | U85: 2004-11-15 | V85: 0.351 | W85: 118.730003 | X85: 200411 | Y85: 200311 | Z85: 2003-12-19 | AA85: 5 | AB85: 0 | AC85: 2.145 | AD85: 0.01806620017
A86: 71 | B86: 2021-11-04 | C86: 465.359985 | D86: 467 | E86: 464.98999 | F86: 466.910004 | G86: 52847100 | H86: 465.275391 | I86: 0.9964990834 | J86: 1 | K86: 463.73 | L86: 465.37 | M86: 463.36 | N86: 465.28 | O86: 52847100 | U86: 2004-09-17 | V86: 0.469 | W86: 113.150002 | X86: 200409 | Y86: 200309 | Z86: 2003-09-19 | AA86: 5 | AB86: 1 | AC86: 1.794 | AD86: 0.01585505938
A87: 72 | B87: 2021-11-03 | C87: 461.299988 | D87: 465.149994 | E87: 460.829987 | F87: 464.720001 | G87: 52509800 | H87: 463.093048 | I87: 0.9964990683 | J87: 1 | K87: 459.69 | L87: 463.52 | M87: 459.22 | N87: 463.09 | O87: 52509800 | U87: 2004-06-18 | V87: 0.414 | W87: 113.629997 | X87: 200406 | Y87: 200306 | Z87: 2003-06-20 | AA87: 5 | AB87: 1 | AC87: 1.725 | AD87: 0.01518085053
A88: 73 | B88: 2021-11-02 | C88: 460.220001 | D88: 462.230011 | E88: 460.079987 | F88: 461.899994 | G88: 48908400 | H88: 460.282898 | I88: 0.9964990344 | J88: 1 | K88: 458.61 | L88: 460.61 | M88: 458.47 | N88: 460.28 | O88: 48908400 | U88: 2004-03-19 | V88: 0.395 | W88: 111.059998 | X88: 200403 | Y88: 200303 | Z88: 2003-03-21 | AA88: 5 | AB88: 1 | AC88: 1.671 | AD88: 0.01504592139
A89: 74 | B89: 2021-11-01 | C89: 460.299988 | D89: 460.700012 | E89: 458.200012 | F89: 460.040009 | G89: 48433600 | H89: 458.429443 | I89: 0.9964990741 | J89: 1 | K89: 458.69 | L89: 459.09 | M89: 456.6 | N89: 458.43 | O89: 48433600 | U89: 2003-12-19 | V89: 0.516 | W89: 108.900002 | X89: 200312 | Y89: 200212 | Z89: 2002-12-20 | AA89: 5 | AB89: 1 | AC89: 1.63 | AD89: 0.01496786015
A90: 75 | B90: 2021-10-29 | C90: 455.869995 | D90: 459.559998 | E90: 455.559998 | F90: 459.25 | G90: 70108200 | H90: 457.642181 | I90: 0.9964990332 | J90: 1 | K90: 454.27 | L90: 457.95 | M90: 453.97 | N90: 457.64 | O90: 70108200 | U90: 2003-09-19 | V90: 0.4 | W90: 103.669998 | X90: 200309 | Y90: 200209 | Z90: 2002-09-20 | AA90: 5 | AB90: 1 | AC90: 1.55 | AD90: 0.01495128803
A91: 76 | B91: 2021-10-28 | C91: 455.459991 | D91: 458.399994 | E91: 455.450012 | F91: 458.320007 | G91: 51437900 | H91: 456.715454 | I91: 0.9964990553 | J91: 1 | K91: 453.87 | L91: 456.8 | M91: 453.86 | N91: 456.72 | O91: 51437900 | U91: 2003-06-20 | V91: 0.36 | W91: 99.440002 | X91: 200306 | Y91: 200206 | Z91: 2002-06-21 | AA91: 5 | AB91: 1 | AC91: 1.528 | AD91: 0.01536604957
A92: 77 | B92: 2021-10-27 | C92: 456.450012 | D92: 457.160004 | E92: 453.859985 | F92: 453.940002 | G92: 72438000 | H92: 452.3508 | I92: 0.9964990924 | J92: 1 | K92: 454.85 | L92: 455.56 | M92: 452.27 | N92: 452.35 | O92: 72438000 | U92: 2003-03-21 | V92: 0.354 | W92: 89.669998 | X92: 200303 | Y92: 200203 | Z92: 2002-03-15 | AA92: 5 | AB92: 1 | AC92: 1.521 | AD92: 0.01696219509
A93: 78 | B93: 2021-10-26 | C93: 457.200012 | D93: 458.48999 | E93: 455.559998 | F93: 455.959991 | G93: 56075100 | H93: 454.363708 | I93: 0.9964990722 | J93: 1 | K93: 455.6 | L93: 456.88 | M93: 453.97 | N93: 454.36 | O93: 56075100 | U93: 2002-12-20 | V93: 0.436 | W93: 89.989998 | X93: 200212 | Y93: 200112 | Z93: 2001-12-21 | AA93: 5 | AB93: 1 | AC93: 1.498 | AD93: 0.0166462944
A94: 79 | B94: 2021-10-25 | C94: 454.279999 | D94: 455.899994 | E94: 452.390015 | F94: 455.549988 | G94: 45214500 | H94: 453.955139 | I94: 0.9964990692 | J94: 1 | K94: 452.69 | L94: 454.3 | M94: 450.81 | N94: 453.96 | O94: 45214500 | U94: 2002-09-20 | V94: 0.378 | W94: 84.349998 | X94: 200209 | Y94: 200109 | Z94: 2001-09-21 | AA94: 5 | AB94: 1 | AC94: 1.455 | AD94: 0.01724955583
A95: 80 | B95: 2021-10-22 | C95: 453.130005 | D95: 454.670013 | E95: 451.049988 | F95: 453.119995 | G95: 58845100 | H95: 451.533661 | I95: 0.9964990863 | J95: 1 | K95: 451.54 | L95: 453.08 | M95: 449.47 | N95: 451.53 | O95: 58845100 | U95: 2002-06-21 | V95: 0.353 | W95: 99.279999 | X95: 200206 | Y95: 200106 | Z95: 2001-06-15 | AA95: 5 | AB95: 1 | AC95: 1.446 | AD95: 0.01456486719
A96: 81 | B96: 2021-10-21 | C96: 451.769989 | D96: 453.829987 | E96: 451.309998 | F96: 453.589996 | G96: 41305400 | H96: 452.002014 | I96: 0.9964990806 | J96: 1 | K96: 450.19 | L96: 452.24 | M96: 449.73 | N96: 452 | O96: 41305400 | U96: 2002-03-15 | V96: 0.331 | W96: 116.650002 | X96: 200203 | Y96: 200103 | Z96: 2001-03-16 | AA96: 5 | AB96: 1 | AC96: 1.439 | AD96: 0.0123360478
A97: 82 | B97: 2021-10-20 | C97: 451.130005 | D97: 452.730011 | E97: 451.01001 | F97: 452.410004 | G97: 49571600 | H97: 450.826141 | I97: 0.996499054 | J97: 1 | K97: 449.55 | L97: 451.15 | M97: 449.43 | N97: 450.83 | O97: 49571600 | U97: 2001-12-21 | V97: 0.393 | W97: 114.949997 | X97: 200112 | Y97: 200012 | Z97: 2000-12-15 | AA97: 5 | AB97: 1 | AC97: 1.424 | AD97: 0.0123879951
A98: 83 | B98: 2021-10-19 | C98: 448.920013 | D98: 450.709991 | E98: 448.269989 | F98: 450.640015 | G98: 46996800 | H98: 449.062347 | I98: 0.9964990504 | J98: 1 | K98: 447.35 | L98: 449.13 | M98: 446.7 | N98: 449.06 | O98: 46996800 | U98: 2001-09-21 | V98: 0.369 | W98: 97.279999 | X98: 200109 | Y98: 200009 | Z98: 2000-09-15 | AA98: 5 | AB98: 1 | AC98: 1.442 | AD98: 0.01482319094
A99: 84 | B99: 2021-10-18 | C99: 443.970001 | D99: 447.549988 | E99: 443.269989 | F99: 447.190002 | G99: 62213200 | H99: 445.62442 | I99: 0.9964990675 | J99: 1 | K99: 442.42 | L99: 445.98 | M99: 441.72 | N99: 445.62 | O99: 62213200 | U99: 2001-06-15 | V99: 0.346 | W99: 121.849998 | X99: 200106 | Y99: 200006 | Z99: 2000-06-16 | AA99: 5 | AB99: 1 | AC99: 1.448 | AD99: 0.01188346347
A100: 85 | B100: 2021-10-15 | C100: 444.75 | D100: 446.26001 | E100: 444.089996 | F100: 445.869995 | G100: 66226800 | H100: 444.309021 | I100: 0.9964990378 | J100: 1 | K100: 443.19 | L100: 444.7 | M100: 442.54 | N100: 444.31 | O100: 66226800 | U100: 2001-03-16 | V100: 0.316 | W100: 115.010002 | X100: 200103 | Y100: 200003 | Z100: 2000-03-17 | AA100: 5 | AB100: 1 | AC100: 1.45 | AD100: 0.01260759912
A101: 86 | B101: 2021-10-14 | C101: 439.079987 | D101: 442.660004 | E101: 438.579987 | F101: 442.5 | G101: 70236800 | H101: 440.950836 | I101: 0.9964990644 | J101: 1 | K101: 437.54 | L101: 441.11 | M101: 437.04 | N101: 440.95 | O101: 70236800 | U101: 2000-12-15 | V101: 0.411 | W101: 130.96875 | X101: 200012 | Y101: 199912 | Z101: 1999-12-17 | AA101: 5 | AB101: 1 | AC101: 1.505 | AD101: 0.01149129086
A102: 87 | B102: 2021-10-13 | C102: 434.709991 | D102: 436.049988 | E102: 431.540009 | F102: 435.179993 | G102: 72974000 | H102: 433.656464 | I102: 0.9964990831 | J102: 1 | K102: 433.19 | L102: 434.52 | M102: 430.03 | N102: 433.66 | O102: 72974000 | U102: 2000-09-15 | V102: 0.375 | W102: 146 | X102: 200009 | Y102: 199909 | Z102: 1999-09-17 | AA102: 5 | AB102: 1 | AC102: 1.442 | AD102: 0.009876712329
A103: 88 | B103: 2021-10-12 | C103: 435.670013 | D103: 436.100006 | E103: 432.779999 | F103: 433.619995 | G103: 71181200 | H103: 432.101929 | I103: 0.9964990867 | J103: 1 | K103: 434.14 | L103: 434.57 | M103: 431.26 | N103: 432.1 | O103: 71181200 | U103: 2000-06-16 | V103: 0.348 | W103: 146.59375 | X103: 200006 | Y103: 199906 | Z103: 1999-06-18 | AA103: 5 | AB103: 1 | AC103: 1.439 | AD103: 0.009816243871
A104: 89 | B104: 2021-10-11 | C104: 437.160004 | D104: 440.26001 | E104: 434.619995 | F104: 434.690002 | G104: 65233300 | H104: 433.168182 | I104: 0.9964990683 | J104: 1 | K104: 435.63 | L104: 438.72 | M104: 433.1 | N104: 433.17 | O104: 65233300 | U104: 2000-03-17 | V104: 0.371 | W104: 146.9375 | X104: 200003 | Y104: 199903 | Z104: 1999-03-19 | AA104: 5 | AB104: 1 | AC104: 1.496 | AD104: 0.01018119949
A105: 90 | B105: 2021-10-08 | C105: 439.480011 | D105: 439.890015 | E105: 437.190002 | F105: 437.859985 | G105: 74492900 | H105: 436.327057 | I105: 0.9964990452 | J105: 1 | K105: 437.94 | L105: 438.35 | M105: 435.66 | N105: 436.33 | O105: 74492900 | U105: 1999-12-17 | V105: 0.348 | W105: 142.6875 | X105: 199912 | Y105: 199812 | Z105: 1998-12-18 | AA105: 5 | AB105: 1 | AC105: 1.445 | AD105: 0.01012702584
A106: 91 | B106: 2021-10-07 | C106: 438.390015 | D106: 441.679993 | E106: 438.200012 | F106: 438.660004 | G106: 72437500 | H106: 437.124268 | I106: 0.9964990289 | J106: 1 | K106: 436.86 | L106: 440.13 | M106: 436.67 | N106: 437.12 | O106: 72437500 | U106: 1999-09-17 | V106: 0.372 | W106: 133.75 | X106: 199909 | Y106: 199809 | Z106: 1998-09-18 | AA106: 5 | AB106: 1 | AC106: 1.489 | AD106: 0.01113271028
A107: 92 | B107: 2021-10-06 | C107: 429.269989 | D107: 435.119995 | E107: 427.540009 | F107: 434.899994 | G107: 113032200 | H107: 433.377441 | I107: 0.9964990733 | J107: 1 | K107: 427.77 | L107: 433.6 | M107: 426.04 | N107: 433.38 | O107: 113032200 | U107: 1999-06-18 | V107: 0.405 | W107: 134.3125 | X107: 199906 | Y107: 199806 | Z107: 1998-06-19 | AA107: 5 | AB107: 1 | AC107: 1.476 | AD107: 0.01098929735
A108: 93 | B108: 2021-10-05 | C108: 430.23999 | D108: 435.48999 | E108: 429.390015 | F108: 433.100006 | G108: 90682500 | H108: 431.58374 | I108: 0.9964990395 | J108: 1 | K108: 428.73 | L108: 433.97 | M108: 427.89 | N108: 431.58 | O108: 90682500 | U108: 1999-03-19 | V108: 0.32 | W108: 129.6875 | X108: 199903 | Y108: 199803 | Z108: 1998-03-20 | AA108: 5 | AB108: 1 | AC108: 1.423 | AD108: 0.01097253012
A109: 94 | B109: 2021-10-04 | C109: 433 | D109: 433.959991 | E109: 426.359985 | F109: 428.640015 | G109: 128570000 | H109: 427.139374 | I109: 0.9964990646 | J109: 1 | K109: 431.48 | L109: 432.44 | M109: 424.87 | N109: 427.14 | O109: 128570000 | U109: 1998-12-18 | V109: 0.392 | W109: 118.5 | X109: 199812 | Y109: 199712 | Z109: 1997-12-19 | AA109: 5 | AB109: 1 | AC109: 1.416 | AD109: 0.01194936709
A110: 95 | B110: 2021-10-01 | C110: 430.980011 | D110: 436.029999 | E110: 427.230011 | F110: 434.23999 | G110: 129240100 | H110: 432.719757 | I110: 0.9964990949 | J110: 1 | K110: 429.47 | L110: 434.5 | M110: 425.73 | N110: 432.72 | O110: 129240100 | U110: 1998-09-18 | V110: 0.359 | W110: 102.09375 | X110: 199809 | Y110: 199709 | Z110: 1997-09-19 | AA110: 5 | AB110: 1 | AC110: 1.404 | AD110: 0.01375206612
A111: 96 | B111: 2021-09-30 | C111: 436.019989 | D111: 436.769989 | E111: 428.779999 | F111: 429.140015 | G111: 140181200 | H111: 427.637634 | I111: 0.996499089 | J111: 1 | K111: 434.49 | L111: 435.24 | M111: 427.28 | N111: 427.64 | O111: 140181200 | U111: 1998-06-19 | V111: 0.352 | W111: 110.0625 | X111: 199806 | Y111: 199706 | Z111: 1997-06-20 | AA111: 5 | AB111: 1 | AC111: 1.393 | AD111: 0.0126564452
A112: 97 | B112: 2021-09-29 | C112: 435.190002 | D112: 437.040009 | E112: 433.850006 | F112: 434.450012 | G112: 82329200 | H112: 432.929016 | I112: 0.9964990311 | J112: 1 | K112: 433.67 | L112: 435.51 | M112: 432.33 | N112: 432.93 | O112: 82329200 | U112: 1998-03-20 | V112: 0.313 | W112: 109.875 | X112: 199803 | Y112: 199703 | Z112: 1997-03-21 | AA112: 5 | AB112: 1 | AC112: 1.391 | AD112: 0.01265984073
A113: 98 | B113: 2021-09-28 | C113: 439.690002 | D113: 440.040009 | E113: 432.940002 | F113: 433.720001 | G113: 130436300 | H113: 432.201569 | I113: 0.9964990501 | J113: 1 | K113: 438.15 | L113: 438.5 | M113: 431.42 | N113: 432.2 | O113: 130436300 | U113: 1997-12-19 | V113: 0.38 | W113: 94.78125 | X113: 199712 | Y113: 199612 | Z113: 1996-12-20 | AA113: 5 | AB113: 1 | AC113: 1.377 | AD113: 0.01452818991
A114: 99 | B114: 2021-09-27 | C114: 442.809998 | D114: 444.049988 | E114: 441.899994 | F114: 442.640015 | G114: 61371100 | H114: 441.090363 | I114: 0.9964990693 | J114: 1 | K114: 441.26 | L114: 442.5 | M114: 440.35 | N114: 441.09 | O114: 61371100 | U114: 1997-09-19 | V114: 0.348 | W114: 95.03125 | X114: 199709 | Y114: 199609 | Z114: 1996-09-20 | AA114: 5 | AB114: 1 | AC114: 1.364 | AD114: 0.0143531733
A115: 100 | B115: 2021-09-24 | C115: 441.440002 | D115: 444.670013 | E115: 441.209991 | F115: 443.910004 | G115: 62094800 | H115: 442.355896 | I115: 0.9964990471 | J115: 1 | K115: 439.89 | L115: 443.11 | M115: 439.67 | N115: 442.36 | O115: 62094800 | U115: 1997-06-20 | V115: 0.35 | W115: 89.578125 | X115: 199706 | Y115: 199606 | Z115: 1996-06-21 | AA115: 5 | AB115: 1 | AC115: 1.368 | AD115: 0.01527158556
A116: 101 | B116: 2021-09-23 | C116: 439.850006 | D116: 444.890015 | E116: 439.600006 | F116: 443.179993 | G116: 76396000 | H116: 441.628448 | I116: 0.9964990635 | J116: 1 | K116: 438.31 | L116: 443.33 | M116: 438.06 | N116: 441.63 | O116: 76396000 | U116: 1997-03-21 | V116: 0.299 | W116: 78.4375 | X116: 199703 | Y116: 199603 | Z116: 1996-03-15 | AA116: 5 | AB116: 1 | AC116: 1.369 | AD116: 0.01745338645
A117: 102 | B117: 2021-09-22 | C117: 436.049988 | D117: 440.029999 | E117: 433.75 | F117: 437.859985 | G117: 102350100 | H117: 436.327057 | I117: 0.9964990452 | J117: 1 | K117: 434.52 | L117: 438.49 | M117: 432.23 | N117: 436.33 | O117: 102350100 | U117: 1996-12-20 | V117: 0.367 | W117: 74.84375 | X117: 199612 | Y117: 199512 | Z117: 1995-12-15 | AA117: 5 | AB117: 1 | AC117: 1.355 | AD117: 0.01810438413
A118: 103 | B118: 2021-09-21 | C118: 436.529999 | D118: 437.910004 | E118: 433.070007 | F118: 433.630005 | G118: 92526100 | H118: 432.111908 | I118: 0.996499096 | J118: 1 | K118: 435 | L118: 436.38 | M118: 431.55 | N118: 432.11 | O118: 92526100 | U118: 1996-09-20 | V118: 0.352 | W118: 68.640625 | X118: 199609 | Y118: 199509 | Z118: 1995-09-15 | AA118: 5 | AB118: 1 | AC118: 1.37 | AD118: 0.01995902572
A119: 104 | B119: 2021-09-20 | C119: 434.880005 | D119: 436.559998 | E119: 428.859985 | F119: 434.040009 | G119: 166445500 | H119: 432.520447 | I119: 0.9964990278 | J119: 1 | K119: 433.36 | L119: 435.03 | M119: 427.36 | N119: 432.52 | O119: 166445500 | U119: 1996-06-21 | V119: 0.351 | W119: 66.8125 | X119: 199606 | Y119: 199506 | Z119: 1995-06-16 | AA119: 5 | AB119: 1 | AC119: 1.33 | AD119: 0.01990645463
A120: 105 | B120: 2021-09-17 | C120: 444.920013 | D120: 445.369995 | E120: 441.019989 | F120: 441.399994 | G120: 118425000 | H120: 439.854675 | I120: 0.9964990507 | J120: 1 | K120: 443.36 | L120: 443.81 | M120: 439.48 | N120: 439.85 | O120: 118425000 | U120: 1996-03-15 | V120: 0.285 | W120: 64.125 | X120: 199603 | Y120: 199503 | Z120: 1995-03-17 | AA120: 5 | AB120: 1 | AC120: 1.295 | AD120: 0.02019493177
A121: 106 | B121: 2021-09-16 | C121: 447.320007 | D121: 448.359985 | E121: 444.019989 | F121: 447.170013 | G121: 77786700 | H121: 444.181488 | I121: 0.9933168036 | J121: 1 | K121: 444.33 | L121: 445.36 | M121: 441.05 | N121: 444.18 | O121: 77786700 | U121: 1995-12-15 | V121: 0.382 | W121: 61.8125 | X121: 199512 | Y121: 199412 | Z121: 1994-12-16 | AA121: 5 | AB121: 1 | AC121: 1.278 | AD121: 0.02067542973
A122: 107 | B122: 2021-09-15 | C122: 444.619995 | D122: 448.410004 | E122: 443.440002 | F122: 447.880005 | G122: 78792200 | H122: 444.886749 | I122: 0.9933168349 | J122: 1 | K122: 441.65 | L122: 445.41 | M122: 440.48 | N122: 444.89 | O122: 78792200 | U122: 1995-09-15 | V122: 0.312 | W122: 58.4375 | X122: 199509 | Y122: 199409 | Z122: 1994-09-16 | AA122: 5 | AB122: 1 | AC122: 1.259 | AD122: 0.02154438503
A123: 108 | B123: 2021-09-14 | C123: 448.119995 | D123: 448.339996 | E123: 443.220001 | F123: 444.170013 | G123: 78197100 | H123: 441.201538 | I123: 0.9933168046 | J123: 1 | K123: 445.13 | L123: 445.34 | M123: 440.26 | N123: 441.2 | O123: 78197100 | U123: 1995-06-16 | V123: 0.316 | W123: 53.96875 | X123: 199506 | Y123: 199406 | Z123: 1994-06-17 | AA123: 5 | AB123: 1 | AC123: 1.235 | AD123: 0.0228836132
A124: 109 | B124: 2021-09-13 | C124: 448.640015 | D124: 448.920013 | E124: 444.109985 | F124: 446.579987 | G124: 83738600 | H124: 443.595428 | I124: 0.9933168546 | J124: 1 | K124: 445.64 | L124: 445.92 | M124: 441.14 | N124: 443.6 | O124: 83738600 | U124: 1995-03-17 | V124: 0.268 | W124: 49.5625 | X124: 199503 | Y124: 199403 | Z124: 1994-03-18 | AA124: 5 | AB124: 1 | AC124: 1.224 | AD124: 0.02469609079
A125: 110 | B125: 2021-09-10 | C125: 451.040009 | D125: 451.48999 | E125: 445.309998 | F125: 445.440002 | G125: 89848000 | H125: 442.463043 | I125: 0.9933168126 | J125: 1 | K125: 448.03 | L125: 448.47 | M125: 442.33 | N125: 442.46 | O125: 89848000 | U125: 1994-12-16 | V125: 0.363 | W125: 45.75 | X125: 199412 | Y125: 199312 | Z125: 1993-12-17 | AA125: 5 | AB125: 1 | AC125: 1.227 | AD125: 0.02681967213
A126: 111 | B126: 2021-09-09 | C126: 450.700012 | D126: 452.570007 | E126: 448.720001 | F126: 448.980011 | G126: 57970400 | H126: 445.979401 | I126: 0.9933168294 | J126: 1 | K126: 447.69 | L126: 449.55 | M126: 445.72 | N126: 445.98 | O126: 57970400 | U126: 1994-09-16 | V126: 0.288 | W126: 47.015625 | X126: 199409 | Y126: 199309 | Z126: 1993-09-17 | AA126: 5 | AB126: 1 | AC126: 1.181 | AD126: 0.02511930874
A127: 112 | B127: 2021-09-08 | C127: 450.890015 | D127: 451.670013 | E127: 448.859985 | F127: 450.910004 | G127: 56181900 | H127: 447.896484 | I127: 0.9933168039 | J127: 1 | K127: 447.88 | L127: 448.65 | M127: 445.86 | N127: 447.9 | O127: 56181900 | U127: 1994-06-17 | V127: 0.305 | W127: 45.875 | X127: 199406 | Y127: 199306 | Z127: 1993-06-18 | AA127: 5 | AB127: 1 | AC127: 1.179 | AD127: 0.02570027248
A128: 113 | B128: 2021-09-07 | C128: 452.709991 | D128: 452.809998 | E128: 450.73999 | F128: 451.459991 | G128: 51671500 | H128: 448.44278 | I128: 0.9933167699 | J128: 1 | K128: 449.68 | L128: 449.78 | M128: 447.73 | N128: 448.44 | O128: 51671500 | U128: 1994-03-18 | V128: 0.271 | W128: 46.96875 | X128: 199403 | Y128: 199303 | Z128: 1993-03-19 | AA128: 5 | AB128: 1 | AC128: 1.192 | AD128: 0.02537857618
A129: 114 | B129: 2021-09-03 | C129: 451.980011 | D129: 453.630005 | E129: 451.549988 | F129: 453.079987 | G129: 47170500 | H129: 450.051971 | I129: 0.993316818 | J129: 1 | K129: 448.96 | L129: 450.6 | M129: 448.53 | N129: 450.05 | O129: 47170500 | U129: 1993-12-17 | V129: 0.317 | W129: 46.5625 | X129: 199312 | Y129: 199212 | Z129: 1993-03-19 | AA129: 4 | AB129: 0 | AC129: 1.134 | AD129: 0.02435436242
A130: 115 | B130: 2021-09-02 | C130: 453.320007 | D130: 454.049988 | E130: 451.910004 | F130: 453.190002 | G130: 42501000 | H130: 450.161255 | I130: 0.9933168274 | J130: 1 | K130: 450.29 | L130: 451.02 | M130: 448.89 | N130: 450.16 | O130: 42501000 | U130: 1993-09-17 | V130: 0.286 | W130: 45.8125 | X130: 199309 | Y130: 199209 | Z130: 1993-03-19 | AA130: 3 | AB130: 0 | AC130: 0.817 | AD130: 0.01783356071
A131: 116 | B131: 2021-09-01 | C131: 452.559998 | D131: 453.109985 | E131: 451.549988 | F131: 451.799988 | G131: 48721400 | H131: 448.780518 | I131: 0.9933167993 | J131: 1 | K131: 449.54 | L131: 450.08 | M131: 448.53 | N131: 448.78 | O131: 48721400 | U131: 1993-06-18 | V131: 0.318 | W131: 44.5 | X131: 199306 | Y131: 199206 | Z131: 1993-03-19 | AA131: 2 | AB131: 0 | AC131: 0.531 | AD131: 0.01193258427
A132: 117 | B132: 2021-08-31 | C132: 452.130005 | D132: 452.48999 | E132: 450.920013 | F132: 451.559998 | G132: 59300200 | H132: 448.542145 | I132: 0.9933168283 | J132: 1 | K132: 449.11 | L132: 449.47 | M132: 447.91 | N132: 448.54 | O132: 59300200 | U132: 1993-03-19 | V132: 0.213 | W132: 45.03125 | X132: 199303 | Y132: 199203 | Z132: 1993-03-19 | AA132: 1 | AB132: 1 | AC132: 0.213 | AD132: 0.004730048577
A133: 118 | B133: 2021-08-30 | C133: 450.970001 | D133: 453.070007 | E133: 450.709991 | F133: 452.230011 | G133: 48357400 | H133: 449.207642 | I133: 0.9933167439 | J133: 1 | K133: 447.96 | L133: 450.04 | M133: 447.7 | N133: 449.21 | O133: 48357400
A134: 119 | B134: 2021-08-27 | C134: 447.119995 | D134: 450.649994 | E134: 447.059998 | F134: 450.25 | G134: 77201900 | H134: 447.240906 | I134: 0.9933168373 | J134: 1 | K134: 444.13 | L134: 447.64 | M134: 444.07 | N134: 447.24 | O134: 77201900
A135: 120 | B135: 2021-08-26 | C135: 448.609985 | D135: 448.859985 | E135: 446.160004 | F135: 446.26001 | G135: 57829600 | H135: 443.277557 | I135: 0.9933167818 | J135: 1 | K135: 445.61 | L135: 445.86 | M135: 443.18 | N135: 443.28 | O135: 57829600
A136: 121 | B136: 2021-08-25 | C136: 448.170013 | D136: 449.459991 | E136: 447.769989 | F136: 448.910004 | G136: 40529700 | H136: 445.909851 | I136: 0.9933168052 | J136: 1 | K136: 445.17 | L136: 446.46 | M136: 444.78 | N136: 445.91 | O136: 40529700
A137: 122 | B137: 2021-08-24 | C137: 447.970001 | D137: 448.540009 | E137: 447.420013 | F137: 447.970001 | G137: 38744700 | H137: 444.976135 | I137: 0.9933168159 | J137: 1 | K137: 444.98 | L137: 445.54 | M137: 444.43 | N137: 444.98 | O137: 38744700
A138: 123 | B138: 2021-08-23 | C138: 445.160004 | D138: 448.230011 | E138: 443.440002 | F138: 447.26001 | G138: 54973000 | H138: 444.270905 | I138: 0.9933168516 | J138: 1 | K138: 442.18 | L138: 445.23 | M138: 440.48 | N138: 444.27 | O138: 54973000
A139: 124 | B139: 2021-08-20 | C139: 440.230011 | D139: 443.709991 | E139: 439.709991 | F139: 443.359985 | G139: 71975900 | H139: 440.396942 | I139: 0.9933168461 | J139: 1 | K139: 437.29 | L139: 440.74 | M139: 436.77 | N139: 440.4 | O139: 71975900
A140: 125 | B140: 2021-08-19 | C140: 436.269989 | D140: 441.140015 | E140: 436.119995 | F140: 439.859985 | G140: 92812200 | H140: 436.920319 | I140: 0.9933168142 | J140: 1 | K140: 433.35 | L140: 438.19 | M140: 433.21 | N140: 436.92 | O140: 92812200
A141: 126 | B141: 2021-08-18 | C141: 442.959991 | D141: 444.630005 | E141: 438.920013 | F141: 439.179993 | G141: 89351900 | H141: 436.244873 | I141: 0.9933168176 | J141: 1 | K141: 440 | L141: 441.66 | M141: 435.99 | N141: 436.24 | O141: 89351900
A142: 127 | B142: 2021-08-17 | C142: 444.23999 | D142: 444.959991 | E142: 440.850006 | F142: 444.040009 | G142: 92673900 | H142: 441.072418 | I142: 0.9933168387 | J142: 1 | K142: 441.27 | L142: 441.99 | M142: 437.9 | N142: 441.07 | O142: 92673900
A143: 128 | B143: 2021-08-16 | C143: 444.529999 | D143: 447.109985 | E143: 442.869995 | F143: 446.970001 | G143: 73740000 | H143: 443.982819 | I143: 0.9933168177 | J143: 1 | K143: 441.56 | L143: 444.12 | M143: 439.91 | N143: 443.98 | O143: 73740000
A144: 129 | B144: 2021-08-13 | C144: 445.589996 | D144: 445.940002 | E144: 445.070007 | F144: 445.920013 | G144: 39388300 | H144: 442.93985 | I144: 0.9933168216 | J144: 1 | K144: 442.61 | L144: 442.96 | M144: 442.1 | N144: 442.94 | O144: 39388300
A145: 130 | B145: 2021-08-12 | C145: 443.619995 | D145: 445.26001 | E145: 442.660004 | F145: 445.109985 | G145: 38909400 | H145: 442.135254 | I145: =IF(F145=0,1,H145/F145) -> 0.993316863 | J145: =INDEX(OFFSET($T$15,0,0,$S$13+1,1),MATCH(B145,OFFSET($Q$15,0,0,$S$13+1,1),-1)) -> 1 | K145: =ROUND($I145*C145,2) -> 440.66 | L145: =ROUND($I145*D145,2) -> 442.28 | M145: =ROUND($I145*E145,2) -> 439.7 | N145: =ROUND($I145*F145,2) -> 442.14 | O145: =G145*J145 -> 38909400
A146: 131 | B146: 2021-08-11 | C146: 443.820007 | D146: 443.880005 | E146: 442.619995 | F146: 443.779999 | G146: 44034300 | H146: 440.814148 | I146: 0.9933168439 | J146: 1 | K146: 440.85 | L146: 440.91 | M146: 439.66 | N146: 440.81 | O146: 44034300
A147: 132 | B147: 2021-08-10 | C147: 442.609985 | D147: 443.440002 | E147: 441.880005 | F147: 442.679993 | G147: 43339300 | H147: 439.721466 | I147: 0.9933167818 | J147: 1 | K147: 439.65 | L147: 440.48 | M147: 438.93 | N147: 439.72 | O147: 43339300
A148: 133 | B148: 2021-08-09 | C148: 442.459991 | D148: 442.799988 | E148: 441.309998 | F148: 442.130005 | G148: 41222600 | H148: 439.17514 | I148: 0.9933167508 | J148: 1 | K148: 439.5 | L148: 439.84 | M148: 438.36 | N148: 439.18 | O148: 41222600
A149: 134 | B149: 2021-08-06 | C149: 442.100006 | D149: 442.940002 | E149: 441.799988 | F149: 442.48999 | G149: 46864100 | H149: 439.532745 | I149: 0.9933168093 | J149: 1 | K149: 439.15 | L149: 439.98 | M149: 438.85 | N149: 439.53 | O149: 46864100
A150: 135 | B150: 2021-08-05 | C150: 440.220001 | D150: 441.850006 | E150: 439.880005 | F150: 441.76001 | G150: 38969700 | H150: 438.807648 | I150: 0.9933168192 | J150: 1 | K150: 437.28 | L150: 438.9 | M150: 436.94 | N150: 438.81 | O150: 38969700
A151: 136 | B151: 2021-08-04 | C151: 439.779999 | D151: 441.119995 | E151: 438.730011 | F151: 438.980011 | G151: 46732200 | H151: 436.046234 | I151: 0.9933168324 | J151: 1 | K151: 436.84 | L151: 438.17 | M151: 435.8 | N151: 436.05 | O151: 46732200
A152: 137 | B152: 2021-08-03 | C152: 438.440002 | D152: 441.279999 | E152: 436.100006 | F152: 441.149994 | G152: 58053900 | H152: 438.201691 | I152: 0.9933167788 | J152: 1 | K152: 435.51 | L152: 438.33 | M152: 433.19 | N152: 438.2 | O152: 58053900
A153: 138 | B153: 2021-08-02 | C153: 440.339996 | D153: 440.929993 | E153: 437.209991 | F153: 437.589996 | G153: 58783300 | H153: 434.665497 | I153: 0.9933168056 | J153: 1 | K153: 437.4 | L153: 437.98 | M153: 434.29 | N153: 434.67 | O153: 58783300
A154: 139 | B154: 2021-07-30 | C154: 437.910004 | D154: 440.059998 | E154: 437.769989 | F154: 438.51001 | G154: 68890600 | H154: 435.579346 | I154: 0.9933167683 | J154: 1 | K154: 434.98 | L154: 437.12 | M154: 434.84 | N154: 435.58 | O154: 68890600
A155: 140 | B155: 2021-07-29 | C155: 439.820007 | D155: 441.799988 | E155: 439.809998 | F155: 440.649994 | G155: 47435300 | H155: 437.705048 | I155: 0.9933168137 | J155: 1 | K155: 436.88 | L155: 438.85 | M155: 436.87 | N155: 437.71 | O155: 47435300
A156: 141 | B156: 2021-07-28 | C156: 439.679993 | D156: 440.299988 | E156: 437.309998 | F156: 438.829987 | G156: 52472400 | H156: 435.897217 | I156: 0.9933168423 | J156: 1 | K156: 436.74 | L156: 437.36 | M156: 434.39 | N156: 435.9 | O156: 52472400
A157: 142 | B157: 2021-07-27 | C157: 439.910004 | D157: 439.940002 | E157: 435.98999 | F157: 439.01001 | G157: 67397100 | H157: 436.076019 | I157: 0.9933168016 | J157: 1 | K157: 436.97 | L157: 437 | M157: 433.08 | N157: 436.08 | O157: 67397100
A158: 143 | B158: 2021-07-26 | C158: 439.309998 | D158: 441.029999 | E158: 439.26001 | F158: 441.019989 | G158: 43719200 | H158: 438.072571 | I158: 0.9933168154 | J158: 1 | K158: 436.37 | L158: 438.08 | M158: 436.32 | N158: 438.07 | O158: 43719200
A159: 144 | B159: 2021-07-23 | C159: 437.519989 | D159: 440.299988 | E159: 436.790009 | F159: 439.940002 | G159: 63766600 | H159: 436.999817 | I159: 0.9933168501 | J159: 1 | K159: 434.6 | L159: 437.36 | M159: 433.87 | N159: 437 | O159: 63766600
A160: 145 | B160: 2021-07-22 | C160: 434.73999 | D160: 435.720001 | E160: 433.690002 | F160: 435.459991 | G160: 47878500 | H160: 432.549713 | I160: 0.9933167729 | J160: 1 | K160: 431.83 | L160: 432.81 | M160: 430.79 | N160: 432.55 | O160: 47878500
A161: 146 | B161: 2021-07-21 | C161: 432.339996 | D161: 434.700012 | E161: 431.01001 | F161: 434.549988 | G161: 64724400 | H161: 431.645813 | I161: 0.9933168218 | J161: 1 | K161: 429.45 | L161: 431.79 | M161: 428.13 | N161: 431.65 | O161: 64724400
A162: 147 | B162: 2021-07-20 | C162: 425.679993 | D162: 432.420013 | E162: 424.829987 | F162: 431.059998 | G162: 99608200 | H162: 428.179138 | I162: 0.9933168004 | J162: 1 | K162: 422.84 | L162: 429.53 | M162: 421.99 | N162: 428.18 | O162: 99608200
A163: 148 | B163: 2021-07-19 | C163: 426.190002 | D163: 431.410004 | E163: 421.970001 | F163: 424.970001 | G163: 147987000 | H163: 422.129852 | I163: 0.9933168247 | J163: 1 | K163: 423.34 | L163: 428.53 | M163: 419.15 | N163: 422.13 | O163: 147987000
A164: 149 | B164: 2021-07-16 | C164: 436.01001 | D164: 436.059998 | E164: 430.920013 | F164: 431.339996 | G164: 75874700 | H164: 428.457245 | I164: 0.9933167547 | J164: 1 | K164: 433.1 | L164: 433.15 | M164: 428.04 | N164: 428.46 | O164: 75874700
A165: 150 | B165: 2021-07-15 | C165: 434.809998 | D165: 435.529999 | E165: 432.720001 | F165: 434.75 | G165: 55126400 | H165: 431.844482 | I165: 0.9933168074 | J165: 1 | K165: 431.9 | L165: 432.62 | M165: 429.83 | N165: 431.84 | O165: 55126400
A166: 151 | B166: 2021-07-14 | C166: 437.399994 | D166: 437.920013 | E166: 434.910004 | F166: 436.23999 | G166: 64130400 | H166: 433.324524 | I166: 0.99331683 | J166: 1 | K166: 434.48 | L166: 434.99 | M166: 432 | N166: 433.32 | O166: 64130400
A167: 152 | B167: 2021-07-13 | C167: 436.23999 | D167: 437.839996 | E167: 435.309998 | F167: 435.589996 | G167: 52911300 | H167: 432.678864 | I167: 0.993316807 | J167: 1 | K167: 433.32 | L167: 434.91 | M167: 432.4 | N167: 432.68 | O167: 52911300
A168: 153 | B168: 2021-07-12 | C168: 435.429993 | D168: 437.350006 | E168: 434.970001 | F168: 437.079987 | G168: 52889600 | H168: 434.158905 | I168: 0.9933168251 | J168: 1 | K168: 432.52 | L168: 434.43 | M168: 432.06 | N168: 434.16 | O168: 52889600
A169: 154 | B169: 2021-07-09 | C169: 432.529999 | D169: 435.839996 | E169: 430.709991 | F169: 435.519989 | G169: 76238600 | H169: 432.609314 | I169: 0.9933167821 | J169: 1 | K169: 429.64 | L169: 432.93 | M169: 427.83 | N169: 432.61 | O169: 76238600
A170: 155 | B170: 2021-07-08 | C170: 428.779999 | D170: 431.730011 | E170: 427.519989 | F170: 430.920013 | G170: 97595200 | H170: 428.04007 | I170: 0.9933167574 | J170: 1 | K170: 425.91 | L170: 428.84 | M170: 424.66 | N170: 428.04 | O170: 97595200
A171: 156 | B171: 2021-07-07 | C171: 433.660004 | D171: 434.76001 | E171: 431.51001 | F171: 434.459991 | G171: 63549500 | H171: 431.556396 | I171: 0.9933167724 | J171: 1 | K171: 430.76 | L171: 431.85 | M171: 428.63 | N171: 431.56 | O171: 63549500
A172: 157 | B172: 2021-07-06 | C172: 433.779999 | D172: 434.01001 | E172: 430.01001 | F172: 432.929993 | G172: 68710400 | H172: 430.036621 | I172: 0.993316767 | J172: 1 | K172: 430.88 | L172: 431.11 | M172: 427.14 | N172: 430.04 | O172: 68710400
A173: 158 | B173: 2021-07-02 | C173: 431.670013 | D173: 434.100006 | E173: 430.519989 | F173: 433.720001 | G173: 57697700 | H173: 430.82135 | I173: 0.9933167689 | J173: 1 | K173: 428.79 | L173: 431.2 | M173: 427.64 | N173: 430.82 | O173: 57697700
A174: 159 | B174: 2021-07-01 | C174: 428.869995 | D174: 430.600006 | E174: 428.799988 | F174: 430.429993 | G174: 53441000 | H174: 427.553345 | I174: 0.993316804 | J174: 1 | K174: 426 | L174: 427.72 | M174: 425.93 | N174: 427.55 | O174: 53441000
A175: 160 | B175: 2021-06-30 | C175: 427.209991 | D175: 428.779999 | E175: 427.179993 | F175: 428.059998 | G175: 64827900 | H175: 425.199188 | I175: 0.9933168014 | J175: 1 | K175: 424.35 | L175: 425.91 | M175: 424.33 | N175: 425.2 | O175: 64827900
A176: 161 | B176: 2021-06-29 | C176: 427.880005 | D176: 428.559998 | E176: 427.130005 | F176: 427.700012 | G176: 35970500 | H176: 424.841583 | I176: 0.9933167432 | J176: 1 | K176: 425.02 | L176: 425.7 | M176: 424.28 | N176: 424.84 | O176: 35970500
A177: 162 | B177: 2021-06-28 | C177: 427.170013 | D177: 427.649994 | E177: 425.890015 | F177: 427.470001 | G177: 53159600 | H177: 424.613129 | I177: 0.9933167895 | J177: 1 | K177: 424.32 | L177: 424.79 | M177: 423.04 | N177: 424.61 | O177: 53159600
A178: 163 | B178: 2021-06-25 | C178: 425.899994 | D178: 427.089996 | E178: 425.549988 | F178: 426.609985 | G178: 58129500 | H178: 423.75885 | I178: 0.9933167645 | J178: 1 | K178: 423.05 | L178: 424.24 | M178: 422.71 | N178: 423.76 | O178: 58129500
A179: 164 | B179: 2021-06-24 | C179: 424.890015 | D179: 425.549988 | E179: 424.619995 | F179: 425.100006 | G179: 45110300 | H179: 422.258972 | I179: 0.9933167867 | J179: 1 | K179: 422.05 | L179: 422.71 | M179: 421.78 | N179: 422.26 | O179: 45110300
A180: 165 | B180: 2021-06-23 | C180: 423.190002 | D180: 424.049988 | E180: 422.51001 | F180: 422.600006 | G180: 49445400 | H180: 419.775696 | I180: 0.9933168245 | J180: 1 | K180: 420.36 | L180: 421.22 | M180: 419.69 | N180: 419.78 | O180: 49445400
A181: 166 | B181: 2021-06-22 | C181: 420.850006 | D181: 424 | E181: 420.079987 | F181: 423.109985 | G181: 57700300 | H181: 420.282257 | I181: 0.9933168015 | J181: 1 | K181: 418.04 | L181: 421.17 | M181: 417.27 | N181: 420.28 | O181: 57700300
A182: 167 | B182: 2021-06-21 | C182: 416.799988 | D182: 421.059998 | E182: 415.929993 | F182: 420.859985 | G182: 72822000 | H182: 418.047302 | I182: 0.9933168201 | J182: 1 | K182: 414.01 | L182: 418.25 | M182: 413.15 | N182: 418.05 | O182: 72822000
A183: 168 | B183: 2021-06-18 | C183: 417.089996 | D183: 417.829987 | E183: 414.700012 | F183: 414.920013 | G183: 118676300 | H183: 412.147034 | I183: 0.9933168348 | J183: 1 | K183: 414.3 | L183: 415.04 | M183: 411.93 | N183: 412.15 | O183: 118676300
A184: 169 | B184: 2021-06-17 | C184: 421.670013 | D184: 423.019989 | E184: 419.320007 | F184: 421.970001 | G184: 90949700 | H184: 417.783081 | I184: 0.9900776833 | J184: 1 | K184: 417.49 | L184: 418.82 | M184: 415.16 | N184: 417.78 | O184: 90949700
A185: 170 | B185: 2021-06-16 | C185: 424.630005 | D185: 424.869995 | E185: 419.920013 | F185: 422.109985 | G185: 80386100 | H185: 417.921661 | I185: 0.9900776477 | J185: 1 | K185: 420.42 | L185: 420.65 | M185: 415.75 | N185: 417.92 | O185: 80386100
A186: 171 | B186: 2021-06-15 | C186: 425.420013 | D186: 425.459991 | E186: 423.540009 | F186: 424.480011 | G186: 51508500 | H186: 420.268188 | I186: 0.9900776883 | J186: 1 | K186: 421.2 | L186: 421.24 | M186: 419.34 | N186: 420.27 | O186: 51508500
A187: 172 | B187: 2021-06-14 | C187: 424.429993 | D187: 425.369995 | E187: 423.100006 | F187: 425.26001 | G187: 42358500 | H187: 421.040466 | I187: 0.9900777315 | J187: 1 | K187: 420.22 | L187: 421.15 | M187: 418.9 | N187: 421.04 | O187: 42358500
A188: 173 | B188: 2021-06-11 | C188: 424.200012 | D188: 424.429993 | E188: 422.820007 | F188: 424.309998 | G188: 45570800 | H188: 420.099854 | I188: 0.9900776696 | J188: 1 | K188: 419.99 | L188: 420.22 | M188: 418.62 | N188: 420.1 | O188: 45570800
A189: 174 | B189: 2021-06-10 | C189: 422.959991 | D189: 424.630005 | E189: 421.549988 | F189: 423.609985 | G189: 51020100 | H189: 419.406769 | I189: 0.9900776277 | J189: 1 | K189: 418.76 | L189: 420.42 | M189: 417.37 | N189: 419.41 | O189: 51020100
A190: 175 | B190: 2021-06-09 | C190: 423.179993 | D190: 423.26001 | E190: 421.410004 | F190: 421.649994 | G190: 48436300 | H190: 417.466248 | I190: 0.9900776804 | J190: 1 | K190: 418.98 | L190: 419.06 | M190: 417.23 | N190: 417.47 | O190: 48436300
A191: 176 | B191: 2021-06-08 | C191: 423.109985 | D191: 423.209991 | E191: 420.320007 | F191: 422.279999 | G191: 47134300 | H191: 418.090027 | I191: 0.9900777399 | J191: 1 | K191: 418.91 | L191: 419.01 | M191: 416.15 | N191: 418.09 | O191: 47134300
A192: 177 | B192: 2021-06-07 | C192: 422.589996 | D192: 422.779999 | E192: 421.190002 | F192: 422.190002 | G192: 51555000 | H192: 418.000916 | I192: 0.9900777233 | J192: 1 | K192: 418.4 | L192: 418.59 | M192: 417.01 | N192: 418 | O192: 51555000
A193: 178 | B193: 2021-06-04 | C193: 420.75 | D193: 422.920013 | E193: 418.839996 | F193: 422.600006 | G193: 55938800 | H193: 418.40683 | I193: 0.9900776717 | J193: 1 | K193: 416.58 | L193: 418.72 | M193: 414.68 | N193: 418.41 | O193: 55938800
A194: 179 | B194: 2021-06-03 | C194: 417.850006 | D194: 419.98999 | E194: 416.279999 | F194: 418.769989 | G194: 58138800 | H194: 414.614838 | I194: 0.990077725 | J194: 1 | K194: 413.7 | L194: 415.82 | M194: 412.15 | N194: 414.61 | O194: 58138800
A195: 180 | B195: 2021-06-02 | C195: 420.369995 | D195: 421.230011 | E195: 419.290009 | F195: 420.329987 | G195: 49097100 | H195: 416.159363 | I195: 0.9900777386 | J195: 1 | K195: 416.2 | L195: 417.05 | M195: 415.13 | N195: 416.16 | O195: 49097100
A196: 181 | B196: 2021-06-01 | C196: 422.570007 | D196: 422.720001 | E196: 419.200012 | F196: 419.670013 | G196: 54216600 | H196: 415.50592 | I196: 0.9900776971 | J196: 1 | K196: 418.38 | L196: 418.53 | M196: 415.04 | N196: 415.51 | O196: 54216600
A197: 182 | B197: 2021-05-28 | C197: 420.970001 | D197: 421.25 | E197: 419.790009 | F197: 420.040009 | G197: 58520200 | H197: 415.872253 | I197: 0.9900777166 | J197: 1 | K197: 416.79 | L197: 417.07 | M197: 415.62 | N197: 415.87 | O197: 58520200
A198: 183 | B198: 2021-05-27 | C198: 420.170013 | D198: 420.720001 | E198: 418.98999 | F198: 419.290009 | G198: 56707700 | H198: 415.129669 | I198: 0.9900776553 | J198: 1 | K198: 416 | L198: 416.55 | M198: 414.83 | N198: 415.13 | O198: 56707700
A199: 184 | B199: 2021-05-26 | C199: 418.869995 | D199: 419.609985 | E199: 417.76001 | F199: 419.070007 | G199: 43088600 | H199: 414.911865 | I199: 0.9900776912 | J199: 1 | K199: 414.71 | L199: 415.45 | M199: 413.61 | N199: 414.91 | O199: 43088600
A200: 185 | B200: 2021-05-25 | C200: 420.329987 | D200: 420.709991 | E200: 417.619995 | F200: 418.23999 | G200: 57451400 | H200: 414.090057 | I200: 0.9900776274 | J200: 1 | K200: 416.16 | L200: 416.54 | M200: 413.48 | N200: 414.09 | O200: 57451400
... 4300 more rows

Sheet InputIndexData
A1: CBOE Volatility Index (^VIX) -Chicago Options (Daily)
M2: To retrieve data for symbols traded on non US Exchanges, | II2: 241.79
A3: Request Online Yahoo History for: | F3: Market State == > | G3: At close: | H3: 16:15:00 | I3: EST | M3: you will need to append the dot-suffix for the exchange to the symbol.
A4: Symbol | B4: ^VIX | D4: Valid | I4: =OFFSET(I4,-2,0,1,1) -> 0 | M4: The following links provide a description of how to use the exchange suffix
A5: From | B5: 1950-10-01 | D5: Data | M5: along with a list of suffixes for the major world exchanges. | AD5: Trailing 12 Div return (Cur Close)
A6: To | B6: =NOW() -> 2022-02-16T12:44:43.420 | D6: Types | E6: =VLOOKUP(B7,D7:E10,2,FALSE) -> d | M6: https://help.yahoo.com/kb/finance/SLN2310.html
A7: Data Type | B7: Daily | D7: Daily | E7: d | M7: And
A8: Crumb | B8: 3o93GkZ6ylx | D8: Weekly | E8: w | M8: https://www.stockmarketeye.com/users-guide/ticker-symbols-and-data-providers/data-providers.html
A9: Available Data | D9: Monthly | E9: m
A10: Bar Count: | B10: 8095 | M10: You may search on “exchange suffixes” for additional discussions | AD10: =OFFSET(AC15,1,0,1,1)/OFFSET(N15,1,0,1,1) -> 0
A11: From: | B11: =IF(B10<=0,"",OFFSET(B15,B10,IF(HistReqDataType="v",1,0),1,1)) -> 1990-01-02 | W11: Trailing 12 Month Dividend Returns
A12: To: | B12: =IF(B10<=0,"",IF(HistReqDataType="v",OFFSET(B15,2,1,1,1),OFFSET(B15,1,0,1,1))) -> 2022-02-15 | W12: Raw Close price on Dividend date | X12: Div Year and Month | Y12: Looking for year ago Div Year and Month | Z12: Year ago Div Date we found | AA12: row offset to year ago div Date | AB12: Same month flag | AC12: Trailing 12 Div Total | AD12: Trailing 12 Div return
Q13: Split History | S13: 0 | T13: Running | U13: Dividend History
B14: Raw Data Values | H14: Adjusted | I14: Price Adjust | J14: Vol Adjust | K14: Adjusted Values | P14: Last | Q14: Effective | R14: Shares | T14: Vol Adjust | V14: 0
A15: RelRow | B15: Date | C15: Open | D15: High | E15: Low | F15: Close | G15: Volume | H15: Close | I15: Factor | J15: Factor | K15: Open | L15: High | M15: Low | N15: Close | O15: Volume | P15: Trade | Q15: 44608 | R15: New | S15: Old | T15: 1 | U15: Date | V15: $ / Share
A16: 1 | B16: 2022-02-15 | C16: 28.09 | D16: 28.09 | E16: 25.33 | F16: 25.700001 | G16: 0 | H16: 25.700001 | I16: =IF(F16=0,1,H16/F16) -> 1 | J16: =INDEX(OFFSET($T$15,0,0,$S$13+1,1),MATCH(B16,OFFSET($Q$15,0,0,$S$13+1,1),-1)) -> 1 | K16: =ROUND($I16*C16,2) -> 28.09 | L16: =ROUND($I16*D16,2) -> 28.09 | M16: =ROUND($I16*E16,2) -> 25.33 | N16: =ROUND($I16*F16,2) -> 25.7 | O16: =G16*J16 -> 0
A17: 2 | B17: 2022-02-14 | C17: 29.17 | D17: 32.040001 | E17: 28.33 | F17: 28.33 | G17: 0 | H17: 28.33 | I17: =IF(F17=0,1,H17/F17) -> 1 | J17: =INDEX(OFFSET($T$15,0,0,$S$13+1,1),MATCH(B17,OFFSET($Q$15,0,0,$S$13+1,1),-1)) -> 1 | K17: =ROUND($I17*C17,2) -> 29.17 | L17: =ROUND($I17*D17,2) -> 32.04 | M17: =ROUND($I17*E17,2) -> 28.33 | N17: =ROUND($I17*F17,2) -> 28.33 | O17: =G17*J17 -> 0
A18: 3 | B18: 2022-02-11 | C18: 24.389999 | D18: 30.99 | E18: 23.33 | F18: 27.360001 | G18: 0 | H18: 27.360001 | I18: 1 | J18: 1 | K18: 24.39 | L18: 30.99 | M18: 23.33 | N18: 27.36 | O18: 0
A19: 4 | B19: 2022-02-10 | C19: 20.370001 | D19: 24.77 | E19: 20.18 | F19: 23.91 | G19: 0 | H19: 23.91 | I19: 1 | J19: 1 | K19: 20.37 | L19: 24.77 | M19: 20.18 | N19: 23.91 | O19: 0
A20: 5 | B20: 2022-02-09 | C20: 21.27 | D20: 21.299999 | E20: 19.93 | F20: 19.959999 | G20: 0 | H20: 19.959999 | I20: 1 | J20: 1 | K20: 21.27 | L20: 21.3 | M20: 19.93 | N20: 19.96 | O20: 0
A21: 6 | B21: 2022-02-08 | C21: 23.09 | D21: 23.48 | E21: 21.32 | F21: 21.440001 | G21: 0 | H21: 21.440001 | I21: 1 | J21: 1 | K21: 23.09 | L21: 23.48 | M21: 21.32 | N21: 21.44 | O21: 0
A22: 7 | B22: 2022-02-07 | C22: 24.09 | D22: 24.82 | E22: 22.02 | F22: 22.860001 | G22: 0 | H22: 22.860001 | I22: 1 | J22: 1 | K22: 24.09 | L22: 24.82 | M22: 22.02 | N22: 22.86 | O22: 0
A23: 8 | B23: 2022-02-04 | C23: 23.77 | D23: 26.26 | E23: 22.07 | F23: 23.219999 | G23: 0 | H23: 23.219999 | I23: 1 | J23: 1 | K23: 23.77 | L23: 26.26 | M23: 22.07 | N23: 23.22 | O23: 0
A24: 9 | B24: 2022-02-03 | C24: 22.629999 | D24: 25.809999 | E24: 22.299999 | F24: 24.35 | G24: 0 | H24: 24.35 | I24: 1 | J24: 1 | K24: 22.63 | L24: 25.81 | M24: 22.3 | N24: 24.35 | O24: 0
A25: 10 | B25: 2022-02-02 | C25: 21.559999 | D25: 22.73 | E25: 20.459999 | F25: 22.09 | G25: 0 | H25: 22.09 | I25: 1 | J25: 1 | K25: 21.56 | L25: 22.73 | M25: 20.46 | N25: 22.09 | O25: 0
A26: 11 | B26: 2022-02-01 | C26: 24.57 | D26: 25.33 | E26: 21.959999 | F26: 21.959999 | G26: 0 | H26: 21.959999 | I26: 1 | J26: 1 | K26: 24.57 | L26: 25.33 | M26: 21.96 | N26: 21.96 | O26: 0
A27: 12 | B27: 2022-01-31 | C27: 28.360001 | D27: 29.41 | E27: 24.709999 | F27: 24.83 | G27: 0 | H27: 24.83 | I27: 1 | J27: 1 | K27: 28.36 | L27: 29.41 | M27: 24.71 | N27: 24.83 | O27: 0
A28: 13 | B28: 2022-01-28 | C28: 30.27 | D28: 32.82 | E28: 27.280001 | F28: 27.66 | G28: 0 | H28: 27.66 | I28: 1 | J28: 1 | K28: 30.27 | L28: 32.82 | M28: 27.28 | N28: 27.66 | O28: 0
A29: 14 | B29: 2022-01-27 | C29: 32.189999 | D29: 33 | E29: 28.42 | F29: 30.49 | G29: 0 | H29: 30.49 | I29: 1 | J29: 1 | K29: 32.19 | L29: 33 | M29: 28.42 | N29: 30.49 | O29: 0
A30: 15 | B30: 2022-01-26 | C30: 29.35 | D30: 33.040001 | E30: 26.9 | F30: 31.959999 | G30: 0 | H30: 31.959999 | I30: 1 | J30: 1 | K30: 29.35 | L30: 33.04 | M30: 26.9 | N30: 31.96 | O30: 0
A31: 16 | B31: 2022-01-25 | C31: 32.290001 | D31: 35.849998 | E31: 29.129999 | F31: 31.16 | G31: 0 | H31: 31.16 | I31: 1 | J31: 1 | K31: 32.29 | L31: 35.85 | M31: 29.13 | N31: 31.16 | O31: 0
A32: 17 | B32: 2022-01-24 | C32: 28.200001 | D32: 38.939999 | E32: 28.02 | F32: 29.9 | G32: 0 | H32: 29.9 | I32: 1 | J32: 1 | K32: 28.2 | L32: 38.94 | M32: 28.02 | N32: 29.9 | O32: 0
A33: 18 | B33: 2022-01-21 | C33: 25.379999 | D33: 29.790001 | E33: 25.309999 | F33: 28.85 | G33: 0 | H33: 28.85 | I33: 1 | J33: 1 | K33: 25.38 | L33: 29.79 | M33: 25.31 | N33: 28.85 | O33: 0
A34: 19 | B34: 2022-01-20 | C34: 23.459999 | D34: 25.889999 | E34: 21.68 | F34: 25.59 | G34: 0 | H34: 25.59 | I34: 1 | J34: 1 | K34: 23.46 | L34: 25.89 | M34: 21.68 | N34: 25.59 | O34: 0
A35: 20 | B35: 2022-01-19 | C35: 23.120001 | D35: 23.99 | E35: 21.85 | F35: 23.85 | G35: 0 | H35: 23.85 | I35: 1 | J35: 1 | K35: 23.12 | L35: 23.99 | M35: 21.85 | N35: 23.85 | O35: 0
A36: 21 | B36: 2022-01-18 | C36: 21.18 | D36: 23.200001 | E36: 21.18 | F36: 22.790001 | G36: 0 | H36: 22.790001 | I36: 1 | J36: 1 | K36: 21.18 | L36: 23.2 | M36: 21.18 | N36: 22.79 | O36: 0
A37: 22 | B37: 2022-01-14 | C37: 20.110001 | D37: 22.07 | E37: 19.049999 | F37: 19.190001 | G37: 0 | H37: 19.190001 | I37: 1 | J37: 1 | K37: 20.11 | L37: 22.07 | M37: 19.05 | N37: 19.19 | O37: 0
A38: 23 | B38: 2022-01-13 | C38: 18.059999 | D38: 20.610001 | E38: 17.450001 | F38: 20.309999 | G38: 0 | H38: 20.309999 | I38: 1 | J38: 1 | K38: 18.06 | L38: 20.61 | M38: 17.45 | N38: 20.31 | O38: 0
A39: 24 | B39: 2022-01-12 | C39: 18.17 | D39: 18.690001 | E39: 17.360001 | F39: 17.620001 | G39: 0 | H39: 17.620001 | I39: 1 | J39: 1 | K39: 18.17 | L39: 18.69 | M39: 17.36 | N39: 17.62 | O39: 0
A40: 25 | B40: 2022-01-11 | C40: 19.620001 | D40: 21 | E40: 18.200001 | F40: 18.41 | G40: 0 | H40: 18.41 | I40: 1 | J40: 1 | K40: 19.62 | L40: 21 | M40: 18.2 | N40: 18.41 | O40: 0
A41: 26 | B41: 2022-01-10 | C41: 19.58 | D41: 23.33 | E41: 19.290001 | F41: 19.4 | G41: 0 | H41: 19.4 | I41: 1 | J41: 1 | K41: 19.58 | L41: 23.33 | M41: 19.29 | N41: 19.4 | O41: 0
A42: 27 | B42: 2022-01-07 | C42: 19.85 | D42: 20.799999 | E42: 18.57 | F42: 18.76 | G42: 0 | H42: 18.76 | I42: 1 | J42: 1 | K42: 19.85 | L42: 20.8 | M42: 18.57 | N42: 18.76 | O42: 0
A43: 28 | B43: 2022-01-06 | C43: 20.290001 | D43: 21.059999 | E43: 19.08 | F43: 19.610001 | G43: 0 | H43: 19.610001 | I43: 1 | J43: 1 | K43: 20.29 | L43: 21.06 | M43: 19.08 | N43: 19.61 | O43: 0
A44: 29 | B44: 2022-01-05 | C44: 17.07 | D44: 20.17 | E44: 16.58 | F44: 19.73 | G44: 0 | H44: 19.73 | I44: 1 | J44: 1 | K44: 17.07 | L44: 20.17 | M44: 16.58 | N44: 19.73 | O44: 0
A45: 30 | B45: 2022-01-04 | C45: 16.57 | D45: 17.809999 | E45: 16.34 | F45: 16.91 | G45: 0 | H45: 16.91 | I45: 1 | J45: 1 | K45: 16.57 | L45: 17.81 | M45: 16.34 | N45: 16.91 | O45: 0
A46: 31 | B46: 2022-01-03 | C46: 17.6 | D46: 18.540001 | E46: 16.559999 | F46: 16.6 | G46: 0 | H46: 16.6 | I46: 1 | J46: 1 | K46: 17.6 | L46: 18.54 | M46: 16.56 | N46: 16.6 | O46: 0
A47: 32 | B47: 2021-12-31 | C47: 17.629999 | D47: 18.27 | E47: 16.99 | F47: 17.219999 | G47: 0 | H47: 17.219999 | I47: 1 | J47: 1 | K47: 17.63 | L47: 18.27 | M47: 16.99 | N47: 17.22 | O47: 0
A48: 33 | B48: 2021-12-30 | C48: 17.299999 | D48: 17.790001 | E48: 16.620001 | F48: 17.33 | G48: 0 | H48: 17.33 | I48: 1 | J48: 1 | K48: 17.3 | L48: 17.79 | M48: 16.62 | N48: 17.33 | O48: 0
A49: 34 | B49: 2021-12-29 | C49: 17.629999 | D49: 18 | E49: 16.709999 | F49: 16.950001 | G49: 0 | H49: 16.950001 | I49: 1 | J49: 1 | K49: 17.63 | L49: 18 | M49: 16.71 | N49: 16.95 | O49: 0
A50: 35 | B50: 2021-12-28 | C50: 17.780001 | D50: 18.469999 | E50: 17.51 | F50: 17.540001 | G50: 0 | H50: 17.540001 | I50: 1 | J50: 1 | K50: 17.78 | L50: 18.47 | M50: 17.51 | N50: 17.54 | O50: 0
A51: 36 | B51: 2021-12-27 | C51: 19.370001 | D51: 19.41 | E51: 17.549999 | F51: 17.68 | G51: 0 | H51: 17.68 | I51: 1 | J51: 1 | K51: 19.37 | L51: 19.41 | M51: 17.55 | N51: 17.68 | O51: 0
A52: 37 | B52: 2021-12-23 | C52: 18.809999 | D52: 18.93 | E52: 17.620001 | F52: 17.959999 | G52: 0 | H52: 17.959999 | I52: 1 | J52: 1 | K52: 18.81 | L52: 18.93 | M52: 17.62 | N52: 17.96 | O52: 0
A53: 38 | B53: 2021-12-22 | C53: 21.040001 | D53: 21.360001 | E53: 18.59 | F53: 18.629999 | G53: 0 | H53: 18.629999 | I53: 1 | J53: 1 | K53: 21.04 | L53: 21.36 | M53: 18.59 | N53: 18.63 | O53: 0
A54: 39 | B54: 2021-12-21 | C54: 22.280001 | D54: 22.68 | E54: 20.9 | F54: 21.01 | G54: 0 | H54: 21.01 | I54: 1 | J54: 1 | K54: 22.28 | L54: 22.68 | M54: 20.9 | N54: 21.01 | O54: 0
A55: 40 | B55: 2021-12-20 | C55: 25.889999 | D55: 27.389999 | E55: 22.85 | F55: 22.870001 | G55: 0 | H55: 22.870001 | I55: 1 | J55: 1 | K55: 25.89 | L55: 27.39 | M55: 22.85 | N55: 22.87 | O55: 0
A56: 41 | B56: 2021-12-17 | C56: 20.700001 | D56: 23.26 | E56: 20.49 | F56: 21.57 | G56: 0 | H56: 21.57 | I56: 1 | J56: 1 | K56: 20.7 | L56: 23.26 | M56: 20.49 | N56: 21.57 | O56: 0
A57: 42 | B57: 2021-12-16 | C57: 18.559999 | D57: 22.129999 | E57: 18.190001 | F57: 20.57 | G57: 0 | H57: 20.57 | I57: 1 | J57: 1 | K57: 18.56 | L57: 22.13 | M57: 18.19 | N57: 20.57 | O57: 0
A58: 43 | B58: 2021-12-15 | C58: 21.6 | D58: 23.469999 | E58: 19.02 | F58: 19.290001 | G58: 0 | H58: 19.290001 | I58: 1 | J58: 1 | K58: 21.6 | L58: 23.47 | M58: 19.02 | N58: 19.29 | O58: 0
A59: 44 | B59: 2021-12-14 | C59: 19.67 | D59: 23 | E59: 19.67 | F59: 21.889999 | G59: 0 | H59: 21.889999 | I59: 1 | J59: 1 | K59: 19.67 | L59: 23 | M59: 19.67 | N59: 21.89 | O59: 0
A60: 45 | B60: 2021-12-13 | C60: 19.290001 | D60: 21.18 | E60: 18.959999 | F60: 20.309999 | G60: 0 | H60: 20.309999 | I60: 1 | J60: 1 | K60: 19.29 | L60: 21.18 | M60: 18.96 | N60: 20.31 | O60: 0
A61: 46 | B61: 2021-12-10 | C61: 21.27 | D61: 21.299999 | E61: 18.690001 | F61: 18.690001 | G61: 0 | H61: 18.690001 | I61: 1 | J61: 1 | K61: 21.27 | L61: 21.3 | M61: 18.69 | N61: 18.69 | O61: 0
A62: 47 | B62: 2021-12-09 | C62: 20.309999 | D62: 22.120001 | E62: 19.940001 | F62: 21.58 | G62: 0 | H62: 21.58 | I62: 1 | J62: 1 | K62: 20.31 | L62: 22.12 | M62: 19.94 | N62: 21.58 | O62: 0
A63: 48 | B63: 2021-12-08 | C63: 21.74 | D63: 23.110001 | E63: 19.85 | F63: 19.9 | G63: 0 | H63: 19.9 | I63: 1 | J63: 1 | K63: 21.74 | L63: 23.11 | M63: 19.85 | N63: 19.9 | O63: 0
A64: 49 | B64: 2021-12-07 | C64: 24.58 | D64: 24.690001 | E64: 21.58 | F64: 21.889999 | G64: 0 | H64: 21.889999 | I64: 1 | J64: 1 | K64: 24.58 | L64: 24.69 | M64: 21.58 | N64: 21.89 | O64: 0
A65: 50 | B65: 2021-12-06 | C65: 28.99 | D65: 30.82 | E65: 26.75 | F65: 27.18 | G65: 0 | H65: 27.18 | I65: 1 | J65: 1 | K65: 28.99 | L65: 30.82 | M65: 26.75 | N65: 27.18 | O65: 0
A66: 51 | B66: 2021-12-03 | C66: 26.950001 | D66: 35.32 | E66: 25.889999 | F66: 30.67 | G66: 0 | H66: 30.67 | I66: 1 | J66: 1 | K66: 26.95 | L66: 35.32 | M66: 25.89 | N66: 30.67 | O66: 0
A67: 52 | B67: 2021-12-02 | C67: 29.440001 | D67: 30.68 | E67: 27.15 | F67: 27.950001 | G67: 0 | H67: 27.950001 | I67: 1 | J67: 1 | K67: 29.44 | L67: 30.68 | M67: 27.15 | N67: 27.95 | O67: 0
A68: 53 | B68: 2021-12-01 | C68: 24.92 | D68: 32.610001 | E68: 22.379999 | F68: 31.120001 | G68: 0 | H68: 31.120001 | I68: 1 | J68: 1 | K68: 24.92 | L68: 32.61 | M68: 22.38 | N68: 31.12 | O68: 0
A69: 54 | B69: 2021-11-30 | C69: 26.23 | D69: 28.559999 | E69: 23.709999 | F69: 27.190001 | G69: 0 | H69: 27.190001 | I69: 1 | J69: 1 | K69: 26.23 | L69: 28.56 | M69: 23.71 | N69: 27.19 | O69: 0
A70: 55 | B70: 2021-11-29 | C70: 25.309999 | D70: 25.690001 | E70: 21.709999 | F70: 22.959999 | G70: 0 | H70: 22.959999 | I70: 1 | J70: 1 | K70: 25.31 | L70: 25.69 | M70: 21.71 | N70: 22.96 | O70: 0
A71: 56 | B71: 2021-11-26 | C71: 26.620001 | D71: 28.99 | E71: 23.879999 | F71: 28.620001 | G71: 0 | H71: 28.620001 | I71: 1 | J71: 1 | K71: 26.62 | L71: 28.99 | M71: 23.88 | N71: 28.62 | O71: 0
A72: 57 | B72: 2021-11-24 | C72: 19.17 | D72: 20.959999 | E72: 18.52 | F72: 18.58 | G72: 0 | H72: 18.58 | I72: 1 | J72: 1 | K72: 19.17 | L72: 20.96 | M72: 18.52 | N72: 18.58 | O72: 0
A73: 58 | B73: 2021-11-23 | C73: 20.24 | D73: 20.91 | E73: 19.030001 | F73: 19.379999 | G73: 0 | H73: 19.379999 | I73: 1 | J73: 1 | K73: 20.24 | L73: 20.91 | M73: 19.03 | N73: 19.38 | O73: 0
A74: 59 | B74: 2021-11-22 | C74: 18.200001 | D74: 19.59 | E74: 17.35 | F74: 19.17 | G74: 0 | H74: 19.17 | I74: 1 | J74: 1 | K74: 18.2 | L74: 19.59 | M74: 17.35 | N74: 19.17 | O74: 0
A75: 60 | B75: 2021-11-19 | C75: 17.360001 | D75: 19.01 | E75: 17.23 | F75: 17.91 | G75: 0 | H75: 17.91 | I75: 1 | J75: 1 | K75: 17.36 | L75: 19.01 | M75: 17.23 | N75: 17.91 | O75: 0
A76: 61 | B76: 2021-11-18 | C76: 16.809999 | D76: 18.15 | E76: 16.379999 | F76: 17.59 | G76: 0 | H76: 17.59 | I76: 1 | J76: 1 | K76: 16.81 | L76: 18.15 | M76: 16.38 | N76: 17.59 | O76: 0
A77: 62 | B77: 2021-11-17 | C77: 16.360001 | D77: 17.190001 | E77: 16.280001 | F77: 17.110001 | G77: 0 | H77: 17.110001 | I77: 1 | J77: 1 | K77: 16.36 | L77: 17.19 | M77: 16.28 | N77: 17.11 | O77: 0
A78: 63 | B78: 2021-11-16 | C78: 16.860001 | D78: 17.08 | E78: 16.030001 | F78: 16.370001 | G78: 0 | H78: 16.370001 | I78: 1 | J78: 1 | K78: 16.86 | L78: 17.08 | M78: 16.03 | N78: 16.37 | O78: 0
A79: 64 | B79: 2021-11-15 | C79: 17.030001 | D79: 17.459999 | E79: 16.49 | F79: 16.49 | G79: 0 | H79: 16.49 | I79: 1 | J79: 1 | K79: 17.03 | L79: 17.46 | M79: 16.49 | N79: 16.49 | O79: 0
A80: 65 | B80: 2021-11-12 | C80: 17.49 | D80: 17.690001 | E80: 16.15 | F80: 16.290001 | G80: 0 | H80: 16.290001 | I80: 1 | J80: 1 | K80: 17.49 | L80: 17.69 | M80: 16.15 | N80: 16.29 | O80: 0
A81: 66 | B81: 2021-11-11 | C81: 18.34 | D81: 18.389999 | E81: 17.27 | F81: 17.66 | G81: 0 | H81: 17.66 | I81: =IF(F81=0,1,H81/F81) -> 1 | J81: =INDEX(OFFSET($T$15,0,0,$S$13+1,1),MATCH(B81,OFFSET($Q$15,0,0,$S$13+1,1),-1)) -> 1 | K81: =ROUND($I81*C81,2) -> 18.34 | L81: =ROUND($I81*D81,2) -> 18.39 | M81: =ROUND($I81*E81,2) -> 17.27 | N81: =ROUND($I81*F81,2) -> 17.66 | O81: =G81*J81 -> 0
A82: 67 | B82: 2021-11-10 | C82: 17.74 | D82: 19.9 | E82: 17.219999 | F82: 18.73 | G82: 0 | H82: 18.73 | I82: 1 | J82: 1 | K82: 17.74 | L82: 19.9 | M82: 17.22 | N82: 18.73 | O82: 0
A83: 68 | B83: 2021-11-09 | C83: 17.43 | D83: 18.57 | E83: 17.209999 | F83: 17.780001 | G83: 0 | H83: 17.780001 | I83: 1 | J83: 1 | K83: 17.43 | L83: 18.57 | M83: 17.21 | N83: 17.78 | O83: 0
A84: 69 | B84: 2021-11-08 | C84: 17.23 | D84: 17.690001 | E84: 16.440001 | F84: 17.219999 | G84: 0 | H84: 17.219999 | I84: 1 | J84: 1 | K84: 17.23 | L84: 17.69 | M84: 16.44 | N84: 17.22 | O84: 0
A85: 70 | B85: 2021-11-05 | C85: 15.59 | D85: 17.02 | E85: 14.95 | F85: 16.48 | G85: 0 | H85: 16.48 | I85: 1 | J85: 1 | K85: 15.59 | L85: 17.02 | M85: 14.95 | N85: 16.48 | O85: 0
A86: 71 | B86: 2021-11-04 | C86: 15.06 | D86: 16.139999 | E86: 14.73 | F86: 15.44 | G86: 0 | H86: 15.44 | I86: 1 | J86: 1 | K86: 15.06 | L86: 16.14 | M86: 14.73 | N86: 15.44 | O86: 0
A87: 72 | B87: 2021-11-03 | C87: 16.110001 | D87: 16.389999 | E87: 14.9 | F87: 15.1 | G87: 0 | H87: 15.1 | I87: 1 | J87: 1 | K87: 16.11 | L87: 16.39 | M87: 14.9 | N87: 15.1 | O87: 0
A88: 73 | B88: 2021-11-02 | C88: 16.540001 | D88: 16.65 | E88: 15.89 | F88: 16.030001 | G88: 0 | H88: 16.030001 | I88: 1 | J88: 1 | K88: 16.54 | L88: 16.65 | M88: 15.89 | N88: 16.03 | O88: 0
A89: 74 | B89: 2021-11-01 | C89: 16.85 | D89: 17.700001 | E89: 16.32 | F89: 16.41 | G89: 0 | H89: 16.41 | I89: 1 | J89: 1 | K89: 16.85 | L89: 17.7 | M89: 16.32 | N89: 16.41 | O89: 0
A90: 75 | B90: 2021-10-29 | C90: 17.4 | D90: 18.059999 | E90: 16.129999 | F90: 16.26 | G90: 0 | H90: 16.26 | I90: 1 | J90: 1 | K90: 17.4 | L90: 18.06 | M90: 16.13 | N90: 16.26 | O90: 0
A91: 76 | B91: 2021-10-28 | C91: 17.059999 | D91: 17.16 | E91: 16.23 | F91: 16.530001 | G91: 0 | H91: 16.530001 | I91: 1 | J91: 1 | K91: 17.06 | L91: 17.16 | M91: 16.23 | N91: 16.53 | O91: 0
A92: 77 | B92: 2021-10-27 | C92: 15.79 | D92: 17.290001 | E92: 15.54 | F92: 16.98 | G92: 0 | H92: 16.98 | I92: 1 | J92: 1 | K92: 15.79 | L92: 17.29 | M92: 15.54 | N92: 16.98 | O92: 0
A93: 78 | B93: 2021-10-26 | C93: 15.02 | D93: 16.709999 | E93: 14.9 | F93: 15.98 | G93: 0 | H93: 15.98 | I93: 1 | J93: 1 | K93: 15.02 | L93: 16.71 | M93: 14.9 | N93: 15.98 | O93: 0
A94: 79 | B94: 2021-10-25 | C94: 16.139999 | D94: 16.33 | E94: 15.1 | F94: 15.24 | G94: 0 | H94: 15.24 | I94: 1 | J94: 1 | K94: 16.14 | L94: 16.33 | M94: 15.1 | N94: 15.24 | O94: 0
A95: 80 | B95: 2021-10-22 | C95: 15.35 | D95: 16.389999 | E95: 14.84 | F95: 15.43 | G95: 0 | H95: 15.43 | I95: 1 | J95: 1 | K95: 15.35 | L95: 16.39 | M95: 14.84 | N95: 15.43 | O95: 0
A96: 81 | B96: 2021-10-21 | C96: 16.059999 | D96: 16.110001 | E96: 14.92 | F96: 15.01 | G96: 0 | H96: 15.01 | I96: 1 | J96: 1 | K96: 16.06 | L96: 16.11 | M96: 14.92 | N96: 15.01 | O96: 0
A97: 82 | B97: 2021-10-20 | C97: 15.82 | D97: 15.89 | E97: 15.29 | F97: 15.49 | G97: 0 | H97: 15.49 | I97: 1 | J97: 1 | K97: 15.82 | L97: 15.89 | M97: 15.29 | N97: 15.49 | O97: 0
A98: 83 | B98: 2021-10-19 | C98: 16.09 | D98: 16.309999 | E98: 15.57 | F98: 15.7 | G98: 0 | H98: 15.7 | I98: 1 | J98: 1 | K98: 16.09 | L98: 16.31 | M98: 15.57 | N98: 15.7 | O98: 0
A99: 84 | B99: 2021-10-18 | C99: 17.290001 | D99: 17.93 | E99: 16.27 | F99: 16.309999 | G99: 0 | H99: 16.309999 | I99: 1 | J99: 1 | K99: 17.29 | L99: 17.93 | M99: 16.27 | N99: 16.31 | O99: 0
A100: 85 | B100: 2021-10-15 | C100: 16.639999 | D100: 16.85 | E100: 15.72 | F100: 16.299999 | G100: 0 | H100: 16.299999 | I100: 1 | J100: 1 | K100: 16.64 | L100: 16.85 | M100: 15.72 | N100: 16.3 | O100: 0
A101: 86 | B101: 2021-10-14 | C101: 18.01 | D101: 18.08 | E101: 16.799999 | F101: 16.860001 | G101: 0 | H101: 16.860001 | I101: 1 | J101: 1 | K101: 18.01 | L101: 18.08 | M101: 16.8 | N101: 16.86 | O101: 0
A102: 87 | B102: 2021-10-13 | C102: 20.139999 | D102: 20.23 | E102: 18.440001 | F102: 18.639999 | G102: 0 | H102: 18.639999 | I102: 1 | J102: 1 | K102: 20.14 | L102: 20.23 | M102: 18.44 | N102: 18.64 | O102: 0
A103: 88 | B103: 2021-10-12 | C103: 20.620001 | D103: 20.809999 | E103: 18.969999 | F103: 19.85 | G103: 0 | H103: 19.85 | I103: 1 | J103: 1 | K103: 20.62 | L103: 20.81 | M103: 18.97 | N103: 19.85 | O103: 0
A104: 89 | B104: 2021-10-11 | C104: 19.93 | D104: 20.450001 | E104: 18.110001 | F104: 20 | G104: 0 | H104: 20 | I104: 1 | J104: 1 | K104: 19.93 | L104: 20.45 | M104: 18.11 | N104: 20 | O104: 0
A105: 90 | B105: 2021-10-08 | C105: 19.459999 | D105: 19.940001 | E105: 18.200001 | F105: 18.77 | G105: 0 | H105: 18.77 | I105: 1 | J105: 1 | K105: 19.46 | L105: 19.94 | M105: 18.2 | N105: 18.77 | O105: 0
A106: 91 | B106: 2021-10-07 | C106: 20.540001 | D106: 20.76 | E106: 19.07 | F106: 19.540001 | G106: 0 | H106: 19.540001 | I106: 1 | J106: 1 | K106: 20.54 | L106: 20.76 | M106: 19.07 | N106: 19.54 | O106: 0
A107: 92 | B107: 2021-10-06 | C107: 22.950001 | D107: 24.4 | E107: 20.99 | F107: 21 | G107: 0 | H107: 21 | I107: 1 | J107: 1 | K107: 22.95 | L107: 24.4 | M107: 20.99 | N107: 21 | O107: 0
A108: 93 | B108: 2021-10-05 | C108: 22.92 | D108: 23.17 | E108: 20.620001 | F108: 21.299999 | G108: 0 | H108: 21.299999 | I108: 1 | J108: 1 | K108: 22.92 | L108: 23.17 | M108: 20.62 | N108: 21.3 | O108: 0
A109: 94 | B109: 2021-10-04 | C109: 22.9 | D109: 24.58 | E109: 21.879999 | F109: 22.959999 | G109: 0 | H109: 22.959999 | I109: 1 | J109: 1 | K109: 22.9 | L109: 24.58 | M109: 21.88 | N109: 22.96 | O109: 0
A110: 95 | B110: 2021-10-01 | C110: 24.780001 | D110: 24.889999 | E110: 20.85 | F110: 21.1 | G110: 0 | H110: 21.1 | I110: 1 | J110: 1 | K110: 24.78 | L110: 24.89 | M110: 20.85 | N110: 21.1 | O110: 0
A111: 96 | B111: 2021-09-30 | C111: 21.48 | D111: 24.709999 | E111: 20.6 | F111: 23.139999 | G111: 0 | H111: 23.139999 | I111: 1 | J111: 1 | K111: 21.48 | L111: 24.71 | M111: 20.6 | N111: 23.14 | O111: 0
A112: 97 | B112: 2021-09-29 | C112: 22.07 | D112: 23.790001 | E112: 21.450001 | F112: 22.559999 | G112: 0 | H112: 22.559999 | I112: 1 | J112: 1 | K112: 22.07 | L112: 23.79 | M112: 21.45 | N112: 22.56 | O112: 0
A113: 98 | B113: 2021-09-28 | C113: 19.74 | D113: 24.82 | E113: 19.709999 | F113: 23.25 | G113: 0 | H113: 23.25 | I113: 1 | J113: 1 | K113: 19.74 | L113: 24.82 | M113: 19.71 | N113: 23.25 | O113: 0
A114: 99 | B114: 2021-09-27 | C114: 17.780001 | D114: 19.32 | E114: 17.74 | F114: 18.76 | G114: 0 | H114: 18.76 | I114: 1 | J114: 1 | K114: 17.78 | L114: 19.32 | M114: 17.74 | N114: 18.76 | O114: 0
A115: 100 | B115: 2021-09-24 | C115: 19.33 | D115: 20.41 | E115: 17.629999 | F115: 17.75 | G115: 0 | H115: 17.75 | I115: 1 | J115: 1 | K115: 19.33 | L115: 20.41 | M115: 17.63 | N115: 17.75 | O115: 0
A116: 101 | B116: 2021-09-23 | C116: 19.91 | D116: 20.209999 | E116: 18.42 | F116: 18.629999 | G116: 0 | H116: 18.629999 | I116: 1 | J116: 1 | K116: 19.91 | L116: 20.21 | M116: 18.42 | N116: 18.63 | O116: 0
A117: 102 | B117: 2021-09-22 | C117: 22.719999 | D117: 23.4 | E117: 20.75 | F117: 20.870001 | G117: 0 | H117: 20.870001 | I117: 1 | J117: 1 | K117: 22.72 | L117: 23.4 | M117: 20.75 | N117: 20.87 | O117: 0
A118: 103 | B118: 2021-09-21 | C118: 23.41 | D118: 25.6 | E118: 21.709999 | F118: 24.360001 | G118: 0 | H118: 24.360001 | I118: 1 | J118: 1 | K118: 23.41 | L118: 25.6 | M118: 21.71 | N118: 24.36 | O118: 0
A119: 104 | B119: 2021-09-20 | C119: 24.25 | D119: 28.790001 | E119: 23.9 | F119: 25.709999 | G119: 0 | H119: 25.709999 | I119: 1 | J119: 1 | K119: 24.25 | L119: 28.79 | M119: 23.9 | N119: 25.71 | O119: 0
A120: 105 | B120: 2021-09-17 | C120: 18.370001 | D120: 21.51 | E120: 18.35 | F120: 20.809999 | G120: 0 | H120: 20.809999 | I120: 1 | J120: 1 | K120: 18.37 | L120: 21.51 | M120: 18.35 | N120: 20.81 | O120: 0
A121: 106 | B121: 2021-09-16 | C121: 18.41 | D121: 19.76 | E121: 17.65 | F121: 18.690001 | G121: 0 | H121: 18.690001 | I121: 1 | J121: 1 | K121: 18.41 | L121: 19.76 | M121: 17.65 | N121: 18.69 | O121: 0
A122: 107 | B122: 2021-09-15 | C122: 19.299999 | D122: 20.27 | E122: 18.01 | F122: 18.18 | G122: 0 | H122: 18.18 | I122: 1 | J122: 1 | K122: 19.3 | L122: 20.27 | M122: 18.01 | N122: 18.18 | O122: 0
A123: 108 | B123: 2021-09-14 | C123: 19.58 | D123: 20.469999 | E123: 18.389999 | F123: 19.459999 | G123: 0 | H123: 19.459999 | I123: 1 | J123: 1 | K123: 19.58 | L123: 20.47 | M123: 18.39 | N123: 19.46 | O123: 0
A124: 109 | B124: 2021-09-13 | C124: 19.639999 | D124: 21.18 | E124: 18.76 | F124: 19.370001 | G124: 0 | H124: 19.370001 | I124: 1 | J124: 1 | K124: 19.64 | L124: 21.18 | M124: 18.76 | N124: 19.37 | O124: 0
A125: 110 | B125: 2021-09-10 | C125: 17.940001 | D125: 21.129999 | E125: 16.99 | F125: 20.950001 | G125: 0 | H125: 20.950001 | I125: 1 | J125: 1 | K125: 17.94 | L125: 21.13 | M125: 16.99 | N125: 20.95 | O125: 0
A126: 111 | B126: 2021-09-09 | C126: 19.440001 | D126: 19.540001 | E126: 17.17 | F126: 18.799999 | G126: 0 | H126: 18.799999 | I126: 1 | J126: 1 | K126: 19.44 | L126: 19.54 | M126: 17.17 | N126: 18.8 | O126: 0
A127: 112 | B127: 2021-09-08 | C127: 18.969999 | D127: 19.639999 | E127: 17.780001 | F127: 17.959999 | G127: 0 | H127: 17.959999 | I127: 1 | J127: 1 | K127: 18.97 | L127: 19.64 | M127: 17.78 | N127: 17.96 | O127: 0
A128: 113 | B128: 2021-09-07 | C128: 16.940001 | D128: 18.389999 | E128: 16.889999 | F128: 18.139999 | G128: 0 | H128: 18.139999 | I128: 1 | J128: 1 | K128: 16.94 | L128: 18.39 | M128: 16.89 | N128: 18.14 | O128: 0
A129: 114 | B129: 2021-09-03 | C129: 16.27 | D129: 17.059999 | E129: 16.08 | F129: 16.41 | G129: 0 | H129: 16.41 | I129: 1 | J129: 1 | K129: 16.27 | L129: 17.06 | M129: 16.08 | N129: 16.41 | O129: 0
A130: 115 | B130: 2021-09-02 | C130: 16.27 | D130: 16.98 | E130: 15.73 | F130: 16.41 | G130: 0 | H130: 16.41 | I130: 1 | J130: 1 | K130: 16.27 | L130: 16.98 | M130: 15.73 | N130: 16.41 | O130: 0
A131: 116 | B131: 2021-09-01 | C131: 16.059999 | D131: 16.709999 | E131: 15.68 | F131: 16.110001 | G131: 0 | H131: 16.110001 | I131: 1 | J131: 1 | K131: 16.06 | L131: 16.71 | M131: 15.68 | N131: 16.11 | O131: 0
A132: 117 | B132: 2021-08-31 | C132: 15.98 | D132: 17.07 | E132: 15.91 | F132: 16.48 | G132: 0 | H132: 16.48 | I132: 1 | J132: 1 | K132: 15.98 | L132: 17.07 | M132: 15.91 | N132: 16.48 | O132: 0
A133: 118 | B133: 2021-08-30 | C133: 16.77 | D133: 16.799999 | E133: 15.98 | F133: 16.190001 | G133: 0 | H133: 16.190001 | I133: 1 | J133: 1 | K133: 16.77 | L133: 16.8 | M133: 15.98 | N133: 16.19 | O133: 0
A134: 119 | B134: 2021-08-27 | C134: 17.950001 | D134: 18.219999 | E134: 16.110001 | F134: 16.389999 | G134: 0 | H134: 16.389999 | I134: 1 | J134: 1 | K134: 17.95 | L134: 18.22 | M134: 16.11 | N134: 16.39 | O134: 0
A135: 120 | B135: 2021-08-26 | C135: 17.459999 | D135: 19.27 | E135: 17.16 | F135: 18.84 | G135: 0 | H135: 18.84 | I135: 1 | J135: 1 | K135: 17.46 | L135: 19.27 | M135: 17.16 | N135: 18.84 | O135: 0
A136: 121 | B136: 2021-08-25 | C136: 17.42 | D136: 17.5 | E136: 16.459999 | F136: 16.790001 | G136: 0 | H136: 16.790001 | I136: 1 | J136: 1 | K136: 17.42 | L136: 17.5 | M136: 16.46 | N136: 16.79 | O136: 0
A137: 122 | B137: 2021-08-24 | C137: 16.959999 | D137: 17.51 | E137: 16.940001 | F137: 17.219999 | G137: 0 | H137: 17.219999 | I137: 1 | J137: 1 | K137: 16.96 | L137: 17.51 | M137: 16.94 | N137: 17.22 | O137: 0
A138: 123 | B138: 2021-08-23 | C138: 18.83 | D138: 18.950001 | E138: 16.950001 | F138: 17.15 | G138: 0 | H138: 17.15 | I138: 1 | J138: 1 | K138: 18.83 | L138: 18.95 | M138: 16.95 | N138: 17.15 | O138: 0
A139: 124 | B139: 2021-08-20 | C139: 22.74 | D139: 23.9 | E139: 18.18 | F139: 18.559999 | G139: 0 | H139: 18.559999 | I139: 1 | J139: 1 | K139: 22.74 | L139: 23.9 | M139: 18.18 | N139: 18.56 | O139: 0
A140: 125 | B140: 2021-08-19 | C140: 23.120001 | D140: 24.74 | E140: 20.370001 | F140: 21.67 | G140: 0 | H140: 21.67 | I140: 1 | J140: 1 | K140: 23.12 | L140: 24.74 | M140: 20.37 | N140: 21.67 | O140: 0
A141: 126 | B141: 2021-08-18 | C141: 17.559999 | D141: 21.639999 | E141: 17.309999 | F141: 21.57 | G141: 0 | H141: 21.57 | I141: 1 | J141: 1 | K141: 17.56 | L141: 21.64 | M141: 17.31 | N141: 21.57 | O141: 0
A142: 127 | B142: 2021-08-17 | C142: 17.309999 | D142: 19.559999 | E142: 16.709999 | F142: 17.91 | G142: 0 | H142: 17.91 | I142: 1 | J142: 1 | K142: 17.31 | L142: 19.56 | M142: 16.71 | N142: 17.91 | O142: 0
A143: 128 | B143: 2021-08-16 | C143: 17.049999 | D143: 17.709999 | E143: 16.02 | F143: 16.120001 | G143: 0 | H143: 16.120001 | I143: 1 | J143: 1 | K143: 17.05 | L143: 17.71 | M143: 16.02 | N143: 16.12 | O143: 0
A144: 129 | B144: 2021-08-13 | C144: 15.68 | D144: 15.72 | E144: 15.19 | F144: 15.45 | G144: 0 | H144: 15.45 | I144: 1 | J144: 1 | K144: 15.68 | L144: 15.72 | M144: 15.19 | N144: 15.45 | O144: 0
A145: 130 | B145: 2021-08-12 | C145: 16.33 | D145: 16.42 | E145: 15.49 | F145: 15.59 | G145: 0 | H145: 15.59 | I145: =IF(F145=0,1,H145/F145) -> 1 | J145: =INDEX(OFFSET($T$15,0,0,$S$13+1,1),MATCH(B145,OFFSET($Q$15,0,0,$S$13+1,1),-1)) -> 1 | K145: =ROUND($I145*C145,2) -> 16.33 | L145: =ROUND($I145*D145,2) -> 16.42 | M145: =ROUND($I145*E145,2) -> 15.49 | N145: =ROUND($I145*F145,2) -> 15.59 | O145: =G145*J145 -> 0
A146: 131 | B146: 2021-08-11 | C146: 16.809999 | D146: 17.09 | E146: 16.07 | F146: 16.17 | G146: 0 | H146: 16.17 | I146: 1 | J146: 1 | K146: 16.81 | L146: 17.09 | M146: 16.07 | N146: 16.17 | O146: 0
A147: 132 | B147: 2021-08-10 | C147: 16.82 | D147: 17.049999 | E147: 16.34 | F147: 16.790001 | G147: 0 | H147: 16.790001 | I147: 1 | J147: 1 | K147: 16.82 | L147: 17.05 | M147: 16.34 | N147: 16.79 | O147: 0
A148: 133 | B148: 2021-08-09 | C148: 17.120001 | D148: 17.389999 | E148: 16.59 | F148: 16.719999 | G148: 0 | H148: 16.719999 | I148: 1 | J148: 1 | K148: 17.12 | L148: 17.39 | M148: 16.59 | N148: 16.72 | O148: 0
A149: 134 | B149: 2021-08-06 | C149: 17.459999 | D149: 17.5 | E149: 16.139999 | F149: 16.15 | G149: 0 | H149: 16.15 | I149: 1 | J149: 1 | K149: 17.46 | L149: 17.5 | M149: 16.14 | N149: 16.15 | O149: 0
A150: 135 | B150: 2021-08-05 | C150: 17.73 | D150: 17.84 | E150: 17.23 | F150: 17.280001 | G150: 0 | H150: 17.280001 | I150: 1 | J150: 1 | K150: 17.73 | L150: 17.84 | M150: 17.23 | N150: 17.28 | O150: 0
A151: 136 | B151: 2021-08-04 | C151: 18.23 | D151: 18.9 | E151: 17.67 | F151: 17.969999 | G151: 0 | H151: 17.969999 | I151: 1 | J151: 1 | K151: 18.23 | L151: 18.9 | M151: 17.67 | N151: 17.97 | O151: 0
A152: 137 | B152: 2021-08-03 | C152: 19.17 | D152: 20.440001 | E152: 17.700001 | F152: 18.040001 | G152: 0 | H152: 18.040001 | I152: 1 | J152: 1 | K152: 19.17 | L152: 20.44 | M152: 17.7 | N152: 18.04 | O152: 0
A153: 138 | B153: 2021-08-02 | C153: 18.16 | D153: 19.870001 | E153: 17.99 | F153: 19.459999 | G153: 0 | H153: 19.459999 | I153: 1 | J153: 1 | K153: 18.16 | L153: 19.87 | M153: 17.99 | N153: 19.46 | O153: 0
A154: 139 | B154: 2021-07-30 | C154: 19.690001 | D154: 19.719999 | E154: 17.530001 | F154: 18.24 | G154: 0 | H154: 18.24 | I154: 1 | J154: 1 | K154: 19.69 | L154: 19.72 | M154: 17.53 | N154: 18.24 | O154: 0
A155: 140 | B155: 2021-07-29 | C155: 17.91 | D155: 18.01 | E155: 17.190001 | F155: 17.700001 | G155: 0 | H155: 17.700001 | I155: 1 | J155: 1 | K155: 17.91 | L155: 18.01 | M155: 17.19 | N155: 17.7 | O155: 0
A156: 141 | B156: 2021-07-28 | C156: 19.41 | D156: 19.620001 | E156: 17.52 | F156: 18.309999 | G156: 0 | H156: 18.309999 | I156: 1 | J156: 1 | K156: 19.41 | L156: 19.62 | M156: 17.52 | N156: 18.31 | O156: 0
A157: 142 | B157: 2021-07-27 | C157: 18.620001 | D157: 20.440001 | E157: 18.25 | F157: 19.360001 | G157: 0 | H157: 19.360001 | I157: 1 | J157: 1 | K157: 18.62 | L157: 20.44 | M157: 18.25 | N157: 19.36 | O157: 0
A158: 143 | B158: 2021-07-26 | C158: 18.67 | D158: 19.389999 | E158: 17.530001 | F158: 17.58 | G158: 0 | H158: 17.58 | I158: 1 | J158: 1 | K158: 18.67 | L158: 19.39 | M158: 17.53 | N158: 17.58 | O158: 0
A159: 144 | B159: 2021-07-23 | C159: 16.98 | D159: 17.48 | E159: 16.33 | F159: 17.200001 | G159: 0 | H159: 17.200001 | I159: 1 | J159: 1 | K159: 16.98 | L159: 17.48 | M159: 16.33 | N159: 17.2 | O159: 0
A160: 145 | B160: 2021-07-22 | C160: 17.59 | D160: 18.450001 | E160: 17.4 | F160: 17.690001 | G160: 0 | H160: 17.690001 | I160: 1 | J160: 1 | K160: 17.59 | L160: 18.45 | M160: 17.4 | N160: 17.69 | O160: 0
A161: 146 | B161: 2021-07-21 | C161: 19.73 | D161: 19.82 | E161: 17.809999 | F161: 17.91 | G161: 0 | H161: 17.91 | I161: 1 | J161: 1 | K161: 19.73 | L161: 19.82 | M161: 17.81 | N161: 17.91 | O161: 0
A162: 147 | B162: 2021-07-20 | C162: 20.889999 | D162: 22.969999 | E162: 19.370001 | F162: 19.73 | G162: 0 | H162: 19.73 | I162: 1 | J162: 1 | K162: 20.89 | L162: 22.97 | M162: 19.37 | N162: 19.73 | O162: 0
A163: 148 | B163: 2021-07-19 | C163: 19.610001 | D163: 25.09 | E163: 19.27 | F163: 22.5 | G163: 0 | H163: 22.5 | I163: 1 | J163: 1 | K163: 19.61 | L163: 25.09 | M163: 19.27 | N163: 22.5 | O163: 0
A164: 149 | B164: 2021-07-16 | C164: 16.799999 | D164: 18.700001 | E164: 16.030001 | F164: 18.450001 | G164: 0 | H164: 18.450001 | I164: 1 | J164: 1 | K164: 16.8 | L164: 18.7 | M164: 16.03 | N164: 18.45 | O164: 0
A165: 150 | B165: 2021-07-15 | C165: 16.700001 | D165: 18.09 | E165: 16.559999 | F165: 17.01 | G165: 0 | H165: 17.01 | I165: 1 | J165: 1 | K165: 16.7 | L165: 18.09 | M165: 16.56 | N165: 17.01 | O165: 0
A166: 151 | B166: 2021-07-14 | C166: 17.34 | D166: 17.51 | E166: 15.95 | F166: 16.33 | G166: 0 | H166: 16.33 | I166: 1 | J166: 1 | K166: 17.34 | L166: 17.51 | M166: 15.95 | N166: 16.33 | O166: 0
A167: 152 | B167: 2021-07-13 | C167: 16.389999 | D167: 17.23 | E167: 15.94 | F167: 17.120001 | G167: 0 | H167: 17.120001 | I167: 1 | J167: 1 | K167: 16.39 | L167: 17.23 | M167: 15.94 | N167: 17.12 | O167: 0
A168: 153 | B168: 2021-07-12 | C168: 16.85 | D168: 17.52 | E168: 16.139999 | F168: 16.17 | G168: 0 | H168: 16.17 | I168: 1 | J168: 1 | K168: 16.85 | L168: 17.52 | M168: 16.14 | N168: 16.17 | O168: 0
A169: 154 | B169: 2021-07-09 | C169: 17.879999 | D169: 18.129999 | E169: 16.08 | F169: 16.18 | G169: 0 | H169: 16.18 | I169: 1 | J169: 1 | K169: 17.88 | L169: 18.13 | M169: 16.08 | N169: 16.18 | O169: 0
A170: 155 | B170: 2021-07-08 | C170: 17.74 | D170: 21.290001 | E170: 17.74 | F170: 19 | G170: 0 | H170: 19 | I170: 1 | J170: 1 | K170: 17.74 | L170: 21.29 | M170: 17.74 | N170: 19 | O170: 0
A171: 156 | B171: 2021-07-07 | C171: 16.43 | D171: 17.639999 | E171: 16.08 | F171: 16.200001 | G171: 0 | H171: 16.200001 | I171: 1 | J171: 1 | K171: 16.43 | L171: 17.64 | M171: 16.08 | N171: 16.2 | O171: 0
A172: 157 | B172: 2021-07-06 | C172: 15.77 | D172: 17.940001 | E172: 15.73 | F172: 16.440001 | G172: 0 | H172: 16.440001 | I172: 1 | J172: 1 | K172: 15.77 | L172: 17.94 | M172: 15.73 | N172: 16.44 | O172: 0
A173: 158 | B173: 2021-07-02 | C173: 15.53 | D173: 15.54 | E173: 14.25 | F173: 15.07 | G173: 0 | H173: 15.07 | I173: 1 | J173: 1 | K173: 15.53 | L173: 15.54 | M173: 14.25 | N173: 15.07 | O173: 0
A174: 159 | B174: 2021-07-01 | C174: 15.62 | D174: 16.01 | E174: 15.31 | F174: 15.48 | G174: 0 | H174: 15.48 | I174: 1 | J174: 1 | K174: 15.62 | L174: 16.01 | M174: 15.31 | N174: 15.48 | O174: 0
A175: 160 | B175: 2021-06-30 | C175: 16.18 | D175: 17.309999 | E175: 15.58 | F175: 15.83 | G175: 0 | H175: 15.83 | I175: 1 | J175: 1 | K175: 16.18 | L175: 17.31 | M175: 15.58 | N175: 15.83 | O175: 0
A176: 161 | B176: 2021-06-29 | C176: 15.69 | D176: 16.309999 | E176: 14.1 | F176: 16.02 | G176: 0 | H176: 16.02 | I176: 1 | J176: 1 | K176: 15.69 | L176: 16.31 | M176: 14.1 | N176: 16.02 | O176: 0
A177: 162 | B177: 2021-06-28 | C177: 16.07 | D177: 16.459999 | E177: 15.39 | F177: 15.76 | G177: 0 | H177: 15.76 | I177: 1 | J177: 1 | K177: 16.07 | L177: 16.46 | M177: 15.39 | N177: 15.76 | O177: 0
A178: 163 | B178: 2021-06-25 | C178: 16.040001 | D178: 16.17 | E178: 15.21 | F178: 15.62 | G178: 0 | H178: 15.62 | I178: 1 | J178: 1 | K178: 16.04 | L178: 16.17 | M178: 15.21 | N178: 15.62 | O178: 0
A179: 164 | B179: 2021-06-24 | C179: 15.99 | D179: 16.049999 | E179: 14.19 | F179: 15.97 | G179: 0 | H179: 15.97 | I179: 1 | J179: 1 | K179: 15.99 | L179: 16.05 | M179: 14.19 | N179: 15.97 | O179: 0
A180: 165 | B180: 2021-06-23 | C180: 16.25 | D180: 16.84 | E180: 14.86 | F180: 16.32 | G180: 0 | H180: 16.32 | I180: 1 | J180: 1 | K180: 16.25 | L180: 16.84 | M180: 14.86 | N180: 16.32 | O180: 0
A181: 166 | B181: 2021-06-22 | C181: 17.91 | D181: 18.32 | E181: 15.76 | F181: 16.66 | G181: 0 | H181: 16.66 | I181: 1 | J181: 1 | K181: 17.91 | L181: 18.32 | M181: 15.76 | N181: 16.66 | O181: 0
A182: 167 | B182: 2021-06-21 | C182: 21.74 | D182: 21.82 | E182: 17.809999 | F182: 17.889999 | G182: 0 | H182: 17.889999 | I182: 1 | J182: 1 | K182: 21.74 | L182: 21.82 | M182: 17.81 | N182: 17.89 | O182: 0
A183: 168 | B183: 2021-06-18 | C183: 16.959999 | D183: 21.040001 | E183: 16.92 | F183: 20.700001 | G183: 0 | H183: 20.700001 | I183: 1 | J183: 1 | K183: 16.96 | L183: 21.04 | M183: 16.92 | N183: 20.7 | O183: 0
A184: 169 | B184: 2021-06-17 | C184: 18.49 | D184: 19.219999 | E184: 16.709999 | F184: 17.75 | G184: 0 | H184: 17.75 | I184: 1 | J184: 1 | K184: 18.49 | L184: 19.22 | M184: 16.71 | N184: 17.75 | O184: 0
A185: 170 | B185: 2021-06-16 | C185: 16.99 | D185: 19.110001 | E185: 16.42 | F185: 18.15 | G185: 0 | H185: 18.15 | I185: 1 | J185: 1 | K185: 16.99 | L185: 19.11 | M185: 16.42 | N185: 18.15 | O185: 0
A186: 171 | B186: 2021-06-15 | C186: 16.27 | D186: 17.35 | E186: 16.139999 | F186: 17.02 | G186: 0 | H186: 17.02 | I186: 1 | J186: 1 | K186: 16.27 | L186: 17.35 | M186: 16.14 | N186: 17.02 | O186: 0
A187: 172 | B187: 2021-06-14 | C187: 16.040001 | D187: 17.040001 | E187: 15.04 | F187: 16.389999 | G187: 0 | H187: 16.389999 | I187: 1 | J187: 1 | K187: 16.04 | L187: 17.04 | M187: 15.04 | N187: 16.39 | O187: 0
A188: 173 | B188: 2021-06-11 | C188: 16.18 | D188: 16.200001 | E188: 15.15 | F188: 15.65 | G188: 0 | H188: 15.65 | I188: 1 | J188: 1 | K188: 16.18 | L188: 16.2 | M188: 15.15 | N188: 15.65 | O188: 0
A189: 174 | B189: 2021-06-10 | C189: 18.18 | D189: 18.290001 | E189: 16.01 | F189: 16.1 | G189: 0 | H189: 16.1 | I189: 1 | J189: 1 | K189: 18.18 | L189: 18.29 | M189: 16.01 | N189: 16.1 | O189: 0
A190: 175 | B190: 2021-06-09 | C190: 17.18 | D190: 17.959999 | E190: 15.55 | F190: 17.889999 | G190: 0 | H190: 17.889999 | I190: 1 | J190: 1 | K190: 17.18 | L190: 17.96 | M190: 15.55 | N190: 17.89 | O190: 0
A191: 176 | B191: 2021-06-08 | C191: 16.58 | D191: 17.75 | E191: 15.15 | F191: 17.07 | G191: 0 | H191: 17.07 | I191: 1 | J191: 1 | K191: 16.58 | L191: 17.75 | M191: 15.15 | N191: 17.07 | O191: 0
A192: 177 | B192: 2021-06-07 | C192: 17.34 | D192: 17.35 | E192: 15.78 | F192: 16.42 | G192: 0 | H192: 16.42 | I192: 1 | J192: 1 | K192: 17.34 | L192: 17.35 | M192: 15.78 | N192: 16.42 | O192: 0
A193: 178 | B193: 2021-06-04 | C193: 18.09 | D193: 18.42 | E193: 16.18 | F193: 16.42 | G193: 0 | H193: 16.42 | I193: 1 | J193: 1 | K193: 18.09 | L193: 18.42 | M193: 16.18 | N193: 16.42 | O193: 0
A194: 179 | B194: 2021-06-03 | C194: 17.73 | D194: 19.27 | E194: 17.450001 | F194: 18.040001 | G194: 0 | H194: 18.040001 | I194: 1 | J194: 1 | K194: 17.73 | L194: 19.27 | M194: 17.45 | N194: 18.04 | O194: 0
A195: 180 | B195: 2021-06-02 | C195: 17.860001 | D195: 18.309999 | E195: 16.74 | F195: 17.48 | G195: 0 | H195: 17.48 | I195: 1 | J195: 1 | K195: 17.86 | L195: 18.31 | M195: 16.74 | N195: 17.48 | O195: 0
A196: 181 | B196: 2021-06-01 | C196: 17.24 | D196: 18.530001 | E196: 15.68 | F196: 17.9 | G196: 0 | H196: 17.9 | I196: 1 | J196: 1 | K196: 17.24 | L196: 18.53 | M196: 15.68 | N196: 17.9 | O196: 0
A197: 182 | B197: 2021-05-28 | C197: 16.799999 | D197: 16.860001 | E197: 15.9 | F197: 16.76 | G197: 0 | H197: 16.76 | I197: 1 | J197: 1 | K197: 16.8 | L197: 16.86 | M197: 15.9 | N197: 16.76 | O197: 0
A198: 183 | B198: 2021-05-27 | C198: 18.030001 | D198: 18.17 | E198: 16.52 | F198: 16.74 | G198: 0 | H198: 16.74 | I198: 1 | J198: 1 | K198: 18.03 | L198: 18.17 | M198: 16.52 | N198: 16.74 | O198: 0
A199: 184 | B199: 2021-05-26 | C199: 18.370001 | D199: 18.92 | E199: 17.35 | F199: 17.360001 | G199: 0 | H199: 17.360001 | I199: 1 | J199: 1 | K199: 18.37 | L199: 18.92 | M199: 17.35 | N199: 17.36 | O199: 0
A200: 185 | B200: 2021-05-25 | C200: 18.35 | D200: 19.290001 | E200: 16.870001 | F200: 18.84 | G200: 0 | H200: 18.84 | I200: 1 | J200: 1 | K200: 18.35 | L200: 19.29 | M200: 16.87 | N200: 18.84 | O200: 0
... 4300 more rows

Sheet CalculationsAndCharts
A1: HybridSeasonalSystem.xlsm
A2: =InputPriceData!A1 -> SPDR S&P 500 ETF Trust (SPY) -NYSEArca (Daily)
A4: User Charting Controls | E4: Click to Shift Chart One Bar: | AN4: Trade signal marker positioning:
A5: Data Control | C5: FALSE | AN5: One of the common problems with using buy and sell markers on a chart is
A6: =MIN(InputPriceData!$B$10,InputIndexData!$B$10) -> 7316 | B6: Available Input Data Rows | E6: Earliest: | F6: =OFFSET(InputPriceData!B15,CalculationsAndCharts!A6,0,1,1) -> 1993-01-29 | AN6: how to keep them close to the action but not so close as to either get lost in the action
A7: =MAX(A33:A56896) -> 2500 | B7: Available Calculation Rows | E7: Latest: | F7: =OFFSET(InputPriceData!B15,1,0,1,1) -> 2022-02-15 | AN7: or obscure the action.
A8: =MIN(AvailableInputRows-DataPanRows,A7) -> 2500 | B8: Logically Available for Calc / Plot | E8: $ Change: | F8: =G33-G34 -> 0.72998 | AN8: In his sidebar code Mr. Katsanos uses an offset from the high or the low of 3 times the 10 bar ATR of the close.
AN9: That does help to widen the gap in times of larger swings but also can lead to being much
A10: Historical Price Windowing Specifications | F10: Click to Shift | AN10: too close when trading stays in narrow (low ATR) bands; be they trending or sideways..
A11: 133 | B11: Input Data Offset (Pan) | F11: Points to Plot | AN11: Here I have chosen to take it one step further by trying to find a middle ground using Mr. Katsanos
A12: 1298 | B12: Data Points to Plot (Zoom) | AN12: "Dist" values as the starting point.
B13: First: | C13: =OFFSET(B32,A12,0,1,1) -> 2016-06-13 | AN13: The "Offset" column contains various statistics that can be calculated for the "Dist" values
B14: ="Last: " & IF(OFFSET(InputPriceData!P15,1+A11,0,1,1)="","",TEXT(OFFSET(InputPriceData!P15,1+A11,0,1,1),"H:MM AM/PM")) -> Last: | C14: =B33 -> 2021-08-06 | AN14: that would have been used for each buy or sell marker that will actually appear on my chart.
A15: User Controls | AN15: At the moment I am using the Median value as the offset for all markers on the chart.
A16: 130 | B16: Period
A17: 0.2 | B17: Coef
A18: 2.5 | B18: VCoef
C19: Optimizations used in article sidebar code | AU19: Offset
A20: 8 | B20: SELLMONTH | C20: Default 8, Steps 5 to 8 by 1 | AM20: Count of bars in current chart window | AN20: =COUNT(OFFSET(AN$33,0,0,RowsToPlot,1)) -> 1298 | AO20: =COUNT(OFFSET(AO$33,0,0,RowsToPlot,1)) -> 1298 | AT20: Count of markers in current chart window | AU20: =COUNT(OFFSET(AU$33,0,0,RowsToPlot,1)) -> 15
A21: 60 | B21: VIXUPMAX | C21: Default 60, Steps 50 to 60 by 10 | AM21: Min | AN21: =MIN(OFFSET(AN$33,0,0,RowsToPlot,1)) -> 0.8700134239 | AO21: =MIN(OFFSET(AO$33,0,0,RowsToPlot,1)) -> 2.610040272 | AU21: =MIN(OFFSET(AU$33,0,0,RowsToPlot,1)) -> 3.629397615
A22: -20 | B22: CRIT | C22: Default -20, Steps -20 to -15 by 5 | AM22: max | AN22: =MAX(OFFSET(AN$33,0,0,RowsToPlot,1)) -> 17.33739212 | AO22: =MAX(OFFSET(AO$33,0,0,RowsToPlot,1)) -> 52.01217637 | AU22: =MAX(OFFSET(AU$33,0,0,RowsToPlot,1)) -> 37.84509273
A23: 1.5 | B23: K | C23: Default 1.5, Steps 1.3 to 1.7 by 0.2 | AM23: Average | AN23: =AVERAGE(OFFSET(AN$33,0,0,RowsToPlot,1)) -> 3.477222257 | AO23: =AVERAGE(OFFSET(AO$33,0,0,RowsToPlot,1)) -> 10.43166677 | AU23: =AVERAGE(OFFSET(AU$33,0,0,RowsToPlot,1)) -> 11.81659592
AM24: Median | AN24: =MEDIAN(OFFSET(AN$33,0,0,RowsToPlot,1)) -> 2.796512753 | AO24: =MEDIAN(OFFSET(AO$33,0,0,RowsToPlot,1)) -> 8.389538259 | AU24: =MEDIAN(OFFSET(AU$33,0,0,RowsToPlot,1)) -> 11.33746631 | AV24: <-- Using
A25: Help! I would like to plot data | AM25: GeoMean | AN25: =GEOMEAN(OFFSET(AN$33,0,0,RowsToPlot,1)) -> 2.907952445 | AO25: =GEOMEAN(OFFSET(AO$33,0,0,RowsToPlot,1)) -> 8.723857335 | AU25: =GEOMEAN(OFFSET(AU$33,0,0,RowsToPlot,1)) -> 9.638837017
A26: From | B26: 2016-06-13 | C26: =OFFSET(InputPriceData!$A$15,MATCH(B26,OFFSET(InputPriceData!B15,1,0,InputPriceData!$B$10,1),0),0,1,1)-C27 -> 1298 | E26: 1295 | AM26: Harmmean | AN26: =HARMEAN(OFFSET(AN$33,0,0,RowsToPlot,1)) -> 2.493565454 | AO26: =HARMEAN(OFFSET(AO$33,0,0,RowsToPlot,1)) -> 7.480696362 | AU26: =HARMEAN(OFFSET(AU$33,0,0,RowsToPlot,1)) -> 7.979284469
A27: To | B27: 2021-08-06 | C27: =OFFSET(InputPriceData!$A$15,MATCH(B27,OFFSET(InputPriceData!$B$15,1,0,InputPriceData!$B$10,1),0),0,1,1)-1 -> 133 | E27: =$A$12-$E$26+1 -> 4 | AM27: large | AN27: =LARGE(OFFSET(AN$33,0,0,RowsToPlot,1),$AT$27) -> 2.801031159 | AO27: =LARGE(OFFSET(AO$33,0,0,RowsToPlot,1),$AT$27) -> 8.403093478 | AQ27: =RowsToPlot -> 1298 | AR27: =INT(AQ27/2) -> 649 | AS27: 0 | AT27: =AR27-AS27 -> 649 | AU27: =LARGE(OFFSET(AU$33,0,0,RowsToPlot,1),INT(AU20/2)) -> 12.13455742
H28: Value @ Cursor => | I28: =OFFSET(A32,$E$27,0,1,1)&"(RR)" -> 4(RR) | J28: =OFFSET($B$32,E27,0,1,1) -> 2021-08-03 | K28: =TEXT(OFFSET(D32,$E$27,0,1,1),"#,##0.00")&"(o)" -> 438.44(o) | L28: =TEXT(OFFSET(E32,$E$27,0,1,1),"#,##0.00")&"(h)" -> 441.28(h) | M28: =TEXT(OFFSET(F32,$E$27,0,1,1),"#,##0.00")&"(l)" -> 436.10(l) | N28: =TEXT(OFFSET(G32,$E$27,0,1,1),"#,##0.00")&"(c)" -> 441.15(c) | O28: =TEXT(OFFSET(C32,$E$27,0,1,1),"#,##0.00,,""M""")&"(v)" -> 58.05M(v) | P28: =TEXT(OFFSET(R32,$E$27,0,1,1),"#,##0.00")&"(VFI)" -> 17.14(VFI)
E29: Cursor ==> | AN29: Trade Signal Chart Marker Calculations | AY29: Work Area For Chart Cursors | BN29: VFI Chart Work Area | BT29: Buy/Sell flags to drive transaction summay sheet
B30: =LogicallyAvailableRows -> 2500 | C30: <== Calculation Rel Row Limits ==> | I30: =A8-1 -> 2499 | J30: =I30-30+1 -> 2470 | L30: =A8-A16+1 -> 2371 | Q30: =L30-A16+1 -> 2242 | R30: =Q30-R31+1 -> 2240 | S30: =R30-S31 -> 2230 | T30: =R30-T31+1 -> 2231 | V30: =A8-1 -> 2499 | W30: =$V$30-W31+1 -> 2485 | X30: =W30-X31 -> 2460 | AF30: =A8-AF31 -> 2475 | AH30: =MIN(AF30,X30,R30) -> 2240 | AI30: =AH30-1 -> 2239 | AJ30: =A8 -> 2500 | AK30: =AF30 -> 2475 | AL30: =S30-1 -> 2229 | AM30: =MIN(AJ30,AK30-1,AL30-1) -> 2228 | AN30: =$V$30-AN31+1 -> 2490 | AP30: Chart Marker with $ Offsets | AT30: =MIN(AH30:AM30) -> 2228 | BN30: Cushion | BT30: =AT30 -> 2228
A31: Rel Row | B31: =InputPriceData!A1 -> SPDR S&P 500 ETF Trust (SPY) -NYSEArca (Daily) | R31: 3 | S31: 10 | T31: 10 | W31: 15 | X31: 25 | Z31: =InputIndexData!A1 -> CBOE Volatility Index (^VIX) -Chicago Options (Daily) | AE31: =InputIndexData!HistReqSymbol&" "&TEXT(AE33,"#,##0.00") -> ^VIX 16.15 | AF31: 25 | AH31: VOL CONDITION | AJ31: Sell Seasonal | AK31: Sell Volatility | AN31: 10 | AO31: 3 | AQ31: Sell Reasons | AW31: Used To Color Vol Bars | BN31: =$A$22 -> -20
B32: Date | C32: Volume | D32: Open | E32: High | F32: Low | G32: Close | H32: AVE | I32: Inter | J32: Vinter | K32: Cutoff | L32: Vave | M32: Vmax | N32: Vc | O32: MF | P32: VCP | Q32: VFI1 | R32: ="VFI("&A16&")" -> VFI(130) | S32: MA(VFI) | T32: ="Signal("&T31&")" -> Signal(10) | U32: Month | V32: TR | W32: ="ATR(" & W31 & ")" -> ATR(15) | X32: ATRDN | Y32: ATRUP | Z32: Date | AA32: Volume | AB32: Open | AC32: High | AD32: Low | AE32: Close | AF32: VIXDN | AG32: VIXUP | AI32: BUY | AL32: Sell MF | AM32: SELL | AN32: ="ATR(" & AN31 & ")" -> ATR(10) | AO32: Dist | AP32: =AI32 -> BUY | AQ32: SEAS | AR32: VOLAT | AS32: MF | AT32: Active | AU32: sDist | AW32: Up Vol | AX32: Dn Vol | AY32: Volume Cursor | AZ32: =MAX(OFFSET(C33,0,0,A12,1)) -> 392220700 | BA32: Price Chart Cursor | BC32: Indicator 01 Cursor | BE32: Indicator 02 Cursor | BG32: Indicator 03 Cursor | BI32: Indicator 04 Cursor | BN32: =BN31 -> -20 | BO32: Over 0 | BP32: ="<"&BN31 -> <-20 | BR32: Neg>0 | BT32: Buy | BU32: Sell
A33: 1 | B33: =IF($A33>$B$30,NA(),IF($A33>$A$8,"",OFFSET(InputPriceData!$B$15,$A33+$A$11,0,1,1))) -> 2021-08-06 | C33: =IF($A33>$B$30,NA(),IF($A33>$A$8,"",OFFSET(InputPriceData!$G$15,CalculationsAndCharts!$A33+$A$11,IF($C$5,8,0),1,1))) -> 46864100 | D33: =IF($A33>$B$30,NA(),IF($A33>$A$8,"",OFFSET(InputPriceData!$C$15,CalculationsAndCharts!$A33+$A$11,IF($C$5,8,0),1,1))) -> 442.100006 | E33: =IF($A33>$B$30,NA(),IF($A33>$A$8,"",OFFSET(InputPriceData!$D$15,CalculationsAndCharts!$A33+$A$11,IF($C$5,8,0),1,1))) -> 442.940002 | F33: =IF($A33>$B$30,NA(),IF($A33>$A$8,"",OFFSET(InputPriceData!$E$15,CalculationsAndCharts!$A33+$A$11,IF($C$5,8,0),1,1))) -> 441.799988 | G33: =IF($A33>$B$30,NA(),IF($A33>$A$8,"",OFFSET(InputPriceData!$F$15,CalculationsAndCharts!$A33+$A$11,IF($C$5,8,0),1,1))) -> 442.48999 | H33: =IF($A33>$B$30,NA(),AVERAGE(E33:G33)) -> 442.4099933 | I33: =IF($A33>$I$30,NA(),LN(H33)-LN(H34)) -> 0.002821845748 | J33: =IF($A33>$J$30,NA(),_xlfn.STDEV.P(OFFSET(I33,0,0,30,1))) -> 0.005281364861 | K33: =IF($A33>$J$30,NA(),$A$17*J33*G33) -> 0.4673902169 | L33: =IF($A33>$L$30,NA(),AVERAGE(OFFSET(C33,1,0,$A$16,1))) -> 74043077.69 | M33: =IF($A33>$L$30,NA(),L33*$A$18) -> 185107694.2 | N33: =IF($A33>$L$30,NA(),MIN(C33,M33)) -> 46864100 | O33: =IF($A33>$I$30,NA(),H33-H34) -> 1.246653 | P33: =IF($A33>$L$30,NA(),IF(O33>K33,N33,IF(O33<-K33,-N33,0))) -> 46864100 | Q33: =IF($A33>$Q$30,NA(),SUM(OFFSET(P33,0,0,$A$16,1))/L33) -> 19.29059332 | R33: =IF($A33>R$30,NA(),IF($A33=R$30,AVERAGE(OFFSET(Q33,0,0,R$31,1)),(Q33-R34)/R$31+R34)) -> 18.39193734 | S33: =IF($A33>$R$30,NA(),AVERAGE(OFFSET(R33,0,0,$S$31,1))) -> 17.22515686 | T33: =IF($A33>T$30,NA(),IF($A33=T$30,AVERAGE(OFFSET(R33,0,0,T$31,1)),(R33-T34)/T$31+T34)) -> 17.29197687 | U33: =IF($A33>$B$30,NA(),MONTH(B33)) -> 8 | V33: =IF($A33>$V$30,NA(),MAX(E33-F33,ABS(E33-G34),ABS(F33-G34))) -> 1.179992 | W33: =IF($A33>$W$30,NA(),IF($A33=$W$30,AVERAGE(OFFSET($V33,0,0,$W$31,1)),($V33-W34)/$W$31+W34)) -> 3.549938174 | X33: =IF($A33>$X$30,NA(),($W33/MAX(OFFSET($W33,1,0,$X$31,1))-1)*100) -> -15.04368943 | Y33: =IF($A33>$X$30,NA(),($W33/MIN(OFFSET($W33,1,0,$X$31,1))-1)*100) -> 12.64212237 | Z33: =IF($A33>$B$30,NA(),IF($A33>$A$8,"",OFFSET(InputIndexData!$B$15,$A33+$A$11,0,1,1))) -> 2021-08-06 | AA33: =IF($A33>$B$30,NA(),IF($A33>$A$8,"",OFFSET(InputIndexData!$G$15,CalculationsAndCharts!$A33+$A$11,IF($C$5,8,0),1,1))) -> 0 | AB33: =IF($A33>$B$30,NA(),IF($A33>$A$8,"",OFFSET(InputIndexData!$C$15,CalculationsAndCharts!$A33+$A$11,IF($C$5,8,0),1,1))) -> 17.459999 | AC33: =IF($A33>$B$30,NA(),IF($A33>$A$8,"",OFFSET(InputIndexData!$D$15,CalculationsAndCharts!$A33+$A$11,IF($C$5,8,0),1,1))) -> 17.5 | AD33: =IF($A33>$B$30,NA(),IF($A33>$A$8,"",OFFSET(InputIndexData!$E$15,CalculationsAndCharts!$A33+$A$11,IF($C$5,8,0),1,1))) -> 16.139999 | AE33: =IF($A33>$B$30,NA(),IF($A33>$A$8,"",OFFSET(InputIndexData!$F$15,CalculationsAndCharts!$A33+$A$11,IF($C$5,8,0),1,1))) -> 16.15 | AF33: =IF($A33>$AF$30,NA(),($AE33/MAX(OFFSET($AE33,1,0,$AF$31,1))-1)*100) -> -28.22222222 | AG33: =IF($A33>$AF$30,NA(),($AE33/MIN(OFFSET($AE33,1,0,$AF$31,1))-1)*100) -> 7.166556072 | AH33: =IF($A33>$AH$30,NA(),AND(AND(AG33<$A$21,Y33<($A$21*$A$23)),R33>$A$22)) -> TRUE | AI33: =IF($A33>$AI$30,NA(),AND(OR(U33>10,U33<$A$20),AH34)) -> FALSE | AJ33: =IF($A33>$AJ$30,NA(),U33=$A$20) -> TRUE | AK33: =IF($A33>$AK$30,NA(),AG33>2*$A$21) -> FALSE | AL33: =IF($A33>$AL$30,NA(),AND($A$22<R34,$A$22>R33,S33<S34)) -> FALSE | AM33: =IF($A33>$AM$30,NA(),OR(AJ33,AK34,AL34)) -> TRUE | AN33: =IF($A33>$AN$30,NA(),IF($A33=$AN$30,AVERAGE(OFFSET($V33,0,0,$AN$31,1)),($V33-AN34)/$AN$31+AN34)) -> 3.429442744 | AO33: =AN33*$AO$31 -> 10.28832823 | AP33: =IF(AND(AI33,NOT(AI34),NOT(AT34)),F33,NA())-$AU$24 ->  | AQ33: =IF(AND(AJ33,NOT(AJ34),AT34),$E33,NA())+$AU$24 ->  | AR33: =IF(AND(AK33,NOT(AK34),AT34),$E33,NA())+$AU$24 ->  | AS33: =IF(AND(AL33,NOT(AL34),AT34),$E33,NA())+$AU$24 ->  | AT33: =IF($A33>$AT$30,FALSE,IF(AND(NOT(AT34),AND(AI33,NOT(AI34))),TRUE,IF(AND(AT34,AM33),FALSE,AT34))) -> FALSE | AU33: =IF($A33>$AT$30,"",IF(OR(AND(AT33,NOT(AT34)),AND(NOT(AT33),AT34)),AO33,"")) ->  | AW33: =IF(G33>=D33,C33,NA()) -> 46864100 | AX33: =IF(G33<D33,C33,NA()) ->  | AY33: =$E$27 -> 4 | AZ33: 0 | BA33: =$E$27 -> 4 | BB33: 198.2625397 | BC33: =$E$27 -> 4 | BD33: 1.89578253 | BE33: =$E$27 -> 4 | BG33: =$E$27 -> 4 | BH33: -30.21400918 | BI33: =$E$27 -> 4 | BN33: =$BN$31 -> -20 | BO33: =IF(R33>=0,R33,NA()) -> 18.39193734 | BP33: =IF(R33<=$BN$31,R33-$BN$31,NA()) ->  | BQ33: =BN33-IF(ISNA(BO33),0,BO33) -> -38.39193734 | BR33: =-BO33 -> -18.39193734 | BT33: =IF($A33>$BT$30,FALSE,IF(AND(AT33,NOT(AT34)),TRUE,FALSE)) -> FALSE | BU33: =IF($A33>$BT$30,FALSE,IF(AND(NOT(AT33),AT34),TRUE,FALSE)) -> FALSE
A34: 2 | B34: =IF(A34>$B$30,NA(),IF($A34>$A$8,"",OFFSET(InputPriceData!$B$15,$A34+$A$11,0,1,1))) -> 2021-08-05 | C34: =IF(A34>$B$30,NA(),IF($A34>$A$8,"",OFFSET(InputPriceData!$G$15,CalculationsAndCharts!$A34+$A$11,IF($C$5,8,0),1,1))) -> 38969700 | D34: =IF(A34>$B$30,NA(),IF(A34>$A$8,"",OFFSET(InputPriceData!$C$15,CalculationsAndCharts!$A34+$A$11,IF($C$5,8,0),1,1))) -> 440.220001 | E34: =IF(A34>$B$30,NA(),IF(A34>$A$8,"",OFFSET(InputPriceData!$D$15,CalculationsAndCharts!$A34+$A$11,IF($C$5,8,0),1,1))) -> 441.850006 | F34: =IF(A34>$B$30,NA(),IF(A34>$A$8,"",OFFSET(InputPriceData!$E$15,CalculationsAndCharts!$A34+$A$11,IF($C$5,8,0),1,1))) -> 439.880005 | G34: =IF(A34>$B$30,NA(),IF(A34>$A$8,"",OFFSET(InputPriceData!$F$15,CalculationsAndCharts!$A34+$A$11,IF($C$5,8,0),1,1))) -> 441.76001 | H34: =IF($A34>$B$30,NA(),AVERAGE(E34:G34)) -> 441.1633403 | I34: =IF($A34>$I$30,NA(),LN(H34)-LN(H35)) -> 0.003527210001 | J34: =IF($A34>$J$30,NA(),_xlfn.STDEV.P(OFFSET(I34,0,0,30,1))) -> 0.005311881477 | K34: =IF($A34>$J$30,NA(),$A$17*J34*G34) -> 0.4693153629 | L34: =IF($A34>$J$30,NA(),AVERAGE(OFFSET(C34,1,0,$A$16,1))) -> 74718426.92 | M34: =IF($A34>$J$30,NA(),L34*$A$18) -> 186796067.3 | N34: =IF($A34>$J$30,NA(),MIN(C34,M34)) -> 38969700 | O34: =IF($A34>$I$30,NA(),H34-H35) -> 1.553334667 | P34: =IF($A34>$L$30,NA(),IF(O34>K34,N34,IF(O34<-K34,-N34,0))) -> 38969700 | Q34: =IF($A34>$Q$30,NA(),SUM(OFFSET(P34,0,0,$A$16,1))/L34) -> 19.50373502 | R34: =IF($A34>$R$30,NA(),IF($A34=$R$30,AVERAGE(OFFSET(Q34,0,0,$R$31,1)),(Q34-R35)/$R$31+R35)) -> 17.94260934 | S34: 17.06082719 | T34: =IF($A34>T$30,NA(),IF($A34=T$30,AVERAGE(OFFSET(R34,0,0,T$31,1)),(R34-T35)/T$31+T35)) -> 17.16975904 | U34: 8 | V34: 2.869995 | W34: =IF($A34>$W$30,NA(),IF($A34=$W$30,AVERAGE(OFFSET(V34,0,0,$W$31,1)),(V34-W35)/$W$31+W35)) -> 3.719220043 | X34: -10.99247434 | Y34: 18.01355931 | Z34: =IF($A34>$B$30,NA(),IF($A34>$A$8,"",OFFSET(InputIndexData!$B$15,$A34+$A$11,0,1,1))) -> 2021-08-05 | AA34: =IF($A34>$B$30,NA(),IF($A34>$A$8,"",OFFSET(InputIndexData!$G$15,CalculationsAndCharts!$A34+$A$11,IF($C$5,8,0),1,1))) -> 0 | AB34: =IF($A34>$B$30,NA(),IF($A34>$A$8,"",OFFSET(InputIndexData!$C$15,CalculationsAndCharts!$A34+$A$11,IF($C$5,8,0),1,1))) -> 17.73 | AC34: =IF($A34>$B$30,NA(),IF($A34>$A$8,"",OFFSET(InputIndexData!$D$15,CalculationsAndCharts!$A34+$A$11,IF($C$5,8,0),1,1))) -> 17.84 | AD34: =IF($A34>$B$30,NA(),IF($A34>$A$8,"",OFFSET(InputIndexData!$E$15,CalculationsAndCharts!$A34+$A$11,IF($C$5,8,0),1,1))) -> 17.23 | AE34: =IF($A34>$B$30,NA(),IF($A34>$A$8,"",OFFSET(InputIndexData!$F$15,CalculationsAndCharts!$A34+$A$11,IF($C$5,8,0),1,1))) -> 17.280001 | AF34: =IF($A34>$AF$30,NA(),($AE34/MAX(OFFSET($AE34,1,0,$AF$31,1))-1)*100) -> -23.19999556 | AG34: =IF($A34>$AF$30,NA(),($AE34/MIN(OFFSET($AE34,1,0,$AF$31,1))-1)*100) -> 14.66490378 | AH34: =IF($A34>$AH$30,NA(),AND(AND(AG34<$A$21,Y34<($A$21*$A$23)),R34>$A$22)) -> TRUE | AI34: =IF($A34>$AI$30,NA(),AND(OR(U34>10,U34<$A$20),AH35)) -> FALSE | AJ34: TRUE | AK34: FALSE | AL34: FALSE | AM34: TRUE | AN34: =IF($A34>$AN$30,NA(),IF($A34=$AN$30,AVERAGE(OFFSET($V34,0,0,$AN$31,1)),($V34-AN35)/$AN$31+AN35)) -> 3.679381716 | AO34: =AN34*$AO$31 -> 11.03814515 | AP34: =IF(AND(AI34,NOT(AI35),NOT(AT35)),F34,NA())-$AU$24 ->  | AQ34: =IF(AND(AJ34,NOT(AJ35),AT35),$E34,NA())+$AU$24 ->  | AR34: =IF(AND(AK34,NOT(AK35),AT35),$E34,NA())+$AU$24 ->  | AS34: =IF(AND(AL34,NOT(AL35),AT35),$E34,NA())+$AU$24 ->  | AT34: =IF($A34>$AT$30,FALSE,IF(AND(NOT(AT35),AND(AI34,NOT(AI35))),TRUE,IF(AND(AT35,AM34),FALSE,AT35))) -> FALSE | AU34: =IF($A34>$AT$30,"",IF(OR(AND(AT34,NOT(AT35)),AND(NOT(AT34),AT35)),AO34,"")) ->  | AW34: 38969700 | AY34: =$E$27 -> 4 | AZ34: =CEILING(AZ32,10^INT(LOG10(AZ32))/8) -> 400000000 | BA34: =$E$27 -> 4 | BB34: 452.2674593 | BC34: =$E$27 -> 4 | BD34: 14.98682144 | BE34: =$E$27 -> 4 | BF34: 0 | BG34: =$E$27 -> 4 | BH34: 30.21400918 | BI34: =$E$27 -> 4 | BJ34: 0 | BN34: =$BN$31 -> -20 | BO34: =IF(R34>=0,R34,NA()) -> 17.94260934 | BP34: =IF(R34<=$BN$31,R34-$BN$31,NA()) ->  | BQ34: =BN34-IF(ISNA(BO34),0,BO34) -> -37.94260934 | BR34: =-BO34 -> -17.94260934 | BT34: FALSE | BU34: =IF($A34>$BT$30,FALSE,IF(AND(NOT(AT34),AT35),TRUE,FALSE)) -> FALSE
A35: 3 | B35: =IF(A35>$B$30,NA(),IF($A35>$A$8,"",OFFSET(InputPriceData!$B$15,$A35+$A$11,0,1,1))) -> 2021-08-04 | C35: =IF(A35>$B$30,NA(),IF($A35>$A$8,"",OFFSET(InputPriceData!$G$15,CalculationsAndCharts!$A35+$A$11,IF($C$5,8,0),1,1))) -> 46732200 | D35: =IF(A35>$B$30,NA(),IF(A35>$A$8,"",OFFSET(InputPriceData!$C$15,CalculationsAndCharts!$A35+$A$11,IF($C$5,8,0),1,1))) -> 439.779999 | E35: =IF(A35>$B$30,NA(),IF(A35>$A$8,"",OFFSET(InputPriceData!$D$15,CalculationsAndCharts!$A35+$A$11,IF($C$5,8,0),1,1))) -> 441.119995 | F35: =IF(A35>$B$30,NA(),IF(A35>$A$8,"",OFFSET(InputPriceData!$E$15,CalculationsAndCharts!$A35+$A$11,IF($C$5,8,0),1,1))) -> 438.730011 | G35: =IF(A35>$B$30,NA(),IF(A35>$A$8,"",OFFSET(InputPriceData!$F$15,CalculationsAndCharts!$A35+$A$11,IF($C$5,8,0),1,1))) -> 438.980011 | H35: 439.6100057 | I35: 0.0002275138771 | J35: 0.005297295778 | K35: 0.4650813918 | L35: 75083549.23 | M35: 187708873.1 | N35: 46732200 | O35: 0.100006 | P35: 0 | Q35: 17.20155231 | R35: 17.1620465 | S35: 16.85559727 | T35: 17.08388678 | U35: 8 | V35: 2.419983 | W35: 3.779878975 | X35: -9.540798624 | Y35: 19.93831137 | Z35: =IF($A35>$B$30,NA(),IF($A35>$A$8,"",OFFSET(InputIndexData!$B$15,$A35+$A$11,0,1,1))) -> 2021-08-04 | AA35: =IF($A35>$B$30,NA(),IF($A35>$A$8,"",OFFSET(InputIndexData!$G$15,CalculationsAndCharts!$A35+$A$11,IF($C$5,8,0),1,1))) -> 0 | AB35: =IF($A35>$B$30,NA(),IF($A35>$A$8,"",OFFSET(InputIndexData!$C$15,CalculationsAndCharts!$A35+$A$11,IF($C$5,8,0),1,1))) -> 18.23 | AC35: =IF($A35>$B$30,NA(),IF($A35>$A$8,"",OFFSET(InputIndexData!$D$15,CalculationsAndCharts!$A35+$A$11,IF($C$5,8,0),1,1))) -> 18.9 | AD35: =IF($A35>$B$30,NA(),IF($A35>$A$8,"",OFFSET(InputIndexData!$E$15,CalculationsAndCharts!$A35+$A$11,IF($C$5,8,0),1,1))) -> 17.67 | AE35: =IF($A35>$B$30,NA(),IF($A35>$A$8,"",OFFSET(InputIndexData!$F$15,CalculationsAndCharts!$A35+$A$11,IF($C$5,8,0),1,1))) -> 17.969999 | AF35: -20.13333778 | AG35: 19.24352356 | AH35: TRUE | AI35: FALSE | AJ35: TRUE | AK35: FALSE | AL35: FALSE | AM35: TRUE | AN35: 3.769313573 | AO35: 11.30794072 | AT35: FALSE | AX35: 46732200 | BN35: -20 | BO35: 17.1620465 | BQ35: -37.1620465 | BR35: -17.1620465 | BT35: FALSE | BU35: FALSE
A36: 4 | B36: =IF(A36>$B$30,NA(),IF($A36>$A$8,"",OFFSET(InputPriceData!$B$15,$A36+$A$11,0,1,1))) -> 2021-08-03 | C36: =IF(A36>$B$30,NA(),IF($A36>$A$8,"",OFFSET(InputPriceData!$G$15,CalculationsAndCharts!$A36+$A$11,IF($C$5,8,0),1,1))) -> 58053900 | D36: =IF(A36>$B$30,NA(),IF(A36>$A$8,"",OFFSET(InputPriceData!$C$15,CalculationsAndCharts!$A36+$A$11,IF($C$5,8,0),1,1))) -> 438.440002 | E36: =IF(A36>$B$30,NA(),IF(A36>$A$8,"",OFFSET(InputPriceData!$D$15,CalculationsAndCharts!$A36+$A$11,IF($C$5,8,0),1,1))) -> 441.279999 | F36: =IF(A36>$B$30,NA(),IF(A36>$A$8,"",OFFSET(InputPriceData!$E$15,CalculationsAndCharts!$A36+$A$11,IF($C$5,8,0),1,1))) -> 436.100006 | G36: =IF(A36>$B$30,NA(),IF(A36>$A$8,"",OFFSET(InputPriceData!$F$15,CalculationsAndCharts!$A36+$A$11,IF($C$5,8,0),1,1))) -> 441.149994 | H36: 439.5099997 | I36: 0.002125849443 | J36: 0.00540280838 | K36: 0.4766897769 | L36: 75585835.38 | M36: 188964588.5 | N36: 58053900 | O36: 0.9333396667 | P36: 58053900 | Q36: 18.33348395 | R36: 17.1422936 | S36: 16.71255375 | T36: 17.07520237 | U36: 8 | V36: 5.179993 | W36: 3.877014402 | X36: -7.216175749 | Y36: 23.02048917 | Z36: =IF($A36>$B$30,NA(),IF($A36>$A$8,"",OFFSET(InputIndexData!$B$15,$A36+$A$11,0,1,1))) -> 2021-08-03 | AA36: =IF($A36>$B$30,NA(),IF($A36>$A$8,"",OFFSET(InputIndexData!$G$15,CalculationsAndCharts!$A36+$A$11,IF($C$5,8,0),1,1))) -> 0 | AB36: =IF($A36>$B$30,NA(),IF($A36>$A$8,"",OFFSET(InputIndexData!$C$15,CalculationsAndCharts!$A36+$A$11,IF($C$5,8,0),1,1))) -> 19.17 | AC36: =IF($A36>$B$30,NA(),IF($A36>$A$8,"",OFFSET(InputIndexData!$D$15,CalculationsAndCharts!$A36+$A$11,IF($C$5,8,0),1,1))) -> 20.440001 | AD36: =IF($A36>$B$30,NA(),IF($A36>$A$8,"",OFFSET(InputIndexData!$E$15,CalculationsAndCharts!$A36+$A$11,IF($C$5,8,0),1,1))) -> 17.700001 | AE36: =IF($A36>$B$30,NA(),IF($A36>$A$8,"",OFFSET(InputIndexData!$F$15,CalculationsAndCharts!$A36+$A$11,IF($C$5,8,0),1,1))) -> 18.040001 | AF36: -19.82221778 | AG36: 19.70803583 | AH36: TRUE | AI36: FALSE | AJ36: TRUE | AK36: FALSE | AL36: FALSE | AM36: TRUE | AN36: 3.919239192 | AO36: 11.75771758 | AT36: FALSE | AW36: 58053900 | BN36: -20 | BO36: 17.1422936 | BQ36: -37.1422936 | BR36: -17.1422936 | BT36: FALSE | BU36: FALSE
A37: 5 | B37: =IF(A37>$B$30,NA(),IF($A37>$A$8,"",OFFSET(InputPriceData!$B$15,$A37+$A$11,0,1,1))) -> 2021-08-02 | C37: =IF(A37>$B$30,NA(),IF($A37>$A$8,"",OFFSET(InputPriceData!$G$15,CalculationsAndCharts!$A37+$A$11,IF($C$5,8,0),1,1))) -> 58783300 | D37: =IF(A37>$B$30,NA(),IF(A37>$A$8,"",OFFSET(InputPriceData!$C$15,CalculationsAndCharts!$A37+$A$11,IF($C$5,8,0),1,1))) -> 440.339996 | E37: =IF(A37>$B$30,NA(),IF(A37>$A$8,"",OFFSET(InputPriceData!$D$15,CalculationsAndCharts!$A37+$A$11,IF($C$5,8,0),1,1))) -> 440.929993 | F37: =IF(A37>$B$30,NA(),IF(A37>$A$8,"",OFFSET(InputPriceData!$E$15,CalculationsAndCharts!$A37+$A$11,IF($C$5,8,0),1,1))) -> 437.209991 | G37: =IF(A37>$B$30,NA(),IF(A37>$A$8,"",OFFSET(InputPriceData!$F$15,CalculationsAndCharts!$A37+$A$11,IF($C$5,8,0),1,1))) -> 437.589996 | H37: 438.57666 | I37: -0.0004635264383 | J37: 0.005536091805 | K37: 0.4845076781 | L37: 75461850.77 | M37: 188654626.9 | N37: 58783300 | O37: -0.203339 | P37: 0 | Q37: 15.95967615 | R37: 16.54669842 | S37: 16.57770718 | T37: 17.06774779 | U37: 8 | V37: 3.720002 | W37: 3.783944502 | X37: -9.443503362 | Y37: 20.0673135 | Z37: =IF($A37>$B$30,NA(),IF($A37>$A$8,"",OFFSET(InputIndexData!$B$15,$A37+$A$11,0,1,1))) -> 2021-08-02 | AA37: =IF($A37>$B$30,NA(),IF($A37>$A$8,"",OFFSET(InputIndexData!$G$15,CalculationsAndCharts!$A37+$A$11,IF($C$5,8,0),1,1))) -> 0 | AB37: =IF($A37>$B$30,NA(),IF($A37>$A$8,"",OFFSET(InputIndexData!$C$15,CalculationsAndCharts!$A37+$A$11,IF($C$5,8,0),1,1))) -> 18.16 | AC37: =IF($A37>$B$30,NA(),IF($A37>$A$8,"",OFFSET(InputIndexData!$D$15,CalculationsAndCharts!$A37+$A$11,IF($C$5,8,0),1,1))) -> 19.870001 | AD37: =IF($A37>$B$30,NA(),IF($A37>$A$8,"",OFFSET(InputIndexData!$E$15,CalculationsAndCharts!$A37+$A$11,IF($C$5,8,0),1,1))) -> 17.99 | AE37: =IF($A37>$B$30,NA(),IF($A37>$A$8,"",OFFSET(InputIndexData!$F$15,CalculationsAndCharts!$A37+$A$11,IF($C$5,8,0),1,1))) -> 19.459999 | AF37: -13.51111556 | AG37: 29.13071666 | AH37: TRUE | AI37: FALSE | AJ37: TRUE | AK37: FALSE | AL37: FALSE | AM37: TRUE | AN37: 3.779155436 | AO37: 11.33746631 | AQ37: 452.2674593 | AT37: FALSE | AU37: 11.33746631 | AX37: 58783300 | BN37: -20 | BO37: 16.54669842 | BQ37: -36.54669842 | BR37: -16.54669842 | BT37: FALSE | BU37: TRUE
A38: 6 | B38: =IF(A38>$B$30,NA(),IF($A38>$A$8,"",OFFSET(InputPriceData!$B$15,$A38+$A$11,0,1,1))) -> 2021-07-30 | C38: =IF(A38>$B$30,NA(),IF($A38>$A$8,"",OFFSET(InputPriceData!$G$15,CalculationsAndCharts!$A38+$A$11,IF($C$5,8,0),1,1))) -> 68890600 | D38: =IF(A38>$B$30,NA(),IF(A38>$A$8,"",OFFSET(InputPriceData!$C$15,CalculationsAndCharts!$A38+$A$11,IF($C$5,8,0),1,1))) -> 437.910004 | E38: =IF(A38>$B$30,NA(),IF(A38>$A$8,"",OFFSET(InputPriceData!$D$15,CalculationsAndCharts!$A38+$A$11,IF($C$5,8,0),1,1))) -> 440.059998 | F38: =IF(A38>$B$30,NA(),IF(A38>$A$8,"",OFFSET(InputPriceData!$E$15,CalculationsAndCharts!$A38+$A$11,IF($C$5,8,0),1,1))) -> 437.769989 | G38: =IF(A38>$B$30,NA(),IF(A38>$A$8,"",OFFSET(InputPriceData!$F$15,CalculationsAndCharts!$A38+$A$11,IF($C$5,8,0),1,1))) -> 438.51001 | H38: 438.779999 | I38: -0.004487222758 | J38: 0.006164182108 | K38: 0.5406111116 | L38: 75473476.92 | M38: 188683692.3 | N38: 68890600 | O38: -1.973327667 | P38: -68890600 | Q38: 16.52251958 | R38: 16.84020955 | S38: 16.52089263 | T38: 17.12564216 | U38: 7 | V38: 2.880005 | W38: 3.788511823 | X38: -9.334199265 | Y38: 20.21223793 | Z38: =IF($A38>$B$30,NA(),IF($A38>$A$8,"",OFFSET(InputIndexData!$B$15,$A38+$A$11,0,1,1))) -> 2021-07-30 | AA38: =IF($A38>$B$30,NA(),IF($A38>$A$8,"",OFFSET(InputIndexData!$G$15,CalculationsAndCharts!$A38+$A$11,IF($C$5,8,0),1,1))) -> 0 | AB38: =IF($A38>$B$30,NA(),IF($A38>$A$8,"",OFFSET(InputIndexData!$C$15,CalculationsAndCharts!$A38+$A$11,IF($C$5,8,0),1,1))) -> 19.690001 | AC38: =IF($A38>$B$30,NA(),IF($A38>$A$8,"",OFFSET(InputIndexData!$D$15,CalculationsAndCharts!$A38+$A$11,IF($C$5,8,0),1,1))) -> 19.719999 | AD38: =IF($A38>$B$30,NA(),IF($A38>$A$8,"",OFFSET(InputIndexData!$E$15,CalculationsAndCharts!$A38+$A$11,IF($C$5,8,0),1,1))) -> 17.530001 | AE38: =IF($A38>$B$30,NA(),IF($A38>$A$8,"",OFFSET(InputIndexData!$F$15,CalculationsAndCharts!$A38+$A$11,IF($C$5,8,0),1,1))) -> 18.24 | AF38: -18.93333333 | AG38: 21.03516921 | AH38: TRUE | AI38: TRUE | AJ38: FALSE | AK38: FALSE | AL38: FALSE | AM38: FALSE | AN38: 3.78572804 | AO38: 11.35718412 | AT38: TRUE | AW38: 68890600 | BN38: -20 | BO38: 16.84020955 | BQ38: -36.84020955 | BR38: -16.84020955 | BT38: FALSE | BU38: FALSE
A39: 7 | B39: =IF(A39>$B$30,NA(),IF($A39>$A$8,"",OFFSET(InputPriceData!$B$15,$A39+$A$11,0,1,1))) -> 2021-07-29 | C39: =IF(A39>$B$30,NA(),IF($A39>$A$8,"",OFFSET(InputPriceData!$G$15,CalculationsAndCharts!$A39+$A$11,IF($C$5,8,0),1,1))) -> 47435300 | D39: =IF(A39>$B$30,NA(),IF(A39>$A$8,"",OFFSET(InputPriceData!$C$15,CalculationsAndCharts!$A39+$A$11,IF($C$5,8,0),1,1))) -> 439.820007 | E39: =IF(A39>$B$30,NA(),IF(A39>$A$8,"",OFFSET(InputPriceData!$D$15,CalculationsAndCharts!$A39+$A$11,IF($C$5,8,0),1,1))) -> 441.799988 | F39: =IF(A39>$B$30,NA(),IF(A39>$A$8,"",OFFSET(InputPriceData!$E$15,CalculationsAndCharts!$A39+$A$11,IF($C$5,8,0),1,1))) -> 439.809998 | G39: =IF(A39>$B$30,NA(),IF(A39>$A$8,"",OFFSET(InputPriceData!$F$15,CalculationsAndCharts!$A39+$A$11,IF($C$5,8,0),1,1))) -> 440.649994 | H39: 440.7533267 | I39: 0.00441127566 | J39: 0.006102475555 | K39: 0.5378111634 | L39: 75515209.23 | M39: 188788023.1 | N39: 47435300 | O39: 1.940002333 | P39: 47435300 | Q39: 17.42566317 | R39: 16.99905454 | S39: 16.55672275 | T39: 17.1573569 | U39: 7 | V39: 2.970001 | W39: 3.853405168 | X39: -7.781186547 | Y39: 22.27135099 | Z39: =IF($A39>$B$30,NA(),IF($A39>$A$8,"",OFFSET(InputIndexData!$B$15,$A39+$A$11,0,1,1))) -> 2021-07-29 | AA39: =IF($A39>$B$30,NA(),IF($A39>$A$8,"",OFFSET(InputIndexData!$G$15,CalculationsAndCharts!$A39+$A$11,IF($C$5,8,0),1,1))) -> 0 | AB39: =IF($A39>$B$30,NA(),IF($A39>$A$8,"",OFFSET(InputIndexData!$C$15,CalculationsAndCharts!$A39+$A$11,IF($C$5,8,0),1,1))) -> 17.91 | AC39: =IF($A39>$B$30,NA(),IF($A39>$A$8,"",OFFSET(InputIndexData!$D$15,CalculationsAndCharts!$A39+$A$11,IF($C$5,8,0),1,1))) -> 18.01 | AD39: =IF($A39>$B$30,NA(),IF($A39>$A$8,"",OFFSET(InputIndexData!$E$15,CalculationsAndCharts!$A39+$A$11,IF($C$5,8,0),1,1))) -> 17.190001 | AE39: =IF($A39>$B$30,NA(),IF($A39>$A$8,"",OFFSET(InputIndexData!$F$15,CalculationsAndCharts!$A39+$A$11,IF($C$5,8,0),1,1))) -> 17.700001 | AF39: -21.33332889 | AG39: 17.45189781 | AH39: TRUE | AI39: TRUE | AJ39: FALSE | AK39: FALSE | AL39: FALSE | AM39: FALSE | AN39: 3.886363933 | AO39: 11.6590918 | AT39: TRUE | AW39: 47435300 | BN39: -20 | BO39: 16.99905454 | BQ39: -36.99905454 | BR39: -16.99905454 | BT39: FALSE | BU39: FALSE
A40: 8 | B40: =IF(A40>$B$30,NA(),IF($A40>$A$8,"",OFFSET(InputPriceData!$B$15,$A40+$A$11,0,1,1))) -> 2021-07-28 | C40: =IF(A40>$B$30,NA(),IF($A40>$A$8,"",OFFSET(InputPriceData!$G$15,CalculationsAndCharts!$A40+$A$11,IF($C$5,8,0),1,1))) -> 52472400 | D40: =IF(A40>$B$30,NA(),IF(A40>$A$8,"",OFFSET(InputPriceData!$C$15,CalculationsAndCharts!$A40+$A$11,IF($C$5,8,0),1,1))) -> 439.679993 | E40: =IF(A40>$B$30,NA(),IF(A40>$A$8,"",OFFSET(InputPriceData!$D$15,CalculationsAndCharts!$A40+$A$11,IF($C$5,8,0),1,1))) -> 440.299988 | F40: =IF(A40>$B$30,NA(),IF(A40>$A$8,"",OFFSET(InputPriceData!$E$15,CalculationsAndCharts!$A40+$A$11,IF($C$5,8,0),1,1))) -> 437.309998 | G40: =IF(A40>$B$30,NA(),IF(A40>$A$8,"",OFFSET(InputPriceData!$F$15,CalculationsAndCharts!$A40+$A$11,IF($C$5,8,0),1,1))) -> 438.829987 | H40: 438.8133243 | I40: 0.001140064283 | J40: 0.006188335406 | K40: 0.5431254291 | L40: 75479576.15 | M40: 188698940.4 | N40: 52472400 | O40: 0.4999903333 | P40: 0 | Q40: 16.10510898 | R40: 16.78575023 | S40: 16.6943484 | T40: 17.17494605 | U40: 7 | V40: 2.98999 | W40: 3.916505465 | X40: -6.271084617 | Y40: 24.27356937 | Z40: =IF($A40>$B$30,NA(),IF($A40>$A$8,"",OFFSET(InputIndexData!$B$15,$A40+$A$11,0,1,1))) -> 2021-07-28 | AA40: =IF($A40>$B$30,NA(),IF($A40>$A$8,"",OFFSET(InputIndexData!$G$15,CalculationsAndCharts!$A40+$A$11,IF($C$5,8,0),1,1))) -> 0 | AB40: =IF($A40>$B$30,NA(),IF($A40>$A$8,"",OFFSET(InputIndexData!$C$15,CalculationsAndCharts!$A40+$A$11,IF($C$5,8,0),1,1))) -> 19.41 | AC40: =IF($A40>$B$30,NA(),IF($A40>$A$8,"",OFFSET(InputIndexData!$D$15,CalculationsAndCharts!$A40+$A$11,IF($C$5,8,0),1,1))) -> 19.620001 | AD40: =IF($A40>$B$30,NA(),IF($A40>$A$8,"",OFFSET(InputIndexData!$E$15,CalculationsAndCharts!$A40+$A$11,IF($C$5,8,0),1,1))) -> 17.52 | AE40: =IF($A40>$B$30,NA(),IF($A40>$A$8,"",OFFSET(InputIndexData!$F$15,CalculationsAndCharts!$A40+$A$11,IF($C$5,8,0),1,1))) -> 18.309999 | AF40: -18.62222667 | AG40: 21.49966158 | AH40: TRUE | AI40: TRUE | AJ40: FALSE | AK40: FALSE | AL40: FALSE | AM40: FALSE | AN40: 3.988182037 | AO40: 11.96454611 | AT40: TRUE | AX40: 52472400 | BN40: -20 | BO40: 16.78575023 | BQ40: -36.78575023 | BR40: -16.78575023 | BT40: FALSE | BU40: FALSE
A41: 9 | B41: =IF(A41>$B$30,NA(),IF($A41>$A$8,"",OFFSET(InputPriceData!$B$15,$A41+$A$11,0,1,1))) -> 2021-07-27 | C41: =IF(A41>$B$30,NA(),IF($A41>$A$8,"",OFFSET(InputPriceData!$G$15,CalculationsAndCharts!$A41+$A$11,IF($C$5,8,0),1,1))) -> 67397100 | D41: =IF(A41>$B$30,NA(),IF(A41>$A$8,"",OFFSET(InputPriceData!$C$15,CalculationsAndCharts!$A41+$A$11,IF($C$5,8,0),1,1))) -> 439.910004 | E41: =IF(A41>$B$30,NA(),IF(A41>$A$8,"",OFFSET(InputPriceData!$D$15,CalculationsAndCharts!$A41+$A$11,IF($C$5,8,0),1,1))) -> 439.940002 | F41: =IF(A41>$B$30,NA(),IF(A41>$A$8,"",OFFSET(InputPriceData!$E$15,CalculationsAndCharts!$A41+$A$11,IF($C$5,8,0),1,1))) -> 435.98999 | G41: =IF(A41>$B$30,NA(),IF(A41>$A$8,"",OFFSET(InputPriceData!$F$15,CalculationsAndCharts!$A41+$A$11,IF($C$5,8,0),1,1))) -> 439.01001 | H41: 438.313334 | I41: -0.004832628466 | J41: 0.006192737505 | K41: 0.5437347508 | L41: 75436799.23 | M41: 188591998.1 | N41: 67397100 | O41: -2.123332 | P41: -67397100 | Q41: 16.74841606 | R41: 17.12607085 | S41: 16.93205184 | T41: 17.21819003 | U41: 7 | V41: 5.029999 | W41: 3.982685142 | X41: -4.687287705 | Y41: 26.37349867 | Z41: =IF($A41>$B$30,NA(),IF($A41>$A$8,"",OFFSET(InputIndexData!$B$15,$A41+$A$11,0,1,1))) -> 2021-07-27 | AA41: =IF($A41>$B$30,NA(),IF($A41>$A$8,"",OFFSET(InputIndexData!$G$15,CalculationsAndCharts!$A41+$A$11,IF($C$5,8,0),1,1))) -> 0 | AB41: =IF($A41>$B$30,NA(),IF($A41>$A$8,"",OFFSET(InputIndexData!$C$15,CalculationsAndCharts!$A41+$A$11,IF($C$5,8,0),1,1))) -> 18.620001 | AC41: =IF($A41>$B$30,NA(),IF($A41>$A$8,"",OFFSET(InputIndexData!$D$15,CalculationsAndCharts!$A41+$A$11,IF($C$5,8,0),1,1))) -> 20.440001 | AD41: =IF($A41>$B$30,NA(),IF($A41>$A$8,"",OFFSET(InputIndexData!$E$15,CalculationsAndCharts!$A41+$A$11,IF($C$5,8,0),1,1))) -> 18.25 | AE41: =IF($A41>$B$30,NA(),IF($A41>$A$8,"",OFFSET(InputIndexData!$F$15,CalculationsAndCharts!$A41+$A$11,IF($C$5,8,0),1,1))) -> 19.360001 | AF41: -13.95555111 | AG41: 28.46715992 | AH41: TRUE | AI41: TRUE | AJ41: FALSE | AK41: FALSE | AL41: FALSE | AM41: FALSE | AN41: 4.099092263 | AO41: 12.29727679 | AT41: TRUE | AX41: 67397100 | BN41: -20 | BO41: 17.12607085 | BQ41: -37.12607085 | BR41: -17.12607085 | BT41: FALSE | BU41: FALSE
A42: 10 | B42: =IF(A42>$B$30,NA(),IF($A42>$A$8,"",OFFSET(InputPriceData!$B$15,$A42+$A$11,0,1,1))) -> 2021-07-26 | C42: =IF(A42>$B$30,NA(),IF($A42>$A$8,"",OFFSET(InputPriceData!$G$15,CalculationsAndCharts!$A42+$A$11,IF($C$5,8,0),1,1))) -> 43719200 | D42: =IF(A42>$B$30,NA(),IF(A42>$A$8,"",OFFSET(InputPriceData!$C$15,CalculationsAndCharts!$A42+$A$11,IF($C$5,8,0),1,1))) -> 439.309998 | E42: =IF(A42>$B$30,NA(),IF(A42>$A$8,"",OFFSET(InputPriceData!$D$15,CalculationsAndCharts!$A42+$A$11,IF($C$5,8,0),1,1))) -> 441.029999 | F42: =IF(A42>$B$30,NA(),IF(A42>$A$8,"",OFFSET(InputPriceData!$E$15,CalculationsAndCharts!$A42+$A$11,IF($C$5,8,0),1,1))) -> 439.26001 | G42: =IF(A42>$B$30,NA(),IF(A42>$A$8,"",OFFSET(InputPriceData!$F$15,CalculationsAndCharts!$A42+$A$11,IF($C$5,8,0),1,1))) -> 441.019989 | H42: 440.436666 | I42: 0.003244466414 | J42: 0.006095764241 | K42: 0.5376707757 | L42: 75494600 | M42: 188736500 | N42: 43719200 | O42: 1.426666333 | P42: 43719200 | Q42: 18.44741346 | R42: 17.31489824 | S42: 17.17502563 | T42: 17.22842549 | U42: 7 | V42: 1.769989 | W42: 3.907877009 | X42: -6.477578873 | Y42: 23.99978216 | Z42: =IF($A42>$B$30,NA(),IF($A42>$A$8,"",OFFSET(InputIndexData!$B$15,$A42+$A$11,0,1,1))) -> 2021-07-26 | AA42: =IF($A42>$B$30,NA(),IF($A42>$A$8,"",OFFSET(InputIndexData!$G$15,CalculationsAndCharts!$A42+$A$11,IF($C$5,8,0),1,1))) -> 0 | AB42: =IF($A42>$B$30,NA(),IF($A42>$A$8,"",OFFSET(InputIndexData!$C$15,CalculationsAndCharts!$A42+$A$11,IF($C$5,8,0),1,1))) -> 18.67 | AC42: =IF($A42>$B$30,NA(),IF($A42>$A$8,"",OFFSET(InputIndexData!$D$15,CalculationsAndCharts!$A42+$A$11,IF($C$5,8,0),1,1))) -> 19.389999 | AD42: =IF($A42>$B$30,NA(),IF($A42>$A$8,"",OFFSET(InputIndexData!$E$15,CalculationsAndCharts!$A42+$A$11,IF($C$5,8,0),1,1))) -> 17.530001 | AE42: =IF($A42>$B$30,NA(),IF($A42>$A$8,"",OFFSET(InputIndexData!$F$15,CalculationsAndCharts!$A42+$A$11,IF($C$5,8,0),1,1))) -> 17.58 | AF42: -21.86666667 | AG42: 16.65560717 | AH42: TRUE | AI42: TRUE | AJ42: FALSE | AK42: FALSE | AL42: FALSE | AM42: FALSE | AN42: 3.995658181 | AO42: 11.98697454 | AT42: TRUE | AW42: 43719200 | BN42: -20 | BO42: 17.31489824 | BQ42: -37.31489824 | BR42: -17.31489824 | BT42: FALSE | BU42: FALSE
A43: 11 | B43: =IF(A43>$B$30,NA(),IF($A43>$A$8,"",OFFSET(InputPriceData!$B$15,$A43+$A$11,0,1,1))) -> 2021-07-23 | C43: =IF(A43>$B$30,NA(),IF($A43>$A$8,"",OFFSET(InputPriceData!$G$15,CalculationsAndCharts!$A43+$A$11,IF($C$5,8,0),1,1))) -> 63766600 | D43: =IF(A43>$B$30,NA(),IF(A43>$A$8,"",OFFSET(InputPriceData!$C$15,CalculationsAndCharts!$A43+$A$11,IF($C$5,8,0),1,1))) -> 437.519989 | E43: =IF(A43>$B$30,NA(),IF(A43>$A$8,"",OFFSET(InputPriceData!$D$15,CalculationsAndCharts!$A43+$A$11,IF($C$5,8,0),1,1))) -> 440.299988 | F43: =IF(A43>$B$30,NA(),IF(A43>$A$8,"",OFFSET(InputPriceData!$E$15,CalculationsAndCharts!$A43+$A$11,IF($C$5,8,0),1,1))) -> 436.790009 | G43: =IF(A43>$B$30,NA(),IF(A43>$A$8,"",OFFSET(InputPriceData!$F$15,CalculationsAndCharts!$A43+$A$11,IF($C$5,8,0),1,1))) -> 439.940002 | H43: 439.0099997 | I43: 0.00927578643 | J43: 0.006084918647 | K43: 0.5353998243 | L43: 75828395.38 | M43: 189570988.5 | N43: 63766600 | O43: 4.053335 | P43: 63766600 | Q43: 18.46530172 | R43: 16.74864064 | S43: 17.38744105 | T43: 17.21881741 | U43: 7 | V43: 4.839997 | W43: 4.060583295 | X43: -2.823046863 | Y43: 28.84526379 | Z43: =IF($A43>$B$30,NA(),IF($A43>$A$8,"",OFFSET(InputIndexData!$B$15,$A43+$A$11,0,1,1))) -> 2021-07-23 | AA43: =IF($A43>$B$30,NA(),IF($A43>$A$8,"",OFFSET(InputIndexData!$G$15,CalculationsAndCharts!$A43+$A$11,IF($C$5,8,0),1,1))) -> 0 | AB43: =IF($A43>$B$30,NA(),IF($A43>$A$8,"",OFFSET(InputIndexData!$C$15,CalculationsAndCharts!$A43+$A$11,IF($C$5,8,0),1,1))) -> 16.98 | AC43: =IF($A43>$B$30,NA(),IF($A43>$A$8,"",OFFSET(InputIndexData!$D$15,CalculationsAndCharts!$A43+$A$11,IF($C$5,8,0),1,1))) -> 17.48 | AD43: =IF($A43>$B$30,NA(),IF($A43>$A$8,"",OFFSET(InputIndexData!$E$15,CalculationsAndCharts!$A43+$A$11,IF($C$5,8,0),1,1))) -> 16.33 | AE43: =IF($A43>$B$30,NA(),IF($A43>$A$8,"",OFFSET(InputIndexData!$F$15,CalculationsAndCharts!$A43+$A$11,IF($C$5,8,0),1,1))) -> 17.200001 | AF43: -23.55555111 | AG43: 14.13404778 | AH43: TRUE | AI43: TRUE | AJ43: FALSE | AK43: FALSE | AL43: FALSE | AM43: FALSE | AN43: 4.242954757 | AO43: 12.72886427 | AT43: TRUE | AW43: 63766600 | BN43: -20 | BO43: 16.74864064 | BQ43: -36.74864064 | BR43: -16.74864064 | BT43: FALSE | BU43: FALSE
A44: 12 | B44: =IF(A44>$B$30,NA(),IF($A44>$A$8,"",OFFSET(InputPriceData!$B$15,$A44+$A$11,0,1,1))) -> 2021-07-22 | C44: =IF(A44>$B$30,NA(),IF($A44>$A$8,"",OFFSET(InputPriceData!$G$15,CalculationsAndCharts!$A44+$A$11,IF($C$5,8,0),1,1))) -> 47878500 | D44: =IF(A44>$B$30,NA(),IF(A44>$A$8,"",OFFSET(InputPriceData!$C$15,CalculationsAndCharts!$A44+$A$11,IF($C$5,8,0),1,1))) -> 434.73999 | E44: =IF(A44>$B$30,NA(),IF(A44>$A$8,"",OFFSET(InputPriceData!$D$15,CalculationsAndCharts!$A44+$A$11,IF($C$5,8,0),1,1))) -> 435.720001 | F44: =IF(A44>$B$30,NA(),IF(A44>$A$8,"",OFFSET(InputPriceData!$E$15,CalculationsAndCharts!$A44+$A$11,IF($C$5,8,0),1,1))) -> 433.690002 | G44: =IF(A44>$B$30,NA(),IF(A44>$A$8,"",OFFSET(InputPriceData!$F$15,CalculationsAndCharts!$A44+$A$11,IF($C$5,8,0),1,1))) -> 435.459991 | H44: 434.9566647 | I44: 0.003539162195 | J44: 0.005906871777 | K44: 0.5144412661 | L44: 75844630.77 | M44: 189611576.9 | N44: 47878500 | O44: 1.536661333 | P44: 47878500 | Q44: 16.20770762 | R44: 15.89031009 | S44: 17.60077802 | T44: 17.27105928 | U44: 7 | V44: 2.029999 | W44: 4.004910888 | X44: -4.15538622 | Y44: 27.07873777 | Z44: =IF($A44>$B$30,NA(),IF($A44>$A$8,"",OFFSET(InputIndexData!$B$15,$A44+$A$11,0,1,1))) -> 2021-07-22 | AA44: =IF($A44>$B$30,NA(),IF($A44>$A$8,"",OFFSET(InputIndexData!$G$15,CalculationsAndCharts!$A44+$A$11,IF($C$5,8,0),1,1))) -> 0 | AB44: =IF($A44>$B$30,NA(),IF($A44>$A$8,"",OFFSET(InputIndexData!$C$15,CalculationsAndCharts!$A44+$A$11,IF($C$5,8,0),1,1))) -> 17.59 | AC44: =IF($A44>$B$30,NA(),IF($A44>$A$8,"",OFFSET(InputIndexData!$D$15,CalculationsAndCharts!$A44+$A$11,IF($C$5,8,0),1,1))) -> 18.450001 | AD44: =IF($A44>$B$30,NA(),IF($A44>$A$8,"",OFFSET(InputIndexData!$E$15,CalculationsAndCharts!$A44+$A$11,IF($C$5,8,0),1,1))) -> 17.4 | AE44: =IF($A44>$B$30,NA(),IF($A44>$A$8,"",OFFSET(InputIndexData!$F$15,CalculationsAndCharts!$A44+$A$11,IF($C$5,8,0),1,1))) -> 17.690001 | AF44: -21.37777333 | AG44: 17.38554081 | AH44: TRUE | AI44: TRUE | AJ44: FALSE | AK44: FALSE | AL44: FALSE | AM44: FALSE | AN44: 4.17661673 | AO44: 12.52985019 | AT44: TRUE | AW44: 47878500 | BN44: -20 | BO44: 15.89031009 | BQ44: -35.89031009 | BR44: -15.89031009 | BT44: FALSE | BU44: FALSE
A45: 13 | B45: =IF(A45>$B$30,NA(),IF($A45>$A$8,"",OFFSET(InputPriceData!$B$15,$A45+$A$11,0,1,1))) -> 2021-07-21 | C45: =IF(A45>$B$30,NA(),IF($A45>$A$8,"",OFFSET(InputPriceData!$G$15,CalculationsAndCharts!$A45+$A$11,IF($C$5,8,0),1,1))) -> 64724400 | D45: =IF(A45>$B$30,NA(),IF(A45>$A$8,"",OFFSET(InputPriceData!$C$15,CalculationsAndCharts!$A45+$A$11,IF($C$5,8,0),1,1))) -> 432.339996 | E45: =IF(A45>$B$30,NA(),IF(A45>$A$8,"",OFFSET(InputPriceData!$D$15,CalculationsAndCharts!$A45+$A$11,IF($C$5,8,0),1,1))) -> 434.700012 | F45: =IF(A45>$B$30,NA(),IF(A45>$A$8,"",OFFSET(InputPriceData!$E$15,CalculationsAndCharts!$A45+$A$11,IF($C$5,8,0),1,1))) -> 431.01001 | G45: =IF(A45>$B$30,NA(),IF(A45>$A$8,"",OFFSET(InputPriceData!$F$15,CalculationsAndCharts!$A45+$A$11,IF($C$5,8,0),1,1))) -> 434.549988 | H45: 433.4200033 | I45: 0.009232971761 | J45: 0.005888726432 | K45: 0.5117892001 | L45: 75695240 | M45: 189238100 | N45: 64724400 | O45: 3.983337333 | P45: 64724400 | Q45: 15.60717821 | R45: 15.73161133 | S45: 17.92455825 | T45: 17.42447585 | U45: 7 | V45: 3.690002 | W45: 4.145976022 | X45: -0.7794475921 | Y45: 31.55483719 | Z45: =IF($A45>$B$30,NA(),IF($A45>$A$8,"",OFFSET(InputIndexData!$B$15,$A45+$A$11,0,1,1))) -> 2021-07-21 | AA45: =IF($A45>$B$30,NA(),IF($A45>$A$8,"",OFFSET(InputIndexData!$G$15,CalculationsAndCharts!$A45+$A$11,IF($C$5,8,0),1,1))) -> 0 | AB45: =IF($A45>$B$30,NA(),IF($A45>$A$8,"",OFFSET(InputIndexData!$C$15,CalculationsAndCharts!$A45+$A$11,IF($C$5,8,0),1,1))) -> 19.73 | AC45: =IF($A45>$B$30,NA(),IF($A45>$A$8,"",OFFSET(InputIndexData!$D$15,CalculationsAndCharts!$A45+$A$11,IF($C$5,8,0),1,1))) -> 19.82 | AD45: =IF($A45>$B$30,NA(),IF($A45>$A$8,"",OFFSET(InputIndexData!$E$15,CalculationsAndCharts!$A45+$A$11,IF($C$5,8,0),1,1))) -> 17.809999 | AE45: =IF($A45>$B$30,NA(),IF($A45>$A$8,"",OFFSET(InputIndexData!$F$15,CalculationsAndCharts!$A45+$A$11,IF($C$5,8,0),1,1))) -> 17.91 | AF45: -20.4 | AG45: 18.84538819 | AH45: TRUE | AI45: TRUE | AJ45: FALSE | AK45: FALSE | AL45: FALSE | AM45: FALSE | AN45: 4.415129811 | AO45: 13.24538943 | AT45: TRUE | AW45: 64724400 | BN45: -20 | BO45: 15.73161133 | BQ45: -35.73161133 | BR45: -15.73161133 | BT45: FALSE | BU45: FALSE
A46: 14 | B46: =IF(A46>$B$30,NA(),IF($A46>$A$8,"",OFFSET(InputPriceData!$B$15,$A46+$A$11,0,1,1))) -> 2021-07-20 | C46: =IF(A46>$B$30,NA(),IF($A46>$A$8,"",OFFSET(InputPriceData!$G$15,CalculationsAndCharts!$A46+$A$11,IF($C$5,8,0),1,1))) -> 99608200 | D46: =IF(A46>$B$30,NA(),IF(A46>$A$8,"",OFFSET(InputPriceData!$C$15,CalculationsAndCharts!$A46+$A$11,IF($C$5,8,0),1,1))) -> 425.679993 | E46: =IF(A46>$B$30,NA(),IF(A46>$A$8,"",OFFSET(InputPriceData!$D$15,CalculationsAndCharts!$A46+$A$11,IF($C$5,8,0),1,1))) -> 432.420013 | F46: =IF(A46>$B$30,NA(),IF(A46>$A$8,"",OFFSET(InputPriceData!$E$15,CalculationsAndCharts!$A46+$A$11,IF($C$5,8,0),1,1))) -> 424.829987 | G46: =IF(A46>$B$30,NA(),IF(A46>$A$8,"",OFFSET(InputPriceData!$F$15,CalculationsAndCharts!$A46+$A$11,IF($C$5,8,0),1,1))) -> 431.059998 | H46: 429.436666 | I46: 0.007761091831 | J46: 0.005683750237 | K46: 0.4900074732 | L46: 75333236.15 | M46: 188333090.4 | N46: 99608200 | O46: 3.319997333 | P46: 99608200 | Q46: 15.42437786 | R46: 15.79382789 | S46: 18.29507764 | T46: 17.61257191 | U46: 7 | V46: 7.590026 | W46: 4.178545595 | X46: 6.192765437 | Y46: 32.58829345 | Z46: =IF($A46>$B$30,NA(),IF($A46>$A$8,"",OFFSET(InputIndexData!$B$15,$A46+$A$11,0,1,1))) -> 2021-07-20 | AA46: =IF($A46>$B$30,NA(),IF($A46>$A$8,"",OFFSET(InputIndexData!$G$15,CalculationsAndCharts!$A46+$A$11,IF($C$5,8,0),1,1))) -> 0 | AB46: =IF($A46>$B$30,NA(),IF($A46>$A$8,"",OFFSET(InputIndexData!$C$15,CalculationsAndCharts!$A46+$A$11,IF($C$5,8,0),1,1))) -> 20.889999 | AC46: =IF($A46>$B$30,NA(),IF($A46>$A$8,"",OFFSET(InputIndexData!$D$15,CalculationsAndCharts!$A46+$A$11,IF($C$5,8,0),1,1))) -> 22.969999 | AD46: =IF($A46>$B$30,NA(),IF($A46>$A$8,"",OFFSET(InputIndexData!$E$15,CalculationsAndCharts!$A46+$A$11,IF($C$5,8,0),1,1))) -> 19.370001 | AE46: =IF($A46>$B$30,NA(),IF($A46>$A$8,"",OFFSET(InputIndexData!$F$15,CalculationsAndCharts!$A46+$A$11,IF($C$5,8,0),1,1))) -> 19.73 | AF46: -12.31111111 | AG46: 30.92236231 | AH46: TRUE | AI46: TRUE | AJ46: FALSE | AK46: FALSE | AL46: FALSE | AM46: FALSE | AN46: 4.495699568 | AO46: 13.4870987 | AT46: TRUE | AW46: 99608200 | BN46: -20 | BO46: 15.79382789 | BQ46: -35.79382789 | BR46: -15.79382789 | BT46: FALSE | BU46: FALSE
A47: 15 | B47: =IF(A47>$B$30,NA(),IF($A47>$A$8,"",OFFSET(InputPriceData!$B$15,$A47+$A$11,0,1,1))) -> 2021-07-19 | C47: =IF(A47>$B$30,NA(),IF($A47>$A$8,"",OFFSET(InputPriceData!$G$15,CalculationsAndCharts!$A47+$A$11,IF($C$5,8,0),1,1))) -> 147987000 | D47: =IF(A47>$B$30,NA(),IF(A47>$A$8,"",OFFSET(InputPriceData!$C$15,CalculationsAndCharts!$A47+$A$11,IF($C$5,8,0),1,1))) -> 426.190002 | E47: =IF(A47>$B$30,NA(),IF(A47>$A$8,"",OFFSET(InputPriceData!$D$15,CalculationsAndCharts!$A47+$A$11,IF($C$5,8,0),1,1))) -> 431.410004 | F47: =IF(A47>$B$30,NA(),IF(A47>$A$8,"",OFFSET(InputPriceData!$E$15,CalculationsAndCharts!$A47+$A$11,IF($C$5,8,0),1,1))) -> 421.970001 | G47: =IF(A47>$B$30,NA(),IF(A47>$A$8,"",OFFSET(InputPriceData!$F$15,CalculationsAndCharts!$A47+$A$11,IF($C$5,8,0),1,1))) -> 424.970001 | H47: 426.1166687 | I47: -0.01550093785 | J47: 0.005528498793 | K47: 0.4698892275 | L47: 74587449.23 | M47: 186468623.1 | N47: 147987000 | O47: -6.656667 | P47: -147987000 | Q47: 13.538637 | R47: 15.9785529 | S47: 18.63977895 | T47: 17.81465458 | U47: 7 | V47: 9.440003 | W47: 3.934868424 | X47: 1.305885437 | Y47: 24.85623941 | Z47: =IF($A47>$B$30,NA(),IF($A47>$A$8,"",OFFSET(InputIndexData!$B$15,$A47+$A$11,0,1,1))) -> 2021-07-19 | AA47: =IF($A47>$B$30,NA(),IF($A47>$A$8,"",OFFSET(InputIndexData!$G$15,CalculationsAndCharts!$A47+$A$11,IF($C$5,8,0),1,1))) -> 0 | AB47: =IF($A47>$B$30,NA(),IF($A47>$A$8,"",OFFSET(InputIndexData!$C$15,CalculationsAndCharts!$A47+$A$11,IF($C$5,8,0),1,1))) -> 19.610001 | AC47: =IF($A47>$B$30,NA(),IF($A47>$A$8,"",OFFSET(InputIndexData!$D$15,CalculationsAndCharts!$A47+$A$11,IF($C$5,8,0),1,1))) -> 25.09 | AD47: =IF($A47>$B$30,NA(),IF($A47>$A$8,"",OFFSET(InputIndexData!$E$15,CalculationsAndCharts!$A47+$A$11,IF($C$5,8,0),1,1))) -> 19.27 | AE47: =IF($A47>$B$30,NA(),IF($A47>$A$8,"",OFFSET(InputIndexData!$F$15,CalculationsAndCharts!$A47+$A$11,IF($C$5,8,0),1,1))) -> 22.5 | AF47: 8.695646923 | AG47: 49.30325149 | AH47: TRUE | AI47: TRUE | AJ47: FALSE | AK47: FALSE | AL47: FALSE | AM47: FALSE | AN47: 4.15188552 | AO47: 12.45565656 | AT47: TRUE | AX47: 147987000 | BN47: -20 | BO47: 15.9785529 | BQ47: -35.9785529 | BR47: -15.9785529 | BT47: FALSE | BU47: FALSE
A48: 16 | B48: =IF(A48>$B$30,NA(),IF($A48>$A$8,"",OFFSET(InputPriceData!$B$15,$A48+$A$11,0,1,1))) -> 2021-07-16 | C48: =IF(A48>$B$30,NA(),IF($A48>$A$8,"",OFFSET(InputPriceData!$G$15,CalculationsAndCharts!$A48+$A$11,IF($C$5,8,0),1,1))) -> 75874700 | D48: =IF(A48>$B$30,NA(),IF(A48>$A$8,"",OFFSET(InputPriceData!$C$15,CalculationsAndCharts!$A48+$A$11,IF($C$5,8,0),1,1))) -> 436.01001 | E48: =IF(A48>$B$30,NA(),IF(A48>$A$8,"",OFFSET(InputPriceData!$D$15,CalculationsAndCharts!$A48+$A$11,IF($C$5,8,0),1,1))) -> 436.059998 | F48: =IF(A48>$B$30,NA(),IF(A48>$A$8,"",OFFSET(InputPriceData!$E$15,CalculationsAndCharts!$A48+$A$11,IF($C$5,8,0),1,1))) -> 430.920013 | G48: =IF(A48>$B$30,NA(),IF(A48>$A$8,"",OFFSET(InputPriceData!$F$15,CalculationsAndCharts!$A48+$A$11,IF($C$5,8,0),1,1))) -> 431.339996 | H48: 432.7733357 | I48: -0.003598171726 | J48: 0.004820480281 | K48: 0.415853189 | L48: 74555160.77 | M48: 186387901.9 | N48: 75874700 | O48: -1.559997667 | P48: -75874700 | Q48: 14.84491065 | R48: 17.19851085 | S48: 18.9760187 | T48: 18.01866588 | U48: 7 | V48: 5.139985 | W48: 3.541644525 | X48: -8.817933431 | Y48: 12.37895887 | Z48: =IF($A48>$B$30,NA(),IF($A48>$A$8,"",OFFSET(InputIndexData!$B$15,$A48+$A$11,0,1,1))) -> 2021-07-16 | AA48: =IF($A48>$B$30,NA(),IF($A48>$A$8,"",OFFSET(InputIndexData!$G$15,CalculationsAndCharts!$A48+$A$11,IF($C$5,8,0),1,1))) -> 0 | AB48: =IF($A48>$B$30,NA(),IF($A48>$A$8,"",OFFSET(InputIndexData!$C$15,CalculationsAndCharts!$A48+$A$11,IF($C$5,8,0),1,1))) -> 16.799999 | AC48: =IF($A48>$B$30,NA(),IF($A48>$A$8,"",OFFSET(InputIndexData!$D$15,CalculationsAndCharts!$A48+$A$11,IF($C$5,8,0),1,1))) -> 18.700001 | AD48: =IF($A48>$B$30,NA(),IF($A48>$A$8,"",OFFSET(InputIndexData!$E$15,CalculationsAndCharts!$A48+$A$11,IF($C$5,8,0),1,1))) -> 16.030001 | AE48: =IF($A48>$B$30,NA(),IF($A48>$A$8,"",OFFSET(InputIndexData!$F$15,CalculationsAndCharts!$A48+$A$11,IF($C$5,8,0),1,1))) -> 18.450001 | AF48: -10.86956469 | AG48: 22.42867286 | AH48: TRUE | AI48: TRUE | AJ48: FALSE | AK48: FALSE | AL48: FALSE | AM48: FALSE | AN48: 3.564316911 | AO48: 10.69295073 | AT48: TRUE | AX48: 75874700 | BN48: -20 | BO48: 17.19851085 | BQ48: -37.19851085 | BR48: -17.19851085 | BT48: FALSE | BU48: FALSE
A49: 17 | B49: =IF(A49>$B$30,NA(),IF($A49>$A$8,"",OFFSET(InputPriceData!$B$15,$A49+$A$11,0,1,1))) -> 2021-07-15 | C49: =IF(A49>$B$30,NA(),IF($A49>$A$8,"",OFFSET(InputPriceData!$G$15,CalculationsAndCharts!$A49+$A$11,IF($C$5,8,0),1,1))) -> 55126400 | D49: =IF(A49>$B$30,NA(),IF(A49>$A$8,"",OFFSET(InputPriceData!$C$15,CalculationsAndCharts!$A49+$A$11,IF($C$5,8,0),1,1))) -> 434.809998 | E49: =IF(A49>$B$30,NA(),IF(A49>$A$8,"",OFFSET(InputPriceData!$D$15,CalculationsAndCharts!$A49+$A$11,IF($C$5,8,0),1,1))) -> 435.529999 | F49: =IF(A49>$B$30,NA(),IF(A49>$A$8,"",OFFSET(InputPriceData!$E$15,CalculationsAndCharts!$A49+$A$11,IF($C$5,8,0),1,1))) -> 432.720001 | G49: =IF(A49>$B$30,NA(),IF(A49>$A$8,"",OFFSET(InputPriceData!$F$15,CalculationsAndCharts!$A49+$A$11,IF($C$5,8,0),1,1))) -> 434.75 | H49: 434.3333333 | I49: -0.004647668638 | J49: 0.004857187458 | K49: 0.4223324495 | L49: 74660086.92 | M49: 186650217.3 | N49: 55126400 | O49: -2.023335667 | P49: -55126400 | Q49: 16.80036351 | R49: 18.37531095 | S49: 19.13006535 | T49: 18.10979421 | U49: 7 | V49: 3.519989 | W49: 3.427477349 | X49: -11.75724567 | Y49: 8.756351248 | Z49: =IF($A49>$B$30,NA(),IF($A49>$A$8,"",OFFSET(InputIndexData!$B$15,$A49+$A$11,0,1,1))) -> 2021-07-15 | AA49: =IF($A49>$B$30,NA(),IF($A49>$A$8,"",OFFSET(InputIndexData!$G$15,CalculationsAndCharts!$A49+$A$11,IF($C$5,8,0),1,1))) -> 0 | AB49: =IF($A49>$B$30,NA(),IF($A49>$A$8,"",OFFSET(InputIndexData!$C$15,CalculationsAndCharts!$A49+$A$11,IF($C$5,8,0),1,1))) -> 16.700001 | AC49: =IF($A49>$B$30,NA(),IF($A49>$A$8,"",OFFSET(InputIndexData!$D$15,CalculationsAndCharts!$A49+$A$11,IF($C$5,8,0),1,1))) -> 18.09 | AD49: =IF($A49>$B$30,NA(),IF($A49>$A$8,"",OFFSET(InputIndexData!$E$15,CalculationsAndCharts!$A49+$A$11,IF($C$5,8,0),1,1))) -> 16.559999 | AE49: =IF($A49>$B$30,NA(),IF($A49>$A$8,"",OFFSET(InputIndexData!$F$15,CalculationsAndCharts!$A49+$A$11,IF($C$5,8,0),1,1))) -> 17.01 | AF49: -17.82609093 | AG49: 12.87325813 | AH49: TRUE | AI49: TRUE | AJ49: FALSE | AK49: FALSE | AL49: FALSE | AM49: FALSE | AN49: 3.389242679 | AO49: 10.16772804 | AT49: TRUE | AX49: 55126400 | BN49: -20 | BO49: 18.37531095 | BQ49: -38.37531095 | BR49: -18.37531095 | BT49: FALSE | BU49: FALSE
A50: 18 | B50: =IF(A50>$B$30,NA(),IF($A50>$A$8,"",OFFSET(InputPriceData!$B$15,$A50+$A$11,0,1,1))) -> 2021-07-14 | C50: =IF(A50>$B$30,NA(),IF($A50>$A$8,"",OFFSET(InputPriceData!$G$15,CalculationsAndCharts!$A50+$A$11,IF($C$5,8,0),1,1))) -> 64130400 | D50: =IF(A50>$B$30,NA(),IF(A50>$A$8,"",OFFSET(InputPriceData!$C$15,CalculationsAndCharts!$A50+$A$11,IF($C$5,8,0),1,1))) -> 437.399994 | E50: =IF(A50>$B$30,NA(),IF(A50>$A$8,"",OFFSET(InputPriceData!$D$15,CalculationsAndCharts!$A50+$A$11,IF($C$5,8,0),1,1))) -> 437.920013 | F50: =IF(A50>$B$30,NA(),IF(A50>$A$8,"",OFFSET(InputPriceData!$E$15,CalculationsAndCharts!$A50+$A$11,IF($C$5,8,0),1,1))) -> 434.910004 | G50: =IF(A50>$B$30,NA(),IF(A50>$A$8,"",OFFSET(InputPriceData!$F$15,CalculationsAndCharts!$A50+$A$11,IF($C$5,8,0),1,1))) -> 436.23999 | H50: 436.356669 | I50: 0.0002521321273 | J50: 0.004750647134 | K50: 0.4144844517 | L50: 74997527.69 | M50: 187493819.2 | N50: 64130400 | O50: 0.1100056667 | P50: 0 | Q50: 18.37673644 | R50: 19.16278467 | S50: 19.11404607 | T50: 18.08029235 | U50: 7 | V50: 3.010009 | W50: 3.420869374 | X50: -11.92737252 | Y50: 8.546675388 | Z50: =IF($A50>$B$30,NA(),IF($A50>$A$8,"",OFFSET(InputIndexData!$B$15,$A50+$A$11,0,1,1))) -> 2021-07-14 | AA50: =IF($A50>$B$30,NA(),IF($A50>$A$8,"",OFFSET(InputIndexData!$G$15,CalculationsAndCharts!$A50+$A$11,IF($C$5,8,0),1,1))) -> 0 | AB50: =IF($A50>$B$30,NA(),IF($A50>$A$8,"",OFFSET(InputIndexData!$C$15,CalculationsAndCharts!$A50+$A$11,IF($C$5,8,0),1,1))) -> 17.34 | AC50: =IF($A50>$B$30,NA(),IF($A50>$A$8,"",OFFSET(InputIndexData!$D$15,CalculationsAndCharts!$A50+$A$11,IF($C$5,8,0),1,1))) -> 17.51 | AD50: =IF($A50>$B$30,NA(),IF($A50>$A$8,"",OFFSET(InputIndexData!$E$15,CalculationsAndCharts!$A50+$A$11,IF($C$5,8,0),1,1))) -> 15.95 | AE50: =IF($A50>$B$30,NA(),IF($A50>$A$8,"",OFFSET(InputIndexData!$F$15,CalculationsAndCharts!$A50+$A$11,IF($C$5,8,0),1,1))) -> 16.33 | AF50: -21.11111492 | AG50: 8.360982084 | AH50: TRUE | AI50: TRUE | AJ50: FALSE | AK50: FALSE | AL50: FALSE | AM50: FALSE | AN50: 3.37471531 | AO50: 10.12414593 | AT50: TRUE | AX50: 64130400 | BN50: -20 | BO50: 19.16278467 | BQ50: -39.16278467 | BR50: -19.16278467 | BT50: FALSE | BU50: FALSE
A51: 19 | B51: =IF(A51>$B$30,NA(),IF($A51>$A$8,"",OFFSET(InputPriceData!$B$15,$A51+$A$11,0,1,1))) -> 2021-07-13 | C51: =IF(A51>$B$30,NA(),IF($A51>$A$8,"",OFFSET(InputPriceData!$G$15,CalculationsAndCharts!$A51+$A$11,IF($C$5,8,0),1,1))) -> 52911300 | D51: =IF(A51>$B$30,NA(),IF(A51>$A$8,"",OFFSET(InputPriceData!$C$15,CalculationsAndCharts!$A51+$A$11,IF($C$5,8,0),1,1))) -> 436.23999 | E51: =IF(A51>$B$30,NA(),IF(A51>$A$8,"",OFFSET(InputPriceData!$D$15,CalculationsAndCharts!$A51+$A$11,IF($C$5,8,0),1,1))) -> 437.839996 | F51: =IF(A51>$B$30,NA(),IF(A51>$A$8,"",OFFSET(InputPriceData!$E$15,CalculationsAndCharts!$A51+$A$11,IF($C$5,8,0),1,1))) -> 435.309998 | G51: =IF(A51>$B$30,NA(),IF(A51>$A$8,"",OFFSET(InputPriceData!$F$15,CalculationsAndCharts!$A51+$A$11,IF($C$5,8,0),1,1))) -> 435.589996 | H51: 436.2466633 | I51: -0.0005041777888 | J51: 0.004749679691 | K51: 0.4137825915 | L51: 75101488.46 | M51: 187753721.2 | N51: 52911300 | O51: -0.2200013333 | P51: 0 | Q51: 19.7893215 | R51: 19.55580878 | S51: 18.94383682 | T51: 17.96001543 | U51: 7 | V51: 2.529998 | W51: 3.450216543 | X51: -11.71014059 | Y51: 9.47788244 | Z51: =IF($A51>$B$30,NA(),IF($A51>$A$8,"",OFFSET(InputIndexData!$B$15,$A51+$A$11,0,1,1))) -> 2021-07-13 | AA51: =IF($A51>$B$30,NA(),IF($A51>$A$8,"",OFFSET(InputIndexData!$G$15,CalculationsAndCharts!$A51+$A$11,IF($C$5,8,0),1,1))) -> 0 | AB51: =IF($A51>$B$30,NA(),IF($A51>$A$8,"",OFFSET(InputIndexData!$C$15,CalculationsAndCharts!$A51+$A$11,IF($C$5,8,0),1,1))) -> 16.389999 | AC51: =IF($A51>$B$30,NA(),IF($A51>$A$8,"",OFFSET(InputIndexData!$D$15,CalculationsAndCharts!$A51+$A$11,IF($C$5,8,0),1,1))) -> 17.23 | AD51: =IF($A51>$B$30,NA(),IF($A51>$A$8,"",OFFSET(InputIndexData!$E$15,CalculationsAndCharts!$A51+$A$11,IF($C$5,8,0),1,1))) -> 15.94 | AE51: =IF($A51>$B$30,NA(),IF($A51>$A$8,"",OFFSET(InputIndexData!$F$15,CalculationsAndCharts!$A51+$A$11,IF($C$5,8,0),1,1))) -> 17.120001 | AF51: -17.29468515 | AG51: 13.60319177 | AH51: TRUE | AI51: TRUE | AJ51: FALSE | AK51: FALSE | AL51: FALSE | AM51: FALSE | AN51: 3.415238234 | AO51: 10.2457147 | AT51: TRUE | AX51: 52911300 | BN51: -20 | BO51: 19.55580878 | BQ51: -39.55580878 | BR51: -19.55580878 | BT51: FALSE | BU51: FALSE
A52: 20 | B52: =IF(A52>$B$30,NA(),IF($A52>$A$8,"",OFFSET(InputPriceData!$B$15,$A52+$A$11,0,1,1))) -> 2021-07-12 | C52: =IF(A52>$B$30,NA(),IF($A52>$A$8,"",OFFSET(InputPriceData!$G$15,CalculationsAndCharts!$A52+$A$11,IF($C$5,8,0),1,1))) -> 52889600 | D52: =IF(A52>$B$30,NA(),IF(A52>$A$8,"",OFFSET(InputPriceData!$C$15,CalculationsAndCharts!$A52+$A$11,IF($C$5,8,0),1,1))) -> 435.429993 | E52: =IF(A52>$B$30,NA(),IF(A52>$A$8,"",OFFSET(InputPriceData!$D$15,CalculationsAndCharts!$A52+$A$11,IF($C$5,8,0),1,1))) -> 437.350006 | F52: =IF(A52>$B$30,NA(),IF(A52>$A$8,"",OFFSET(InputPriceData!$E$15,CalculationsAndCharts!$A52+$A$11,IF($C$5,8,0),1,1))) -> 434.970001 | G52: =IF(A52>$B$30,NA(),IF(A52>$A$8,"",OFFSET(InputPriceData!$F$15,CalculationsAndCharts!$A52+$A$11,IF($C$5,8,0),1,1))) -> 437.079987 | H52: 436.4666647 | I52: 0.005613725093 | J52: 0.004739094085 | K52: 0.4142726362 | L52: 75542420.77 | M52: 188856051.9 | N52: 52889600 | O52: 2.443339333 | P52: 52889600 | Q52: 20.55313669 | R52: 19.43905243 | S52: 18.65927685 | T52: 17.78270506 | U52: 7 | V52: 2.380005 | W52: 3.515946439 | X52: -13.68496531 | Y52: 11.56353989 | Z52: =IF($A52>$B$30,NA(),IF($A52>$A$8,"",OFFSET(InputIndexData!$B$15,$A52+$A$11,0,1,1))) -> 2021-07-12 | AA52: =IF($A52>$B$30,NA(),IF($A52>$A$8,"",OFFSET(InputIndexData!$G$15,CalculationsAndCharts!$A52+$A$11,IF($C$5,8,0),1,1))) -> 0 | AB52: =IF($A52>$B$30,NA(),IF($A52>$A$8,"",OFFSET(InputIndexData!$C$15,CalculationsAndCharts!$A52+$A$11,IF($C$5,8,0),1,1))) -> 16.85 | AC52: =IF($A52>$B$30,NA(),IF($A52>$A$8,"",OFFSET(InputIndexData!$D$15,CalculationsAndCharts!$A52+$A$11,IF($C$5,8,0),1,1))) -> 17.52 | AD52: =IF($A52>$B$30,NA(),IF($A52>$A$8,"",OFFSET(InputIndexData!$E$15,CalculationsAndCharts!$A52+$A$11,IF($C$5,8,0),1,1))) -> 16.139999 | AE52: =IF($A52>$B$30,NA(),IF($A52>$A$8,"",OFFSET(InputIndexData!$F$15,CalculationsAndCharts!$A52+$A$11,IF($C$5,8,0),1,1))) -> 16.17 | AF52: -21.88406174 | AG52: 7.299270073 | AH52: TRUE | AI52: TRUE | AJ52: FALSE | AK52: FALSE | AL52: FALSE | AM52: FALSE | AN52: 3.51359826 | AO52: 10.54079478 | AT52: TRUE | AW52: 52889600 | BN52: -20 | BO52: 19.43905243 | BQ52: -39.43905243 | BR52: -19.43905243 | BT52: FALSE | BU52: FALSE
A53: 21 | B53: =IF(A53>$B$30,NA(),IF($A53>$A$8,"",OFFSET(InputPriceData!$B$15,$A53+$A$11,0,1,1))) -> 2021-07-09 | C53: =IF(A53>$B$30,NA(),IF($A53>$A$8,"",OFFSET(InputPriceData!$G$15,CalculationsAndCharts!$A53+$A$11,IF($C$5,8,0),1,1))) -> 76238600 | D53: =IF(A53>$B$30,NA(),IF(A53>$A$8,"",OFFSET(InputPriceData!$C$15,CalculationsAndCharts!$A53+$A$11,IF($C$5,8,0),1,1))) -> 432.529999 | E53: =IF(A53>$B$30,NA(),IF(A53>$A$8,"",OFFSET(InputPriceData!$D$15,CalculationsAndCharts!$A53+$A$11,IF($C$5,8,0),1,1))) -> 435.839996 | F53: =IF(A53>$B$30,NA(),IF(A53>$A$8,"",OFFSET(InputPriceData!$E$15,CalculationsAndCharts!$A53+$A$11,IF($C$5,8,0),1,1))) -> 430.709991 | G53: =IF(A53>$B$30,NA(),IF(A53>$A$8,"",OFFSET(InputPriceData!$F$15,CalculationsAndCharts!$A53+$A$11,IF($C$5,8,0),1,1))) -> 435.519989 | H53: 434.0233253 | I53: 0.009181284637 | J53: 0.004673814089 | K53: 0.4071078922 | L53: 75559975.38 | M53: 188899938.5 | N53: 76238600 | O53: 3.966654333 | P53: 76238600 | Q53: 18.38980615 | R53: 18.8820103 | S53: 18.30566831 | T53: 17.59866646 | U53: 7 | V53: 5.130005 | W53: 3.597085113 | X53: -11.69304433 | Y53: 14.13812908 | Z53: =IF($A53>$B$30,NA(),IF($A53>$A$8,"",OFFSET(InputIndexData!$B$15,$A53+$A$11,0,1,1))) -> 2021-07-09 | AA53: =IF($A53>$B$30,NA(),IF($A53>$A$8,"",OFFSET(InputIndexData!$G$15,CalculationsAndCharts!$A53+$A$11,IF($C$5,8,0),1,1))) -> 0 | AB53: =IF($A53>$B$30,NA(),IF($A53>$A$8,"",OFFSET(InputIndexData!$C$15,CalculationsAndCharts!$A53+$A$11,IF($C$5,8,0),1,1))) -> 17.879999 | AC53: =IF($A53>$B$30,NA(),IF($A53>$A$8,"",OFFSET(InputIndexData!$D$15,CalculationsAndCharts!$A53+$A$11,IF($C$5,8,0),1,1))) -> 18.129999 | AD53: =IF($A53>$B$30,NA(),IF($A53>$A$8,"",OFFSET(InputIndexData!$E$15,CalculationsAndCharts!$A53+$A$11,IF($C$5,8,0),1,1))) -> 16.08 | AE53: =IF($A53>$B$30,NA(),IF($A53>$A$8,"",OFFSET(InputIndexData!$F$15,CalculationsAndCharts!$A53+$A$11,IF($C$5,8,0),1,1))) -> 16.18 | AF53: -21.83575257 | AG53: 7.365627074 | AH53: TRUE | AI53: TRUE | AJ53: FALSE | AK53: FALSE | AL53: FALSE | AM53: FALSE | AN53: 3.639553066 | AO53: 10.9186592 | AT53: TRUE | AW53: 76238600 | BN53: -20 | BO53: 18.8820103 | BQ53: -38.8820103 | BR53: -18.8820103 | BT53: FALSE | BU53: FALSE
A54: 22 | B54: =IF(A54>$B$30,NA(),IF($A54>$A$8,"",OFFSET(InputPriceData!$B$15,$A54+$A$11,0,1,1))) -> 2021-07-08 | C54: =IF(A54>$B$30,NA(),IF($A54>$A$8,"",OFFSET(InputPriceData!$G$15,CalculationsAndCharts!$A54+$A$11,IF($C$5,8,0),1,1))) -> 97595200 | D54: =IF(A54>$B$30,NA(),IF(A54>$A$8,"",OFFSET(InputPriceData!$C$15,CalculationsAndCharts!$A54+$A$11,IF($C$5,8,0),1,1))) -> 428.779999 | E54: =IF(A54>$B$30,NA(),IF(A54>$A$8,"",OFFSET(InputPriceData!$D$15,CalculationsAndCharts!$A54+$A$11,IF($C$5,8,0),1,1))) -> 431.730011 | F54: =IF(A54>$B$30,NA(),IF(A54>$A$8,"",OFFSET(InputPriceData!$E$15,CalculationsAndCharts!$A54+$A$11,IF($C$5,8,0),1,1))) -> 427.519989 | G54: =IF(A54>$B$30,NA(),IF(A54>$A$8,"",OFFSET(InputPriceData!$F$15,CalculationsAndCharts!$A54+$A$11,IF($C$5,8,0),1,1))) -> 430.920013 | H54: 430.056671 | I54: -0.008151651069 | J54: 0.004435681943 | K54: 0.3822848241 | L54: 75189668.46 | M54: 187974171.2 | N54: 97595200 | O54: -3.519999333 | P54: -97595200 | Q54: 18.51072665 | R54: 19.12811237 | S54: 18.01268099 | T54: 17.4560727 | U54: 7 | V54: 6.940002 | W54: 3.487590836 | X54: -14.38108368 | Y54: 10.66379595 | Z54: =IF($A54>$B$30,NA(),IF($A54>$A$8,"",OFFSET(InputIndexData!$B$15,$A54+$A$11,0,1,1))) -> 2021-07-08 | AA54: =IF($A54>$B$30,NA(),IF($A54>$A$8,"",OFFSET(InputIndexData!$G$15,CalculationsAndCharts!$A54+$A$11,IF($C$5,8,0),1,1))) -> 0 | AB54: =IF($A54>$B$30,NA(),IF($A54>$A$8,"",OFFSET(InputIndexData!$C$15,CalculationsAndCharts!$A54+$A$11,IF($C$5,8,0),1,1))) -> 17.74 | AC54: =IF($A54>$B$30,NA(),IF($A54>$A$8,"",OFFSET(InputIndexData!$D$15,CalculationsAndCharts!$A54+$A$11,IF($C$5,8,0),1,1))) -> 21.290001 | AD54: =IF($A54>$B$30,NA(),IF($A54>$A$8,"",OFFSET(InputIndexData!$E$15,CalculationsAndCharts!$A54+$A$11,IF($C$5,8,0),1,1))) -> 17.74 | AE54: =IF($A54>$B$30,NA(),IF($A54>$A$8,"",OFFSET(InputIndexData!$F$15,CalculationsAndCharts!$A54+$A$11,IF($C$5,8,0),1,1))) -> 19 | AF54: -8.212564821 | AG54: 26.07830126 | AH54: TRUE | AI54: TRUE | AJ54: FALSE | AK54: FALSE | AL54: FALSE | AM54: FALSE | AN54: 3.473947296 | AO54: 10.42184189 | AT54: TRUE | AW54: 97595200 | BN54: -20 | BO54: 19.12811237 | BQ54: -39.12811237 | BR54: -19.12811237 | BT54: FALSE | BU54: FALSE
A55: 23 | B55: =IF(A55>$B$30,NA(),IF($A55>$A$8,"",OFFSET(InputPriceData!$B$15,$A55+$A$11,0,1,1))) -> 2021-07-07 | C55: =IF(A55>$B$30,NA(),IF($A55>$A$8,"",OFFSET(InputPriceData!$G$15,CalculationsAndCharts!$A55+$A$11,IF($C$5,8,0),1,1))) -> 63549500 | D55: =IF(A55>$B$30,NA(),IF(A55>$A$8,"",OFFSET(InputPriceData!$C$15,CalculationsAndCharts!$A55+$A$11,IF($C$5,8,0),1,1))) -> 433.660004 | E55: =IF(A55>$B$30,NA(),IF(A55>$A$8,"",OFFSET(InputPriceData!$D$15,CalculationsAndCharts!$A55+$A$11,IF($C$5,8,0),1,1))) -> 434.76001 | F55: =IF(A55>$B$30,NA(),IF(A55>$A$8,"",OFFSET(InputPriceData!$E$15,CalculationsAndCharts!$A55+$A$11,IF($C$5,8,0),1,1))) -> 431.51001 | G55: =IF(A55>$B$30,NA(),IF(A55>$A$8,"",OFFSET(InputPriceData!$F$15,CalculationsAndCharts!$A55+$A$11,IF($C$5,8,0),1,1))) -> 434.459991 | H55: 433.5766703 | I55: 0.002910289669 | J55: 0.004111988075 | K55: 0.3572988604 | L55: 75113753.08 | M55: 187784382.7 | N55: 63549500 | O55: 1.259999333 | P55: 63549500 | Q55: 19.82873361 | R55: 19.43680523 | S55: 17.69957189 | T55: 17.27029051 | U55: 7 | V55: 3.25 | W55: 3.240990038 | X55: -23.2225734 | Y55: 2.838973136 | Z55: =IF($A55>$B$30,NA(),IF($A55>$A$8,"",OFFSET(InputIndexData!$B$15,$A55+$A$11,0,1,1))) -> 2021-07-07 | AA55: =IF($A55>$B$30,NA(),IF($A55>$A$8,"",OFFSET(InputIndexData!$G$15,CalculationsAndCharts!$A55+$A$11,IF($C$5,8,0),1,1))) -> 0 | AB55: =IF($A55>$B$30,NA(),IF($A55>$A$8,"",OFFSET(InputIndexData!$C$15,CalculationsAndCharts!$A55+$A$11,IF($C$5,8,0),1,1))) -> 16.43 | AC55: =IF($A55>$B$30,NA(),IF($A55>$A$8,"",OFFSET(InputIndexData!$D$15,CalculationsAndCharts!$A55+$A$11,IF($C$5,8,0),1,1))) -> 17.639999 | AD55: =IF($A55>$B$30,NA(),IF($A55>$A$8,"",OFFSET(InputIndexData!$E$15,CalculationsAndCharts!$A55+$A$11,IF($C$5,8,0),1,1))) -> 16.08 | AE55: =IF($A55>$B$30,NA(),IF($A55>$A$8,"",OFFSET(InputIndexData!$F$15,CalculationsAndCharts!$A55+$A$11,IF($C$5,8,0),1,1))) -> 16.200001 | AF55: -21.73912938 | AG55: 7.498347711 | AH55: TRUE | AI55: TRUE | AJ55: FALSE | AK55: FALSE | AL55: FALSE | AM55: FALSE | AN55: 3.088830106 | AO55: 9.266490319 | AT55: TRUE | AW55: 63549500 | BN55: -20 | BO55: 19.43680523 | BQ55: -39.43680523 | BR55: -19.43680523 | BT55: FALSE | BU55: FALSE
A56: 24 | B56: =IF(A56>$B$30,NA(),IF($A56>$A$8,"",OFFSET(InputPriceData!$B$15,$A56+$A$11,0,1,1))) -> 2021-07-06 | C56: =IF(A56>$B$30,NA(),IF($A56>$A$8,"",OFFSET(InputPriceData!$G$15,CalculationsAndCharts!$A56+$A$11,IF($C$5,8,0),1,1))) -> 68710400 | D56: =IF(A56>$B$30,NA(),IF(A56>$A$8,"",OFFSET(InputPriceData!$C$15,CalculationsAndCharts!$A56+$A$11,IF($C$5,8,0),1,1))) -> 433.779999 | E56: =IF(A56>$B$30,NA(),IF(A56>$A$8,"",OFFSET(InputPriceData!$D$15,CalculationsAndCharts!$A56+$A$11,IF($C$5,8,0),1,1))) -> 434.01001 | F56: =IF(A56>$B$30,NA(),IF(A56>$A$8,"",OFFSET(InputPriceData!$E$15,CalculationsAndCharts!$A56+$A$11,IF($C$5,8,0),1,1))) -> 430.01001 | G56: =IF(A56>$B$30,NA(),IF(A56>$A$8,"",OFFSET(InputPriceData!$F$15,CalculationsAndCharts!$A56+$A$11,IF($C$5,8,0),1,1))) -> 432.929993 | H56: 432.316671 | I56: -0.001071158235 | J56: 0.004241868555 | K56: 0.3672864248 | L56: 74885214.62 | M56: 187213036.5 | N56: 68710400 | O56: -0.4633276667 | P56: -68710400 | Q56: 19.04062247 | R56: 19.24084105 | S56: 17.35470945 | T56: 17.02956666 | U56: 7 | V56: 4 | W56: 3.240346469 | X56: -24.13804209 | Y56: 2.818552232 | Z56: =IF($A56>$B$30,NA(),IF($A56>$A$8,"",OFFSET(InputIndexData!$B$15,$A56+$A$11,0,1,1))) -> 2021-07-06 | AA56: =IF($A56>$B$30,NA(),IF($A56>$A$8,"",OFFSET(InputIndexData!$G$15,CalculationsAndCharts!$A56+$A$11,IF($C$5,8,0),1,1))) -> 0 | AB56: =IF($A56>$B$30,NA(),IF($A56>$A$8,"",OFFSET(InputIndexData!$C$15,CalculationsAndCharts!$A56+$A$11,IF($C$5,8,0),1,1))) -> 15.77 | AC56: =IF($A56>$B$30,NA(),IF($A56>$A$8,"",OFFSET(InputIndexData!$D$15,CalculationsAndCharts!$A56+$A$11,IF($C$5,8,0),1,1))) -> 17.940001 | AD56: =IF($A56>$B$30,NA(),IF($A56>$A$8,"",OFFSET(InputIndexData!$E$15,CalculationsAndCharts!$A56+$A$11,IF($C$5,8,0),1,1))) -> 15.73 | AE56: =IF($A56>$B$30,NA(),IF($A56>$A$8,"",OFFSET(InputIndexData!$F$15,CalculationsAndCharts!$A56+$A$11,IF($C$5,8,0),1,1))) -> 16.440001 | AF56: -20.57970915 | AG56: 9.090915727 | AH56: TRUE | AI56: TRUE | AJ56: FALSE | AK56: FALSE | AL56: FALSE | AM56: FALSE | AN56: 3.070922341 | AO56: 9.212767022 | AT56: TRUE | AX56: 68710400 | BN56: -20 | BO56: 19.24084105 | BQ56: -39.24084105 | BR56: -19.24084105 | BT56: FALSE | BU56: FALSE
A57: 25 | B57: =IF(A57>$B$30,NA(),IF($A57>$A$8,"",OFFSET(InputPriceData!$B$15,$A57+$A$11,0,1,1))) -> 2021-07-02 | C57: =IF(A57>$B$30,NA(),IF($A57>$A$8,"",OFFSET(InputPriceData!$G$15,CalculationsAndCharts!$A57+$A$11,IF($C$5,8,0),1,1))) -> 57697700 | D57: =IF(A57>$B$30,NA(),IF(A57>$A$8,"",OFFSET(InputPriceData!$C$15,CalculationsAndCharts!$A57+$A$11,IF($C$5,8,0),1,1))) -> 431.670013 | E57: =IF(A57>$B$30,NA(),IF(A57>$A$8,"",OFFSET(InputPriceData!$D$15,CalculationsAndCharts!$A57+$A$11,IF($C$5,8,0),1,1))) -> 434.100006 | F57: =IF(A57>$B$30,NA(),IF(A57>$A$8,"",OFFSET(InputPriceData!$E$15,CalculationsAndCharts!$A57+$A$11,IF($C$5,8,0),1,1))) -> 430.519989 | G57: =IF(A57>$B$30,NA(),IF(A57>$A$8,"",OFFSET(InputPriceData!$F$15,CalculationsAndCharts!$A57+$A$11,IF($C$5,8,0),1,1))) -> 433.720001 | H57: 432.7799987 | I57: 0.006576105684 | J57: 0.004232053113 | K57: 0.3671052161 | L57: 74644908.46 | M57: 186612271.2 | N57: 57697700 | O57: 2.836669667 | P57: 57697700 | Q57: 20.54489625 | R57: 19.34095034 | S57: 17.01955416 | T57: 16.7838695 | U57: 7 | V57: 3.670013 | W57: 3.186085503 | X57: -28.18423205 | Y57: 1.096812268 | Z57: =IF($A57>$B$30,NA(),IF($A57>$A$8,"",OFFSET(InputIndexData!$B$15,$A57+$A$11,0,1,1))) -> 2021-07-02 | AA57: =IF($A57>$B$30,NA(),IF($A57>$A$8,"",OFFSET(InputIndexData!$G$15,CalculationsAndCharts!$A57+$A$11,IF($C$5,8,0),1,1))) -> 0 | AB57: =IF($A57>$B$30,NA(),IF($A57>$A$8,"",OFFSET(InputIndexData!$C$15,CalculationsAndCharts!$A57+$A$11,IF($C$5,8,0),1,1))) -> 15.53 | AC57: =IF($A57>$B$30,NA(),IF($A57>$A$8,"",OFFSET(InputIndexData!$D$15,CalculationsAndCharts!$A57+$A$11,IF($C$5,8,0),1,1))) -> 15.54 | AD57: =IF($A57>$B$30,NA(),IF($A57>$A$8,"",OFFSET(InputIndexData!$E$15,CalculationsAndCharts!$A57+$A$11,IF($C$5,8,0),1,1))) -> 14.25 | AE57: =IF($A57>$B$30,NA(),IF($A57>$A$8,"",OFFSET(InputIndexData!$F$15,CalculationsAndCharts!$A57+$A$11,IF($C$5,8,0),1,1))) -> 15.07 | AF57: -27.19807115 | AG57: -2.648578811 | AH57: TRUE | AI57: TRUE | AJ57: FALSE | AK57: FALSE | AL57: FALSE | AM57: FALSE | AN57: 2.967691489 | AO57: 8.903074468 | AT57: TRUE | AW57: 57697700 | BN57: -20 | BO57: 19.34095034 | BQ57: -39.34095034 | BR57: -19.34095034 | BT57: FALSE | BU57: FALSE
A58: 26 | B58: =IF(A58>$B$30,NA(),IF($A58>$A$8,"",OFFSET(InputPriceData!$B$15,$A58+$A$11,0,1,1))) -> 2021-07-01 | C58: =IF(A58>$B$30,NA(),IF($A58>$A$8,"",OFFSET(InputPriceData!$G$15,CalculationsAndCharts!$A58+$A$11,IF($C$5,8,0),1,1))) -> 53441000 | D58: =IF(A58>$B$30,NA(),IF(A58>$A$8,"",OFFSET(InputPriceData!$C$15,CalculationsAndCharts!$A58+$A$11,IF($C$5,8,0),1,1))) -> 428.869995 | E58: =IF(A58>$B$30,NA(),IF(A58>$A$8,"",OFFSET(InputPriceData!$D$15,CalculationsAndCharts!$A58+$A$11,IF($C$5,8,0),1,1))) -> 430.600006 | F58: =IF(A58>$B$30,NA(),IF(A58>$A$8,"",OFFSET(InputPriceData!$E$15,CalculationsAndCharts!$A58+$A$11,IF($C$5,8,0),1,1))) -> 428.799988 | G58: =IF(A58>$B$30,NA(),IF(A58>$A$8,"",OFFSET(InputPriceData!$F$15,CalculationsAndCharts!$A58+$A$11,IF($C$5,8,0),1,1))) -> 430.429993 | H58: 429.943329 | I58: 0.004514642982 | J58: 0.004649109099 | K58: 0.4002231994 | L58: 74589219.23 | M58: 186473048.1 | N58: 53441000 | O58: 1.936665667 | P58: 53441000 | Q58: 19.78669592 | R58: 18.73897738 | S58: 16.65071539 | T58: 16.49974941 | U58: 7 | V58: 2.540008 | W58: 3.151519253 | X58: -31.92953107 | Y58: -1.367031609 | Z58: =IF($A58>$B$30,NA(),IF($A58>$A$8,"",OFFSET(InputIndexData!$B$15,$A58+$A$11,0,1,1))) -> 2021-07-01 | AA58: =IF($A58>$B$30,NA(),IF($A58>$A$8,"",OFFSET(InputIndexData!$G$15,CalculationsAndCharts!$A58+$A$11,IF($C$5,8,0),1,1))) -> 0 | AB58: =IF($A58>$B$30,NA(),IF($A58>$A$8,"",OFFSET(InputIndexData!$C$15,CalculationsAndCharts!$A58+$A$11,IF($C$5,8,0),1,1))) -> 15.62 | AC58: =IF($A58>$B$30,NA(),IF($A58>$A$8,"",OFFSET(InputIndexData!$D$15,CalculationsAndCharts!$A58+$A$11,IF($C$5,8,0),1,1))) -> 16.01 | AD58: =IF($A58>$B$30,NA(),IF($A58>$A$8,"",OFFSET(InputIndexData!$E$15,CalculationsAndCharts!$A58+$A$11,IF($C$5,8,0),1,1))) -> 15.31 | AE58: =IF($A58>$B$30,NA(),IF($A58>$A$8,"",OFFSET(InputIndexData!$F$15,CalculationsAndCharts!$A58+$A$11,IF($C$5,8,0),1,1))) -> 15.48 | AF58: -25.21739492 | AG58: -0.8962868118 | AH58: TRUE | AI58: TRUE | AJ58: FALSE | AK58: FALSE | AL58: FALSE | AM58: FALSE | AN58: 2.889655766 | AO58: 8.668967298 | AT58: TRUE | AW58: 53441000 | BN58: -20 | BO58: 18.73897738 | BQ58: -38.73897738 | BR58: -18.73897738 | BT58: FALSE | BU58: FALSE
A59: 27 | B59: =IF(A59>$B$30,NA(),IF($A59>$A$8,"",OFFSET(InputPriceData!$B$15,$A59+$A$11,0,1,1))) -> 2021-06-30 | C59: =IF(A59>$B$30,NA(),IF($A59>$A$8,"",OFFSET(InputPriceData!$G$15,CalculationsAndCharts!$A59+$A$11,IF($C$5,8,0),1,1))) -> 64827900 | D59: =IF(A59>$B$30,NA(),IF(A59>$A$8,"",OFFSET(InputPriceData!$C$15,CalculationsAndCharts!$A59+$A$11,IF($C$5,8,0),1,1))) -> 427.209991 | E59: =IF(A59>$B$30,NA(),IF(A59>$A$8,"",OFFSET(InputPriceData!$D$15,CalculationsAndCharts!$A59+$A$11,IF($C$5,8,0),1,1))) -> 428.779999 | F59: =IF(A59>$B$30,NA(),IF(A59>$A$8,"",OFFSET(InputPriceData!$E$15,CalculationsAndCharts!$A59+$A$11,IF($C$5,8,0),1,1))) -> 427.179993 | G59: =IF(A59>$B$30,NA(),IF(A59>$A$8,"",OFFSET(InputPriceData!$F$15,CalculationsAndCharts!$A59+$A$11,IF($C$5,8,0),1,1))) -> 428.059998 | H59: 428.0066633 | I59: 0.0004907474937 | J59: 0.005075148232 | K59: 0.4344935884 | L59: 74459381.54 | M59: 186148453.8 | N59: 64827900 | O59: 0.2099916667 | P59: 0 | Q59: 19.7239699 | R59: 18.21511811 | S59: 16.38810813 | T59: 16.2509463 | U59: 6 | V59: 1.600006 | W59: 3.195198628 | X59: -33.82417717 | Y59: -3.443260109 | Z59: =IF($A59>$B$30,NA(),IF($A59>$A$8,"",OFFSET(InputIndexData!$B$15,$A59+$A$11,0,1,1))) -> 2021-06-30 | AA59: =IF($A59>$B$30,NA(),IF($A59>$A$8,"",OFFSET(InputIndexData!$G$15,CalculationsAndCharts!$A59+$A$11,IF($C$5,8,0),1,1))) -> 0 | AB59: =IF($A59>$B$30,NA(),IF($A59>$A$8,"",OFFSET(InputIndexData!$C$15,CalculationsAndCharts!$A59+$A$11,IF($C$5,8,0),1,1))) -> 16.18 | AC59: =IF($A59>$B$30,NA(),IF($A59>$A$8,"",OFFSET(InputIndexData!$D$15,CalculationsAndCharts!$A59+$A$11,IF($C$5,8,0),1,1))) -> 17.309999 | AD59: =IF($A59>$B$30,NA(),IF($A59>$A$8,"",OFFSET(InputIndexData!$E$15,CalculationsAndCharts!$A59+$A$11,IF($C$5,8,0),1,1))) -> 15.58 | AE59: =IF($A59>$B$30,NA(),IF($A59>$A$8,"",OFFSET(InputIndexData!$F$15,CalculationsAndCharts!$A59+$A$11,IF($C$5,8,0),1,1))) -> 15.83 | AF59: -23.52657374 | AG59: 1.344430218 | AH59: TRUE | AI59: TRUE | AJ59: FALSE | AK59: FALSE | AL59: FALSE | AM59: FALSE | AN59: 2.928505518 | AO59: 8.785516554 | AT59: TRUE | AW59: 64827900 | BN59: -20 | BO59: 18.21511811 | BQ59: -38.21511811 | BR59: -18.21511811 | BT59: FALSE | BU59: FALSE
A60: 28 | B60: =IF(A60>$B$30,NA(),IF($A60>$A$8,"",OFFSET(InputPriceData!$B$15,$A60+$A$11,0,1,1))) -> 2021-06-29 | C60: =IF(A60>$B$30,NA(),IF($A60>$A$8,"",OFFSET(InputPriceData!$G$15,CalculationsAndCharts!$A60+$A$11,IF($C$5,8,0),1,1))) -> 35970500 | D60: =IF(A60>$B$30,NA(),IF(A60>$A$8,"",OFFSET(InputPriceData!$C$15,CalculationsAndCharts!$A60+$A$11,IF($C$5,8,0),1,1))) -> 427.880005 | E60: =IF(A60>$B$30,NA(),IF(A60>$A$8,"",OFFSET(InputPriceData!$D$15,CalculationsAndCharts!$A60+$A$11,IF($C$5,8,0),1,1))) -> 428.559998 | F60: =IF(A60>$B$30,NA(),IF(A60>$A$8,"",OFFSET(InputPriceData!$E$15,CalculationsAndCharts!$A60+$A$11,IF($C$5,8,0),1,1))) -> 427.130005 | G60: =IF(A60>$B$30,NA(),IF(A60>$A$8,"",OFFSET(InputPriceData!$F$15,CalculationsAndCharts!$A60+$A$11,IF($C$5,8,0),1,1))) -> 427.700012 | H60: 427.7966717 | I60: 0.001856189097 | J60: 0.005172869681 | K60: 0.4424872849 | L60: 74924121.54 | M60: 187310303.8 | N60: 35970500 | O60: 0.793335 | P60: 35970500 | Q60: 18.96165842 | R60: 17.46069221 | S60: 16.20514853 | T60: 16.03270499 | U60: 6 | V60: 1.429993 | W60: 3.309140959 | X60: -33.1826211 | Y60: -1.010436273 | Z60: =IF($A60>$B$30,NA(),IF($A60>$A$8,"",OFFSET(InputIndexData!$B$15,$A60+$A$11,0,1,1))) -> 2021-06-29 | AA60: =IF($A60>$B$30,NA(),IF($A60>$A$8,"",OFFSET(InputIndexData!$G$15,CalculationsAndCharts!$A60+$A$11,IF($C$5,8,0),1,1))) -> 0 | AB60: =IF($A60>$B$30,NA(),IF($A60>$A$8,"",OFFSET(InputIndexData!$C$15,CalculationsAndCharts!$A60+$A$11,IF($C$5,8,0),1,1))) -> 15.69 | AC60: =IF($A60>$B$30,NA(),IF($A60>$A$8,"",OFFSET(InputIndexData!$D$15,CalculationsAndCharts!$A60+$A$11,IF($C$5,8,0),1,1))) -> 16.309999 | AD60: =IF($A60>$B$30,NA(),IF($A60>$A$8,"",OFFSET(InputIndexData!$E$15,CalculationsAndCharts!$A60+$A$11,IF($C$5,8,0),1,1))) -> 14.1 | AE60: =IF($A60>$B$30,NA(),IF($A60>$A$8,"",OFFSET(InputIndexData!$F$15,CalculationsAndCharts!$A60+$A$11,IF($C$5,8,0),1,1))) -> 16.02 | AF60: -22.60869939 | AG60: 2.560819462 | AH60: TRUE | AI60: TRUE | AJ60: FALSE | AK60: FALSE | AL60: FALSE | AM60: FALSE | AN60: 3.076116575 | AO60: 9.228349726 | AT60: TRUE | AX60: 35970500 | BN60: -20 | BO60: 17.46069221 | BQ60: -37.46069221 | BR60: -17.46069221 | BT60: FALSE | BU60: FALSE
A61: 29 | B61: =IF(A61>$B$30,NA(),IF($A61>$A$8,"",OFFSET(InputPriceData!$B$15,$A61+$A$11,0,1,1))) -> 2021-06-28 | C61: =IF(A61>$B$30,NA(),IF($A61>$A$8,"",OFFSET(InputPriceData!$G$15,CalculationsAndCharts!$A61+$A$11,IF($C$5,8,0),1,1))) -> 53159600 | D61: =IF(A61>$B$30,NA(),IF(A61>$A$8,"",OFFSET(InputPriceData!$C$15,CalculationsAndCharts!$A61+$A$11,IF($C$5,8,0),1,1))) -> 427.170013 | E61: =IF(A61>$B$30,NA(),IF(A61>$A$8,"",OFFSET(InputPriceData!$D$15,CalculationsAndCharts!$A61+$A$11,IF($C$5,8,0),1,1))) -> 427.649994 | F61: =IF(A61>$B$30,NA(),IF(A61>$A$8,"",OFFSET(InputPriceData!$E$15,CalculationsAndCharts!$A61+$A$11,IF($C$5,8,0),1,1))) -> 425.890015 | G61: =IF(A61>$B$30,NA(),IF(A61>$A$8,"",OFFSET(InputPriceData!$F$15,CalculationsAndCharts!$A61+$A$11,IF($C$5,8,0),1,1))) -> 427.470001 | H61: 427.0033367 | I61: 0.001374892622 | J61: 0.005190906813 | K61: 0.4437913881 | L61: 75565526.92 | M61: 188913817.3 | N61: 53159600 | O61: 0.5866803333 | P61: 53159600 | Q61: 18.32469323 | R61: 16.71020911 | S61: 16.12424426 | T61: 15.87403974 | U61: 6 | V61: 1.759979 | W61: 3.443365813 | X61: -30.47238511 | Y61: 3.004762815 | Z61: =IF($A61>$B$30,NA(),IF($A61>$A$8,"",OFFSET(InputIndexData!$B$15,$A61+$A$11,0,1,1))) -> 2021-06-28 | AA61: =IF($A61>$B$30,NA(),IF($A61>$A$8,"",OFFSET(InputIndexData!$G$15,CalculationsAndCharts!$A61+$A$11,IF($C$5,8,0),1,1))) -> 0 | AB61: =IF($A61>$B$30,NA(),IF($A61>$A$8,"",OFFSET(InputIndexData!$C$15,CalculationsAndCharts!$A61+$A$11,IF($C$5,8,0),1,1))) -> 16.07 | AC61: =IF($A61>$B$30,NA(),IF($A61>$A$8,"",OFFSET(InputIndexData!$D$15,CalculationsAndCharts!$A61+$A$11,IF($C$5,8,0),1,1))) -> 16.459999 | AD61: =IF($A61>$B$30,NA(),IF($A61>$A$8,"",OFFSET(InputIndexData!$E$15,CalculationsAndCharts!$A61+$A$11,IF($C$5,8,0),1,1))) -> 15.39 | AE61: =IF($A61>$B$30,NA(),IF($A61>$A$8,"",OFFSET(InputIndexData!$F$15,CalculationsAndCharts!$A61+$A$11,IF($C$5,8,0),1,1))) -> 15.76 | AF61: -23.86473798 | AG61: 0.8962868118 | AH61: TRUE | AI61: TRUE | AJ61: FALSE | AK61: FALSE | AL61: FALSE | AM61: FALSE | AN61: 3.259019195 | AO61: 9.777057585 | AT61: TRUE | AW61: 53159600 | BN61: -20 | BO61: 16.71020911 | BQ61: -36.71020911 | BR61: -16.71020911 | BT61: FALSE | BU61: FALSE
A62: 30 | B62: =IF(A62>$B$30,NA(),IF($A62>$A$8,"",OFFSET(InputPriceData!$B$15,$A62+$A$11,0,1,1))) -> 2021-06-25 | C62: =IF(A62>$B$30,NA(),IF($A62>$A$8,"",OFFSET(InputPriceData!$G$15,CalculationsAndCharts!$A62+$A$11,IF($C$5,8,0),1,1))) -> 58129500 | D62: =IF(A62>$B$30,NA(),IF(A62>$A$8,"",OFFSET(InputPriceData!$C$15,CalculationsAndCharts!$A62+$A$11,IF($C$5,8,0),1,1))) -> 425.899994 | E62: =IF(A62>$B$30,NA(),IF(A62>$A$8,"",OFFSET(InputPriceData!$D$15,CalculationsAndCharts!$A62+$A$11,IF($C$5,8,0),1,1))) -> 427.089996 | F62: =IF(A62>$B$30,NA(),IF(A62>$A$8,"",OFFSET(InputPriceData!$E$15,CalculationsAndCharts!$A62+$A$11,IF($C$5,8,0),1,1))) -> 425.549988 | G62: =IF(A62>$B$30,NA(),IF(A62>$A$8,"",OFFSET(InputPriceData!$F$15,CalculationsAndCharts!$A62+$A$11,IF($C$5,8,0),1,1))) -> 426.609985 | H62: 426.4166563 | I62: 0.003116032198 | J62: 0.005715750906 | K62: 0.4876792816 | L62: 75611603.85 | M62: 189029009.6 | N62: 58129500 | O62: 1.32666 | P62: 58129500 | Q62: 15.80462706 | R62: 15.90296704 | S62: 16.10442722 | T62: 15.78113204 | U62: 6 | V62: 1.98999 | W62: 3.563607728 | X62: -28.8089076 | Y62: 6.6016766 | Z62: =IF($A62>$B$30,NA(),IF($A62>$A$8,"",OFFSET(InputIndexData!$B$15,$A62+$A$11,0,1,1))) -> 2021-06-25 | AA62: =IF($A62>$B$30,NA(),IF($A62>$A$8,"",OFFSET(InputIndexData!$G$15,CalculationsAndCharts!$A62+$A$11,IF($C$5,8,0),1,1))) -> 0 | AB62: =IF($A62>$B$30,NA(),IF($A62>$A$8,"",OFFSET(InputIndexData!$C$15,CalculationsAndCharts!$A62+$A$11,IF($C$5,8,0),1,1))) -> 16.040001 | AC62: =IF($A62>$B$30,NA(),IF($A62>$A$8,"",OFFSET(InputIndexData!$D$15,CalculationsAndCharts!$A62+$A$11,IF($C$5,8,0),1,1))) -> 16.17 | AD62: =IF($A62>$B$30,NA(),IF($A62>$A$8,"",OFFSET(InputIndexData!$E$15,CalculationsAndCharts!$A62+$A$11,IF($C$5,8,0),1,1))) -> 15.21 | AE62: =IF($A62>$B$30,NA(),IF($A62>$A$8,"",OFFSET(InputIndexData!$F$15,CalculationsAndCharts!$A62+$A$11,IF($C$5,8,0),1,1))) -> 15.62 | AF62: -24.54106645 | AG62: -0.1916932907 | AH62: TRUE | AI62: TRUE | AJ62: FALSE | AK62: FALSE | AL62: FALSE | AM62: FALSE | AN62: 3.425579217 | AO62: 10.27673765 | AT62: TRUE | AW62: 58129500 | BN62: -20 | BO62: 15.90296704 | BQ62: -35.90296704 | BR62: -15.90296704 | BT62: FALSE | BU62: FALSE
A63: 31 | B63: =IF(A63>$B$30,NA(),IF($A63>$A$8,"",OFFSET(InputPriceData!$B$15,$A63+$A$11,0,1,1))) -> 2021-06-24 | C63: =IF(A63>$B$30,NA(),IF($A63>$A$8,"",OFFSET(InputPriceData!$G$15,CalculationsAndCharts!$A63+$A$11,IF($C$5,8,0),1,1))) -> 45110300 | D63: =IF(A63>$B$30,NA(),IF(A63>$A$8,"",OFFSET(InputPriceData!$C$15,CalculationsAndCharts!$A63+$A$11,IF($C$5,8,0),1,1))) -> 424.890015 | E63: =IF(A63>$B$30,NA(),IF(A63>$A$8,"",OFFSET(InputPriceData!$D$15,CalculationsAndCharts!$A63+$A$11,IF($C$5,8,0),1,1))) -> 425.549988 | F63: =IF(A63>$B$30,NA(),IF(A63>$A$8,"",OFFSET(InputPriceData!$E$15,CalculationsAndCharts!$A63+$A$11,IF($C$5,8,0),1,1))) -> 424.619995 | G63: =IF(A63>$B$30,NA(),IF(A63>$A$8,"",OFFSET(InputPriceData!$F$15,CalculationsAndCharts!$A63+$A$11,IF($C$5,8,0),1,1))) -> 425.100006 | H63: 425.0899963 | I63: 0.004802644805 | J63: 0.005775719424 | K63: 0.4910516723 | L63: 75713990 | M63: 189284975 | N63: 45110300 | O63: 2.036661667 | P63: 45110300 | Q63: 15.86236837 | R63: 15.95213704 | S63: 16.14512183 | T63: 15.76759481 | U63: 6 | V63: 2.949982 | W63: 3.676008995 | X63: -26.56343909 | Y63: 9.9640454 | Z63: =IF($A63>$B$30,NA(),IF($A63>$A$8,"",OFFSET(InputIndexData!$B$15,$A63+$A$11,0,1,1))) -> 2021-06-24 | AA63: =IF($A63>$B$30,NA(),IF($A63>$A$8,"",OFFSET(InputIndexData!$G$15,CalculationsAndCharts!$A63+$A$11,IF($C$5,8,0),1,1))) -> 0 | AB63: =IF($A63>$B$30,NA(),IF($A63>$A$8,"",OFFSET(InputIndexData!$C$15,CalculationsAndCharts!$A63+$A$11,IF($C$5,8,0),1,1))) -> 15.99 | AC63: =IF($A63>$B$30,NA(),IF($A63>$A$8,"",OFFSET(InputIndexData!$D$15,CalculationsAndCharts!$A63+$A$11,IF($C$5,8,0),1,1))) -> 16.049999 | AD63: =IF($A63>$B$30,NA(),IF($A63>$A$8,"",OFFSET(InputIndexData!$E$15,CalculationsAndCharts!$A63+$A$11,IF($C$5,8,0),1,1))) -> 14.19 | AE63: =IF($A63>$B$30,NA(),IF($A63>$A$8,"",OFFSET(InputIndexData!$F$15,CalculationsAndCharts!$A63+$A$11,IF($C$5,8,0),1,1))) -> 15.97 | AF63: -27.99819657 | AG63: 2.044728435 | AH63: TRUE | AI63: TRUE | AJ63: FALSE | AK63: FALSE | AL63: FALSE | AM63: FALSE | AN63: 3.585089129 | AO63: 10.75526739 | AT63: TRUE | AW63: 45110300 | BN63: -20 | BO63: 15.95213704 | BQ63: -35.95213704 | BR63: -15.95213704 | BT63: FALSE | BU63: FALSE
A64: 32 | B64: =IF(A64>$B$30,NA(),IF($A64>$A$8,"",OFFSET(InputPriceData!$B$15,$A64+$A$11,0,1,1))) -> 2021-06-23 | C64: =IF(A64>$B$30,NA(),IF($A64>$A$8,"",OFFSET(InputPriceData!$G$15,CalculationsAndCharts!$A64+$A$11,IF($C$5,8,0),1,1))) -> 49445400 | D64: =IF(A64>$B$30,NA(),IF(A64>$A$8,"",OFFSET(InputPriceData!$C$15,CalculationsAndCharts!$A64+$A$11,IF($C$5,8,0),1,1))) -> 423.190002 | E64: =IF(A64>$B$30,NA(),IF(A64>$A$8,"",OFFSET(InputPriceData!$D$15,CalculationsAndCharts!$A64+$A$11,IF($C$5,8,0),1,1))) -> 424.049988 | F64: =IF(A64>$B$30,NA(),IF(A64>$A$8,"",OFFSET(InputPriceData!$E$15,CalculationsAndCharts!$A64+$A$11,IF($C$5,8,0),1,1))) -> 422.51001 | G64: =IF(A64>$B$30,NA(),IF(A64>$A$8,"",OFFSET(InputPriceData!$F$15,CalculationsAndCharts!$A64+$A$11,IF($C$5,8,0),1,1))) -> 422.600006 | H64: 423.0533347 | I64: 0.00155343893 | J64: 0.006384633391 | K64: 0.5396292218 | L64: 75824912.31 | M64: 189562280.8 | N64: 49445400 | O64: 0.6566773333 | P64: 49445400 | Q64: 16.01470233 | R64: 15.99702137 | S64: 16.14649272 | T64: 15.74709012 | U64: 6 | V64: 1.539978 | W64: 3.727868066 | X64: -25.52743732 | Y64: 11.51535641 | Z64: =IF($A64>$B$30,NA(),IF($A64>$A$8,"",OFFSET(InputIndexData!$B$15,$A64+$A$11,0,1,1))) -> 2021-06-23 | AA64: =IF($A64>$B$30,NA(),IF($A64>$A$8,"",OFFSET(InputIndexData!$G$15,CalculationsAndCharts!$A64+$A$11,IF($C$5,8,0),1,1))) -> 0 | AB64: =IF($A64>$B$30,NA(),IF($A64>$A$8,"",OFFSET(InputIndexData!$C$15,CalculationsAndCharts!$A64+$A$11,IF($C$5,8,0),1,1))) -> 16.25 | AC64: =IF($A64>$B$30,NA(),IF($A64>$A$8,"",OFFSET(InputIndexData!$D$15,CalculationsAndCharts!$A64+$A$11,IF($C$5,8,0),1,1))) -> 16.84 | AD64: =IF($A64>$B$30,NA(),IF($A64>$A$8,"",OFFSET(InputIndexData!$E$15,CalculationsAndCharts!$A64+$A$11,IF($C$5,8,0),1,1))) -> 14.86 | AE64: =IF($A64>$B$30,NA(),IF($A64>$A$8,"",OFFSET(InputIndexData!$F$15,CalculationsAndCharts!$A64+$A$11,IF($C$5,8,0),1,1))) -> 16.32 | AF64: -26.42019838 | AG64: 4.28115016 | AH64: TRUE | AI64: TRUE | AJ64: FALSE | AK64: FALSE | AL64: FALSE | AM64: FALSE | AN64: 3.655656588 | AO64: 10.96696976 | AT64: TRUE | AX64: 49445400 | BN64: -20 | BO64: 15.99702137 | BQ64: -35.99702137 | BR64: -15.99702137 | BT64: FALSE | BU64: FALSE
A65: 33 | B65: =IF(A65>$B$30,NA(),IF($A65>$A$8,"",OFFSET(InputPriceData!$B$15,$A65+$A$11,0,1,1))) -> 2021-06-22 | C65: =IF(A65>$B$30,NA(),IF($A65>$A$8,"",OFFSET(InputPriceData!$G$15,CalculationsAndCharts!$A65+$A$11,IF($C$5,8,0),1,1))) -> 57700300 | D65: =IF(A65>$B$30,NA(),IF(A65>$A$8,"",OFFSET(InputPriceData!$C$15,CalculationsAndCharts!$A65+$A$11,IF($C$5,8,0),1,1))) -> 420.850006 | E65: =IF(A65>$B$30,NA(),IF(A65>$A$8,"",OFFSET(InputPriceData!$D$15,CalculationsAndCharts!$A65+$A$11,IF($C$5,8,0),1,1))) -> 424 | F65: =IF(A65>$B$30,NA(),IF(A65>$A$8,"",OFFSET(InputPriceData!$E$15,CalculationsAndCharts!$A65+$A$11,IF($C$5,8,0),1,1))) -> 420.079987 | G65: =IF(A65>$B$30,NA(),IF(A65>$A$8,"",OFFSET(InputPriceData!$F$15,CalculationsAndCharts!$A65+$A$11,IF($C$5,8,0),1,1))) -> 423.109985 | H65: 422.3966573 | I65: 0.007397933332 | J65: 0.006994515205 | K65: 0.5918898447 | L65: 75913496.15 | M65: 189783740.4 | N65: 57700300 | O65: 3.113332 | P65: 57700300 | Q65: 16.18596643 | R65: 15.98818089 | S65: 16.1216834 | T65: 15.71931998 | U65: 6 | V65: 3.920013 | W65: 3.884145928 | X65: -22.40543497 | Y65: 16.19024865 | Z65: =IF($A65>$B$30,NA(),IF($A65>$A$8,"",OFFSET(InputIndexData!$B$15,$A65+$A$11,0,1,1))) -> 2021-06-22 | AA65: =IF($A65>$B$30,NA(),IF($A65>$A$8,"",OFFSET(InputIndexData!$G$15,CalculationsAndCharts!$A65+$A$11,IF($C$5,8,0),1,1))) -> 0 | AB65: =IF($A65>$B$30,NA(),IF($A65>$A$8,"",OFFSET(InputIndexData!$C$15,CalculationsAndCharts!$A65+$A$11,IF($C$5,8,0),1,1))) -> 17.91 | AC65: =IF($A65>$B$30,NA(),IF($A65>$A$8,"",OFFSET(InputIndexData!$D$15,CalculationsAndCharts!$A65+$A$11,IF($C$5,8,0),1,1))) -> 18.32 | AD65: =IF($A65>$B$30,NA(),IF($A65>$A$8,"",OFFSET(InputIndexData!$E$15,CalculationsAndCharts!$A65+$A$11,IF($C$5,8,0),1,1))) -> 15.76 | AE65: =IF($A65>$B$30,NA(),IF($A65>$A$8,"",OFFSET(InputIndexData!$F$15,CalculationsAndCharts!$A65+$A$11,IF($C$5,8,0),1,1))) -> 16.66 | AF65: -24.88728584 | AG65: 6.453674121 | AH65: TRUE | AI65: TRUE | AJ65: FALSE | AK65: FALSE | AL65: FALSE | AM65: FALSE | AN65: 3.890731987 | AO65: 11.67219596 | AT65: TRUE | AW65: 57700300 | BN65: -20 | BO65: 15.98818089 | BQ65: -35.98818089 | BR65: -15.98818089 | BT65: FALSE | BU65: FALSE
A66: 34 | B66: =IF(A66>$B$30,NA(),IF($A66>$A$8,"",OFFSET(InputPriceData!$B$15,$A66+$A$11,0,1,1))) -> 2021-06-21 | C66: =IF(A66>$B$30,NA(),IF($A66>$A$8,"",OFFSET(InputPriceData!$G$15,CalculationsAndCharts!$A66+$A$11,IF($C$5,8,0),1,1))) -> 72822000 | D66: =IF(A66>$B$30,NA(),IF(A66>$A$8,"",OFFSET(InputPriceData!$C$15,CalculationsAndCharts!$A66+$A$11,IF($C$5,8,0),1,1))) -> 416.799988 | E66: =IF(A66>$B$30,NA(),IF(A66>$A$8,"",OFFSET(InputPriceData!$D$15,CalculationsAndCharts!$A66+$A$11,IF($C$5,8,0),1,1))) -> 421.059998 | F66: =IF(A66>$B$30,NA(),IF(A66>$A$8,"",OFFSET(InputPriceData!$E$15,CalculationsAndCharts!$A66+$A$11,IF($C$5,8,0),1,1))) -> 415.929993 | G66: =IF(A66>$B$30,NA(),IF(A66>$A$8,"",OFFSET(InputPriceData!$F$15,CalculationsAndCharts!$A66+$A$11,IF($C$5,8,0),1,1))) -> 420.859985 | H66: 419.2833253 | I66: 0.008302417905 | J66: 0.006912583248 | K66: 0.5818459364 | L66: 75797162.31 | M66: 189492905.8 | N66: 72822000 | O66: 3.466654667 | P66: 72822000 | Q66: 16.36273921 | R66: 15.88928812 | S66: 16.10128578 | T66: 15.68944655 | U66: 6 | V66: 6.139985 | W66: 3.881583994 | X66: -22.45661537 | Y66: 16.11361102 | Z66: =IF($A66>$B$30,NA(),IF($A66>$A$8,"",OFFSET(InputIndexData!$B$15,$A66+$A$11,0,1,1))) -> 2021-06-21 | AA66: =IF($A66>$B$30,NA(),IF($A66>$A$8,"",OFFSET(InputIndexData!$G$15,CalculationsAndCharts!$A66+$A$11,IF($C$5,8,0),1,1))) -> 0 | AB66: =IF($A66>$B$30,NA(),IF($A66>$A$8,"",OFFSET(InputIndexData!$C$15,CalculationsAndCharts!$A66+$A$11,IF($C$5,8,0),1,1))) -> 21.74 | AC66: =IF($A66>$B$30,NA(),IF($A66>$A$8,"",OFFSET(InputIndexData!$D$15,CalculationsAndCharts!$A66+$A$11,IF($C$5,8,0),1,1))) -> 21.82 | AD66: =IF($A66>$B$30,NA(),IF($A66>$A$8,"",OFFSET(InputIndexData!$E$15,CalculationsAndCharts!$A66+$A$11,IF($C$5,8,0),1,1))) -> 17.809999 | AE66: =IF($A66>$B$30,NA(),IF($A66>$A$8,"",OFFSET(InputIndexData!$F$15,CalculationsAndCharts!$A66+$A$11,IF($C$5,8,0),1,1))) -> 17.889999 | AF66: -19.34175383 | AG66: 14.31309265 | AH66: TRUE | AI66: TRUE | AJ66: FALSE | AK66: FALSE | AL66: FALSE | AM66: FALSE | AN66: 3.887478541 | AO66: 11.66243562 | AT66: TRUE | AW66: 72822000 | BN66: -20 | BO66: 15.88928812 | BQ66: -35.88928812 | BR66: -15.88928812 | BT66: FALSE | BU66: FALSE
A67: 35 | B67: =IF(A67>$B$30,NA(),IF($A67>$A$8,"",OFFSET(InputPriceData!$B$15,$A67+$A$11,0,1,1))) -> 2021-06-18 | C67: =IF(A67>$B$30,NA(),IF($A67>$A$8,"",OFFSET(InputPriceData!$G$15,CalculationsAndCharts!$A67+$A$11,IF($C$5,8,0),1,1))) -> 118676300 | D67: =IF(A67>$B$30,NA(),IF(A67>$A$8,"",OFFSET(InputPriceData!$C$15,CalculationsAndCharts!$A67+$A$11,IF($C$5,8,0),1,1))) -> 417.089996 | E67: =IF(A67>$B$30,NA(),IF(A67>$A$8,"",OFFSET(InputPriceData!$D$15,CalculationsAndCharts!$A67+$A$11,IF($C$5,8,0),1,1))) -> 417.829987 | F67: =IF(A67>$B$30,NA(),IF(A67>$A$8,"",OFFSET(InputPriceData!$E$15,CalculationsAndCharts!$A67+$A$11,IF($C$5,8,0),1,1))) -> 414.700012 | G67: =IF(A67>$B$30,NA(),IF(A67>$A$8,"",OFFSET(InputPriceData!$F$15,CalculationsAndCharts!$A67+$A$11,IF($C$5,8,0),1,1))) -> 414.920013 | H67: 415.8166707 | I67: -0.01342503915 | J67: 0.006971592803 | K67: 0.5785306753 | L67: 75328386.15 | M67: 188320965.4 | N67: 118676300 | O67: -5.619995 | P67: -118676300 | Q67: 14.73187807 | R67: 15.65256258 | S67: 16.04985976 | T67: 15.66724193 | U67: 6 | V67: 7.269989 | W67: 3.720269636 | X67: -25.67923307 | Y67: 11.28805718 | Z67: =IF($A67>$B$30,NA(),IF($A67>$A$8,"",OFFSET(InputIndexData!$B$15,$A67+$A$11,0,1,1))) -> 2021-06-18 | AA67: =IF($A67>$B$30,NA(),IF($A67>$A$8,"",OFFSET(InputIndexData!$G$15,CalculationsAndCharts!$A67+$A$11,IF($C$5,8,0),1,1))) -> 0 | AB67: =IF($A67>$B$30,NA(),IF($A67>$A$8,"",OFFSET(InputIndexData!$C$15,CalculationsAndCharts!$A67+$A$11,IF($C$5,8,0),1,1))) -> 16.959999 | AC67: =IF($A67>$B$30,NA(),IF($A67>$A$8,"",OFFSET(InputIndexData!$D$15,CalculationsAndCharts!$A67+$A$11,IF($C$5,8,0),1,1))) -> 21.040001 | AD67: =IF($A67>$B$30,NA(),IF($A67>$A$8,"",OFFSET(InputIndexData!$E$15,CalculationsAndCharts!$A67+$A$11,IF($C$5,8,0),1,1))) -> 16.92 | AE67: =IF($A67>$B$30,NA(),IF($A67>$A$8,"",OFFSET(InputIndexData!$F$15,CalculationsAndCharts!$A67+$A$11,IF($C$5,8,0),1,1))) -> 20.700001 | AF67: -10.50582838 | AG67: 32.268377 | AH67: TRUE | AI67: TRUE | AJ67: FALSE | AK67: FALSE | AL67: FALSE | AM67: FALSE | AN67: 3.637200046 | AO67: 10.91160014 | AT67: TRUE | AX67: 118676300 | BN67: -20 | BO67: 15.65256258 | BQ67: -35.65256258 | BR67: -15.65256258 | BT67: FALSE | BU67: FALSE
A68: 36 | B68: =IF(A68>$B$30,NA(),IF($A68>$A$8,"",OFFSET(InputPriceData!$B$15,$A68+$A$11,0,1,1))) -> 2021-06-17 | C68: =IF(A68>$B$30,NA(),IF($A68>$A$8,"",OFFSET(InputPriceData!$G$15,CalculationsAndCharts!$A68+$A$11,IF($C$5,8,0),1,1))) -> 90949700 | D68: =IF(A68>$B$30,NA(),IF(A68>$A$8,"",OFFSET(InputPriceData!$C$15,CalculationsAndCharts!$A68+$A$11,IF($C$5,8,0),1,1))) -> 421.670013 | E68: =IF(A68>$B$30,NA(),IF(A68>$A$8,"",OFFSET(InputPriceData!$D$15,CalculationsAndCharts!$A68+$A$11,IF($C$5,8,0),1,1))) -> 423.019989 | F68: =IF(A68>$B$30,NA(),IF(A68>$A$8,"",OFFSET(InputPriceData!$E$15,CalculationsAndCharts!$A68+$A$11,IF($C$5,8,0),1,1))) -> 419.320007 | G68: =IF(A68>$B$30,NA(),IF(A68>$A$8,"",OFFSET(InputPriceData!$F$15,CalculationsAndCharts!$A68+$A$11,IF($C$5,8,0),1,1))) -> 421.970001 | H68: 421.4366657 | I68: -0.002046449654 | J68: 0.006533411633 | K68: 0.5513807427 | L68: 75198760 | M68: 187996900 | N68: 90949700 | O68: -0.863332 | P68: -90949700 | Q68: 15.56767026 | R68: 16.11290483 | S68: 16.01443287 | T68: 15.66887297 | U68: 6 | V68: 3.699982 | W68: 3.466718253 | X68: -30.74449314 | Y68: 3.703327149 | Z68: =IF($A68>$B$30,NA(),IF($A68>$A$8,"",OFFSET(InputIndexData!$B$15,$A68+$A$11,0,1,1))) -> 2021-06-17 | AA68: =IF($A68>$B$30,NA(),IF($A68>$A$8,"",OFFSET(InputIndexData!$G$15,CalculationsAndCharts!$A68+$A$11,IF($C$5,8,0),1,1))) -> 0 | AB68: =IF($A68>$B$30,NA(),IF($A68>$A$8,"",OFFSET(InputIndexData!$C$15,CalculationsAndCharts!$A68+$A$11,IF($C$5,8,0),1,1))) -> 18.49 | AC68: =IF($A68>$B$30,NA(),IF($A68>$A$8,"",OFFSET(InputIndexData!$D$15,CalculationsAndCharts!$A68+$A$11,IF($C$5,8,0),1,1))) -> 19.219999 | AD68: =IF($A68>$B$30,NA(),IF($A68>$A$8,"",OFFSET(InputIndexData!$E$15,CalculationsAndCharts!$A68+$A$11,IF($C$5,8,0),1,1))) -> 16.709999 | AE68: =IF($A68>$B$30,NA(),IF($A68>$A$8,"",OFFSET(InputIndexData!$F$15,CalculationsAndCharts!$A68+$A$11,IF($C$5,8,0),1,1))) -> 17.75 | AF68: -35.66509605 | AG68: 13.41853035 | AH68: TRUE | AI68: TRUE | AJ68: FALSE | AK68: FALSE | AL68: FALSE | AM68: FALSE | AN68: 3.233556829 | AO68: 9.700670486 | AT68: TRUE | AW68: 90949700 | BN68: -20 | BO68: 16.11290483 | BQ68: -36.11290483 | BR68: -16.11290483 | BT68: FALSE | BU68: FALSE
A69: 37 | B69: =IF(A69>$B$30,NA(),IF($A69>$A$8,"",OFFSET(InputPriceData!$B$15,$A69+$A$11,0,1,1))) -> 2021-06-16 | C69: =IF(A69>$B$30,NA(),IF($A69>$A$8,"",OFFSET(InputPriceData!$G$15,CalculationsAndCharts!$A69+$A$11,IF($C$5,8,0),1,1))) -> 80386100 | D69: =IF(A69>$B$30,NA(),IF(A69>$A$8,"",OFFSET(InputPriceData!$C$15,CalculationsAndCharts!$A69+$A$11,IF($C$5,8,0),1,1))) -> 424.630005 | E69: =IF(A69>$B$30,NA(),IF(A69>$A$8,"",OFFSET(InputPriceData!$D$15,CalculationsAndCharts!$A69+$A$11,IF($C$5,8,0),1,1))) -> 424.869995 | F69: =IF(A69>$B$30,NA(),IF(A69>$A$8,"",OFFSET(InputPriceData!$E$15,CalculationsAndCharts!$A69+$A$11,IF($C$5,8,0),1,1))) -> 419.920013 | G69: =IF(A69>$B$30,NA(),IF(A69>$A$8,"",OFFSET(InputPriceData!$F$15,CalculationsAndCharts!$A69+$A$11,IF($C$5,8,0),1,1))) -> 422.109985 | H69: 422.2999977 | I69: -0.005180353101 | J69: 0.00654293048 | K69: 0.5523672573 | L69: 74907012.31 | M69: 187267530.8 | N69: 80386100 | O69: -2.193339333 | P69: -80386100 | Q69: 15.85326745 | R69: 16.38552212 | S69: 15.93592576 | T69: 15.6195361 | U69: 6 | V69: 4.949982 | W69: 3.450056557 | X69: -31.07734806 | Y69: 3.204909566 | Z69: =IF($A69>$B$30,NA(),IF($A69>$A$8,"",OFFSET(InputIndexData!$B$15,$A69+$A$11,0,1,1))) -> 2021-06-16 | AA69: =IF($A69>$B$30,NA(),IF($A69>$A$8,"",OFFSET(InputIndexData!$G$15,CalculationsAndCharts!$A69+$A$11,IF($C$5,8,0),1,1))) -> 0 | AB69: =IF($A69>$B$30,NA(),IF($A69>$A$8,"",OFFSET(InputIndexData!$C$15,CalculationsAndCharts!$A69+$A$11,IF($C$5,8,0),1,1))) -> 16.99 | AC69: =IF($A69>$B$30,NA(),IF($A69>$A$8,"",OFFSET(InputIndexData!$D$15,CalculationsAndCharts!$A69+$A$11,IF($C$5,8,0),1,1))) -> 19.110001 | AD69: =IF($A69>$B$30,NA(),IF($A69>$A$8,"",OFFSET(InputIndexData!$E$15,CalculationsAndCharts!$A69+$A$11,IF($C$5,8,0),1,1))) -> 16.42 | AE69: =IF($A69>$B$30,NA(),IF($A69>$A$8,"",OFFSET(InputIndexData!$F$15,CalculationsAndCharts!$A69+$A$11,IF($C$5,8,0),1,1))) -> 18.15 | AF69: -34.2152954 | AG69: 15.97444089 | AH69: TRUE | AI69: TRUE | AJ69: FALSE | AK69: FALSE | AL69: FALSE | AM69: FALSE | AN69: 3.181731809 | AO69: 9.545195428 | AT69: TRUE | AX69: 80386100 | BN69: -20 | BO69: 16.38552212 | BQ69: -36.38552212 | BR69: -16.38552212 | BT69: FALSE | BU69: FALSE
A70: 38 | B70: =IF(A70>$B$30,NA(),IF($A70>$A$8,"",OFFSET(InputPriceData!$B$15,$A70+$A$11,0,1,1))) -> 2021-06-15 | C70: =IF(A70>$B$30,NA(),IF($A70>$A$8,"",OFFSET(InputPriceData!$G$15,CalculationsAndCharts!$A70+$A$11,IF($C$5,8,0),1,1))) -> 51508500 | D70: =IF(A70>$B$30,NA(),IF(A70>$A$8,"",OFFSET(InputPriceData!$C$15,CalculationsAndCharts!$A70+$A$11,IF($C$5,8,0),1,1))) -> 425.420013 | E70: =IF(A70>$B$30,NA(),IF(A70>$A$8,"",OFFSET(InputPriceData!$D$15,CalculationsAndCharts!$A70+$A$11,IF($C$5,8,0),1,1))) -> 425.459991 | F70: =IF(A70>$B$30,NA(),IF(A70>$A$8,"",OFFSET(InputPriceData!$E$15,CalculationsAndCharts!$A70+$A$11,IF($C$5,8,0),1,1))) -> 423.540009 | G70: =IF(A70>$B$30,NA(),IF(A70>$A$8,"",OFFSET(InputPriceData!$F$15,CalculationsAndCharts!$A70+$A$11,IF($C$5,8,0),1,1))) -> 424.480011 | H70: 424.493337 | I70: -0.0001962931982 | J70: 0.006711991497 | K70: 0.5698212449 | L70: 74887287.69 | M70: 187218219.2 | N70: 51508500 | O70: -0.08333333333 | P70: 0 | Q70: 16.9308709 | R70: 16.65164945 | S70: 15.87206436 | T70: 15.53442654 | U70: 6 | V70: 1.919982 | W70: 3.342919025 | X70: -33.21766161 | Y70: -2.950694316 | Z70: =IF($A70>$B$30,NA(),IF($A70>$A$8,"",OFFSET(InputIndexData!$B$15,$A70+$A$11,0,1,1))) -> 2021-06-15 | AA70: =IF($A70>$B$30,NA(),IF($A70>$A$8,"",OFFSET(InputIndexData!$G$15,CalculationsAndCharts!$A70+$A$11,IF($C$5,8,0),1,1))) -> 0 | AB70: =IF($A70>$B$30,NA(),IF($A70>$A$8,"",OFFSET(InputIndexData!$C$15,CalculationsAndCharts!$A70+$A$11,IF($C$5,8,0),1,1))) -> 16.27 | AC70: =IF($A70>$B$30,NA(),IF($A70>$A$8,"",OFFSET(InputIndexData!$D$15,CalculationsAndCharts!$A70+$A$11,IF($C$5,8,0),1,1))) -> 17.35 | AD70: =IF($A70>$B$30,NA(),IF($A70>$A$8,"",OFFSET(InputIndexData!$E$15,CalculationsAndCharts!$A70+$A$11,IF($C$5,8,0),1,1))) -> 16.139999 | AE70: =IF($A70>$B$30,NA(),IF($A70>$A$8,"",OFFSET(InputIndexData!$F$15,CalculationsAndCharts!$A70+$A$11,IF($C$5,8,0),1,1))) -> 17.02 | AF70: -38.31098224 | AG70: 8.75399361 | AH70: TRUE | AI70: TRUE | AJ70: FALSE | AK70: FALSE | AL70: FALSE | AM70: FALSE | AN70: 2.985259566 | AO70: 8.955778698 | AT70: TRUE | AX70: 51508500 | BN70: -20 | BO70: 16.65164945 | BQ70: -36.65164945 | BR70: -16.65164945 | BT70: FALSE | BU70: FALSE
A71: 39 | B71: =IF(A71>$B$30,NA(),IF($A71>$A$8,"",OFFSET(InputPriceData!$B$15,$A71+$A$11,0,1,1))) -> 2021-06-14 | C71: =IF(A71>$B$30,NA(),IF($A71>$A$8,"",OFFSET(InputPriceData!$G$15,CalculationsAndCharts!$A71+$A$11,IF($C$5,8,0),1,1))) -> 42358500 | D71: =IF(A71>$B$30,NA(),IF(A71>$A$8,"",OFFSET(InputPriceData!$C$15,CalculationsAndCharts!$A71+$A$11,IF($C$5,8,0),1,1))) -> 424.429993 | E71: =IF(A71>$B$30,NA(),IF(A71>$A$8,"",OFFSET(InputPriceData!$D$15,CalculationsAndCharts!$A71+$A$11,IF($C$5,8,0),1,1))) -> 425.369995 | F71: =IF(A71>$B$30,NA(),IF(A71>$A$8,"",OFFSET(InputPriceData!$E$15,CalculationsAndCharts!$A71+$A$11,IF($C$5,8,0),1,1))) -> 423.100006 | G71: =IF(A71>$B$30,NA(),IF(A71>$A$8,"",OFFSET(InputPriceData!$F$15,CalculationsAndCharts!$A71+$A$11,IF($C$5,8,0),1,1))) -> 425.26001 | H71: 424.5766703 | I71: 0.001705120845 | J71: 0.006723808306 | K71: 0.5718733575 | L71: 74951836.92 | M71: 187379592.3 | N71: 42358500 | O71: 0.7233376667 | P71: 42358500 | Q71: 16.91628987 | R71: 16.51203873 | S71: 15.76556267 | T71: 15.41029066 | U71: 6 | V71: 2.269989 | W71: 3.444557384 | X71: -31.18720642 | Y71: -2.377747165 | Z71: =IF($A71>$B$30,NA(),IF($A71>$A$8,"",OFFSET(InputIndexData!$B$15,$A71+$A$11,0,1,1))) -> 2021-06-14 | AA71: =IF($A71>$B$30,NA(),IF($A71>$A$8,"",OFFSET(InputIndexData!$G$15,CalculationsAndCharts!$A71+$A$11,IF($C$5,8,0),1,1))) -> 0 | AB71: =IF($A71>$B$30,NA(),IF($A71>$A$8,"",OFFSET(InputIndexData!$C$15,CalculationsAndCharts!$A71+$A$11,IF($C$5,8,0),1,1))) -> 16.040001 | AC71: =IF($A71>$B$30,NA(),IF($A71>$A$8,"",OFFSET(InputIndexData!$D$15,CalculationsAndCharts!$A71+$A$11,IF($C$5,8,0),1,1))) -> 17.040001 | AD71: =IF($A71>$B$30,NA(),IF($A71>$A$8,"",OFFSET(InputIndexData!$E$15,CalculationsAndCharts!$A71+$A$11,IF($C$5,8,0),1,1))) -> 15.04 | AE71: =IF($A71>$B$30,NA(),IF($A71>$A$8,"",OFFSET(InputIndexData!$F$15,CalculationsAndCharts!$A71+$A$11,IF($C$5,8,0),1,1))) -> 16.389999 | AF71: -40.59442189 | AG71: 4.728428115 | AH71: TRUE | AI71: TRUE | AJ71: FALSE | AK71: FALSE | AL71: FALSE | AM71: FALSE | AN71: 3.10362374 | AO71: 9.31087122 | AT71: TRUE | AW71: 42358500 | BN71: -20 | BO71: 16.51203873 | BQ71: -36.51203873 | BR71: -16.51203873 | BT71: FALSE | BU71: FALSE
A72: 40 | B72: =IF(A72>$B$30,NA(),IF($A72>$A$8,"",OFFSET(InputPriceData!$B$15,$A72+$A$11,0,1,1))) -> 2021-06-11 | C72: =IF(A72>$B$30,NA(),IF($A72>$A$8,"",OFFSET(InputPriceData!$G$15,CalculationsAndCharts!$A72+$A$11,IF($C$5,8,0),1,1))) -> 45570800 | D72: =IF(A72>$B$30,NA(),IF(A72>$A$8,"",OFFSET(InputPriceData!$C$15,CalculationsAndCharts!$A72+$A$11,IF($C$5,8,0),1,1))) -> 424.200012 | E72: =IF(A72>$B$30,NA(),IF(A72>$A$8,"",OFFSET(InputPriceData!$D$15,CalculationsAndCharts!$A72+$A$11,IF($C$5,8,0),1,1))) -> 424.429993 | F72: =IF(A72>$B$30,NA(),IF(A72>$A$8,"",OFFSET(InputPriceData!$E$15,CalculationsAndCharts!$A72+$A$11,IF($C$5,8,0),1,1))) -> 422.820007 | G72: =IF(A72>$B$30,NA(),IF(A72>$A$8,"",OFFSET(InputPriceData!$F$15,CalculationsAndCharts!$A72+$A$11,IF($C$5,8,0),1,1))) -> 424.309998 | H72: 423.8533327 | I72: 0.001392976412 | J72: 0.00676986926 | K72: 0.5745046424 | L72: 75085000 | M72: 187712500 | N72: 45570800 | O72: 0.5900066667 | P72: 45570800 | Q72: 16.99804755 | R72: 16.30991316 | S72: 15.60845059 | T72: 15.28787421 | U72: 6 | V72: 1.609986 | W72: 3.528455126 | X72: -29.51116003 | Y72: -3.738478622 | Z72: =IF($A72>$B$30,NA(),IF($A72>$A$8,"",OFFSET(InputIndexData!$B$15,$A72+$A$11,0,1,1))) -> 2021-06-11 | AA72: =IF($A72>$B$30,NA(),IF($A72>$A$8,"",OFFSET(InputIndexData!$G$15,CalculationsAndCharts!$A72+$A$11,IF($C$5,8,0),1,1))) -> 0 | AB72: =IF($A72>$B$30,NA(),IF($A72>$A$8,"",OFFSET(InputIndexData!$C$15,CalculationsAndCharts!$A72+$A$11,IF($C$5,8,0),1,1))) -> 16.18 | AC72: =IF($A72>$B$30,NA(),IF($A72>$A$8,"",OFFSET(InputIndexData!$D$15,CalculationsAndCharts!$A72+$A$11,IF($C$5,8,0),1,1))) -> 16.200001 | AD72: =IF($A72>$B$30,NA(),IF($A72>$A$8,"",OFFSET(InputIndexData!$E$15,CalculationsAndCharts!$A72+$A$11,IF($C$5,8,0),1,1))) -> 15.15 | AE72: =IF($A72>$B$30,NA(),IF($A72>$A$8,"",OFFSET(InputIndexData!$F$15,CalculationsAndCharts!$A72+$A$11,IF($C$5,8,0),1,1))) -> 15.65 | AF72: -43.27654947 | AG72: -2.795031056 | AH72: TRUE | AI72: TRUE | AJ72: FALSE | AK72: FALSE | AL72: FALSE | AM72: FALSE | AN72: 3.196249822 | AO72: 9.588749467 | AT72: TRUE | AW72: 45570800 | BN72: -20 | BO72: 16.30991316 | BQ72: -36.30991316 | BR72: -16.30991316 | BT72: FALSE | BU72: FALSE
A73: 41 | B73: =IF(A73>$B$30,NA(),IF($A73>$A$8,"",OFFSET(InputPriceData!$B$15,$A73+$A$11,0,1,1))) -> 2021-06-10 | C73: =IF(A73>$B$30,NA(),IF($A73>$A$8,"",OFFSET(InputPriceData!$G$15,CalculationsAndCharts!$A73+$A$11,IF($C$5,8,0),1,1))) -> 51020100 | D73: =IF(A73>$B$30,NA(),IF(A73>$A$8,"",OFFSET(InputPriceData!$C$15,CalculationsAndCharts!$A73+$A$11,IF($C$5,8,0),1,1))) -> 422.959991 | E73: =IF(A73>$B$30,NA(),IF(A73>$A$8,"",OFFSET(InputPriceData!$D$15,CalculationsAndCharts!$A73+$A$11,IF($C$5,8,0),1,1))) -> 424.630005 | F73: =IF(A73>$B$30,NA(),IF(A73>$A$8,"",OFFSET(InputPriceData!$E$15,CalculationsAndCharts!$A73+$A$11,IF($C$5,8,0),1,1))) -> 421.549988 | G73: =IF(A73>$B$30,NA(),IF(A73>$A$8,"",OFFSET(InputPriceData!$F$15,CalculationsAndCharts!$A73+$A$11,IF($C$5,8,0),1,1))) -> 423.609985 | H73: 423.263326 | I73: 0.002736452429 | J73: 0.006785512129 | K73: 0.5748821382 | L73: 75045822.31 | M73: 187614555.8 | N73: 51020100 | O73: 1.156656667 | P73: 51020100 | Q73: 16.39968172 | R73: 15.96584597 | S73: 15.37481595 | T73: 15.17431432 | U73: 6 | V73: 3.080017 | W73: 3.665488635 | X73: -26.77360698 | Y73: -1.128026106 | Z73: =IF($A73>$B$30,NA(),IF($A73>$A$8,"",OFFSET(InputIndexData!$B$15,$A73+$A$11,0,1,1))) -> 2021-06-10 | AA73: =IF($A73>$B$30,NA(),IF($A73>$A$8,"",OFFSET(InputIndexData!$G$15,CalculationsAndCharts!$A73+$A$11,IF($C$5,8,0),1,1))) -> 0 | AB73: =IF($A73>$B$30,NA(),IF($A73>$A$8,"",OFFSET(InputIndexData!$C$15,CalculationsAndCharts!$A73+$A$11,IF($C$5,8,0),1,1))) -> 18.18 | AC73: =IF($A73>$B$30,NA(),IF($A73>$A$8,"",OFFSET(InputIndexData!$D$15,CalculationsAndCharts!$A73+$A$11,IF($C$5,8,0),1,1))) -> 18.290001 | AD73: =IF($A73>$B$30,NA(),IF($A73>$A$8,"",OFFSET(InputIndexData!$E$15,CalculationsAndCharts!$A73+$A$11,IF($C$5,8,0),1,1))) -> 16.01 | AE73: =IF($A73>$B$30,NA(),IF($A73>$A$8,"",OFFSET(InputIndexData!$F$15,CalculationsAndCharts!$A73+$A$11,IF($C$5,8,0),1,1))) -> 16.1 | AF73: -41.64552374 | AG73: -1.948842875 | AH73: TRUE | AI73: TRUE | AJ73: FALSE | AK73: FALSE | AL73: FALSE | AM73: FALSE | AN73: 3.372501358 | AO73: 10.11750407 | AT73: TRUE | AW73: 51020100 | BN73: -20 | BO73: 15.96584597 | BQ73: -35.96584597 | BR73: -15.96584597 | BT73: FALSE | BU73: FALSE
A74: 42 | B74: =IF(A74>$B$30,NA(),IF($A74>$A$8,"",OFFSET(InputPriceData!$B$15,$A74+$A$11,0,1,1))) -> 2021-06-09 | C74: =IF(A74>$B$30,NA(),IF($A74>$A$8,"",OFFSET(InputPriceData!$G$15,CalculationsAndCharts!$A74+$A$11,IF($C$5,8,0),1,1))) -> 48436300 | D74: =IF(A74>$B$30,NA(),IF(A74>$A$8,"",OFFSET(InputPriceData!$C$15,CalculationsAndCharts!$A74+$A$11,IF($C$5,8,0),1,1))) -> 423.179993 | E74: =IF(A74>$B$30,NA(),IF(A74>$A$8,"",OFFSET(InputPriceData!$D$15,CalculationsAndCharts!$A74+$A$11,IF($C$5,8,0),1,1))) -> 423.26001 | F74: =IF(A74>$B$30,NA(),IF(A74>$A$8,"",OFFSET(InputPriceData!$E$15,CalculationsAndCharts!$A74+$A$11,IF($C$5,8,0),1,1))) -> 421.410004 | G74: =IF(A74>$B$30,NA(),IF(A74>$A$8,"",OFFSET(InputPriceData!$F$15,CalculationsAndCharts!$A74+$A$11,IF($C$5,8,0),1,1))) -> 421.649994 | H74: 422.1066693 | I74: 0.0004028316128 | J74: 0.006773284396 | K74: 0.571191065 | L74: 75244246.15 | M74: 188110615.4 | N74: 48436300 | O74: 0.1700036667 | P74: 0 | Q74: 15.6783749 | R74: 15.74892809 | S74: 15.10996996 | T74: 15.08636636 | U74: 6 | V74: 1.850006 | W74: 3.707308038 | X74: -25.9381702 | Y74: -3.454827667 | Z74: =IF($A74>$B$30,NA(),IF($A74>$A$8,"",OFFSET(InputIndexData!$B$15,$A74+$A$11,0,1,1))) -> 2021-06-09 | AA74: =IF($A74>$B$30,NA(),IF($A74>$A$8,"",OFFSET(InputIndexData!$G$15,CalculationsAndCharts!$A74+$A$11,IF($C$5,8,0),1,1))) -> 0 | AB74: =IF($A74>$B$30,NA(),IF($A74>$A$8,"",OFFSET(InputIndexData!$C$15,CalculationsAndCharts!$A74+$A$11,IF($C$5,8,0),1,1))) -> 17.18 | AC74: =IF($A74>$B$30,NA(),IF($A74>$A$8,"",OFFSET(InputIndexData!$D$15,CalculationsAndCharts!$A74+$A$11,IF($C$5,8,0),1,1))) -> 17.959999 | AD74: =IF($A74>$B$30,NA(),IF($A74>$A$8,"",OFFSET(InputIndexData!$E$15,CalculationsAndCharts!$A74+$A$11,IF($C$5,8,0),1,1))) -> 15.55 | AE74: =IF($A74>$B$30,NA(),IF($A74>$A$8,"",OFFSET(InputIndexData!$F$15,CalculationsAndCharts!$A74+$A$11,IF($C$5,8,0),1,1))) -> 17.889999 | AF74: -35.15766945 | AG74: 8.952490865 | AH74: TRUE | AI74: TRUE | AJ74: FALSE | AK74: FALSE | AL74: FALSE | AM74: FALSE | AN74: 3.40499962 | AO74: 10.21499886 | AT74: TRUE | AX74: 48436300 | BN74: -20 | BO74: 15.74892809 | BQ74: -35.74892809 | BR74: -15.74892809 | BT74: FALSE | BU74: FALSE
A75: 43 | B75: =IF(A75>$B$30,NA(),IF($A75>$A$8,"",OFFSET(InputPriceData!$B$15,$A75+$A$11,0,1,1))) -> 2021-06-08 | C75: =IF(A75>$B$30,NA(),IF($A75>$A$8,"",OFFSET(InputPriceData!$G$15,CalculationsAndCharts!$A75+$A$11,IF($C$5,8,0),1,1))) -> 47134300 | D75: =IF(A75>$B$30,NA(),IF(A75>$A$8,"",OFFSET(InputPriceData!$C$15,CalculationsAndCharts!$A75+$A$11,IF($C$5,8,0),1,1))) -> 423.109985 | E75: =IF(A75>$B$30,NA(),IF(A75>$A$8,"",OFFSET(InputPriceData!$D$15,CalculationsAndCharts!$A75+$A$11,IF($C$5,8,0),1,1))) -> 423.209991 | F75: =IF(A75>$B$30,NA(),IF(A75>$A$8,"",OFFSET(InputPriceData!$E$15,CalculationsAndCharts!$A75+$A$11,IF($C$5,8,0),1,1))) -> 420.320007 | G75: =IF(A75>$B$30,NA(),IF(A75>$A$8,"",OFFSET(InputPriceData!$F$15,CalculationsAndCharts!$A75+$A$11,IF($C$5,8,0),1,1))) -> 422.279999 | H75: 421.9366657 | I75: -0.0002764693122 | J75: 0.006775306445 | K75: 0.5722152797 | L75: 75526849.23 | M75: 188817123.1 | N75: 47134300 | O75: -0.1166686667 | P75: 0 | Q75: 16.60255807 | R75: 15.78420469 | S75: 14.85411176 | T75: 15.01274839 | U75: 6 | V75: 2.889984 | W75: 3.839972469 | X75: -23.28789932 | Y75: 1.466638489 | Z75: =IF($A75>$B$30,NA(),IF($A75>$A$8,"",OFFSET(InputIndexData!$B$15,$A75+$A$11,0,1,1))) -> 2021-06-08 | AA75: =IF($A75>$B$30,NA(),IF($A75>$A$8,"",OFFSET(InputIndexData!$G$15,CalculationsAndCharts!$A75+$A$11,IF($C$5,8,0),1,1))) -> 0 | AB75: =IF($A75>$B$30,NA(),IF($A75>$A$8,"",OFFSET(InputIndexData!$C$15,CalculationsAndCharts!$A75+$A$11,IF($C$5,8,0),1,1))) -> 16.58 | AC75: =IF($A75>$B$30,NA(),IF($A75>$A$8,"",OFFSET(InputIndexData!$D$15,CalculationsAndCharts!$A75+$A$11,IF($C$5,8,0),1,1))) -> 17.75 | AD75: =IF($A75>$B$30,NA(),IF($A75>$A$8,"",OFFSET(InputIndexData!$E$15,CalculationsAndCharts!$A75+$A$11,IF($C$5,8,0),1,1))) -> 15.15 | AE75: =IF($A75>$B$30,NA(),IF($A75>$A$8,"",OFFSET(InputIndexData!$F$15,CalculationsAndCharts!$A75+$A$11,IF($C$5,8,0),1,1))) -> 17.07 | AF75: -38.12975716 | AG75: 3.958587089 | AH75: TRUE | AI75: TRUE | AJ75: FALSE | AK75: FALSE | AL75: FALSE | AM75: FALSE | AN75: 3.577776689 | AO75: 10.73333007 | AT75: TRUE | AX75: 47134300 | BN75: -20 | BO75: 15.78420469 | BQ75: -35.78420469 | BR75: -15.78420469 | BT75: FALSE | BU75: FALSE
A76: 44 | B76: =IF(A76>$B$30,NA(),IF($A76>$A$8,"",OFFSET(InputPriceData!$B$15,$A76+$A$11,0,1,1))) -> 2021-06-07 | C76: =IF(A76>$B$30,NA(),IF($A76>$A$8,"",OFFSET(InputPriceData!$G$15,CalculationsAndCharts!$A76+$A$11,IF($C$5,8,0),1,1))) -> 51555000 | D76: =IF(A76>$B$30,NA(),IF(A76>$A$8,"",OFFSET(InputPriceData!$C$15,CalculationsAndCharts!$A76+$A$11,IF($C$5,8,0),1,1))) -> 422.589996 | E76: =IF(A76>$B$30,NA(),IF(A76>$A$8,"",OFFSET(InputPriceData!$D$15,CalculationsAndCharts!$A76+$A$11,IF($C$5,8,0),1,1))) -> 422.779999 | F76: =IF(A76>$B$30,NA(),IF(A76>$A$8,"",OFFSET(InputPriceData!$E$15,CalculationsAndCharts!$A76+$A$11,IF($C$5,8,0),1,1))) -> 421.190002 | G76: =IF(A76>$B$30,NA(),IF(A76>$A$8,"",OFFSET(InputPriceData!$F$15,CalculationsAndCharts!$A76+$A$11,IF($C$5,8,0),1,1))) -> 422.190002 | H76: 422.0533343 | I76: 0.001422623248 | J76: 0.006803668435 | K76: 0.574488158 | L76: 75349611.54 | M76: 188374028.8 | N76: 51555000 | O76: 0.599996 | P76: 51555000 | Q76: 15.52849678 | R76: 15.375028 | S76: 14.62036093 | T76: 14.92703103 | U76: 6 | V76: 1.589997 | W76: 3.907828788 | X76: -21.93231648 | Y76: 3.259659837 | Z76: =IF($A76>$B$30,NA(),IF($A76>$A$8,"",OFFSET(InputIndexData!$B$15,$A76+$A$11,0,1,1))) -> 2021-06-07 | AA76: =IF($A76>$B$30,NA(),IF($A76>$A$8,"",OFFSET(InputIndexData!$G$15,CalculationsAndCharts!$A76+$A$11,IF($C$5,8,0),1,1))) -> 0 | AB76: =IF($A76>$B$30,NA(),IF($A76>$A$8,"",OFFSET(InputIndexData!$C$15,CalculationsAndCharts!$A76+$A$11,IF($C$5,8,0),1,1))) -> 17.34 | AC76: =IF($A76>$B$30,NA(),IF($A76>$A$8,"",OFFSET(InputIndexData!$D$15,CalculationsAndCharts!$A76+$A$11,IF($C$5,8,0),1,1))) -> 17.35 | AD76: =IF($A76>$B$30,NA(),IF($A76>$A$8,"",OFFSET(InputIndexData!$E$15,CalculationsAndCharts!$A76+$A$11,IF($C$5,8,0),1,1))) -> 15.78 | AE76: =IF($A76>$B$30,NA(),IF($A76>$A$8,"",OFFSET(InputIndexData!$F$15,CalculationsAndCharts!$A76+$A$11,IF($C$5,8,0),1,1))) -> 16.42 | AF76: -40.48568322 | AG76: 0 | AH76: TRUE | AI76: TRUE | AJ76: FALSE | AK76: FALSE | AL76: FALSE | AM76: FALSE | AN76: 3.654198099 | AO76: 10.9625943 | AT76: TRUE | AX76: 51555000 | BN76: -20 | BO76: 15.375028 | BQ76: -35.375028 | BR76: -15.375028 | BT76: FALSE | BU76: FALSE
A77: 45 | B77: =IF(A77>$B$30,NA(),IF($A77>$A$8,"",OFFSET(InputPriceData!$B$15,$A77+$A$11,0,1,1))) -> 2021-06-04 | C77: =IF(A77>$B$30,NA(),IF($A77>$A$8,"",OFFSET(InputPriceData!$G$15,CalculationsAndCharts!$A77+$A$11,IF($C$5,8,0),1,1))) -> 55938800 | D77: =IF(A77>$B$30,NA(),IF(A77>$A$8,"",OFFSET(InputPriceData!$C$15,CalculationsAndCharts!$A77+$A$11,IF($C$5,8,0),1,1))) -> 420.75 | E77: =IF(A77>$B$30,NA(),IF(A77>$A$8,"",OFFSET(InputPriceData!$D$15,CalculationsAndCharts!$A77+$A$11,IF($C$5,8,0),1,1))) -> 422.920013 | F77: =IF(A77>$B$30,NA(),IF(A77>$A$8,"",OFFSET(InputPriceData!$E$15,CalculationsAndCharts!$A77+$A$11,IF($C$5,8,0),1,1))) -> 418.839996 | G77: =IF(A77>$B$30,NA(),IF(A77>$A$8,"",OFFSET(InputPriceData!$F$15,CalculationsAndCharts!$A77+$A$11,IF($C$5,8,0),1,1))) -> 422.600006 | H77: 421.4533383 | I77: 0.007398650108 | J77: 0.006876766331 | K77: 0.5812242985 | L77: 75268012.31 | M77: 188170030.8 | N77: 55938800 | O77: 3.106679 | P77: 55938800 | Q77: 15.23921338 | R77: 15.29829361 | S77: 14.41771014 | T77: 14.87725358 | U77: 6 | V77: 4.150024 | W77: 4.073388202 | X77: -18.62489423 | Y77: 7.634367543 | Z77: =IF($A77>$B$30,NA(),IF($A77>$A$8,"",OFFSET(InputIndexData!$B$15,$A77+$A$11,0,1,1))) -> 2021-06-04 | AA77: =IF($A77>$B$30,NA(),IF($A77>$A$8,"",OFFSET(InputIndexData!$G$15,CalculationsAndCharts!$A77+$A$11,IF($C$5,8,0),1,1))) -> 0 | AB77: =IF($A77>$B$30,NA(),IF($A77>$A$8,"",OFFSET(InputIndexData!$C$15,CalculationsAndCharts!$A77+$A$11,IF($C$5,8,0),1,1))) -> 18.09 | AC77: =IF($A77>$B$30,NA(),IF($A77>$A$8,"",OFFSET(InputIndexData!$D$15,CalculationsAndCharts!$A77+$A$11,IF($C$5,8,0),1,1))) -> 18.42 | AD77: =IF($A77>$B$30,NA(),IF($A77>$A$8,"",OFFSET(InputIndexData!$E$15,CalculationsAndCharts!$A77+$A$11,IF($C$5,8,0),1,1))) -> 16.18 | AE77: =IF($A77>$B$30,NA(),IF($A77>$A$8,"",OFFSET(InputIndexData!$F$15,CalculationsAndCharts!$A77+$A$11,IF($C$5,8,0),1,1))) -> 16.42 | AF77: -40.48568322 | AG77: -1.617741065 | AH77: TRUE | AI77: TRUE | AJ77: FALSE | AK77: FALSE | AL77: FALSE | AM77: FALSE | AN77: 3.883553777 | AO77: 11.65066133 | AT77: TRUE | AW77: 55938800 | BN77: -20 | BO77: 15.29829361 | BQ77: -35.29829361 | BR77: -15.29829361 | BT77: FALSE | BU77: FALSE
A78: 46 | B78: =IF(A78>$B$30,NA(),IF($A78>$A$8,"",OFFSET(InputPriceData!$B$15,$A78+$A$11,0,1,1))) -> 2021-06-03 | C78: =IF(A78>$B$30,NA(),IF($A78>$A$8,"",OFFSET(InputPriceData!$G$15,CalculationsAndCharts!$A78+$A$11,IF($C$5,8,0),1,1))) -> 58138800 | D78: =IF(A78>$B$30,NA(),IF(A78>$A$8,"",OFFSET(InputPriceData!$C$15,CalculationsAndCharts!$A78+$A$11,IF($C$5,8,0),1,1))) -> 417.850006 | E78: =IF(A78>$B$30,NA(),IF(A78>$A$8,"",OFFSET(InputPriceData!$D$15,CalculationsAndCharts!$A78+$A$11,IF($C$5,8,0),1,1))) -> 419.98999 | F78: =IF(A78>$B$30,NA(),IF(A78>$A$8,"",OFFSET(InputPriceData!$E$15,CalculationsAndCharts!$A78+$A$11,IF($C$5,8,0),1,1))) -> 416.279999 | G78: =IF(A78>$B$30,NA(),IF(A78>$A$8,"",OFFSET(InputPriceData!$F$15,CalculationsAndCharts!$A78+$A$11,IF($C$5,8,0),1,1))) -> 418.769989 | H78: 418.3466593 | I78: -0.004618675191 | J78: 0.006786688423 | K78: 0.5684122873 | L78: 75300913.08 | M78: 188252282.7 | N78: 58138800 | O78: -1.936676333 | P78: -58138800 | Q78: 14.48968486 | R78: 15.32783373 | S78: 14.19980451 | T78: 14.83047136 | U78: 6 | V78: 4.049988 | W78: 4.067914216 | X78: -18.73424942 | Y78: 7.489724079 | Z78: =IF($A78>$B$30,NA(),IF($A78>$A$8,"",OFFSET(InputIndexData!$B$15,$A78+$A$11,0,1,1))) -> 2021-06-03 | AA78: =IF($A78>$B$30,NA(),IF($A78>$A$8,"",OFFSET(InputIndexData!$G$15,CalculationsAndCharts!$A78+$A$11,IF($C$5,8,0),1,1))) -> 0 | AB78: =IF($A78>$B$30,NA(),IF($A78>$A$8,"",OFFSET(InputIndexData!$C$15,CalculationsAndCharts!$A78+$A$11,IF($C$5,8,0),1,1))) -> 17.73 | AC78: =IF($A78>$B$30,NA(),IF($A78>$A$8,"",OFFSET(InputIndexData!$D$15,CalculationsAndCharts!$A78+$A$11,IF($C$5,8,0),1,1))) -> 19.27 | AD78: =IF($A78>$B$30,NA(),IF($A78>$A$8,"",OFFSET(InputIndexData!$E$15,CalculationsAndCharts!$A78+$A$11,IF($C$5,8,0),1,1))) -> 17.450001 | AE78: =IF($A78>$B$30,NA(),IF($A78>$A$8,"",OFFSET(InputIndexData!$F$15,CalculationsAndCharts!$A78+$A$11,IF($C$5,8,0),1,1))) -> 18.040001 | AF78: -34.61398695 | AG78: 8.088675369 | AH78: TRUE | AI78: TRUE | AJ78: FALSE | AK78: FALSE | AL78: FALSE | AM78: FALSE | AN78: 3.853945974 | AO78: 11.56183792 | AT78: TRUE | AW78: 58138800 | BN78: -20 | BO78: 15.32783373 | BQ78: -35.32783373 | BR78: -15.32783373 | BT78: FALSE | BU78: FALSE
A79: 47 | B79: =IF(A79>$B$30,NA(),IF($A79>$A$8,"",OFFSET(InputPriceData!$B$15,$A79+$A$11,0,1,1))) -> 2021-06-02 | C79: =IF(A79>$B$30,NA(),IF($A79>$A$8,"",OFFSET(InputPriceData!$G$15,CalculationsAndCharts!$A79+$A$11,IF($C$5,8,0),1,1))) -> 49097100 | D79: =IF(A79>$B$30,NA(),IF(A79>$A$8,"",OFFSET(InputPriceData!$C$15,CalculationsAndCharts!$A79+$A$11,IF($C$5,8,0),1,1))) -> 420.369995 | E79: =IF(A79>$B$30,NA(),IF(A79>$A$8,"",OFFSET(InputPriceData!$D$15,CalculationsAndCharts!$A79+$A$11,IF($C$5,8,0),1,1))) -> 421.230011 | F79: =IF(A79>$B$30,NA(),IF(A79>$A$8,"",OFFSET(InputPriceData!$E$15,CalculationsAndCharts!$A79+$A$11,IF($C$5,8,0),1,1))) -> 419.290009 | G79: =IF(A79>$B$30,NA(),IF(A79>$A$8,"",OFFSET(InputPriceData!$F$15,CalculationsAndCharts!$A79+$A$11,IF($C$5,8,0),1,1))) -> 420.329987 | H79: 420.2833357 | I79: -0.0005867485542 | J79: 0.006768214926 | K79: 0.5689767384 | L79: 75409632.31 | M79: 188524080.8 | N79: 49097100 | O79: -0.246673 | P79: 0 | Q79: 16.06745933 | R79: 15.74690817 | S79: 14.03822656 | T79: 14.77520887 | U79: 6 | V79: 1.940002 | W79: 4.06919466 | X79: -18.70866967 | Y79: 7.523558266 | Z79: =IF($A79>$B$30,NA(),IF($A79>$A$8,"",OFFSET(InputIndexData!$B$15,$A79+$A$11,0,1,1))) -> 2021-06-02 | AA79: =IF($A79>$B$30,NA(),IF($A79>$A$8,"",OFFSET(InputIndexData!$G$15,CalculationsAndCharts!$A79+$A$11,IF($C$5,8,0),1,1))) -> 0 | AB79: =IF($A79>$B$30,NA(),IF($A79>$A$8,"",OFFSET(InputIndexData!$C$15,CalculationsAndCharts!$A79+$A$11,IF($C$5,8,0),1,1))) -> 17.860001 | AC79: =IF($A79>$B$30,NA(),IF($A79>$A$8,"",OFFSET(InputIndexData!$D$15,CalculationsAndCharts!$A79+$A$11,IF($C$5,8,0),1,1))) -> 18.309999 | AD79: =IF($A79>$B$30,NA(),IF($A79>$A$8,"",OFFSET(InputIndexData!$E$15,CalculationsAndCharts!$A79+$A$11,IF($C$5,8,0),1,1))) -> 16.74 | AE79: =IF($A79>$B$30,NA(),IF($A79>$A$8,"",OFFSET(InputIndexData!$F$15,CalculationsAndCharts!$A79+$A$11,IF($C$5,8,0),1,1))) -> 17.48 | AF79: -36.64371149 | AG79: 4.733367002 | AH79: TRUE | AI79: TRUE | AJ79: FALSE | AK79: FALSE | AL79: FALSE | AM79: FALSE | AN79: 3.832163527 | AO79: 11.49649058 | AT79: TRUE | AX79: 49097100 | BN79: -20 | BO79: 15.74690817 | BQ79: -35.74690817 | BR79: -15.74690817 | BT79: FALSE | BU79: FALSE
A80: 48 | B80: =IF(A80>$B$30,NA(),IF($A80>$A$8,"",OFFSET(InputPriceData!$B$15,$A80+$A$11,0,1,1))) -> 2021-06-01 | C80: =IF(A80>$B$30,NA(),IF($A80>$A$8,"",OFFSET(InputPriceData!$G$15,CalculationsAndCharts!$A80+$A$11,IF($C$5,8,0),1,1))) -> 54216600 | D80: =IF(A80>$B$30,NA(),IF(A80>$A$8,"",OFFSET(InputPriceData!$C$15,CalculationsAndCharts!$A80+$A$11,IF($C$5,8,0),1,1))) -> 422.570007 | E80: =IF(A80>$B$30,NA(),IF(A80>$A$8,"",OFFSET(InputPriceData!$D$15,CalculationsAndCharts!$A80+$A$11,IF($C$5,8,0),1,1))) -> 422.720001 | F80: =IF(A80>$B$30,NA(),IF(A80>$A$8,"",OFFSET(InputPriceData!$E$15,CalculationsAndCharts!$A80+$A$11,IF($C$5,8,0),1,1))) -> 419.200012 | G80: =IF(A80>$B$30,NA(),IF(A80>$A$8,"",OFFSET(InputPriceData!$F$15,CalculationsAndCharts!$A80+$A$11,IF($C$5,8,0),1,1))) -> 419.670013 | H80: 420.5300087 | I80: 0.0004043398447 | J80: 0.006880544671 | K80: 0.5775116543 | L80: 75534253.08 | M80: 188835632.7 | N80: 54216600 | O80: 0.1700026667 | P80: 0 | Q80: 16.87806191 | R80: 15.58663259 | S80: 13.93519625 | T80: 14.66724228 | U80: 6 | V80: 3.519989 | W80: 4.22127985 | X80: -15.67042539 | Y80: 11.54222588 | Z80: =IF($A80>$B$30,NA(),IF($A80>$A$8,"",OFFSET(InputIndexData!$B$15,$A80+$A$11,0,1,1))) -> 2021-06-01 | AA80: =IF($A80>$B$30,NA(),IF($A80>$A$8,"",OFFSET(InputIndexData!$G$15,CalculationsAndCharts!$A80+$A$11,IF($C$5,8,0),1,1))) -> 0 | AB80: =IF($A80>$B$30,NA(),IF($A80>$A$8,"",OFFSET(InputIndexData!$C$15,CalculationsAndCharts!$A80+$A$11,IF($C$5,8,0),1,1))) -> 17.24 | AC80: =IF($A80>$B$30,NA(),IF($A80>$A$8,"",OFFSET(InputIndexData!$D$15,CalculationsAndCharts!$A80+$A$11,IF($C$5,8,0),1,1))) -> 18.530001 | AD80: =IF($A80>$B$30,NA(),IF($A80>$A$8,"",OFFSET(InputIndexData!$E$15,CalculationsAndCharts!$A80+$A$11,IF($C$5,8,0),1,1))) -> 15.68 | AE80: =IF($A80>$B$30,NA(),IF($A80>$A$8,"",OFFSET(InputIndexData!$F$15,CalculationsAndCharts!$A80+$A$11,IF($C$5,8,0),1,1))) -> 17.9 | AF80: -35.1214208 | AG80: 7.249843784 | AH80: TRUE | AI80: TRUE | AJ80: FALSE | AK80: FALSE | AL80: FALSE | AM80: FALSE | AN80: 4.042403696 | AO80: 12.12721109 | AT80: TRUE | AX80: 54216600 | BN80: -20 | BO80: 15.58663259 | BQ80: -35.58663259 | BR80: -15.58663259 | BT80: FALSE | BU80: FALSE
A81: 49 | B81: =IF(A81>$B$30,NA(),IF($A81>$A$8,"",OFFSET(InputPriceData!$B$15,$A81+$A$11,0,1,1))) -> 2021-05-28 | C81: =IF(A81>$B$30,NA(),IF($A81>$A$8,"",OFFSET(InputPriceData!$G$15,CalculationsAndCharts!$A81+$A$11,IF($C$5,8,0),1,1))) -> 58520200 | D81: =IF(A81>$B$30,NA(),IF(A81>$A$8,"",OFFSET(InputPriceData!$C$15,CalculationsAndCharts!$A81+$A$11,IF($C$5,8,0),1,1))) -> 420.970001 | E81: =IF(A81>$B$30,NA(),IF(A81>$A$8,"",OFFSET(InputPriceData!$D$15,CalculationsAndCharts!$A81+$A$11,IF($C$5,8,0),1,1))) -> 421.25 | F81: =IF(A81>$B$30,NA(),IF(A81>$A$8,"",OFFSET(InputPriceData!$E$15,CalculationsAndCharts!$A81+$A$11,IF($C$5,8,0),1,1))) -> 419.790009 | G81: =IF(A81>$B$30,NA(),IF(A81>$A$8,"",OFFSET(InputPriceData!$F$15,CalculationsAndCharts!$A81+$A$11,IF($C$5,8,0),1,1))) -> 420.040009 | H81: 420.360006 | I81: 0.001650755895 | J81: 0.006928969142 | K81: 0.5820888521 | L81: 75545181.54 | M81: 188862953.8 | N81: 58520200 | O81: 0.6933393333 | P81: 58520200 | Q81: 16.87562031 | R81: 14.94091792 | S81: 13.99182829 | T81: 14.56508781 | U81: 5 | V81: 1.959991 | W81: 4.271372053 | X81: -14.66972077 | Y81: 12.86585191 | Z81: =IF($A81>$B$30,NA(),IF($A81>$A$8,"",OFFSET(InputIndexData!$B$15,$A81+$A$11,0,1,1))) -> 2021-05-28 | AA81: =IF($A81>$B$30,NA(),IF($A81>$A$8,"",OFFSET(InputIndexData!$G$15,CalculationsAndCharts!$A81+$A$11,IF($C$5,8,0),1,1))) -> 0 | AB81: =IF($A81>$B$30,NA(),IF($A81>$A$8,"",OFFSET(InputIndexData!$C$15,CalculationsAndCharts!$A81+$A$11,IF($C$5,8,0),1,1))) -> 16.799999 | AC81: =IF($A81>$B$30,NA(),IF($A81>$A$8,"",OFFSET(InputIndexData!$D$15,CalculationsAndCharts!$A81+$A$11,IF($C$5,8,0),1,1))) -> 16.860001 | AD81: =IF($A81>$B$30,NA(),IF($A81>$A$8,"",OFFSET(InputIndexData!$E$15,CalculationsAndCharts!$A81+$A$11,IF($C$5,8,0),1,1))) -> 15.9 | AE81: =IF($A81>$B$30,NA(),IF($A81>$A$8,"",OFFSET(InputIndexData!$F$15,CalculationsAndCharts!$A81+$A$11,IF($C$5,8,0),1,1))) -> 16.76 | AF81: -39.25335266 | AG81: 0.4194068053 | AH81: TRUE | AI81: TRUE | AJ81: FALSE | AK81: FALSE | AL81: FALSE | AM81: FALSE | AN81: 4.100449774 | AO81: 12.30134932 | AT81: TRUE | AX81: 58520200 | BN81: -20 | BO81: 14.94091792 | BQ81: -34.94091792 | BR81: -14.94091792 | BT81: FALSE | BU81: FALSE
A82: 50 | B82: =IF(A82>$B$30,NA(),IF($A82>$A$8,"",OFFSET(InputPriceData!$B$15,$A82+$A$11,0,1,1))) -> 2021-05-27 | C82: =IF(A82>$B$30,NA(),IF($A82>$A$8,"",OFFSET(InputPriceData!$G$15,CalculationsAndCharts!$A82+$A$11,IF($C$5,8,0),1,1))) -> 56707700 | D82: =IF(A82>$B$30,NA(),IF(A82>$A$8,"",OFFSET(InputPriceData!$C$15,CalculationsAndCharts!$A82+$A$11,IF($C$5,8,0),1,1))) -> 420.170013 | E82: =IF(A82>$B$30,NA(),IF(A82>$A$8,"",OFFSET(InputPriceData!$D$15,CalculationsAndCharts!$A82+$A$11,IF($C$5,8,0),1,1))) -> 420.720001 | F82: =IF(A82>$B$30,NA(),IF(A82>$A$8,"",OFFSET(InputPriceData!$E$15,CalculationsAndCharts!$A82+$A$11,IF($C$5,8,0),1,1))) -> 418.98999 | G82: =IF(A82>$B$30,NA(),IF(A82>$A$8,"",OFFSET(InputPriceData!$F$15,CalculationsAndCharts!$A82+$A$11,IF($C$5,8,0),1,1))) -> 419.290009 | H82: 419.6666667 | I82: 0.0020354283 | J82: 0.006960015499 | K82: 0.5836529922 | L82: 75651978.46 | M82: 189129946.2 | N82: 56707700 | O82: 0.8533326667 | P82: 56707700 | Q82: 15.28592806 | R82: 13.97356673 | S82: 14.17757995 | T82: 14.5233289 | U82: 5 | V82: 1.730011 | W82: 4.4364707 | X82: -11.37150338 | Y82: 17.22838441 | Z82: =IF($A82>$B$30,NA(),IF($A82>$A$8,"",OFFSET(InputIndexData!$B$15,$A82+$A$11,0,1,1))) -> 2021-05-27 | AA82: =IF($A82>$B$30,NA(),IF($A82>$A$8,"",OFFSET(InputIndexData!$G$15,CalculationsAndCharts!$A82+$A$11,IF($C$5,8,0),1,1))) -> 0 | AB82: =IF($A82>$B$30,NA(),IF($A82>$A$8,"",OFFSET(InputIndexData!$C$15,CalculationsAndCharts!$A82+$A$11,IF($C$5,8,0),1,1))) -> 18.030001 | AC82: =IF($A82>$B$30,NA(),IF($A82>$A$8,"",OFFSET(InputIndexData!$D$15,CalculationsAndCharts!$A82+$A$11,IF($C$5,8,0),1,1))) -> 18.17 | AD82: =IF($A82>$B$30,NA(),IF($A82>$A$8,"",OFFSET(InputIndexData!$E$15,CalculationsAndCharts!$A82+$A$11,IF($C$5,8,0),1,1))) -> 16.52 | AE82: =IF($A82>$B$30,NA(),IF($A82>$A$8,"",OFFSET(InputIndexData!$F$15,CalculationsAndCharts!$A82+$A$11,IF($C$5,8,0),1,1))) -> 16.74 | AF82: -39.3258427 | AG82: 0.2995745776 | AH82: TRUE | AI82: TRUE | AJ82: FALSE | AK82: FALSE | AL82: FALSE | AM82: FALSE | AN82: 4.338278526 | AO82: 13.01483558 | AT82: TRUE | AX82: 56707700 | BN82: -20 | BO82: 13.97356673 | BQ82: -33.97356673 | BR82: -13.97356673 | BT82: FALSE | BU82: FALSE
A83: 51 | B83: =IF(A83>$B$30,NA(),IF($A83>$A$8,"",OFFSET(InputPriceData!$B$15,$A83+$A$11,0,1,1))) -> 2021-05-26 | C83: =IF(A83>$B$30,NA(),IF($A83>$A$8,"",OFFSET(InputPriceData!$G$15,CalculationsAndCharts!$A83+$A$11,IF($C$5,8,0),1,1))) -> 43088600 | D83: =IF(A83>$B$30,NA(),IF(A83>$A$8,"",OFFSET(InputPriceData!$C$15,CalculationsAndCharts!$A83+$A$11,IF($C$5,8,0),1,1))) -> 418.869995 | E83: =IF(A83>$B$30,NA(),IF(A83>$A$8,"",OFFSET(InputPriceData!$D$15,CalculationsAndCharts!$A83+$A$11,IF($C$5,8,0),1,1))) -> 419.609985 | F83: =IF(A83>$B$30,NA(),IF(A83>$A$8,"",OFFSET(InputPriceData!$E$15,CalculationsAndCharts!$A83+$A$11,IF($C$5,8,0),1,1))) -> 417.76001 | G83: =IF(A83>$B$30,NA(),IF(A83>$A$8,"",OFFSET(InputPriceData!$F$15,CalculationsAndCharts!$A83+$A$11,IF($C$5,8,0),1,1))) -> 419.070007 | H83: 418.813334 | I83: -0.0001034408946 | J83: 0.007075784364 | K83: 0.5930498005 | L83: 75829073.85 | M83: 189572684.6 | N83: 43088600 | O83: -0.04332466667 | P83: 0 | Q83: 13.57146603 | R83: 13.31738606 | S83: 14.51436963 | T83: 14.58441359 | U83: 5 | V83: 1.849975 | W83: 4.62978925 | X83: -7.509529835 | Y83: 22.3365938 | Z83: =IF($A83>$B$30,NA(),IF($A83>$A$8,"",OFFSET(InputIndexData!$B$15,$A83+$A$11,0,1,1))) -> 2021-05-26 | AA83: =IF($A83>$B$30,NA(),IF($A83>$A$8,"",OFFSET(InputIndexData!$G$15,CalculationsAndCharts!$A83+$A$11,IF($C$5,8,0),1,1))) -> 0 | AB83: =IF($A83>$B$30,NA(),IF($A83>$A$8,"",OFFSET(InputIndexData!$C$15,CalculationsAndCharts!$A83+$A$11,IF($C$5,8,0),1,1))) -> 18.370001 | AC83: =IF($A83>$B$30,NA(),IF($A83>$A$8,"",OFFSET(InputIndexData!$D$15,CalculationsAndCharts!$A83+$A$11,IF($C$5,8,0),1,1))) -> 18.92 | AD83: =IF($A83>$B$30,NA(),IF($A83>$A$8,"",OFFSET(InputIndexData!$E$15,CalculationsAndCharts!$A83+$A$11,IF($C$5,8,0),1,1))) -> 17.35 | AE83: =IF($A83>$B$30,NA(),IF($A83>$A$8,"",OFFSET(InputIndexData!$F$15,CalculationsAndCharts!$A83+$A$11,IF($C$5,8,0),1,1))) -> 17.360001 | AF83: -37.07864806 | AG83: 4.014379628 | AH83: TRUE | AI83: TRUE | AJ83: FALSE | AK83: FALSE | AL83: FALSE | AM83: FALSE | AN83: 4.628086029 | AO83: 13.88425809 | AT83: TRUE | AW83: 43088600 | BN83: -20 | BO83: 13.31738606 | BQ83: -33.31738606 | BR83: -13.31738606 | BT83: FALSE | BU83: FALSE
A84: 52 | B84: =IF(A84>$B$30,NA(),IF($A84>$A$8,"",OFFSET(InputPriceData!$B$15,$A84+$A$11,0,1,1))) -> 2021-05-25 | C84: =IF(A84>$B$30,NA(),IF($A84>$A$8,"",OFFSET(InputPriceData!$G$15,CalculationsAndCharts!$A84+$A$11,IF($C$5,8,0),1,1))) -> 57451400 | D84: =IF(A84>$B$30,NA(),IF(A84>$A$8,"",OFFSET(InputPriceData!$C$15,CalculationsAndCharts!$A84+$A$11,IF($C$5,8,0),1,1))) -> 420.329987 | E84: =IF(A84>$B$30,NA(),IF(A84>$A$8,"",OFFSET(InputPriceData!$D$15,CalculationsAndCharts!$A84+$A$11,IF($C$5,8,0),1,1))) -> 420.709991 | F84: =IF(A84>$B$30,NA(),IF(A84>$A$8,"",OFFSET(InputPriceData!$E$15,CalculationsAndCharts!$A84+$A$11,IF($C$5,8,0),1,1))) -> 417.619995 | G84: =IF(A84>$B$30,NA(),IF(A84>$A$8,"",OFFSET(InputPriceData!$F$15,CalculationsAndCharts!$A84+$A$11,IF($C$5,8,0),1,1))) -> 418.23999 | H84: 418.8566587 | I84: -2.467033244e-08 | J84: 0.007080287685 | K84: 0.5922518901 | L84: 75960533.08 | M84: 189901332.7 | N84: 57451400 | O84: -1.033333336e-05 | P84: 0 | Q84: 12.67764536 | R84: 13.19034608 | S84: 14.99995612 | T84: 14.72519443 | U84: 5 | V84: 3.089996 | W84: 4.828347411 | X84: -3.542883267 | Y84: 27.58325358 | Z84: =IF($A84>$B$30,NA(),IF($A84>$A$8,"",OFFSET(InputIndexData!$B$15,$A84+$A$11,0,1,1))) -> 2021-05-25 | AA84: =IF($A84>$B$30,NA(),IF($A84>$A$8,"",OFFSET(InputIndexData!$G$15,CalculationsAndCharts!$A84+$A$11,IF($C$5,8,0),1,1))) -> 0 | AB84: =IF($A84>$B$30,NA(),IF($A84>$A$8,"",OFFSET(InputIndexData!$C$15,CalculationsAndCharts!$A84+$A$11,IF($C$5,8,0),1,1))) -> 18.35 | AC84: =IF($A84>$B$30,NA(),IF($A84>$A$8,"",OFFSET(InputIndexData!$D$15,CalculationsAndCharts!$A84+$A$11,IF($C$5,8,0),1,1))) -> 19.290001 | AD84: =IF($A84>$B$30,NA(),IF($A84>$A$8,"",OFFSET(InputIndexData!$E$15,CalculationsAndCharts!$A84+$A$11,IF($C$5,8,0),1,1))) -> 16.870001 | AE84: =IF($A84>$B$30,NA(),IF($A84>$A$8,"",OFFSET(InputIndexData!$F$15,CalculationsAndCharts!$A84+$A$11,IF($C$5,8,0),1,1))) -> 18.84 | AF84: -31.71438927 | AG84: 12.88195849 | AH84: TRUE | AI84: TRUE | AJ84: FALSE | AK84: FALSE | AL84: FALSE | AM84: FALSE | AN84: 4.936765032 | AO84: 14.8102951 | AT84: TRUE | AX84: 57451400 | BN84: -20 | BO84: 13.19034608 | BQ84: -33.19034608 | BR84: -13.19034608 | BT84: FALSE | BU84: FALSE
A85: 53 | B85: =IF(A85>$B$30,NA(),IF($A85>$A$8,"",OFFSET(InputPriceData!$B$15,$A85+$A$11,0,1,1))) -> 2021-05-24 | C85: =IF(A85>$B$30,NA(),IF($A85>$A$8,"",OFFSET(InputPriceData!$G$15,CalculationsAndCharts!$A85+$A$11,IF($C$5,8,0),1,1))) -> 51376700 | D85: =IF(A85>$B$30,NA(),IF(A85>$A$8,"",OFFSET(InputPriceData!$C$15,CalculationsAndCharts!$A85+$A$11,IF($C$5,8,0),1,1))) -> 417.339996 | E85: =IF(A85>$B$30,NA(),IF(A85>$A$8,"",OFFSET(InputPriceData!$D$15,CalculationsAndCharts!$A85+$A$11,IF($C$5,8,0),1,1))) -> 420.320007 | F85: =IF(A85>$B$30,NA(),IF(A85>$A$8,"",OFFSET(InputPriceData!$E$15,CalculationsAndCharts!$A85+$A$11,IF($C$5,8,0),1,1))) -> 417.079987 | G85: =IF(A85>$B$30,NA(),IF(A85>$A$8,"",OFFSET(InputPriceData!$F$15,CalculationsAndCharts!$A85+$A$11,IF($C$5,8,0),1,1))) -> 419.170013 | H85: 418.856669 | I85: 0.007172081157 | J85: 0.007093860779 | K85: 0.594706743 | L85: 76049113.85 | M85: 190122784.6 | N85: 51376700 | O85: 2.993327 | P85: 51376700 | Q85: 13.64304918 | R85: 13.44669644 | S85: 15.60628933 | T85: 14.89573313 | U85: 5 | V85: 5.380005 | W85: 4.952515369 | X85: -1.062348585 | Y85: 30.86424203 | Z85: =IF($A85>$B$30,NA(),IF($A85>$A$8,"",OFFSET(InputIndexData!$B$15,$A85+$A$11,0,1,1))) -> 2021-05-24 | AA85: =IF($A85>$B$30,NA(),IF($A85>$A$8,"",OFFSET(InputIndexData!$G$15,CalculationsAndCharts!$A85+$A$11,IF($C$5,8,0),1,1))) -> 0 | AB85: =IF($A85>$B$30,NA(),IF($A85>$A$8,"",OFFSET(InputIndexData!$C$15,CalculationsAndCharts!$A85+$A$11,IF($C$5,8,0),1,1))) -> 20.5 | AC85: =IF($A85>$B$30,NA(),IF($A85>$A$8,"",OFFSET(InputIndexData!$D$15,CalculationsAndCharts!$A85+$A$11,IF($C$5,8,0),1,1))) -> 20.51 | AD85: =IF($A85>$B$30,NA(),IF($A85>$A$8,"",OFFSET(InputIndexData!$E$15,CalculationsAndCharts!$A85+$A$11,IF($C$5,8,0),1,1))) -> 18.379999 | AE85: =IF($A85>$B$30,NA(),IF($A85>$A$8,"",OFFSET(InputIndexData!$F$15,CalculationsAndCharts!$A85+$A$11,IF($C$5,8,0),1,1))) -> 18.4 | AF85: -33.30916999 | AG85: 10.24564948 | AH85: TRUE | AI85: TRUE | AJ85: FALSE | AK85: FALSE | AL85: FALSE | AM85: FALSE | AN85: 5.141961592 | AO85: 15.42588477 | AT85: TRUE | AW85: 51376700 | BN85: -20 | BO85: 13.44669644 | BQ85: -33.44669644 | BR85: -13.44669644 | BT85: FALSE | BU85: FALSE
A86: 54 | B86: =IF(A86>$B$30,NA(),IF($A86>$A$8,"",OFFSET(InputPriceData!$B$15,$A86+$A$11,0,1,1))) -> 2021-05-21 | C86: =IF(A86>$B$30,NA(),IF($A86>$A$8,"",OFFSET(InputPriceData!$G$15,CalculationsAndCharts!$A86+$A$11,IF($C$5,8,0),1,1))) -> 76578700 | D86: =IF(A86>$B$30,NA(),IF(A86>$A$8,"",OFFSET(InputPriceData!$C$15,CalculationsAndCharts!$A86+$A$11,IF($C$5,8,0),1,1))) -> 416.869995 | E86: =IF(A86>$B$30,NA(),IF(A86>$A$8,"",OFFSET(InputPriceData!$D$15,CalculationsAndCharts!$A86+$A$11,IF($C$5,8,0),1,1))) -> 418.200012 | F86: =IF(A86>$B$30,NA(),IF(A86>$A$8,"",OFFSET(InputPriceData!$E$15,CalculationsAndCharts!$A86+$A$11,IF($C$5,8,0),1,1))) -> 414.450012 | G86: =IF(A86>$B$30,NA(),IF(A86>$A$8,"",OFFSET(InputPriceData!$F$15,CalculationsAndCharts!$A86+$A$11,IF($C$5,8,0),1,1))) -> 414.940002 | H86: 415.863342 | I86: 0.003219380768 | J86: 0.006993772755 | K86: 0.5803992162 | L86: 75979633.08 | M86: 189949082.7 | N86: 76578700 | O86: 1.336669667 | P86: 76578700 | Q86: 13.80708563 | R86: 13.34852007 | S86: 16.19690793 | T86: 15.05673721 | U86: 5 | V86: 3.75 | W86: 4.921980395 | X86: -1.672353472 | Y86: 30.0573922 | Z86: =IF($A86>$B$30,NA(),IF($A86>$A$8,"",OFFSET(InputIndexData!$B$15,$A86+$A$11,0,1,1))) -> 2021-05-21 | AA86: =IF($A86>$B$30,NA(),IF($A86>$A$8,"",OFFSET(InputIndexData!$G$15,CalculationsAndCharts!$A86+$A$11,IF($C$5,8,0),1,1))) -> 0 | AB86: =IF($A86>$B$30,NA(),IF($A86>$A$8,"",OFFSET(InputIndexData!$C$15,CalculationsAndCharts!$A86+$A$11,IF($C$5,8,0),1,1))) -> 20.42 | AC86: =IF($A86>$B$30,NA(),IF($A86>$A$8,"",OFFSET(InputIndexData!$D$15,CalculationsAndCharts!$A86+$A$11,IF($C$5,8,0),1,1))) -> 20.889999 | AD86: =IF($A86>$B$30,NA(),IF($A86>$A$8,"",OFFSET(InputIndexData!$E$15,CalculationsAndCharts!$A86+$A$11,IF($C$5,8,0),1,1))) -> 19.530001 | AE86: =IF($A86>$B$30,NA(),IF($A86>$A$8,"",OFFSET(InputIndexData!$F$15,CalculationsAndCharts!$A86+$A$11,IF($C$5,8,0),1,1))) -> 20.15 | AF86: -26.96629213 | AG86: 24 | AH86: TRUE | AI86: TRUE | AJ86: FALSE | AK86: FALSE | AL86: FALSE | AM86: FALSE | AN86: 5.115512324 | AO86: 15.34653697 | AT86: TRUE | AX86: 76578700 | BN86: -20 | BO86: 13.34852007 | BQ86: -33.34852007 | BR86: -13.34852007 | BT86: FALSE | BU86: FALSE
A87: 55 | B87: =IF(A87>$B$30,NA(),IF($A87>$A$8,"",OFFSET(InputPriceData!$B$15,$A87+$A$11,0,1,1))) -> 2021-05-20 | C87: =IF(A87>$B$30,NA(),IF($A87>$A$8,"",OFFSET(InputPriceData!$G$15,CalculationsAndCharts!$A87+$A$11,IF($C$5,8,0),1,1))) -> 78022200 | D87: =IF(A87>$B$30,NA(),IF(A87>$A$8,"",OFFSET(InputPriceData!$C$15,CalculationsAndCharts!$A87+$A$11,IF($C$5,8,0),1,1))) -> 411.799988 | E87: =IF(A87>$B$30,NA(),IF(A87>$A$8,"",OFFSET(InputPriceData!$D$15,CalculationsAndCharts!$A87+$A$11,IF($C$5,8,0),1,1))) -> 416.630005 | F87: =IF(A87>$B$30,NA(),IF(A87>$A$8,"",OFFSET(InputPriceData!$E$15,CalculationsAndCharts!$A87+$A$11,IF($C$5,8,0),1,1))) -> 411.670013 | G87: =IF(A87>$B$30,NA(),IF(A87>$A$8,"",OFFSET(InputPriceData!$F$15,CalculationsAndCharts!$A87+$A$11,IF($C$5,8,0),1,1))) -> 415.279999 | H87: 414.5266723 | I87: 0.01322661737 | J87: 0.007048775356 | K87: 0.5854430846 | L87: 75830608.46 | M87: 189576521.2 | N87: 78022200 | O87: 5.446685667 | P87: 78022200 | Q87: 11.93360331 | R87: 13.11923729 | S87: 16.68326753 | T87: 15.24653911 | U87: 5 | V87: 5.77002 | W87: 5.005693281 | X87: 0.3282563404 | Y87: 32.26940417 | Z87: =IF($A87>$B$30,NA(),IF($A87>$A$8,"",OFFSET(InputIndexData!$B$15,$A87+$A$11,0,1,1))) -> 2021-05-20 | AA87: =IF($A87>$B$30,NA(),IF($A87>$A$8,"",OFFSET(InputIndexData!$G$15,CalculationsAndCharts!$A87+$A$11,IF($C$5,8,0),1,1))) -> 0 | AB87: =IF($A87>$B$30,NA(),IF($A87>$A$8,"",OFFSET(InputIndexData!$C$15,CalculationsAndCharts!$A87+$A$11,IF($C$5,8,0),1,1))) -> 22.33 | AC87: =IF($A87>$B$30,NA(),IF($A87>$A$8,"",OFFSET(InputIndexData!$D$15,CalculationsAndCharts!$A87+$A$11,IF($C$5,8,0),1,1))) -> 23.5 | AD87: =IF($A87>$B$30,NA(),IF($A87>$A$8,"",OFFSET(InputIndexData!$E$15,CalculationsAndCharts!$A87+$A$11,IF($C$5,8,0),1,1))) -> 20.190001 | AE87: =IF($A87>$B$30,NA(),IF($A87>$A$8,"",OFFSET(InputIndexData!$F$15,CalculationsAndCharts!$A87+$A$11,IF($C$5,8,0),1,1))) -> 20.67 | AF87: -25.08155129 | AG87: 27.2 | AH87: TRUE | AI87: TRUE | AJ87: FALSE | AK87: FALSE | AL87: FALSE | AM87: FALSE | AN87: 5.267235916 | AO87: 15.80170775 | AT87: TRUE | AW87: 78022200 | BN87: -20 | BO87: 13.11923729 | BQ87: -33.11923729 | BR87: -13.11923729 | BT87: FALSE | BU87: FALSE
A88: 56 | B88: =IF(A88>$B$30,NA(),IF($A88>$A$8,"",OFFSET(InputPriceData!$B$15,$A88+$A$11,0,1,1))) -> 2021-05-19 | C88: =IF(A88>$B$30,NA(),IF($A88>$A$8,"",OFFSET(InputPriceData!$G$15,CalculationsAndCharts!$A88+$A$11,IF($C$5,8,0),1,1))) -> 106467100 | D88: =IF(A88>$B$30,NA(),IF(A88>$A$8,"",OFFSET(InputPriceData!$C$15,CalculationsAndCharts!$A88+$A$11,IF($C$5,8,0),1,1))) -> 406.920013 | E88: =IF(A88>$B$30,NA(),IF(A88>$A$8,"",OFFSET(InputPriceData!$D$15,CalculationsAndCharts!$A88+$A$11,IF($C$5,8,0),1,1))) -> 411.049988 | F88: =IF(A88>$B$30,NA(),IF(A88>$A$8,"",OFFSET(InputPriceData!$E$15,CalculationsAndCharts!$A88+$A$11,IF($C$5,8,0),1,1))) -> 405.329987 | G88: =IF(A88>$B$30,NA(),IF(A88>$A$8,"",OFFSET(InputPriceData!$F$15,CalculationsAndCharts!$A88+$A$11,IF($C$5,8,0),1,1))) -> 410.859985 | H88: 409.0799867 | I88: -0.01015815664 | J88: 0.006681882718 | K88: 0.5490636466 | L88: 75669723.08 | M88: 189174307.7 | N88: 106467100 | O88: -4.176676333 | P88: -106467100 | Q88: 11.70295283 | R88: 13.71205428 | S88: 17.04898238 | T88: 15.48290598 | U88: 5 | V88: 6.610015 | W88: 4.951098515 | X88: -0.765977233 | Y88: 30.82680337 | Z88: =IF($A88>$B$30,NA(),IF($A88>$A$8,"",OFFSET(InputIndexData!$B$15,$A88+$A$11,0,1,1))) -> 2021-05-19 | AA88: =IF($A88>$B$30,NA(),IF($A88>$A$8,"",OFFSET(InputIndexData!$G$15,CalculationsAndCharts!$A88+$A$11,IF($C$5,8,0),1,1))) -> 0 | AB88: =IF($A88>$B$30,NA(),IF($A88>$A$8,"",OFFSET(InputIndexData!$C$15,CalculationsAndCharts!$A88+$A$11,IF($C$5,8,0),1,1))) -> 22.459999 | AC88: =IF($A88>$B$30,NA(),IF($A88>$A$8,"",OFFSET(InputIndexData!$D$15,CalculationsAndCharts!$A88+$A$11,IF($C$5,8,0),1,1))) -> 25.959999 | AD88: =IF($A88>$B$30,NA(),IF($A88>$A$8,"",OFFSET(InputIndexData!$E$15,CalculationsAndCharts!$A88+$A$11,IF($C$5,8,0),1,1))) -> 21.879999 | AE88: =IF($A88>$B$30,NA(),IF($A88>$A$8,"",OFFSET(InputIndexData!$F$15,CalculationsAndCharts!$A88+$A$11,IF($C$5,8,0),1,1))) -> 22.18 | AF88: -19.60855382 | AG88: 36.49230769 | AH88: TRUE | AI88: TRUE | AJ88: FALSE | AK88: FALSE | AL88: FALSE | AM88: FALSE | AN88: 5.211371017 | AO88: 15.63411305 | AT88: TRUE | AW88: 106467100 | BN88: -20 | BO88: 13.71205428 | BQ88: -33.71205428 | BR88: -13.71205428 | BT88: FALSE | BU88: FALSE
A89: 57 | B89: =IF(A89>$B$30,NA(),IF($A89>$A$8,"",OFFSET(InputPriceData!$B$15,$A89+$A$11,0,1,1))) -> 2021-05-18 | C89: =IF(A89>$B$30,NA(),IF($A89>$A$8,"",OFFSET(InputPriceData!$G$15,CalculationsAndCharts!$A89+$A$11,IF($C$5,8,0),1,1))) -> 59810200 | D89: =IF(A89>$B$30,NA(),IF(A89>$A$8,"",OFFSET(InputPriceData!$C$15,CalculationsAndCharts!$A89+$A$11,IF($C$5,8,0),1,1))) -> 415.799988 | E89: =IF(A89>$B$30,NA(),IF(A89>$A$8,"",OFFSET(InputPriceData!$D$15,CalculationsAndCharts!$A89+$A$11,IF($C$5,8,0),1,1))) -> 416.059998 | F89: =IF(A89>$B$30,NA(),IF(A89>$A$8,"",OFFSET(InputPriceData!$E$15,CalculationsAndCharts!$A89+$A$11,IF($C$5,8,0),1,1))) -> 411.769989 | G89: =IF(A89>$B$30,NA(),IF(A89>$A$8,"",OFFSET(InputPriceData!$F$15,CalculationsAndCharts!$A89+$A$11,IF($C$5,8,0),1,1))) -> 411.940002 | H89: 413.256663 | I89: -0.004426495372 | J89: 0.006398052731 | K89: 0.5271227709 | L89: 76535061.54 | M89: 191337653.8 | N89: 59810200 | O89: -1.833333333 | P89: -59810200 | Q89: 11.84390895 | R89: 14.71660501 | S89: 17.24830154 | T89: 15.67966728 | U89: 5 | V89: 4.290009 | W89: 4.83260448 | X89: -3.140932952 | Y89: 27.6957415 | Z89: =IF($A89>$B$30,NA(),IF($A89>$A$8,"",OFFSET(InputIndexData!$B$15,$A89+$A$11,0,1,1))) -> 2021-05-18 | AA89: =IF($A89>$B$30,NA(),IF($A89>$A$8,"",OFFSET(InputIndexData!$G$15,CalculationsAndCharts!$A89+$A$11,IF($C$5,8,0),1,1))) -> 0 | AB89: =IF($A89>$B$30,NA(),IF($A89>$A$8,"",OFFSET(InputIndexData!$C$15,CalculationsAndCharts!$A89+$A$11,IF($C$5,8,0),1,1))) -> 18.889999 | AC89: =IF($A89>$B$30,NA(),IF($A89>$A$8,"",OFFSET(InputIndexData!$D$15,CalculationsAndCharts!$A89+$A$11,IF($C$5,8,0),1,1))) -> 21.450001 | AD89: =IF($A89>$B$30,NA(),IF($A89>$A$8,"",OFFSET(InputIndexData!$E$15,CalculationsAndCharts!$A89+$A$11,IF($C$5,8,0),1,1))) -> 18.809999 | AE89: =IF($A89>$B$30,NA(),IF($A89>$A$8,"",OFFSET(InputIndexData!$F$15,CalculationsAndCharts!$A89+$A$11,IF($C$5,8,0),1,1))) -> 21.34 | AF89: -22.65313519 | AG89: 31.32307692 | AH89: TRUE | AI89: TRUE | AJ89: FALSE | AK89: FALSE | AL89: FALSE | AM89: FALSE | AN89: 5.05596613 | AO89: 15.16789839 | AT89: TRUE | AX89: 59810200 | BN89: -20 | BO89: 14.71660501 | BQ89: -34.71660501 | BR89: -14.71660501 | BT89: FALSE | BU89: FALSE
A90: 58 | B90: =IF(A90>$B$30,NA(),IF($A90>$A$8,"",OFFSET(InputPriceData!$B$15,$A90+$A$11,0,1,1))) -> 2021-05-17 | C90: =IF(A90>$B$30,NA(),IF($A90>$A$8,"",OFFSET(InputPriceData!$G$15,CalculationsAndCharts!$A90+$A$11,IF($C$5,8,0),1,1))) -> 65129200 | D90: =IF(A90>$B$30,NA(),IF(A90>$A$8,"",OFFSET(InputPriceData!$C$15,CalculationsAndCharts!$A90+$A$11,IF($C$5,8,0),1,1))) -> 415.390015 | E90: =IF(A90>$B$30,NA(),IF(A90>$A$8,"",OFFSET(InputPriceData!$D$15,CalculationsAndCharts!$A90+$A$11,IF($C$5,8,0),1,1))) -> 416.390015 | F90: =IF(A90>$B$30,NA(),IF(A90>$A$8,"",OFFSET(InputPriceData!$E$15,CalculationsAndCharts!$A90+$A$11,IF($C$5,8,0),1,1))) -> 413.359985 | G90: =IF(A90>$B$30,NA(),IF(A90>$A$8,"",OFFSET(InputPriceData!$F$15,CalculationsAndCharts!$A90+$A$11,IF($C$5,8,0),1,1))) -> 415.519989 | H90: 415.0899963 | I90: -0.001588738665 | J90: 0.006332802231 | K90: 0.5262811827 | L90: 76610783.08 | M90: 191526957.7 | N90: 65129200 | O90: -0.6599936667 | P90: -65129200 | Q90: 14.8619901 | R90: 16.15295304 | S90: 17.31760757 | T90: 15.7866742 | U90: 5 | V90: 3.220002 | W90: 4.8713613 | X90: -2.364136621 | Y90: 28.7198437 | Z90: =IF($A90>$B$30,NA(),IF($A90>$A$8,"",OFFSET(InputIndexData!$B$15,$A90+$A$11,0,1,1))) -> 2021-05-17 | AA90: =IF($A90>$B$30,NA(),IF($A90>$A$8,"",OFFSET(InputIndexData!$G$15,CalculationsAndCharts!$A90+$A$11,IF($C$5,8,0),1,1))) -> 0 | AB90: =IF($A90>$B$30,NA(),IF($A90>$A$8,"",OFFSET(InputIndexData!$C$15,CalculationsAndCharts!$A90+$A$11,IF($C$5,8,0),1,1))) -> 19.889999 | AC90: =IF($A90>$B$30,NA(),IF($A90>$A$8,"",OFFSET(InputIndexData!$D$15,CalculationsAndCharts!$A90+$A$11,IF($C$5,8,0),1,1))) -> 21.58 | AD90: =IF($A90>$B$30,NA(),IF($A90>$A$8,"",OFFSET(InputIndexData!$E$15,CalculationsAndCharts!$A90+$A$11,IF($C$5,8,0),1,1))) -> 19.67 | AE90: =IF($A90>$B$30,NA(),IF($A90>$A$8,"",OFFSET(InputIndexData!$F$15,CalculationsAndCharts!$A90+$A$11,IF($C$5,8,0),1,1))) -> 19.719999 | AF90: -28.52483146 | AG90: 21.35384 | AH90: TRUE | AI90: TRUE | AJ90: FALSE | AK90: FALSE | AL90: FALSE | AM90: FALSE | AN90: 5.141072478 | AO90: 15.42321743 | AT90: TRUE | AW90: 65129200 | BN90: -20 | BO90: 16.15295304 | BQ90: -36.15295304 | BR90: -16.15295304 | BT90: FALSE | BU90: FALSE
A91: 59 | B91: =IF(A91>$B$30,NA(),IF($A91>$A$8,"",OFFSET(InputPriceData!$B$15,$A91+$A$11,0,1,1))) -> 2021-05-14 | C91: =IF(A91>$B$30,NA(),IF($A91>$A$8,"",OFFSET(InputPriceData!$G$15,CalculationsAndCharts!$A91+$A$11,IF($C$5,8,0),1,1))) -> 82201600 | D91: =IF(A91>$B$30,NA(),IF(A91>$A$8,"",OFFSET(InputPriceData!$C$15,CalculationsAndCharts!$A91+$A$11,IF($C$5,8,0),1,1))) -> 413.209991 | E91: =IF(A91>$B$30,NA(),IF(A91>$A$8,"",OFFSET(InputPriceData!$D$15,CalculationsAndCharts!$A91+$A$11,IF($C$5,8,0),1,1))) -> 417.48999 | F91: =IF(A91>$B$30,NA(),IF(A91>$A$8,"",OFFSET(InputPriceData!$E$15,CalculationsAndCharts!$A91+$A$11,IF($C$5,8,0),1,1))) -> 413.179993 | G91: =IF(A91>$B$30,NA(),IF(A91>$A$8,"",OFFSET(InputPriceData!$F$15,CalculationsAndCharts!$A91+$A$11,IF($C$5,8,0),1,1))) -> 416.579987 | H91: 415.74999 | I91: 0.01421153254 | J91: 0.006759921108 | K91: 0.5632095695 | L91: 76609537.69 | M91: 191523844.2 | N91: 82201600 | O91: 5.866658667 | P91: 82201600 | Q91: 15.7123765 | R91: 16.7984345 | S91: 17.23715678 | T91: 15.74597655 | U91: 5 | V91: 7.209991 | W91: 4.989315536 | X91: 3.283578197 | Y91: 31.83664203 | Z91: =IF($A91>$B$30,NA(),IF($A91>$A$8,"",OFFSET(InputIndexData!$B$15,$A91+$A$11,0,1,1))) -> 2021-05-14 | AA91: =IF($A91>$B$30,NA(),IF($A91>$A$8,"",OFFSET(InputIndexData!$G$15,CalculationsAndCharts!$A91+$A$11,IF($C$5,8,0),1,1))) -> 0 | AB91: =IF($A91>$B$30,NA(),IF($A91>$A$8,"",OFFSET(InputIndexData!$C$15,CalculationsAndCharts!$A91+$A$11,IF($C$5,8,0),1,1))) -> 21.77 | AC91: =IF($A91>$B$30,NA(),IF($A91>$A$8,"",OFFSET(InputIndexData!$D$15,CalculationsAndCharts!$A91+$A$11,IF($C$5,8,0),1,1))) -> 22.1 | AD91: =IF($A91>$B$30,NA(),IF($A91>$A$8,"",OFFSET(InputIndexData!$E$15,CalculationsAndCharts!$A91+$A$11,IF($C$5,8,0),1,1))) -> 18.66 | AE91: =IF($A91>$B$30,NA(),IF($A91>$A$8,"",OFFSET(InputIndexData!$F$15,CalculationsAndCharts!$A91+$A$11,IF($C$5,8,0),1,1))) -> 18.809999 | AF91: -31.82312794 | AG91: 15.75384 | AH91: TRUE | AI91: TRUE | AJ91: FALSE | AK91: FALSE | AL91: FALSE | AM91: FALSE | AN91: 5.354524754 | AO91: 16.06357426 | AT91: TRUE | AW91: 82201600 | BN91: -20 | BO91: 16.7984345 | BQ91: -36.7984345 | BR91: -16.7984345 | BT91: FALSE | BU91: FALSE
A92: 60 | B92: =IF(A92>$B$30,NA(),IF($A92>$A$8,"",OFFSET(InputPriceData!$B$15,$A92+$A$11,0,1,1))) -> 2021-05-13 | C92: =IF(A92>$B$30,NA(),IF($A92>$A$8,"",OFFSET(InputPriceData!$G$15,CalculationsAndCharts!$A92+$A$11,IF($C$5,8,0),1,1))) -> 106394000 | D92: =IF(A92>$B$30,NA(),IF(A92>$A$8,"",OFFSET(InputPriceData!$C$15,CalculationsAndCharts!$A92+$A$11,IF($C$5,8,0),1,1))) -> 407.070007 | E92: =IF(A92>$B$30,NA(),IF(A92>$A$8,"",OFFSET(InputPriceData!$D$15,CalculationsAndCharts!$A92+$A$11,IF($C$5,8,0),1,1))) -> 412.350006 | F92: =IF(A92>$B$30,NA(),IF(A92>$A$8,"",OFFSET(InputPriceData!$E$15,CalculationsAndCharts!$A92+$A$11,IF($C$5,8,0),1,1))) -> 407.019989 | G92: =IF(A92>$B$30,NA(),IF(A92>$A$8,"",OFFSET(InputPriceData!$F$15,CalculationsAndCharts!$A92+$A$11,IF($C$5,8,0),1,1))) -> 410.279999 | H92: 409.8833313 | I92: 0.006240710417 | J92: 0.006457337403 | K92: 0.5298632766 | L92: 76767735.38 | M92: 191919338.5 | N92: 106394000 | O92: 2.549998 | P92: 106394000 | Q92: 15.67788856 | R92: 17.3414635 | S92: 17.07492225 | T92: 15.62903678 | U92: 5 | V92: 6.940002 | W92: 4.83069586 | X92: 3.219310298 | Y92: 27.64530851 | Z92: =IF($A92>$B$30,NA(),IF($A92>$A$8,"",OFFSET(InputIndexData!$B$15,$A92+$A$11,0,1,1))) -> 2021-05-13 | AA92: =IF($A92>$B$30,NA(),IF($A92>$A$8,"",OFFSET(InputIndexData!$G$15,CalculationsAndCharts!$A92+$A$11,IF($C$5,8,0),1,1))) -> 0 | AB92: =IF($A92>$B$30,NA(),IF($A92>$A$8,"",OFFSET(InputIndexData!$C$15,CalculationsAndCharts!$A92+$A$11,IF($C$5,8,0),1,1))) -> 26.030001 | AC92: =IF($A92>$B$30,NA(),IF($A92>$A$8,"",OFFSET(InputIndexData!$D$15,CalculationsAndCharts!$A92+$A$11,IF($C$5,8,0),1,1))) -> 28.93 | AD92: =IF($A92>$B$30,NA(),IF($A92>$A$8,"",OFFSET(InputIndexData!$E$15,CalculationsAndCharts!$A92+$A$11,IF($C$5,8,0),1,1))) -> 22.23 | AE92: =IF($A92>$B$30,NA(),IF($A92>$A$8,"",OFFSET(InputIndexData!$F$15,CalculationsAndCharts!$A92+$A$11,IF($C$5,8,0),1,1))) -> 23.129999 | AF92: -16.1652809 | AG92: 42.33845538 | AH92: TRUE | AI92: FALSE | AJ92: FALSE | AK92: FALSE | AL92: FALSE | AM92: FALSE | AN92: 5.148361837 | AO92: 15.44508551 | AT92: TRUE | AW92: 106394000 | BN92: -20 | BO92: 17.3414635 | BQ92: -37.3414635 | BR92: -17.3414635 | BT92: FALSE | BU92: FALSE
A93: 61 | B93: =IF(A93>$B$30,NA(),IF($A93>$A$8,"",OFFSET(InputPriceData!$B$15,$A93+$A$11,0,1,1))) -> 2021-05-12 | C93: =IF(A93>$B$30,NA(),IF($A93>$A$8,"",OFFSET(InputPriceData!$G$15,CalculationsAndCharts!$A93+$A$11,IF($C$5,8,0),1,1))) -> 134811000 | D93: =IF(A93>$B$30,NA(),IF(A93>$A$8,"",OFFSET(InputPriceData!$C$15,CalculationsAndCharts!$A93+$A$11,IF($C$5,8,0),1,1))) -> 411.230011 | E93: =IF(A93>$B$30,NA(),IF(A93>$A$8,"",OFFSET(InputPriceData!$D$15,CalculationsAndCharts!$A93+$A$11,IF($C$5,8,0),1,1))) -> 412.589996 | F93: =IF(A93>$B$30,NA(),IF(A93>$A$8,"",OFFSET(InputPriceData!$E$15,CalculationsAndCharts!$A93+$A$11,IF($C$5,8,0),1,1))) -> 404 | G93: =IF(A93>$B$30,NA(),IF(A93>$A$8,"",OFFSET(InputPriceData!$F$15,CalculationsAndCharts!$A93+$A$11,IF($C$5,8,0),1,1))) -> 405.410004 | H93: 407.3333333 | I93: -0.01425146455 | J93: 0.006437400788 | K93: 0.5219573358 | L93: 76448375.38 | M93: 191120938.5 | N93: 134811000 | O93: -5.846659333 | P93: -134811000 | Q93: 16.01239652 | R93: 18.17325098 | S93: 16.84253917 | T93: 15.43876714 | U93: 5 | V93: 10.209991 | W93: 4.680031136 | X93: -2.270835106 | Y93: 23.66417499 | Z93: =IF($A93>$B$30,NA(),IF($A93>$A$8,"",OFFSET(InputIndexData!$B$15,$A93+$A$11,0,1,1))) -> 2021-05-12 | AA93: =IF($A93>$B$30,NA(),IF($A93>$A$8,"",OFFSET(InputIndexData!$G$15,CalculationsAndCharts!$A93+$A$11,IF($C$5,8,0),1,1))) -> 0 | AB93: =IF($A93>$B$30,NA(),IF($A93>$A$8,"",OFFSET(InputIndexData!$C$15,CalculationsAndCharts!$A93+$A$11,IF($C$5,8,0),1,1))) -> 22.42 | AC93: =IF($A93>$B$30,NA(),IF($A93>$A$8,"",OFFSET(InputIndexData!$D$15,CalculationsAndCharts!$A93+$A$11,IF($C$5,8,0),1,1))) -> 28.379999 | AD93: =IF($A93>$B$30,NA(),IF($A93>$A$8,"",OFFSET(InputIndexData!$E$15,CalculationsAndCharts!$A93+$A$11,IF($C$5,8,0),1,1))) -> 21.66 | AE93: =IF($A93>$B$30,NA(),IF($A93>$A$8,"",OFFSET(InputIndexData!$F$15,CalculationsAndCharts!$A93+$A$11,IF($C$5,8,0),1,1))) -> 27.59 | AF93: 26.32783883 | AG93: 69.78461538 | AH93: FALSE | AI93: TRUE | AJ93: FALSE | AK93: FALSE | AL93: FALSE | AM93: FALSE | AN93: 4.949290708 | AO93: 14.84787212 | AT93: TRUE | AX93: 134811000 | BN93: -20 | BO93: 18.17325098 | BQ93: -38.17325098 | BR93: -18.17325098 | BT93: FALSE | BU93: FALSE
A94: 62 | B94: =IF(A94>$B$30,NA(),IF($A94>$A$8,"",OFFSET(InputPriceData!$B$15,$A94+$A$11,0,1,1))) -> 2021-05-11 | C94: =IF(A94>$B$30,NA(),IF($A94>$A$8,"",OFFSET(InputPriceData!$G$15,CalculationsAndCharts!$A94+$A$11,IF($C$5,8,0),1,1))) -> 116888000 | D94: =IF(A94>$B$30,NA(),IF(A94>$A$8,"",OFFSET(InputPriceData!$C$15,CalculationsAndCharts!$A94+$A$11,IF($C$5,8,0),1,1))) -> 413.100006 | E94: =IF(A94>$B$30,NA(),IF(A94>$A$8,"",OFFSET(InputPriceData!$D$15,CalculationsAndCharts!$A94+$A$11,IF($C$5,8,0),1,1))) -> 415.269989 | F94: =IF(A94>$B$30,NA(),IF(A94>$A$8,"",OFFSET(InputPriceData!$E$15,CalculationsAndCharts!$A94+$A$11,IF($C$5,8,0),1,1))) -> 410.059998 | G94: =IF(A94>$B$30,NA(),IF(A94>$A$8,"",OFFSET(InputPriceData!$F$15,CalculationsAndCharts!$A94+$A$11,IF($C$5,8,0),1,1))) -> 414.209991 | H94: 413.1799927 | I94: -0.01517225635 | J94: 0.005806415181 | K94: 0.481015036 | L94: 76211300.77 | M94: 190528251.9 | N94: 116888000 | O94: -6.316670667 | P94: -116888000 | Q94: 19.05526983 | R94: 19.25367821 | S94: 16.44618972 | T94: 15.13493561 | U94: 5 | V94: 7.880004 | W94: 4.285034002 | X94: -14.69133308 | Y94: 13.22685242 | Z94: =IF($A94>$B$30,NA(),IF($A94>$A$8,"",OFFSET(InputIndexData!$B$15,$A94+$A$11,0,1,1))) -> 2021-05-11 | AA94: =IF($A94>$B$30,NA(),IF($A94>$A$8,"",OFFSET(InputIndexData!$G$15,CalculationsAndCharts!$A94+$A$11,IF($C$5,8,0),1,1))) -> 0 | AB94: =IF($A94>$B$30,NA(),IF($A94>$A$8,"",OFFSET(InputIndexData!$C$15,CalculationsAndCharts!$A94+$A$11,IF($C$5,8,0),1,1))) -> 21.17 | AC94: =IF($A94>$B$30,NA(),IF($A94>$A$8,"",OFFSET(InputIndexData!$D$15,CalculationsAndCharts!$A94+$A$11,IF($C$5,8,0),1,1))) -> 23.73 | AD94: =IF($A94>$B$30,NA(),IF($A94>$A$8,"",OFFSET(InputIndexData!$E$15,CalculationsAndCharts!$A94+$A$11,IF($C$5,8,0),1,1))) -> 20.709999 | AE94: =IF($A94>$B$30,NA(),IF($A94>$A$8,"",OFFSET(InputIndexData!$F$15,CalculationsAndCharts!$A94+$A$11,IF($C$5,8,0),1,1))) -> 21.84 | AF94: 11.08850458 | AG94: 34.4 | AH94: TRUE | AI94: TRUE | AJ94: FALSE | AK94: FALSE | AL94: FALSE | AM94: FALSE | AN94: 4.364768453 | AO94: 13.09430536 | AT94: TRUE | AW94: 116888000 | BN94: -20 | BO94: 19.25367821 | BQ94: -39.25367821 | BR94: -19.25367821 | BT94: FALSE | BU94: FALSE
A95: 63 | B95: =IF(A95>$B$30,NA(),IF($A95>$A$8,"",OFFSET(InputPriceData!$B$15,$A95+$A$11,0,1,1))) -> 2021-05-10 | C95: =IF(A95>$B$30,NA(),IF($A95>$A$8,"",OFFSET(InputPriceData!$G$15,CalculationsAndCharts!$A95+$A$11,IF($C$5,8,0),1,1))) -> 81852400 | D95: =IF(A95>$B$30,NA(),IF(A95>$A$8,"",OFFSET(InputPriceData!$C$15,CalculationsAndCharts!$A95+$A$11,IF($C$5,8,0),1,1))) -> 422.5 | E95: =IF(A95>$B$30,NA(),IF(A95>$A$8,"",OFFSET(InputPriceData!$D$15,CalculationsAndCharts!$A95+$A$11,IF($C$5,8,0),1,1))) -> 422.73999 | F95: =IF(A95>$B$30,NA(),IF(A95>$A$8,"",OFFSET(InputPriceData!$E$15,CalculationsAndCharts!$A95+$A$11,IF($C$5,8,0),1,1))) -> 417.809998 | G95: =IF(A95>$B$30,NA(),IF(A95>$A$8,"",OFFSET(InputPriceData!$F$15,CalculationsAndCharts!$A95+$A$11,IF($C$5,8,0),1,1))) -> 417.940002 | H95: 419.4966633 | I95: -0.004447829618 | J95: 0.004913413908 | K95: 0.4107024437 | L95: 76506953.85 | M95: 191267384.6 | N95: 81852400 | O95: -1.870005333 | P95: -81852400 | Q95: 21.63441513 | R95: 19.3528824 | S95: 15.91408192 | T95: 14.67729754 | U95: 5 | V95: 4.929992 | W95: 4.028250431 | X95: -23.27627056 | Y95: 6.441656434 | Z95: =IF($A95>$B$30,NA(),IF($A95>$A$8,"",OFFSET(InputIndexData!$B$15,$A95+$A$11,0,1,1))) -> 2021-05-10 | AA95: =IF($A95>$B$30,NA(),IF($A95>$A$8,"",OFFSET(InputIndexData!$G$15,CalculationsAndCharts!$A95+$A$11,IF($C$5,8,0),1,1))) -> 0 | AB95: =IF($A95>$B$30,NA(),IF($A95>$A$8,"",OFFSET(InputIndexData!$C$15,CalculationsAndCharts!$A95+$A$11,IF($C$5,8,0),1,1))) -> 17.34 | AC95: =IF($A95>$B$30,NA(),IF($A95>$A$8,"",OFFSET(InputIndexData!$D$15,CalculationsAndCharts!$A95+$A$11,IF($C$5,8,0),1,1))) -> 19.75 | AD95: =IF($A95>$B$30,NA(),IF($A95>$A$8,"",OFFSET(InputIndexData!$E$15,CalculationsAndCharts!$A95+$A$11,IF($C$5,8,0),1,1))) -> 17.07 | AE95: =IF($A95>$B$30,NA(),IF($A95>$A$8,"",OFFSET(InputIndexData!$F$15,CalculationsAndCharts!$A95+$A$11,IF($C$5,8,0),1,1))) -> 19.66 | AF95: 0.9240246407 | AG95: 20.98461538 | AH95: TRUE | AI95: TRUE | AJ95: FALSE | AK95: FALSE | AL95: FALSE | AM95: FALSE | AN95: 3.974186726 | AO95: 11.92256018 | AT95: TRUE | AX95: 81852400 | BN95: -20 | BO95: 19.3528824 | BQ95: -39.3528824 | BR95: -19.3528824 | BT95: FALSE | BU95: FALSE
A96: 64 | B96: =IF(A96>$B$30,NA(),IF($A96>$A$8,"",OFFSET(InputPriceData!$B$15,$A96+$A$11,0,1,1))) -> 2021-05-07 | C96: =IF(A96>$B$30,NA(),IF($A96>$A$8,"",OFFSET(InputPriceData!$G$15,CalculationsAndCharts!$A96+$A$11,IF($C$5,8,0),1,1))) -> 67733800 | D96: =IF(A96>$B$30,NA(),IF(A96>$A$8,"",OFFSET(InputPriceData!$C$15,CalculationsAndCharts!$A96+$A$11,IF($C$5,8,0),1,1))) -> 419.890015 | E96: =IF(A96>$B$30,NA(),IF(A96>$A$8,"",OFFSET(InputPriceData!$D$15,CalculationsAndCharts!$A96+$A$11,IF($C$5,8,0),1,1))) -> 422.820007 | F96: =IF(A96>$B$30,NA(),IF(A96>$A$8,"",OFFSET(InputPriceData!$E$15,CalculationsAndCharts!$A96+$A$11,IF($C$5,8,0),1,1))) -> 419.160004 | G96: =IF(A96>$B$30,NA(),IF(A96>$A$8,"",OFFSET(InputPriceData!$F$15,CalculationsAndCharts!$A96+$A$11,IF($C$5,8,0),1,1))) -> 422.119995 | H96: 421.3666687 | I96: 0.009650095169 | J96: 0.00534278948 | K96: 0.4510596538 | L96: 76682830 | M96: 191707075 | N96: 67733800 | O96: 4.046671667 | P96: 67733800 | Q96: 21.08357634 | R96: 18.21211604 | S96: 15.33174688 | T96: 14.15778811 | U96: 5 | V96: 3.75 | W96: 3.963840319 | X96: -24.50305229 | Y96: 4.739696952 | Z96: =IF($A96>$B$30,NA(),IF($A96>$A$8,"",OFFSET(InputIndexData!$B$15,$A96+$A$11,0,1,1))) -> 2021-05-07 | AA96: =IF($A96>$B$30,NA(),IF($A96>$A$8,"",OFFSET(InputIndexData!$G$15,CalculationsAndCharts!$A96+$A$11,IF($C$5,8,0),1,1))) -> 0 | AB96: =IF($A96>$B$30,NA(),IF($A96>$A$8,"",OFFSET(InputIndexData!$C$15,CalculationsAndCharts!$A96+$A$11,IF($C$5,8,0),1,1))) -> 18.450001 | AC96: =IF($A96>$B$30,NA(),IF($A96>$A$8,"",OFFSET(InputIndexData!$D$15,CalculationsAndCharts!$A96+$A$11,IF($C$5,8,0),1,1))) -> 18.57 | AD96: =IF($A96>$B$30,NA(),IF($A96>$A$8,"",OFFSET(InputIndexData!$E$15,CalculationsAndCharts!$A96+$A$11,IF($C$5,8,0),1,1))) -> 16.68 | AE96: =IF($A96>$B$30,NA(),IF($A96>$A$8,"",OFFSET(InputIndexData!$F$15,CalculationsAndCharts!$A96+$A$11,IF($C$5,8,0),1,1))) -> 16.690001 | AF96: -14.3223768 | AG96: 2.707698462 | AH96: TRUE | AI96: TRUE | AJ96: FALSE | AK96: FALSE | AL96: FALSE | AM96: FALSE | AN96: 3.86798614 | AO96: 11.60395842 | AT96: TRUE | AW96: 67733800 | BN96: -20 | BO96: 18.21211604 | BQ96: -38.21211604 | BR96: -18.21211604 | BT96: FALSE | BU96: FALSE
A97: 65 | B97: =IF(A97>$B$30,NA(),IF($A97>$A$8,"",OFFSET(InputPriceData!$B$15,$A97+$A$11,0,1,1))) -> 2021-05-06 | C97: =IF(A97>$B$30,NA(),IF($A97>$A$8,"",OFFSET(InputPriceData!$G$15,CalculationsAndCharts!$A97+$A$11,IF($C$5,8,0),1,1))) -> 74321400 | D97: =IF(A97>$B$30,NA(),IF(A97>$A$8,"",OFFSET(InputPriceData!$C$15,CalculationsAndCharts!$A97+$A$11,IF($C$5,8,0),1,1))) -> 415.829987 | E97: =IF(A97>$B$30,NA(),IF(A97>$A$8,"",OFFSET(InputPriceData!$D$15,CalculationsAndCharts!$A97+$A$11,IF($C$5,8,0),1,1))) -> 419.209991 | F97: =IF(A97>$B$30,NA(),IF(A97>$A$8,"",OFFSET(InputPriceData!$E$15,CalculationsAndCharts!$A97+$A$11,IF($C$5,8,0),1,1))) -> 413.679993 | G97: =IF(A97>$B$30,NA(),IF(A97>$A$8,"",OFFSET(InputPriceData!$F$15,CalculationsAndCharts!$A97+$A$11,IF($C$5,8,0),1,1))) -> 419.070007 | H97: 417.319997 | I97: 0.002743457614 | J97: 0.005282727918 | K97: 0.4427665651 | L97: 77088775.38 | M97: 192721938.5 | N97: 74321400 | O97: 1.143330667 | P97: 74321400 | Q97: 18.91866608 | R97: 16.77638588 | S97: 14.85017765 | T97: 13.70730723 | U97: =IF($A97>$B$30,NA(),MONTH(B97)) -> 5 | V97: =IF($A97>$V$30,NA(),MAX(E97-F97,ABS(E97-G98),ABS(F97-G98))) -> 5.529998 | W97: =IF($A97>$W$30,NA(),IF($A97=$W$30,AVERAGE(OFFSET(V97,0,0,$W$31,1)),(V97-W98)/$W$31+W98)) -> 3.979114628 | X97: =IF($A97>$X$30,NA(),($W97/MAX(OFFSET($W97,1,0,$X$31,1))-1)*100) -> -24.21213147 | Y97: =IF($A97>$X$30,NA(),($W97/MIN(OFFSET($W97,1,0,$X$31,1))-1)*100) -> 5.143302121 | Z97: =IF($A97>$B$30,NA(),IF($A97>$A$8,"",OFFSET(InputIndexData!$B$15,$A97+$A$11,0,1,1))) -> 2021-05-06 | AA97: =IF($A97>$B$30,NA(),IF($A97>$A$8,"",OFFSET(InputIndexData!$G$15,CalculationsAndCharts!$A97+$A$11,IF($C$5,8,0),1,1))) -> 0 | AB97: =IF($A97>$B$30,NA(),IF($A97>$A$8,"",OFFSET(InputIndexData!$C$15,CalculationsAndCharts!$A97+$A$11,IF($C$5,8,0),1,1))) -> 18.41 | AC97: =IF($A97>$B$30,NA(),IF($A97>$A$8,"",OFFSET(InputIndexData!$D$15,CalculationsAndCharts!$A97+$A$11,IF($C$5,8,0),1,1))) -> 20.6 | AD97: =IF($A97>$B$30,NA(),IF($A97>$A$8,"",OFFSET(InputIndexData!$E$15,CalculationsAndCharts!$A97+$A$11,IF($C$5,8,0),1,1))) -> 18.209999 | AE97: =IF($A97>$B$30,NA(),IF($A97>$A$8,"",OFFSET(InputIndexData!$F$15,CalculationsAndCharts!$A97+$A$11,IF($C$5,8,0),1,1))) -> 18.389999 | AF97: -5.59548768 | AG97: 13.16922462 | AH97: TRUE | AI97: TRUE | AJ97: =IF($A97>$AJ$30,NA(),U97=$A$20) -> FALSE | AK97: =IF($A97>$AK$30,NA(),AG97>2*$A$21) -> FALSE | AL97: =IF($A97>$AL$30,NA(),AND($A$22<R98,$A$22>R97,S97<S98)) -> FALSE | AM97: =IF($A97>$AM$30,NA(),OR(AJ97,AK98,AL98)) -> FALSE | AN97: 3.881095711 | AO97: 11.64328713 | AT97: TRUE | AW97: =IF(G97>=D97,C97,NA()) -> 74321400 | AX97: =IF(G97<D97,C97,NA()) ->  | BN97: -20 | BO97: 16.77638588 | BQ97: -36.77638588 | BR97: -16.77638588 | BT97: =IF($A97>$BT$30,FALSE,IF(AND(AT97,NOT(AT98)),TRUE,FALSE)) -> FALSE | BU97: FALSE
A98: 66 | B98: =IF(A98>$B$30,NA(),IF($A98>$A$8,"",OFFSET(InputPriceData!$B$15,$A98+$A$11,0,1,1))) -> 2021-05-05 | C98: =IF(A98>$B$30,NA(),IF($A98>$A$8,"",OFFSET(InputPriceData!$G$15,CalculationsAndCharts!$A98+$A$11,IF($C$5,8,0),1,1))) -> 60162200 | D98: =IF(A98>$B$30,NA(),IF(A98>$A$8,"",OFFSET(InputPriceData!$C$15,CalculationsAndCharts!$A98+$A$11,IF($C$5,8,0),1,1))) -> 417.380005 | E98: =IF(A98>$B$30,NA(),IF(A98>$A$8,"",OFFSET(InputPriceData!$D$15,CalculationsAndCharts!$A98+$A$11,IF($C$5,8,0),1,1))) -> 417.630005 | F98: =IF(A98>$B$30,NA(),IF(A98>$A$8,"",OFFSET(InputPriceData!$E$15,CalculationsAndCharts!$A98+$A$11,IF($C$5,8,0),1,1))) -> 415.149994 | G98: =IF(A98>$B$30,NA(),IF(A98>$A$8,"",OFFSET(InputPriceData!$F$15,CalculationsAndCharts!$A98+$A$11,IF($C$5,8,0),1,1))) -> 415.75 | H98: =IF($A98>$B$30,NA(),AVERAGE(E98:G98)) -> 416.1766663 | I98: =IF($A98>$I$30,NA(),LN(H98)-LN(H99)) -> 0.003723281258 | J98: =IF($A98>$J$30,NA(),_xlfn.STDEV.P(OFFSET(I98,0,0,30,1))) -> 0.005377751815 | K98: =IF($A98>$J$30,NA(),$A$17*J98*G98) -> 0.4471600634 | L98: =IF($A98>$J$30,NA(),AVERAGE(OFFSET(C98,1,0,$A$16,1))) -> 77133636.15 | M98: =IF($A98>$J$30,NA(),L98*$A$18) -> 192834090.4 | N98: =IF($A98>$J$30,NA(),MIN(C98,M98)) -> 60162200 | O98: =IF($A98>$I$30,NA(),H98-H99) -> 1.546661667 | P98: =IF($A98>$L$30,NA(),IF(O98>K98,N98,IF(O98<-K98,-N98,0))) -> 60162200 | Q98: =IF($A98>$Q$30,NA(),SUM(OFFSET(P98,0,0,$A$16,1))/L98) -> 16.29640664 | R98: =IF($A98>$R$30,NA(),IF($A98=$R$30,AVERAGE(OFFSET(Q98,0,0,$R$31,1)),(Q98-R99)/$R$31+R99)) -> 15.70524579 | S98: =IF($A98>$R$30,NA(),AVERAGE(OFFSET(R98,0,0,$S$31,1))) -> 14.46708002 | T98: =IF($A98>T$30,NA(),IF($A98=T$30,AVERAGE(OFFSET(R98,0,0,T$31,1)),(R98-T99)/T$31+T99)) -> 13.36629849 | U98: 5 | V98: 2.480011 | W98: 3.868337244 | X98: -28.00307634 | Y98: 2.21614344 | Z98: =IF($A98>$B$30,NA(),IF($A98>$A$8,"",OFFSET(InputIndexData!$B$15,$A98+$A$11,0,1,1))) -> 2021-05-05 | AA98: =IF($A98>$B$30,NA(),IF($A98>$A$8,"",OFFSET(InputIndexData!$G$15,CalculationsAndCharts!$A98+$A$11,IF($C$5,8,0),1,1))) -> 0 | AB98: =IF($A98>$B$30,NA(),IF($A98>$A$8,"",OFFSET(InputIndexData!$C$15,CalculationsAndCharts!$A98+$A$11,IF($C$5,8,0),1,1))) -> 18.84 | AC98: =IF($A98>$B$30,NA(),IF($A98>$A$8,"",OFFSET(InputIndexData!$D$15,CalculationsAndCharts!$A98+$A$11,IF($C$5,8,0),1,1))) -> 19.58 | AD98: =IF($A98>$B$30,NA(),IF($A98>$A$8,"",OFFSET(InputIndexData!$E$15,CalculationsAndCharts!$A98+$A$11,IF($C$5,8,0),1,1))) -> 17.889999 | AE98: =IF($A98>$B$30,NA(),IF($A98>$A$8,"",OFFSET(InputIndexData!$F$15,CalculationsAndCharts!$A98+$A$11,IF($C$5,8,0),1,1))) -> 19.15 | AF98: =IF($A98>$AF$30,NA(),($AE98/MAX(OFFSET($AE98,1,0,$AF$31,1))-1)*100) -> -2.345746948 | AG98: =IF($A98>$AF$30,NA(),($AE98/MIN(OFFSET($AE98,1,0,$AF$31,1))-1)*100) -> 17.84615385 | AH98: =IF($A98>$AH$30,NA(),AND(AND(AG98<$A$21,Y98<($A$21*$A$23)),R98>$A$22)) -> TRUE | AI98: =IF($A98>$AI$30,NA(),AND(OR(U98>10,U98<$A$20),AH99)) -> TRUE | AJ98: FALSE | AK98: FALSE | AL98: FALSE | AM98: FALSE | AN98: =IF($A98>$AN$30,NA(),IF($A98=$AN$30,AVERAGE(OFFSET($V98,0,0,$AN$31,1)),($V98-AN99)/$AN$31+AN99)) -> 3.697884346 | AO98: =AN98*$AO$31 -> 11.09365304 | AP98: =IF(AND(AI98,NOT(AI99),NOT(AT99)),F98,NA())-$AU$24 ->  | AQ98: =IF(AND(AJ98,NOT(AJ99),AT99),$E98,NA())+$AU$24 ->  | AR98: =IF(AND(AK98,NOT(AK99),AT99),$E98,NA())+$AU$24 ->  | AS98: =IF(AND(AL98,NOT(AL99),AT99),$E98,NA())+$AU$24 ->  | AT98: =IF($A98>$AT$30,FALSE,IF(AND(NOT(AT99),AND(AI98,NOT(AI99))),TRUE,IF(AND(AT99,AM98),FALSE,AT99))) -> TRUE | AU98: =IF($A98>$AT$30,"",IF(OR(AND(AT98,NOT(AT99)),AND(NOT(AT98),AT99)),AO98,"")) ->  | AX98: 60162200 | BN98: =$BN$31 -> -20 | BO98: =IF(R98>=0,R98,NA()) -> 15.70524579 | BP98: =IF(R98<=$BN$31,R98-$BN$31,NA()) ->  | BQ98: =BN98-IF(ISNA(BO98),0,BO98) -> -35.70524579 | BR98: =-BO98 -> -15.70524579 | BT98: FALSE | BU98: =IF($A98>$BT$30,FALSE,IF(AND(NOT(AT98),AT99),TRUE,FALSE)) -> FALSE
A99: 67 | B99: =IF(A99>$B$30,NA(),IF($A99>$A$8,"",OFFSET(InputPriceData!$B$15,$A99+$A$11,0,1,1))) -> 2021-05-04 | C99: =IF(A99>$B$30,NA(),IF($A99>$A$8,"",OFFSET(InputPriceData!$G$15,CalculationsAndCharts!$A99+$A$11,IF($C$5,8,0),1,1))) -> 101591200 | D99: =IF(A99>$B$30,NA(),IF(A99>$A$8,"",OFFSET(InputPriceData!$C$15,CalculationsAndCharts!$A99+$A$11,IF($C$5,8,0),1,1))) -> 416.070007 | E99: =IF(A99>$B$30,NA(),IF(A99>$A$8,"",OFFSET(InputPriceData!$D$15,CalculationsAndCharts!$A99+$A$11,IF($C$5,8,0),1,1))) -> 416.600006 | F99: =IF(A99>$B$30,NA(),IF(A99>$A$8,"",OFFSET(InputPriceData!$E$15,CalculationsAndCharts!$A99+$A$11,IF($C$5,8,0),1,1))) -> 411.670013 | G99: =IF(A99>$B$30,NA(),IF(A99>$A$8,"",OFFSET(InputPriceData!$F$15,CalculationsAndCharts!$A99+$A$11,IF($C$5,8,0),1,1))) -> 415.619995 | H99: 414.6300047 | I99: -0.009457589165 | J99: 0.00548844502 | K99: 0.4562214983 | L99: 77055803.85 | M99: 192639509.6 | N99: 101591200 | O99: -3.940002333 | P99: -101591200 | Q99: 15.53210583 | R99: 15.40966536 | S99: 14.2077192 | T99: 13.10641546 | U99: 5 | V99: 6.529999 | W99: 3.967503404 | X99: -28.63633433 | Y99: 4.836489554 | Z99: =IF($A99>$B$30,NA(),IF($A99>$A$8,"",OFFSET(InputIndexData!$B$15,$A99+$A$11,0,1,1))) -> 2021-05-04 | AA99: =IF($A99>$B$30,NA(),IF($A99>$A$8,"",OFFSET(InputIndexData!$G$15,CalculationsAndCharts!$A99+$A$11,IF($C$5,8,0),1,1))) -> 0 | AB99: =IF($A99>$B$30,NA(),IF($A99>$A$8,"",OFFSET(InputIndexData!$C$15,CalculationsAndCharts!$A99+$A$11,IF($C$5,8,0),1,1))) -> 18.16 | AC99: =IF($A99>$B$30,NA(),IF($A99>$A$8,"",OFFSET(InputIndexData!$D$15,CalculationsAndCharts!$A99+$A$11,IF($C$5,8,0),1,1))) -> 21.85 | AD99: =IF($A99>$B$30,NA(),IF($A99>$A$8,"",OFFSET(InputIndexData!$E$15,CalculationsAndCharts!$A99+$A$11,IF($C$5,8,0),1,1))) -> 18.110001 | AE99: =IF($A99>$B$30,NA(),IF($A99>$A$8,"",OFFSET(InputIndexData!$F$15,CalculationsAndCharts!$A99+$A$11,IF($C$5,8,0),1,1))) -> 19.48 | AF99: -6.075216972 | AG99: 19.87692308 | AH99: TRUE | AI99: TRUE | AJ99: FALSE | AK99: FALSE | AL99: FALSE | AM99: FALSE | AN99: 3.833203606 | AO99: 11.49961082 | AT99: TRUE | AX99: 101591200 | BN99: -20 | BO99: 15.40966536 | BQ99: -35.40966536 | BR99: -15.40966536 | BT99: FALSE | BU99: FALSE
A100: 68 | B100: =IF(A100>$B$30,NA(),IF($A100>$A$8,"",OFFSET(InputPriceData!$B$15,$A100+$A$11,0,1,1))) -> 2021-05-03 | C100: =IF(A100>$B$30,NA(),IF($A100>$A$8,"",OFFSET(InputPriceData!$G$15,CalculationsAndCharts!$A100+$A$11,IF($C$5,8,0),1,1))) -> 68128300 | D100: =IF(A100>$B$30,NA(),IF(A100>$A$8,"",OFFSET(InputPriceData!$C$15,CalculationsAndCharts!$A100+$A$11,IF($C$5,8,0),1,1))) -> 419.429993 | E100: =IF(A100>$B$30,NA(),IF(A100>$A$8,"",OFFSET(InputPriceData!$D$15,CalculationsAndCharts!$A100+$A$11,IF($C$5,8,0),1,1))) -> 419.839996 | F100: =IF(A100>$B$30,NA(),IF(A100>$A$8,"",OFFSET(InputPriceData!$E$15,CalculationsAndCharts!$A100+$A$11,IF($C$5,8,0),1,1))) -> 417.670013 | G100: =IF(A100>$B$30,NA(),IF(A100>$A$8,"",OFFSET(InputPriceData!$F$15,CalculationsAndCharts!$A100+$A$11,IF($C$5,8,0),1,1))) -> 418.200012 | H100: 418.570007 | I100: 0.002815139668 | J100: 0.005147850173 | K100: 0.4305662008 | L100: 76909770 | M100: 192274425 | N100: 68128300 | O100: 1.176676 | P100: 68128300 | Q100: 15.69315706 | R100: 15.34844513 | S100: 13.97727622 | T100: 12.8504988 | U100: 5 | V100: 2.540008 | W100: 3.784468005 | X100: -33.31614867 | Y100: -1.85632108 | Z100: =IF($A100>$B$30,NA(),IF($A100>$A$8,"",OFFSET(InputIndexData!$B$15,$A100+$A$11,0,1,1))) -> 2021-05-03 | AA100: =IF($A100>$B$30,NA(),IF($A100>$A$8,"",OFFSET(InputIndexData!$G$15,CalculationsAndCharts!$A100+$A$11,IF($C$5,8,0),1,1))) -> 0 | AB100: =IF($A100>$B$30,NA(),IF($A100>$A$8,"",OFFSET(InputIndexData!$C$15,CalculationsAndCharts!$A100+$A$11,IF($C$5,8,0),1,1))) -> 18.65 | AC100: =IF($A100>$B$30,NA(),IF($A100>$A$8,"",OFFSET(InputIndexData!$D$15,CalculationsAndCharts!$A100+$A$11,IF($C$5,8,0),1,1))) -> 19.120001 | AD100: =IF($A100>$B$30,NA(),IF($A100>$A$8,"",OFFSET(InputIndexData!$E$15,CalculationsAndCharts!$A100+$A$11,IF($C$5,8,0),1,1))) -> 17.799999 | AE100: =IF($A100>$B$30,NA(),IF($A100>$A$8,"",OFFSET(InputIndexData!$F$15,CalculationsAndCharts!$A100+$A$11,IF($C$5,8,0),1,1))) -> 18.309999 | AF100: -11.7164947 | AG100: 12.67691692 | AH100: TRUE | AI100: TRUE | AJ100: FALSE | AK100: FALSE | AL100: FALSE | AM100: FALSE | AN100: 3.533559674 | AO100: 10.60067902 | AT100: TRUE | AX100: 68128300 | BN100: -20 | BO100: 15.34844513 | BQ100: -35.34844513 | BR100: -15.34844513 | BT100: FALSE | BU100: FALSE
A101: 69 | B101: =IF(A101>$B$30,NA(),IF($A101>$A$8,"",OFFSET(InputPriceData!$B$15,$A101+$A$11,0,1,1))) -> 2021-04-30 | C101: =IF(A101>$B$30,NA(),IF($A101>$A$8,"",OFFSET(InputPriceData!$G$15,CalculationsAndCharts!$A101+$A$11,IF($C$5,8,0),1,1))) -> 85527000 | D101: =IF(A101>$B$30,NA(),IF(A101>$A$8,"",OFFSET(InputPriceData!$C$15,CalculationsAndCharts!$A101+$A$11,IF($C$5,8,0),1,1))) -> 417.630005 | E101: =IF(A101>$B$30,NA(),IF(A101>$A$8,"",OFFSET(InputPriceData!$D$15,CalculationsAndCharts!$A101+$A$11,IF($C$5,8,0),1,1))) -> 418.540009 | F101: =IF(A101>$B$30,NA(),IF(A101>$A$8,"",OFFSET(InputPriceData!$E$15,CalculationsAndCharts!$A101+$A$11,IF($C$5,8,0),1,1))) -> 416.339996 | G101: =IF(A101>$B$30,NA(),IF(A101>$A$8,"",OFFSET(InputPriceData!$F$15,CalculationsAndCharts!$A101+$A$11,IF($C$5,8,0),1,1))) -> 417.299988 | H101: 417.393331 | I101: -0.004016908256 | J101: 0.005549425364 | K101: 0.4631550275 | L101: 76678018.46 | M101: 191695046.2 | N101: 85527000 | O101: -1.680002667 | P101: -85527000 | Q101: 15.49300209 | R101: 15.17608917 | S101: 13.8432158 | T101: 12.57294921 | U101: 4 | V101: 3.720002 | W101: 3.873358005 | X101: -31.74987104 | Y101: 0.4488884349 | Z101: =IF($A101>$B$30,NA(),IF($A101>$A$8,"",OFFSET(InputIndexData!$B$15,$A101+$A$11,0,1,1))) -> 2021-04-30 | AA101: =IF($A101>$B$30,NA(),IF($A101>$A$8,"",OFFSET(InputIndexData!$G$15,CalculationsAndCharts!$A101+$A$11,IF($C$5,8,0),1,1))) -> 0 | AB101: =IF($A101>$B$30,NA(),IF($A101>$A$8,"",OFFSET(InputIndexData!$C$15,CalculationsAndCharts!$A101+$A$11,IF($C$5,8,0),1,1))) -> 17.67 | AC101: =IF($A101>$B$30,NA(),IF($A101>$A$8,"",OFFSET(InputIndexData!$D$15,CalculationsAndCharts!$A101+$A$11,IF($C$5,8,0),1,1))) -> 19.25 | AD101: =IF($A101>$B$30,NA(),IF($A101>$A$8,"",OFFSET(InputIndexData!$E$15,CalculationsAndCharts!$A101+$A$11,IF($C$5,8,0),1,1))) -> 17.639999 | AE101: =IF($A101>$B$30,NA(),IF($A101>$A$8,"",OFFSET(InputIndexData!$F$15,CalculationsAndCharts!$A101+$A$11,IF($C$5,8,0),1,1))) -> 18.610001 | AF101: -10.27000482 | AG101: 14.52308308 | AH101: TRUE | AI101: TRUE | AJ101: FALSE | AK101: FALSE | AL101: FALSE | AM101: FALSE | AN101: 3.643954304 | AO101: 10.93186291 | AT101: TRUE | AX101: 85527000 | BN101: -20 | BO101: 15.17608917 | BQ101: -35.17608917 | BR101: -15.17608917 | BT101: FALSE | BU101: FALSE
A102: 70 | B102: =IF(A102>$B$30,NA(),IF($A102>$A$8,"",OFFSET(InputPriceData!$B$15,$A102+$A$11,0,1,1))) -> 2021-04-29 | C102: =IF(A102>$B$30,NA(),IF($A102>$A$8,"",OFFSET(InputPriceData!$G$15,CalculationsAndCharts!$A102+$A$11,IF($C$5,8,0),1,1))) -> 78544300 | D102: =IF(A102>$B$30,NA(),IF(A102>$A$8,"",OFFSET(InputPriceData!$C$15,CalculationsAndCharts!$A102+$A$11,IF($C$5,8,0),1,1))) -> 420.320007 | E102: =IF(A102>$B$30,NA(),IF(A102>$A$8,"",OFFSET(InputPriceData!$D$15,CalculationsAndCharts!$A102+$A$11,IF($C$5,8,0),1,1))) -> 420.720001 | F102: =IF(A102>$B$30,NA(),IF(A102>$A$8,"",OFFSET(InputPriceData!$E$15,CalculationsAndCharts!$A102+$A$11,IF($C$5,8,0),1,1))) -> 416.440002 | G102: =IF(A102>$B$30,NA(),IF(A102>$A$8,"",OFFSET(InputPriceData!$F$15,CalculationsAndCharts!$A102+$A$11,IF($C$5,8,0),1,1))) -> 420.059998 | H102: 419.0733337 | I102: 0.003114885035 | J102: 0.005749195955 | K102: 0.4830014483 | L102: 76562870 | M102: 191407175 | N102: 78544300 | O102: 1.303334333 | P102: 78544300 | Q102: 16.63338509 | R102: 15.0176327 | S102: 13.75471579 | T102: 12.28371144 | U102: 4 | V102: 4.279999 | W102: 3.884312005 | X102: -31.55685714 | Y102: 0.7329616234 | Z102: =IF($A102>$B$30,NA(),IF($A102>$A$8,"",OFFSET(InputIndexData!$B$15,$A102+$A$11,0,1,1))) -> 2021-04-29 | AA102: =IF($A102>$B$30,NA(),IF($A102>$A$8,"",OFFSET(InputIndexData!$G$15,CalculationsAndCharts!$A102+$A$11,IF($C$5,8,0),1,1))) -> 0 | AB102: =IF($A102>$B$30,NA(),IF($A102>$A$8,"",OFFSET(InputIndexData!$C$15,CalculationsAndCharts!$A102+$A$11,IF($C$5,8,0),1,1))) -> 16.879999 | AC102: =IF($A102>$B$30,NA(),IF($A102>$A$8,"",OFFSET(InputIndexData!$D$15,CalculationsAndCharts!$A102+$A$11,IF($C$5,8,0),1,1))) -> 18.870001 | AD102: =IF($A102>$B$30,NA(),IF($A102>$A$8,"",OFFSET(InputIndexData!$E$15,CalculationsAndCharts!$A102+$A$11,IF($C$5,8,0),1,1))) -> 16.77 | AE102: =IF($A102>$B$30,NA(),IF($A102>$A$8,"",OFFSET(InputIndexData!$F$15,CalculationsAndCharts!$A102+$A$11,IF($C$5,8,0),1,1))) -> 17.610001 | AF102: -16.93396147 | AG102: 8.369236923 | AH102: TRUE | AI102: TRUE | AJ102: FALSE | AK102: FALSE | AL102: FALSE | AM102: FALSE | AN102: 3.63550456 | AO102: 10.90651368 | AT102: TRUE | AX102: 78544300 | BN102: -20 | BO102: 15.0176327 | BQ102: -35.0176327 | BR102: -15.0176327 | BT102: FALSE | BU102: FALSE
A103: 71 | B103: =IF(A103>$B$30,NA(),IF($A103>$A$8,"",OFFSET(InputPriceData!$B$15,$A103+$A$11,0,1,1))) -> 2021-04-28 | C103: =IF(A103>$B$30,NA(),IF($A103>$A$8,"",OFFSET(InputPriceData!$G$15,CalculationsAndCharts!$A103+$A$11,IF($C$5,8,0),1,1))) -> 51238900 | D103: =IF(A103>$B$30,NA(),IF(A103>$A$8,"",OFFSET(InputPriceData!$C$15,CalculationsAndCharts!$A103+$A$11,IF($C$5,8,0),1,1))) -> 417.809998 | E103: =IF(A103>$B$30,NA(),IF(A103>$A$8,"",OFFSET(InputPriceData!$D$15,CalculationsAndCharts!$A103+$A$11,IF($C$5,8,0),1,1))) -> 419.01001 | F103: =IF(A103>$B$30,NA(),IF(A103>$A$8,"",OFFSET(InputPriceData!$E$15,CalculationsAndCharts!$A103+$A$11,IF($C$5,8,0),1,1))) -> 416.899994 | G103: =IF(A103>$B$30,NA(),IF(A103>$A$8,"",OFFSET(InputPriceData!$F$15,CalculationsAndCharts!$A103+$A$11,IF($C$5,8,0),1,1))) -> 417.399994 | H103: 417.7699993 | I103: 0.001077733048 | J103: 0.005755119475 | K103: 0.4804373669 | L103: 76630662.31 | M103: 191576655.8 | N103: 51238900 | O103: 0.450002 | P103: 0 | Q103: 14.76406918 | R103: 14.20975651 | S103: 13.63154866 | T103: 11.97994241 | U103: 4 | V103: 2.110016 | W103: 3.856048648 | X103: -32.05486888 | Y103: -3.132980957 | Z103: =IF($A103>$B$30,NA(),IF($A103>$A$8,"",OFFSET(InputIndexData!$B$15,$A103+$A$11,0,1,1))) -> 2021-04-28 | AA103: =IF($A103>$B$30,NA(),IF($A103>$A$8,"",OFFSET(InputIndexData!$G$15,CalculationsAndCharts!$A103+$A$11,IF($C$5,8,0),1,1))) -> 0 | AB103: =IF($A103>$B$30,NA(),IF($A103>$A$8,"",OFFSET(InputIndexData!$C$15,CalculationsAndCharts!$A103+$A$11,IF($C$5,8,0),1,1))) -> 17.469999 | AC103: =IF($A103>$B$30,NA(),IF($A103>$A$8,"",OFFSET(InputIndexData!$D$15,CalculationsAndCharts!$A103+$A$11,IF($C$5,8,0),1,1))) -> 17.84 | AD103: =IF($A103>$B$30,NA(),IF($A103>$A$8,"",OFFSET(InputIndexData!$E$15,CalculationsAndCharts!$A103+$A$11,IF($C$5,8,0),1,1))) -> 16.67 | AE103: =IF($A103>$B$30,NA(),IF($A103>$A$8,"",OFFSET(InputIndexData!$F$15,CalculationsAndCharts!$A103+$A$11,IF($C$5,8,0),1,1))) -> 17.280001 | AF103: -18.49056517 | AG103: 6.338467692 | AH103: TRUE | AI103: TRUE | AJ103: FALSE | AK103: FALSE | AL103: FALSE | AM103: FALSE | AN103: 3.563894067 | AO103: 10.6916822 | AT103: TRUE | AX103: 51238900 | BN103: -20 | BO103: 14.20975651 | BQ103: -34.20975651 | BR103: -14.20975651 | BT103: FALSE | BU103: FALSE
A104: 72 | B104: =IF(A104>$B$30,NA(),IF($A104>$A$8,"",OFFSET(InputPriceData!$B$15,$A104+$A$11,0,1,1))) -> 2021-04-27 | C104: =IF(A104>$B$30,NA(),IF($A104>$A$8,"",OFFSET(InputPriceData!$G$15,CalculationsAndCharts!$A104+$A$11,IF($C$5,8,0),1,1))) -> 51303100 | D104: =IF(A104>$B$30,NA(),IF(A104>$A$8,"",OFFSET(InputPriceData!$C$15,CalculationsAndCharts!$A104+$A$11,IF($C$5,8,0),1,1))) -> 417.929993 | E104: =IF(A104>$B$30,NA(),IF(A104>$A$8,"",OFFSET(InputPriceData!$D$15,CalculationsAndCharts!$A104+$A$11,IF($C$5,8,0),1,1))) -> 418.140015 | F104: =IF(A104>$B$30,NA(),IF(A104>$A$8,"",OFFSET(InputPriceData!$E$15,CalculationsAndCharts!$A104+$A$11,IF($C$5,8,0),1,1))) -> 416.299988 | G104: =IF(A104>$B$30,NA(),IF(A104>$A$8,"",OFFSET(InputPriceData!$F$15,CalculationsAndCharts!$A104+$A$11,IF($C$5,8,0),1,1))) -> 417.519989 | H104: 417.3199973 | I104: -0.0005429945087 | J104: 0.005758629573 | K104: 0.4808685912 | L104: 76762373.85 | M104: 191905934.6 | N104: 51303100 | O104: -0.226664 | P104: 0 | Q104: 14.73873648 | R104: 13.93260018 | S104: 13.53728511 | T104: 11.73218528 | U104: 4 | V104: 1.840027 | W104: 3.980765266 | X104: -29.85731181 | Y104: -0.5116788173 | Z104: =IF($A104>$B$30,NA(),IF($A104>$A$8,"",OFFSET(InputIndexData!$B$15,$A104+$A$11,0,1,1))) -> 2021-04-27 | AA104: =IF($A104>$B$30,NA(),IF($A104>$A$8,"",OFFSET(InputIndexData!$G$15,CalculationsAndCharts!$A104+$A$11,IF($C$5,8,0),1,1))) -> 0 | AB104: =IF($A104>$B$30,NA(),IF($A104>$A$8,"",OFFSET(InputIndexData!$C$15,CalculationsAndCharts!$A104+$A$11,IF($C$5,8,0),1,1))) -> 17.620001 | AC104: =IF($A104>$B$30,NA(),IF($A104>$A$8,"",OFFSET(InputIndexData!$D$15,CalculationsAndCharts!$A104+$A$11,IF($C$5,8,0),1,1))) -> 18.16 | AD104: =IF($A104>$B$30,NA(),IF($A104>$A$8,"",OFFSET(InputIndexData!$E$15,CalculationsAndCharts!$A104+$A$11,IF($C$5,8,0),1,1))) -> 16.969999 | AE104: =IF($A104>$B$30,NA(),IF($A104>$A$8,"",OFFSET(InputIndexData!$F$15,CalculationsAndCharts!$A104+$A$11,IF($C$5,8,0),1,1))) -> 17.559999 | AF104: -17.16981994 | AG104: 8.061532308 | AH104: TRUE | AI104: TRUE | AJ104: FALSE | AK104: FALSE | AL104: FALSE | AM104: FALSE | AN104: 3.725436074 | AO104: 11.17630822 | AT104: TRUE | AX104: 51303100 | BN104: -20 | BO104: 13.93260018 | BQ104: -33.93260018 | BR104: -13.93260018 | BT104: FALSE | BU104: FALSE
A105: 73 | B105: =IF(A105>$B$30,NA(),IF($A105>$A$8,"",OFFSET(InputPriceData!$B$15,$A105+$A$11,0,1,1))) -> 2021-04-26 | C105: =IF(A105>$B$30,NA(),IF($A105>$A$8,"",OFFSET(InputPriceData!$G$15,CalculationsAndCharts!$A105+$A$11,IF($C$5,8,0),1,1))) -> 52182400 | D105: =IF(A105>$B$30,NA(),IF(A105>$A$8,"",OFFSET(InputPriceData!$C$15,CalculationsAndCharts!$A105+$A$11,IF($C$5,8,0),1,1))) -> 417.440002 | E105: =IF(A105>$B$30,NA(),IF(A105>$A$8,"",OFFSET(InputPriceData!$D$15,CalculationsAndCharts!$A105+$A$11,IF($C$5,8,0),1,1))) -> 418.220001 | F105: =IF(A105>$B$30,NA(),IF(A105>$A$8,"",OFFSET(InputPriceData!$E$15,CalculationsAndCharts!$A105+$A$11,IF($C$5,8,0),1,1))) -> 416.809998 | G105: =IF(A105>$B$30,NA(),IF(A105>$A$8,"",OFFSET(InputPriceData!$F$15,CalculationsAndCharts!$A105+$A$11,IF($C$5,8,0),1,1))) -> 417.609985 | H105: 417.5466613 | I105: 0.003887339849 | J105: 0.005764942394 | K105: 0.4814995013 | L105: 77049446.92 | M105: 192623617.3 | N105: 52182400 | O105: 1.619995 | P105: 52182400 | Q105: 13.79574861 | R105: 13.52953203 | S105: 13.39714703 | T105: 11.48769474 | U105: 4 | V105: 1.480011 | W105: 4.133675142 | X105: -27.16297817 | Y105: 3.309884589 | Z105: =IF($A105>$B$30,NA(),IF($A105>$A$8,"",OFFSET(InputIndexData!$B$15,$A105+$A$11,0,1,1))) -> 2021-04-26 | AA105: =IF($A105>$B$30,NA(),IF($A105>$A$8,"",OFFSET(InputIndexData!$G$15,CalculationsAndCharts!$A105+$A$11,IF($C$5,8,0),1,1))) -> 0 | AB105: =IF($A105>$B$30,NA(),IF($A105>$A$8,"",OFFSET(InputIndexData!$C$15,CalculationsAndCharts!$A105+$A$11,IF($C$5,8,0),1,1))) -> 17.940001 | AC105: =IF($A105>$B$30,NA(),IF($A105>$A$8,"",OFFSET(InputIndexData!$D$15,CalculationsAndCharts!$A105+$A$11,IF($C$5,8,0),1,1))) -> 18.17 | AD105: =IF($A105>$B$30,NA(),IF($A105>$A$8,"",OFFSET(InputIndexData!$E$15,CalculationsAndCharts!$A105+$A$11,IF($C$5,8,0),1,1))) -> 16.870001 | AE105: =IF($A105>$B$30,NA(),IF($A105>$A$8,"",OFFSET(InputIndexData!$F$15,CalculationsAndCharts!$A105+$A$11,IF($C$5,8,0),1,1))) -> 17.639999 | AF105: -16.79246147 | AG105: 8.55384 | AH105: TRUE | AI105: TRUE | AJ105: FALSE | AK105: FALSE | AL105: FALSE | AM105: FALSE | AN105: 3.934925971 | AO105: 11.80477791 | AT105: TRUE | AW105: 52182400 | BN105: -20 | BO105: 13.52953203 | BQ105: -33.52953203 | BR105: -13.52953203 | BT105: FALSE | BU105: FALSE
